{"text_format":"1","workbook":"xlsx","n_sheets":17,"sheets":["Parametres","Paramétrage des points","Comités","Juges","Clubs","BASE","pesée","FV","notes juge","résultat","résultat culturis form","C3","CULTURIS FORM","Couples","Résultat final","Résultats clubs","comparaison"],"not_rendered":{"charts":0,"images":5,"macros":1,"external_links":0,"defined_names":34,"comments":3,"pivot_tables":1},"unopened":[],"bounds":{"document_bytes":16777216,"sheet_cells":100000,"rows_first":2000,"rows_last":500,"rows_between":2000,"halvings":0,"cell_chars":16384,"cell_head_chars":4096},"cells_cut":0,"cells_raw":0,"read":"whole","date_system":"1900"}

{"sheet":"Parametres","index":0,"n_rows":27,"n_cols":9,"rows_kept":27,"cut":false,"hidden":false,"merged":[]}
["Paramètres de la compétition"]
[]
["Titre de la compétition :","Compétition magnifique"]
[]
["Type de compétition :","Nationale",{"$f":"VLOOKUP(B5,H5:I7,2,FALSE)","v":"N"},null,null,null,{"$f":"C5","v":"N"},"Régionale","R"]
[null,null,null,null,null,null,null,"Interzones","I"]
["Date de la compétition :","2013-03-13",null,null,null,null,null,"Nationale","N"]
[]
["Lieu de la compétition :","Gymnase c'est ici"]
[]
["Saison (1er septembre de référence) :","2012-09-01","jj/mm/aaaa"]
[]
[]
[]
["Paramètres du fichier"]
[]
["Athlètes : Maxi 15 par catégories et 200 sur l'ensemble de la compétition"]
["Catégories : Maxi 30"]
["La catégorie CULTURIS FORM doit être écrite obligatoirement en majuscule"]
["Juges : Maxi 9 par catégories et 15 sur l'ensemble de la compétition"]
["Clubs: Maxi 81"]
["Comités: Maxi 27"]
["Pour les zones verrouillées le mot de passe pour la modification est MODIF en majuscule"]
[]
[]
["ATTENTION: pour modifier une ligne, colonne ou catégorie: ne jamais utiliser \"supprimer\""]
["mais \"effacer contenu\" et (si besoin) trier pour déplacer la ligne ou colonne vide"]

{"sheet":"Paramétrage des points","index":1,"n_rows":142,"n_cols":28,"rows_kept":142,"cut":false,"hidden":false,"merged":[]}
["Paramètrage pour l'attribution des points"]
[]
["Catégories de la","Catégories de",null,null,null,"Les compétitions R(égionales) et I(nterzone) n'utilisent que ce tableau",null,null,null,null,null,null,null,null,null,null,null,null,null,null,null,"pts",null,null,null,"place",null,"pts"]
["compétition","Référence",null,null,null,null,"R","I",null,null,null,null,null,null,null,null,null,null,null,null,null,null,null,"N","HV",1,{"$f":"X4&Y4&Z4","v":"NHV1"},10]
[null,"HJ-75","JE",null,null,"HS",2,4,null,null,null,null,null,null,null,null,null,null,null,"R",{"$f":"T5&C5","v":"RJE"},6,null,"N","HV",2,{"$f":"X5&Y5&Z5","v":"NHV2"},8]
[null,"HJ+75","JE",null,null,"HV",2,4,null,null,null,null,null,null,null,null,null,null,null,"R",{"$f":"T6&C6","v":"RJE"},6,null,"N","HV",3,"NHV3",6]
[null,"FJ-75","JE",null,null,"FS",4,6,null,null,null,null,null,null,null,null,null,null,null,"R",{"$f":"T7&C7","v":"RJE"},6,null,"N","HV",4,"NHV4",4]
[null,"FJ+75","JE",null,null,"FV",4,6,null,null,null,null,null,null,null,null,null,null,null,"R","RJE",6,null,"N","HV",5,"NHV5",3]
[null,"HE-75","JE",null,null,"CUF",4,6,null,null,null,null,null,null,null,null,null,null,null,"R","RJE",6,null,"N","HV",6,"NHV6",2]
[null,"HE+75","JE",null,null,"JE ",6,8,null,null,null,null,null,null,null,null,null,null,null,"R","RJE",6,null,"N","HV",7,"NHV7",1]
[null,"FS-52","FS",null,null,null,null,null,null,null,null,null,null,null,null,null,null,null,null,"R","RFS",4,null,"N","HV",8,"NHV8",1]
[null,"FS+52","FS",null,null,"Les compétitions F(inale) n'utilisent que ces tableaux",null,null,null,null,null,null,null,null,null,null,null,null,null,"R","RFS",4,null,"N","HV",9,"NHV9",1]
[null,"HS-65","HS",null,"F","place","HV","FV",null,"place","HS","FS","CUF","JE",null,"place","CH","CF",null,"R","RHS",2,null,"N","HV",10,"NHV10",1]
[null,"HS-70","HS",null,null,1,10,15,null,1,20,25,25,30,null,1,10,15,null,"R","RHS",2,null,"N","HV",11,"NHV11",1]
[null,"HS-75","HS",null,null,2,8,12,null,2,15,20,20,25,null,2,8,12,null,"R","RHS",2,null,"N","HV",12,"NHV12",1]
[null,"HS-80","HS",null,null,3,6,10,null,3,12,15,15,20,null,3,6,9,null,"R","RHS",2,null,"N","HV",13,"NHV13",1]
[null,"HS-85","HS",null,null,4,4,8,null,4,8,12,12,15,null,4,5,7,null,"R","RHS",2,null,"N","HV",14,"NHV14",1]
[null,"HS+85","HS",null,null,5,3,6,null,5,6,8,8,12,null,5,3,5,null,"R","RHS",2,null,"N","HV",15,"NHV15",1]
[null,"FV-52","FV",null,null,6,2,4,null,6,4,6,6,8,null,6,2,4,null,"R","RFV",4,null,"N","HV",16,"NHV16",1]
[null,"FV+52","FV",null,null,7,1,1,null,7,1,2,2,2,null,"Couples",null,null,null,"R","RFV",4,null,"N","HV",17,"NHV17",1]
[null,"HV1-70","HV",null,null,8,1,1,null,8,1,2,2,2,null,null,null,null,null,"R","RHV",2,null,"N","HV",18,"NHV18",1]
[null,"HV1-75","HV",null,null,9,1,1,null,9,1,2,2,2,null,null,null,null,null,"R","RHV",2,null,"N","HV",19,"NHV19",1]
[null,"HV1-80","HV",null,null,10,1,1,null,10,1,2,2,2,null,null,null,null,null,"R","RHV",2,null,"N","HV",20,"NHV20",1]
[null,"HV1+80","HV",null,null,11,1,1,null,11,1,2,2,2,null,null,null,null,null,"R","RHV",2]
[null,"HV2-75","HV",null,null,12,1,1,null,12,1,2,2,2,null,null,null,null,null,"R","RHV",2,null,"N","FV",1,{"$f":"X25&Y25&Z25","v":"NFV1"},15]
[null,"HV2+75","HV",null,null,13,1,1,null,13,1,2,2,2,null,null,null,null,null,"R","RHV",2,null,"N","FV",2,{"$f":"X26&Y26&Z26","v":"NFV2"},12]
[null,"HV3","HV",null,null,14,1,1,null,14,1,2,2,2,null,null,null,null,null,"R","RHV",2,null,"N","FV",3,"NFV3",10]
["Couples","Couple","CH/CF",null,null,15,1,1,null,15,1,2,2,2,null,null,null,null,null,"R","RCH/CF",0,null,"N","FV",4,"NFV4",8]
["CULTURIS FORM","Culturisform","CUF",null,null,16,1,1,null,16,1,2,2,2,null,null,null,null,null,"R",{"$f":"T29&#REF!","v":{"$error":"#REF!"}},0,null,"N","FV",5,"NFV5",6]
[null,null,null,null,null,17,1,1,null,17,1,2,2,2,null,null,null,null,null,"R",{"$f":"T30&C29","v":"RCUF"},4,null,"N","FV",6,"NFV6",4]
[null,null,null,null,null,18,1,1,null,18,1,2,2,2,null,null,null,null,null,null,null,null,null,"N","FV",7,"NFV7",1]
[null,null,null,null,null,19,1,1,null,19,1,2,2,2,null,null,null,null,null,null,null,null,null,"N","FV",8,"NFV8",1]
[null,null,null,null,null,20,1,1,null,20,1,2,2,2,null,null,null,null,null,null,null,null,null,"N","FV",9,"NFV9",1]
[null,null,null,null,null,null,"Vétéran",null,null,null,"Sénior",null,null,"Junior Espoir",null,null,null,null,null,"I",{"$f":"T34&C5","v":"IJE"},8,null,"N","FV",10,"NFV10",1]
[null,null,null,null,null,null,null,null,null,null,null,"Culturis-Form",null,null,null,null,null,null,null,"I",{"$f":"T35&C6","v":"IJE"},8,null,"N","FV",11,"NFV11",1]
[null,null,null,null,null,null,null,null,null,null,null,null,null,null,null,null,null,null,null,"I","IJE",8,null,"N","FV",12,"NFV12",1]
[null,null,null,null,null,null,null,null,null,null,null,null,null,null,null,null,null,null,null,"I","IJE",8,null,"N","FV",13,"NFV13",1]
[null,null,null,null,null,null,null,null,null,null,null,null,null,null,null,null,null,null,null,"I","IJE",8,null,"N","FV",14,"NFV14",1]
[null,null,null,null,null,null,null,null,null,null,null,null,null,null,null,null,null,null,null,"I","IJE",8,null,"N","FV",15,"NFV15",1]
[null,null,null,null,null,null,null,null,null,null,null,null,null,null,null,null,null,null,null,"I","IFS",6,null,"N","FV",16,"NFV16",1]
[null,null,null,null,null,null,null,null,null,null,null,null,null,null,null,null,null,null,null,"I","IFS",6,null,"N","FV",17,"NFV17",1]
[null,null,null,null,null,null,null,null,null,null,null,null,null,null,null,null,null,null,null,"I","IHS",4,null,"N","FV",18,"NFV18",1]
[null,null,null,null,null,null,null,null,null,null,null,null,null,null,null,null,null,null,null,"I","IHS",4,null,"N","FV",19,"NFV19",1]
[null,null,null,null,null,null,null,null,null,null,null,null,null,null,null,null,null,null,null,"I","IHS",4,null,"N","FV",20,"NFV20",1]
[null,null,null,null,null,null,null,null,null,null,null,null,null,null,null,null,null,null,null,"I","IHS",4]
[null,null,null,null,null,null,null,null,null,null,null,null,null,null,null,null,null,null,null,"I","IHS",4,null,"N","HS",1,{"$f":"X46&Y46&Z46","v":"NHS1"},20]
[null,null,null,null,null,null,null,null,null,null,null,null,null,null,null,null,null,null,null,"I","IHS",4,null,"N","HS",2,{"$f":"X47&Y47&Z47","v":"NHS2"},15]
[null,null,null,null,null,null,null,null,null,null,null,null,null,null,null,null,null,null,null,"I","IFV",6,null,"N","HS",3,"NHS3",12]
[null,null,null,null,null,null,null,null,null,null,null,null,null,null,null,null,null,null,null,"I","IFV",6,null,"N","HS",4,"NHS4",8]
[null,null,null,null,null,null,null,null,null,null,null,null,null,null,null,null,null,null,null,"I","IHV",4,null,"N","HS",5,"NHS5",6]
[null,null,null,null,null,null,null,null,null,null,null,null,null,null,null,null,null,null,null,"I","IHV",4,null,"N","HS",6,"NHS6",4]
[null,null,null,null,null,null,null,null,null,null,null,null,null,null,null,null,null,null,null,"I","IHV",4,null,"N","HS",7,"NHS7",1]
[null,null,null,null,null,null,null,null,null,null,null,null,null,null,null,null,null,null,null,"I","IHV",4,null,"N","HS",8,"NHS8",1]
[null,null,null,null,null,null,null,null,null,null,null,null,null,null,null,null,null,null,null,"I","IHV",4,null,"N","HS",9,"NHS9",1]
[null,null,null,null,null,null,null,null,null,null,null,null,null,null,null,null,null,null,null,"I","IHV",4,null,"N","HS",10,"NHS10",1]
[null,null,null,null,null,null,null,null,null,null,null,null,null,null,null,null,null,null,null,"I","IHV",4,null,"N","HS",11,"NHS11",1]
[null,null,null,null,null,null,null,null,null,null,null,null,null,null,null,null,null,null,null,"I","ICH/CF",0,null,"N","HS",12,"NHS12",1]
[null,null,null,null,null,null,null,null,null,null,null,null,null,null,null,null,null,null,null,"I",{"$f":"T58&#REF!","v":{"$error":"#REF!"}},0,null,"N","HS",13,"NHS13",1]
[null,null,null,null,null,null,null,null,null,null,null,null,null,null,null,null,null,null,null,"I",{"$f":"T59&C29","v":"ICUF"},6,null,"N","HS",14,"NHS14",1]
[null,null,null,null,null,null,null,null,null,null,null,null,null,null,null,null,null,null,null,null,null,null,null,"N","HS",15,"NHS15",1]
[null,null,null,null,null,null,null,null,null,null,null,null,null,null,null,null,null,null,null,null,null,null,null,"N","HS",16,"NHS16",1]
[null,null,null,null,null,null,null,null,null,null,null,null,null,null,null,null,null,null,null,"N",{"$f":"T62&G13","v":"NHV"},null,null,"N","HS",17,"NHS17",1]
[null,null,null,null,null,null,null,null,null,null,null,null,null,null,null,null,null,null,null,"N",{"$f":"T63&H13","v":"NFV"},null,null,"N","HS",18,"NHS18",1]
[null,null,null,null,null,null,null,null,null,null,null,null,null,null,null,null,null,null,null,"N",{"$f":"T64&K13","v":"NHS"},null,null,"N","HS",19,"NHS19",1]
[null,null,null,null,null,null,null,null,null,null,null,null,null,null,null,null,null,null,null,"N",{"$f":"T65&L13","v":"NFS"},null,null,"N","HS",20,"NHS20",1]
[null,null,null,null,null,null,null,null,null,null,null,null,null,null,null,null,null,null,null,"N",{"$f":"T66&M13","v":"NCUF"}]
[null,null,null,null,null,null,null,null,null,null,null,null,null,null,null,null,null,null,null,"N",{"$f":"T67&N13","v":"NJE"},null,null,"N","FS",1,{"$f":"X67&Y67&Z67","v":"NFS1"},25]
[null,null,null,null,null,null,null,null,null,null,null,null,null,null,null,null,null,null,null,"N",{"$f":"T68&Q13","v":"NCH"},null,null,"N","FS",2,{"$f":"X68&Y68&Z68","v":"NFS2"},20]
[null,null,null,null,null,null,null,null,null,null,null,null,null,null,null,null,null,null,null,"N",{"$f":"T69&R13","v":"NCF"},null,null,"N","FS",3,"NFS3",15]
[null,null,null,null,null,null,null,null,null,null,null,null,null,null,null,null,null,null,null,null,null,null,null,"N","FS",4,"NFS4",12]
[null,null,null,null,null,null,null,null,null,null,null,null,null,null,null,null,null,null,null,null,null,null,null,"N","FS",5,"NFS5",8]
[null,null,null,null,null,null,null,null,null,null,null,null,null,null,null,null,null,null,null,null,null,null,null,"N","FS",6,"NFS6",6]
[null,null,null,null,null,null,null,null,null,null,null,null,null,null,null,null,null,null,null,null,null,null,null,"N","FS",7,"NFS7",2]
[null,null,null,null,null,null,null,null,null,null,null,null,null,null,null,null,null,null,null,null,null,null,null,"N","FS",8,"NFS8",2]
[null,null,null,null,null,null,null,null,null,null,null,null,null,null,null,null,null,null,null,null,null,null,null,"N","FS",9,"NFS9",2]
[null,null,null,null,null,null,null,null,null,null,null,null,null,null,null,null,null,null,null,null,null,null,null,"N","FS",10,"NFS10",2]
[null,null,null,null,null,null,null,null,null,null,null,null,null,null,null,null,null,null,null,null,null,null,null,"N","FS",11,"NFS11",2]
[null,null,null,null,null,null,null,null,null,null,null,null,null,null,null,null,null,null,null,null,null,null,null,"N","FS",12,"NFS12",2]
[null,null,null,null,null,null,null,null,null,null,null,null,null,null,null,null,null,null,null,null,null,null,null,"N","FS",13,"NFS13",2]
[null,null,null,null,null,null,null,null,null,null,null,null,null,null,null,null,null,null,null,null,null,null,null,"N","FS",14,"NFS14",2]
[null,null,null,null,null,null,null,null,null,null,null,null,null,null,null,null,null,null,null,null,null,null,null,"N","FS",15,"NFS15",2]
[null,null,null,null,null,null,null,null,null,null,null,null,null,null,null,null,null,null,null,null,null,null,null,"N","FS",16,"NFS16",2]
[null,null,null,null,null,null,null,null,null,null,null,null,null,null,null,null,null,null,null,null,null,null,null,"N","FS",17,"NFS17",2]
[null,null,null,null,null,null,null,null,null,null,null,null,null,null,null,null,null,null,null,null,null,null,null,"N","FS",18,"NFS18",2]
[null,null,null,null,null,null,null,null,null,null,null,null,null,null,null,null,null,null,null,null,null,null,null,"N","FS",19,"NFS19",2]
[null,null,null,null,null,null,null,null,null,null,null,null,null,null,null,null,null,null,null,null,null,null,null,"N","FS",20,"NFS20",2]
[]
[null,null,null,null,null,null,null,null,null,null,null,null,null,null,null,null,null,null,null,null,null,null,null,"N","CUF",1,{"$f":"X88&Y88&Z88","v":"NCUF1"},25]
[null,null,null,null,null,null,null,null,null,null,null,null,null,null,null,null,null,null,null,null,null,null,null,"N","CUF",2,{"$f":"X89&Y89&Z89","v":"NCUF2"},20]
[null,null,null,null,null,null,null,null,null,null,null,null,null,null,null,null,null,null,null,null,null,null,null,"N","CUF",3,"NCUF3",15]
[null,null,null,null,null,null,null,null,null,null,null,null,null,null,null,null,null,null,null,null,null,null,null,"N","CUF",4,"NCUF4",12]
[null,null,null,null,null,null,null,null,null,null,null,null,null,null,null,null,null,null,null,null,null,null,null,"N","CUF",5,"NCUF5",8]
[null,null,null,null,null,null,null,null,null,null,null,null,null,null,null,null,null,null,null,null,null,null,null,"N","CUF",6,"NCUF6",6]
[null,null,null,null,null,null,null,null,null,null,null,null,null,null,null,null,null,null,null,null,null,null,null,"N","CUF",7,"NCUF7",2]
[null,null,null,null,null,null,null,null,null,null,null,null,null,null,null,null,null,null,null,null,null,null,null,"N","CUF",8,"NCUF8",2]
[null,null,null,null,null,null,null,null,null,null,null,null,null,null,null,null,null,null,null,null,null,null,null,"N","CUF",9,"NCUF9",2]
[null,null,null,null,null,null,null,null,null,null,null,null,null,null,null,null,null,null,null,null,null,null,null,"N","CUF",10,"NCUF10",2]
[null,null,null,null,null,null,null,null,null,null,null,null,null,null,null,null,null,null,null,null,null,null,null,"N","CUF",11,"NCUF11",2]
[null,null,null,null,null,null,null,null,null,null,null,null,null,null,null,null,null,null,null,null,null,null,null,"N","CUF",12,"NCUF12",2]
[null,null,null,null,null,null,null,null,null,null,null,null,null,null,null,null,null,null,null,null,null,null,null,"N","CUF",13,"NCUF13",2]
[null,null,null,null,null,null,null,null,null,null,null,null,null,null,null,null,null,null,null,null,null,null,null,"N","CUF",14,"NCUF14",2]
[null,null,null,null,null,null,null,null,null,null,null,null,null,null,null,null,null,null,null,null,null,null,null,"N","CUF",15,"NCUF15",2]
[null,null,null,null,null,null,null,null,null,null,null,null,null,null,null,null,null,null,null,null,null,null,null,"N","CUF",16,"NCUF16",2]
[null,null,null,null,null,null,null,null,null,null,null,null,null,null,null,null,null,null,null,null,null,null,null,"N","CUF",17,"NCUF17",2]
[null,null,null,null,null,null,null,null,null,null,null,null,null,null,null,null,null,null,null,null,null,null,null,"N","CUF",18,"NCUF18",2]
[null,null,null,null,null,null,null,null,null,null,null,null,null,null,null,null,null,null,null,null,null,null,null,"N","CUF",19,"NCUF19",2]
[null,null,null,null,null,null,null,null,null,null,null,null,null,null,null,null,null,null,null,null,null,null,null,"N","CUF",20,"NCUF20",2]
[]
[null,null,null,null,null,null,null,null,null,null,null,null,null,null,null,null,null,null,null,null,null,null,null,"N","JE",1,{"$f":"X109&Y109&Z109","v":"NJE1"},30]
[null,null,null,null,null,null,null,null,null,null,null,null,null,null,null,null,null,null,null,null,null,null,null,"N","JE",2,{"$f":"X110&Y110&Z110","v":"NJE2"},25]
[null,null,null,null,null,null,null,null,null,null,null,null,null,null,null,null,null,null,null,null,null,null,null,"N","JE",3,"NJE3",20]
[null,null,null,null,null,null,null,null,null,null,null,null,null,null,null,null,null,null,null,null,null,null,null,"N","JE",4,"NJE4",15]
[null,null,null,null,null,null,null,null,null,null,null,null,null,null,null,null,null,null,null,null,null,null,null,"N","JE",5,"NJE5",12]
[null,null,null,null,null,null,null,null,null,null,null,null,null,null,null,null,null,null,null,null,null,null,null,"N","JE",6,"NJE6",8]
[null,null,null,null,null,null,null,null,null,null,null,null,null,null,null,null,null,null,null,null,null,null,null,"N","JE",7,"NJE7",2]
[null,null,null,null,null,null,null,null,null,null,null,null,null,null,null,null,null,null,null,null,null,null,null,"N","JE",8,"NJE8",2]
[null,null,null,null,null,null,null,null,null,null,null,null,null,null,null,null,null,null,null,null,null,null,null,"N","JE",9,"NJE9",2]
[null,null,null,null,null,null,null,null,null,null,null,null,null,null,null,null,null,null,null,null,null,null,null,"N","JE",10,"NJE10",2]
[null,null,null,null,null,null,null,null,null,null,null,null,null,null,null,null,null,null,null,null,null,null,null,"N","JE",11,"NJE11",2]
[null,null,null,null,null,null,null,null,null,null,null,null,null,null,null,null,null,null,null,null,null,null,null,"N","JE",12,"NJE12",2]
[null,null,null,null,null,null,null,null,null,null,null,null,null,null,null,null,null,null,null,null,null,null,null,"N","JE",13,"NJE13",2]
[null,null,null,null,null,null,null,null,null,null,null,null,null,null,null,null,null,null,null,null,null,null,null,"N","JE",14,"NJE14",2]
[null,null,null,null,null,null,null,null,null,null,null,null,null,null,null,null,null,null,null,null,null,null,null,"N","JE",15,"NJE15",2]
[null,null,null,null,null,null,null,null,null,null,null,null,null,null,null,null,null,null,null,null,null,null,null,"N","JE",16,"NJE16",2]
[null,null,null,null,null,null,null,null,null,null,null,null,null,null,null,null,null,null,null,null,null,null,null,"N","JE",17,"NJE17",2]
[null,null,null,null,null,null,null,null,null,null,null,null,null,null,null,null,null,null,null,null,null,null,null,"N","JE",18,"NJE18",2]
[null,null,null,null,null,null,null,null,null,null,null,null,null,null,null,null,null,null,null,null,null,null,null,"N","JE",19,"NJE19",2]
[null,null,null,null,null,null,null,null,null,null,null,null,null,null,null,null,null,null,null,null,null,null,null,"N","JE",20,"NJE20",2]
[]
[null,null,null,null,null,null,null,null,null,null,null,null,null,null,null,null,null,null,null,null,null,null,null,"N","CH",1,"NCH1",10]
[null,null,null,null,null,null,null,null,null,null,null,null,null,null,null,null,null,null,null,null,null,null,null,"N","CH",2,"NCH2",8]
[null,null,null,null,null,null,null,null,null,null,null,null,null,null,null,null,null,null,null,null,null,null,null,"N","CH",3,"NCH3",6]
[null,null,null,null,null,null,null,null,null,null,null,null,null,null,null,null,null,null,null,null,null,null,null,"N","CH",4,"NCH4",5]
[null,null,null,null,null,null,null,null,null,null,null,null,null,null,null,null,null,null,null,null,null,null,null,"N","CH",5,"NCH5",3]
[null,null,null,null,null,null,null,null,null,null,null,null,null,null,null,null,null,null,null,null,null,null,null,"N","CH",6,"NCH6",2]
[]
[null,null,null,null,null,null,null,null,null,null,null,null,null,null,null,null,null,null,null,null,null,null,null,"N","CF",1,"NCF1",15]
[null,null,null,null,null,null,null,null,null,null,null,null,null,null,null,null,null,null,null,null,null,null,null,"N","CF",2,"NCF2",12]
[null,null,null,null,null,null,null,null,null,null,null,null,null,null,null,null,null,null,null,null,null,null,null,"N","CF",3,"NCF3",9]
[null,null,null,null,null,null,null,null,null,null,null,null,null,null,null,null,null,null,null,null,null,null,null,"N","CF",4,"NCF4",7]
[null,null,null,null,null,null,null,null,null,null,null,null,null,null,null,null,null,null,null,null,null,null,null,"N","CF",5,"NCF5",5]
[null,null,null,null,null,null,null,null,null,null,null,null,null,null,null,null,null,null,null,null,null,null,null,"N","CF",6,"NCF6",4]

{"sheet":"Comités","index":2,"n_rows":28,"n_cols":3,"rows_kept":28,"cut":false,"hidden":false,"merged":[]}
["Comités régionaux","Départements","Zones"]
["ALSACE","67/68","ZONE NORD EST"]
["AQUITAINE","24 / 33 / 40 / 47 / 64","ZONE SUD OUEST"]
["AUVERGNE","03 / 15 / 43 / 63","ZONE SUD EST"]
["BASSE NORMANDIE","14 / 50 / 61","ZONE CENTRE OUEST"]
["BOURGOGNE","21/58/71/89","ZONE NORD EST"]
["BRETAGNE","22 / 29 / 35 / 56","ZONE CENTRE OUEST"]
["CENTRE","18 / 28 / 36 / 37 / 41 / 45","ZONE CENTRE OUEST"]
["CHAMPAGNE ARDENNES","08 / 10 / 51 / 52","ZONE NORD EST"]
["CORSE  / COTE D'AZUR","2A / 2B / 06 / 20 / 83","ZONE SUD EST"]
["FRANCHE COMTE","25/39/70/90","ZONE NORD EST"]
["GUADELOUPE",971,"ZONE DOM -TOM"]
["GUYANE",973,"ZONE DOM -TOM"]
["HAUTE NORMANDIE","27/76","ZONE NORD A"]
["ILE DE FRANCE","75/ 77/ 78/ 91/ 92/93/94/95","ZONE NORD B"]
["ILE DE LA REUNION ",974,"ZONE DOM -TOM"]
["LANGUEDOC ROUSSILLON","11 / 30 / 34 / 48 / 66","ZONE SUD EST"]
["LIMOUSIN","19 / 23 / 87","ZONE SUD OUEST"]
["LORRAINE ","54/55/57/88","ZONE NORD EST"]
["MARTINIQUE",972,"ZONE DOM -TOM"]
["NORD PAS DE CALAIS","59/62","ZONE NORD A"]
["NOUVELLE CALEDONIE","TOM","ZONE DOM -TOM"]
["PAYS DE LOIRE","44 / 49 / 53 / 72 / 85","ZONE CENTRE OUEST"]
["PICARDIE","02/60/80","ZONE NORD A"]
["POITOU","16 / 17 / 79 / 86","ZONE SUD OUEST"]
["PROVENCE","04 / 05 / 13 / 84 ","ZONE SUD EST"]
["PYRENEES","09/ 12/ 31/ 32/ 46/ 65/ 81/ 82","ZONE SUD OUEST"]
["RHONE ALPES","01 / 07 / 26 / 38 / 42 / 69 / 73 / 74","ZONE SUD EST"]

{"sheet":"Juges","index":3,"n_rows":22,"n_cols":32,"rows_kept":22,"cut":false,"hidden":false,"merged":[]}
["NOM PRENOM","C1","C2","C3","C4","C5","CULTURIS FORM","Couples","FV",null,null,null,null,null,null,null,null,null,null,null,null,null,null,null,null,null,null,null,null,null,null,"Maximum 30 catégories par fichier Excel"]
["AA",1,2,1,1,1,5,1,null,2,3,2,2,2,3,null,null,3,4,1,1,1,3,3,2,5]
["BB",2,8,3,2,2,4,2,null,3,2,null,3,3,2,9,null,7,3,null,2,2,1,null,1,4]
["CC",3,3,2,null,3,3,3,null,4,4,3,4,4,4,null,5,5,5,2,3,3,5,null,4,3]
["DD",4,4,null,5,5,2,4,null,5,5,null,1,6,5,8,1,6,6,null,4,4,null,2,3,7]
["EE",5,5,null,3,4,null,5,3,null,6,null,null,5,7,null,4,1,7,3,5,5,null,1,5,2]
["FF",6,1,null,null,6,1,7,2,null,7,null,null,7,6,null,3,2,1,null,null,6,2,null,6,6]
["GG",7,9,null,4,7,null,6,1,1,1,1,5,1,1,7,2,4,2,null,null,7,4,null,7,1]
["HH",8,null,null,null,null,6,null,4,null,null,null,null,null,null,6,null,null,null,null,null,null,null,5]
["II",null,null,null,null,9,null,null,5,null,null,null,null,null,null,5]
["JJ",null,6,null,null,8,null,8]
["KK",null,7,null,null,null,7,null,null,null,null,null,null,null,null,4,null,null,null,null,null,null,null,4]
["LL",9,null,null,null,null,null,null,null,null,null,null,null,null,null,3]
["MM",null,null,null,null,null,null,null,null,null,null,null,null,null,null,2]
["NN",null,null,null,null,null,null,9]
["OO",null,null,null,null,null,null,null,null,null,null,null,null,null,null,1]
[{"$f":"\"Nombre d'athlètes sur \"&COUNTA(BASE!$L$2:$L$201)","v":"Nombre d'athlètes sur 38"},{"$f":"COUNTIF(BASE!$L$2:$L$201,Juges!B$1)","v":5},{"$f":"COUNTIF(BASE!$L$2:$L$201,Juges!C$1)","v":5},{"$f":"COUNTIF(BASE!$L$2:$L$201,Juges!D$1)","v":7},{"$f":"COUNTIF(BASE!$L$2:$L$201,Juges!E$1)","v":0},{"$f":"COUNTIF(BASE!$L$2:$L$201,Juges!F$1)","v":11},{"$f":"COUNTIF(BASE!$L$2:$L$201,Juges!G$1)","v":6},{"$f":"COUNTIF(BASE!$L$2:$L$201,Juges!H$1)","v":2},{"$f":"COUNTIF(BASE!$L$2:$L$201,Juges!I$1)","v":2},{"$f":"COUNTIF(BASE!$L$2:$L$201,Juges!J$1)","v":0},{"$f":"COUNTIF(BASE!$L$2:$L$201,Juges!K$1)","v":0},{"$f":"COUNTIF(BASE!$L$2:$L$201,Juges!L$1)","v":0},{"$f":"COUNTIF(BASE!$L$2:$L$201,Juges!M$1)","v":0},{"$f":"COUNTIF(BASE!$L$2:$L$201,Juges!N$1)","v":0},{"$f":"COUNTIF(BASE!$L$2:$L$201,Juges!O$1)","v":0},{"$f":"COUNTIF(BASE!$L$2:$L$201,Juges!P$1)","v":0},{"$f":"COUNTIF(BASE!$L$2:$L$201,Juges!Q$1)","v":0},{"$f":"COUNTIF(BASE!$L$2:$L$201,Juges!R$1)","v":0},{"$f":"COUNTIF(BASE!$L$2:$L$201,Juges!S$1)","v":0},{"$f":"COUNTIF(BASE!$L$2:$L$201,Juges!T$1)","v":0},{"$f":"COUNTIF(BASE!$L$2:$L$201,Juges!U$1)","v":0},{"$f":"COUNTIF(BASE!$L$2:$L$201,Juges!V$1)","v":0},{"$f":"COUNTIF(BASE!$L$2:$L$201,Juges!W$1)","v":0},{"$f":"COUNTIF(BASE!$L$2:$L$201,Juges!X$1)","v":0},{"$f":"COUNTIF(BASE!$L$2:$L$201,Juges!Y$1)","v":0},{"$f":"COUNTIF(BASE!$L$2:$L$201,Juges!Z$1)","v":0},{"$f":"COUNTIF(BASE!$L$2:$L$201,Juges!AA$1)","v":0},{"$f":"COUNTIF(BASE!$L$2:$L$201,Juges!AB$1)","v":0},{"$f":"COUNTIF(BASE!$L$2:$L$201,Juges!AC$1)","v":0},{"$f":"COUNTIF(BASE!$L$2:$L$201,Juges!AD$1)","v":0},{"$f":"COUNTIF(BASE!$L$2:$L$201,Juges!AE$1)","v":0},{"$f":"SUM(B17:AE17)","v":38}]
["Nbre de juges/catégories",{"$f":"COUNTA(B2:B16)","v":9},{"$f":"COUNTA(C2:C16)","v":9},3,5,{"$f":"COUNTA(F2:F16)","v":9},{"$f":"COUNTA(G2:G16)","v":7},9,5,5,7,3,5,7,7,9,5,7,7,3,5,7,5,5,7,7,0,0,0,0,0]
[]
["Vérification catégorie nationale de référence",{"$f":"IFERROR(VLOOKUP(B1,'Paramétrage des points'!$A:$C,2,FALSE),\"\")","v":""},{"$f":"IFERROR(VLOOKUP(C1,'Paramétrage des points'!$A:$C,2,FALSE),\"\")","v":""},{"$f":"IFERROR(VLOOKUP(D1,'Paramétrage des points'!$A:$C,2,FALSE),\"\")","v":""},{"$f":"IFERROR(VLOOKUP(E1,'Paramétrage des points'!$A:$C,2,FALSE),\"\")","v":""},{"$f":"IFERROR(VLOOKUP(F1,'Paramétrage des points'!$A:$C,2,FALSE),\"\")","v":""},{"$f":"IFERROR(VLOOKUP(G1,'Paramétrage des points'!$A:$C,2,FALSE),\"\")","v":"Culturisform"},{"$f":"IFERROR(VLOOKUP(H1,'Paramétrage des points'!$A:$C,2,FALSE),\"\")","v":"Couple"},{"$f":"IFERROR(VLOOKUP(I1,'Paramétrage des points'!$A:$C,2,FALSE),\"\")","v":""},{"$f":"IFERROR(VLOOKUP(J1,'Paramétrage des points'!$A:$C,2,FALSE),\"\")","v":""},{"$f":"IFERROR(VLOOKUP(K1,'Paramétrage des points'!$A:$C,2,FALSE),\"\")","v":""},{"$f":"IFERROR(VLOOKUP(L1,'Paramétrage des points'!$A:$C,2,FALSE),\"\")","v":""},{"$f":"IFERROR(VLOOKUP(M1,'Paramétrage des points'!$A:$C,2,FALSE),\"\")","v":""},{"$f":"IFERROR(VLOOKUP(N1,'Paramétrage des points'!$A:$C,2,FALSE),\"\")","v":""},{"$f":"IFERROR(VLOOKUP(O1,'Paramétrage des points'!$A:$C,2,FALSE),\"\")","v":""},{"$f":"IFERROR(VLOOKUP(P1,'Paramétrage des points'!$A:$C,2,FALSE),\"\")","v":""},{"$f":"IFERROR(VLOOKUP(Q1,'Paramétrage des points'!$A:$C,2,FALSE),\"\")","v":""},{"$f":"IFERROR(VLOOKUP(R1,'Paramétrage des points'!$A:$C,2,FALSE),\"\")","v":""},{"$f":"IFERROR(VLOOKUP(S1,'Paramétrage des points'!$A:$C,2,FALSE),\"\")","v":""},{"$f":"IFERROR(VLOOKUP(T1,'Paramétrage des points'!$A:$C,2,FALSE),\"\")","v":""},{"$f":"IFERROR(VLOOKUP(U1,'Paramétrage des points'!$A:$C,2,FALSE),\"\")","v":""},{"$f":"IFERROR(VLOOKUP(V1,'Paramétrage des points'!$A:$C,2,FALSE),\"\")","v":""},{"$f":"IFERROR(VLOOKUP(W1,'Paramétrage des points'!$A:$C,2,FALSE),\"\")","v":""},{"$f":"IFERROR(VLOOKUP(X1,'Paramétrage des points'!$A:$C,2,FALSE),\"\")","v":""},{"$f":"IFERROR(VLOOKUP(Y1,'Paramétrage des points'!$A:$C,2,FALSE),\"\")","v":""},{"$f":"IFERROR(VLOOKUP(Z1,'Paramétrage des points'!$A:$C,2,FALSE),\"\")","v":""},{"$f":"IFERROR(VLOOKUP(AA1,'Paramétrage des points'!$A:$C,2,FALSE),\"\")","v":""},{"$f":"IFERROR(VLOOKUP(AB1,'Paramétrage des points'!$A:$C,2,FALSE),\"\")","v":""},{"$f":"IFERROR(VLOOKUP(AC1,'Paramétrage des points'!$A:$C,2,FALSE),\"\")","v":""},{"$f":"IFERROR(VLOOKUP(AD1,'Paramétrage des points'!$A:$C,2,FALSE),\"\")","v":""},{"$f":"IFERROR(VLOOKUP(AE1,'Paramétrage des points'!$A:$C,2,FALSE),\"\")","v":""}]
["Age de référence",{"$f":"IFERROR(VLOOKUP(B1,'Paramétrage des points'!$A:$C,3,FALSE),\"\")","v":""},{"$f":"IFERROR(VLOOKUP(C1,'Paramétrage des points'!$A:$C,3,FALSE),\"\")","v":""},{"$f":"IFERROR(VLOOKUP(D1,'Paramétrage des points'!$A:$C,3,FALSE),\"\")","v":""},{"$f":"IFERROR(VLOOKUP(E1,'Paramétrage des points'!$A:$C,3,FALSE),\"\")","v":""},{"$f":"IFERROR(VLOOKUP(F1,'Paramétrage des points'!$A:$C,3,FALSE),\"\")","v":""},{"$f":"IFERROR(VLOOKUP(G1,'Paramétrage des points'!$A:$C,3,FALSE),\"\")","v":"CUF"},{"$f":"IFERROR(VLOOKUP(H1,'Paramétrage des points'!$A:$C,3,FALSE),\"\")","v":"CH/CF"},{"$f":"IFERROR(VLOOKUP(I1,'Paramétrage des points'!$A:$C,3,FALSE),\"\")","v":""},{"$f":"IFERROR(VLOOKUP(J1,'Paramétrage des points'!$A:$C,3,FALSE),\"\")","v":""},{"$f":"IFERROR(VLOOKUP(K1,'Paramétrage des points'!$A:$C,3,FALSE),\"\")","v":""},{"$f":"IFERROR(VLOOKUP(L1,'Paramétrage des points'!$A:$C,3,FALSE),\"\")","v":""},{"$f":"IFERROR(VLOOKUP(M1,'Paramétrage des points'!$A:$C,3,FALSE),\"\")","v":""},{"$f":"IFERROR(VLOOKUP(N1,'Paramétrage des points'!$A:$C,3,FALSE),\"\")","v":""},{"$f":"IFERROR(VLOOKUP(O1,'Paramétrage des points'!$A:$C,3,FALSE),\"\")","v":""},{"$f":"IFERROR(VLOOKUP(P1,'Paramétrage des points'!$A:$C,3,FALSE),\"\")","v":""},{"$f":"IFERROR(VLOOKUP(Q1,'Paramétrage des points'!$A:$C,3,FALSE),\"\")","v":""},{"$f":"IFERROR(VLOOKUP(R1,'Paramétrage des points'!$A:$C,3,FALSE),\"\")","v":""},{"$f":"IFERROR(VLOOKUP(S1,'Paramétrage des points'!$A:$C,3,FALSE),\"\")","v":""},{"$f":"IFERROR(VLOOKUP(T1,'Paramétrage des points'!$A:$C,3,FALSE),\"\")","v":""},{"$f":"IFERROR(VLOOKUP(U1,'Paramétrage des points'!$A:$C,3,FALSE),\"\")","v":""},{"$f":"IFERROR(VLOOKUP(V1,'Paramétrage des points'!$A:$C,3,FALSE),\"\")","v":""},{"$f":"IFERROR(VLOOKUP(W1,'Paramétrage des points'!$A:$C,3,FALSE),\"\")","v":""},{"$f":"IFERROR(VLOOKUP(X1,'Paramétrage des points'!$A:$C,3,FALSE),\"\")","v":""},{"$f":"IFERROR(VLOOKUP(Y1,'Paramétrage des points'!$A:$C,3,FALSE),\"\")","v":""},{"$f":"IFERROR(VLOOKUP(Z1,'Paramétrage des points'!$A:$C,3,FALSE),\"\")","v":""},{"$f":"IFERROR(VLOOKUP(AA1,'Paramétrage des points'!$A:$C,3,FALSE),\"\")","v":""},{"$f":"IFERROR(VLOOKUP(AB1,'Paramétrage des points'!$A:$C,3,FALSE),\"\")","v":""},{"$f":"IFERROR(VLOOKUP(AC1,'Paramétrage des points'!$A:$C,3,FALSE),\"\")","v":""},{"$f":"IFERROR(VLOOKUP(AD1,'Paramétrage des points'!$A:$C,3,FALSE),\"\")","v":""},{"$f":"IFERROR(VLOOKUP(AE1,'Paramétrage des points'!$A:$C,3,FALSE),\"\")","v":""}]
["réf points",{"$f":"Parametres!$G$5&Juges!B21","v":"N"},{"$f":"Parametres!$G$5&Juges!C21","v":"N"},{"$f":"Parametres!$G$5&Juges!D21","v":"N"},{"$f":"Parametres!$G$5&Juges!E21","v":"N"},{"$f":"Parametres!$G$5&Juges!F21","v":"N"},{"$f":"Parametres!$G$5&Juges!G21","v":"NCUF"},{"$f":"Parametres!$G$5&Juges!H21","v":"NCH/CF"},{"$f":"Parametres!$G$5&Juges!I21","v":"N"},{"$f":"Parametres!$G$5&Juges!J21","v":"N"},{"$f":"Parametres!$G$5&Juges!K21","v":"N"},{"$f":"Parametres!$G$5&Juges!L21","v":"N"},{"$f":"Parametres!$G$5&Juges!M21","v":"N"},{"$f":"Parametres!$G$5&Juges!N21","v":"N"},{"$f":"Parametres!$G$5&Juges!O21","v":"N"},{"$f":"Parametres!$G$5&Juges!P21","v":"N"},{"$f":"Parametres!$G$5&Juges!Q21","v":"N"},{"$f":"Parametres!$G$5&Juges!R21","v":"N"},{"$f":"Parametres!$G$5&Juges!S21","v":"N"},{"$f":"Parametres!$G$5&Juges!T21","v":"N"},{"$f":"Parametres!$G$5&Juges!U21","v":"N"},{"$f":"Parametres!$G$5&Juges!V21","v":"N"},{"$f":"Parametres!$G$5&Juges!W21","v":"N"},{"$f":"Parametres!$G$5&Juges!X21","v":"N"},{"$f":"Parametres!$G$5&Juges!Y21","v":"N"},{"$f":"Parametres!$G$5&Juges!Z21","v":"N"},{"$f":"Parametres!$G$5&Juges!AA21","v":"N"},{"$f":"Parametres!$G$5&Juges!AB21","v":"N"},{"$f":"Parametres!$G$5&Juges!AC21","v":"N"},{"$f":"Parametres!$G$5&Juges!AD21","v":"N"},{"$f":"Parametres!$G$5&Juges!AE21","v":"N"}]

{"sheet":"Clubs","index":4,"n_rows":82,"n_cols":3,"rows_kept":82,"cut":false,"hidden":false,"merged":[]}
["CLUBS","COMITES","ZONES"]
["ACADEMIE CLUB LUCON","PAYS DE LOIRE",{"$f":"IFERROR(VLOOKUP(B2,Comités!A:C,3,FALSE),\"\")","v":"ZONE CENTRE OUEST"}]
["ACH FONTENAY","ILE DE FRANCE",{"$f":"IFERROR(VLOOKUP(B3,Comités!A:C,3,FALSE),\"\")","v":"ZONE NORD B"}]
["AFHMA FRANCONVILLE","ILE DE FRANCE",{"$f":"IFERROR(VLOOKUP(B4,Comités!A:C,3,FALSE),\"\")","v":"ZONE NORD B"}]
["AGOS INRIA","ILE DE FRANCE",{"$f":"IFERROR(VLOOKUP(B5,Comités!A:C,3,FALSE),\"\")","v":"ZONE NORD B"}]
["APOLLO CLUB TREMBLAY","ILE DE FRANCE",{"$f":"IFERROR(VLOOKUP(B6,Comités!A:C,3,FALSE),\"\")","v":"ZONE NORD B"}]
["AS FOURCHAMBAULT","BOURGOGNE",{"$f":"IFERROR(VLOOKUP(B7,Comités!A:C,3,FALSE),\"\")","v":"ZONE NORD EST"}]
["ASC MUSCLE GYM SOISSONS","PICARDIE",{"$f":"IFERROR(VLOOKUP(B8,Comités!A:C,3,FALSE),\"\")","v":"ZONE NORD A"}]
["ASCAP - POISSY","ILE DE FRANCE",{"$f":"IFERROR(VLOOKUP(B9,Comités!A:C,3,FALSE),\"\")","v":"ZONE NORD B"}]
["ASHC VILLIERS LE BEL","ILE DE FRANCE",{"$f":"IFERROR(VLOOKUP(B10,Comités!A:C,3,FALSE),\"\")","v":"ZONE NORD B"}]
["ATHLETIQUE DE SAINT PRIX","ILE DE FRANCE",{"$f":"IFERROR(VLOOKUP(B11,Comités!A:C,3,FALSE),\"\")","v":"ZONE NORD B"}]
["AVENIR DE SURVILLIERS","ILE DE FRANCE",{"$f":"IFERROR(VLOOKUP(B12,Comités!A:C,3,FALSE),\"\")","v":"ZONE NORD B"}]
["BBF ALLONES","PAYS DE LOIRE",{"$f":"IFERROR(VLOOKUP(B13,Comités!A:C,3,FALSE),\"\")","v":"ZONE CENTRE OUEST"}]
["BODY GYM PERSEVERANCE","ILE DE FRANCE",{"$f":"IFERROR(VLOOKUP(B14,Comités!A:C,3,FALSE),\"\")","v":"ZONE NORD B"}]
["CA LENSOIS","NORD PAS DE CALAIS",{"$f":"IFERROR(VLOOKUP(B15,Comités!A:C,3,FALSE),\"\")","v":"ZONE NORD A"}]
["CERCLE ATHLETIQUE PARIS 10","ILE DE FRANCE",{"$f":"IFERROR(VLOOKUP(B16,Comités!A:C,3,FALSE),\"\")","v":"ZONE NORD B"}]
["CFD MANTES LA VILLE","ILE DE FRANCE",{"$f":"IFERROR(VLOOKUP(B17,Comités!A:C,3,FALSE),\"\")","v":"ZONE NORD B"}]
["CH LUNEVILLE","LORRAINE ",{"$f":"IFERROR(VLOOKUP(B18,Comités!A:C,3,FALSE),\"\")","v":"ZONE NORD EST"}]
["CHC PONTOISE","ILE DE FRANCE",{"$f":"IFERROR(VLOOKUP(B19,Comités!A:C,3,FALSE),\"\")","v":"ZONE NORD B"}]
["CHFM ROISEL","PICARDIE",{"$f":"IFERROR(VLOOKUP(B20,Comités!A:C,3,FALSE),\"\")","v":"ZONE NORD A"}]
["CHRIS FITNESS THIBOUVILLE","HAUTE NORMANDIE",{"$f":"IFERROR(VLOOKUP(B21,Comités!A:C,3,FALSE),\"\")","v":"ZONE NORD A"}]
["CMF LOCMINE","BRETAGNE",{"$f":"IFERROR(VLOOKUP(B22,Comités!A:C,3,FALSE),\"\")","v":"ZONE CENTRE OUEST"}]
["CP MEDIOLANAISE","NORD PAS DE CALAIS",{"$f":"IFERROR(VLOOKUP(B23,Comités!A:C,3,FALSE),\"\")","v":"ZONE NORD A"}]
["CSAG MOURMELON","CHAMPAGNE ARDENNES",{"$f":"IFERROR(VLOOKUP(B24,Comités!A:C,3,FALSE),\"\")","v":"ZONE NORD EST"}]
["EC FOURMISIENNE","NORD PAS DE CALAIS",{"$f":"IFERROR(VLOOKUP(B25,Comités!A:C,3,FALSE),\"\")","v":"ZONE NORD A"}]
["ES MASSY","ILE DE FRANCE",{"$f":"IFERROR(VLOOKUP(B26,Comités!A:C,3,FALSE),\"\")","v":"ZONE NORD B"}]
["EVA FITNESS EMERAINVILLE","ILE DE FRANCE",{"$f":"IFERROR(VLOOKUP(B27,Comités!A:C,3,FALSE),\"\")","v":"ZONE NORD B"}]
["FIT BODY HOUDINOIS","NORD PAS DE CALAIS",{"$f":"IFERROR(VLOOKUP(B28,Comités!A:C,3,FALSE),\"\")","v":"ZONE NORD A"}]
["FORCE ATHLETIQUE LONGJUMEAU","ILE DE FRANCE",{"$f":"IFERROR(VLOOKUP(B29,Comités!A:C,3,FALSE),\"\")","v":"ZONE NORD B"}]
["GS SENLIS","PICARDIE",{"$f":"IFERROR(VLOOKUP(B30,Comités!A:C,3,FALSE),\"\")","v":"ZONE NORD A"}]
["HC BEAUVAIS","PICARDIE",{"$f":"IFERROR(VLOOKUP(B31,Comités!A:C,3,FALSE),\"\")","v":"ZONE NORD A"}]
["LINAS CLUB MUSCULATION","ILE DE FRANCE",{"$f":"IFERROR(VLOOKUP(B32,Comités!A:C,3,FALSE),\"\")","v":"ZONE NORD B"}]
["MC FORM AUDRUICQ","NORD PAS DE CALAIS",{"$f":"IFERROR(VLOOKUP(B33,Comités!A:C,3,FALSE),\"\")","v":"ZONE NORD A"}]
["MH CLERMONTOIS","PICARDIE",{"$f":"IFERROR(VLOOKUP(B34,Comités!A:C,3,FALSE),\"\")","v":"ZONE NORD A"}]
["MUSCULATION HAUBOURDINOISE","NORD PAS DE CALAIS",{"$f":"IFERROR(VLOOKUP(B35,Comités!A:C,3,FALSE),\"\")","v":"ZONE NORD A"}]
["MUSCULATION VINCENNES CLUB","ILE DE FRANCE",{"$f":"IFERROR(VLOOKUP(B36,Comités!A:C,3,FALSE),\"\")","v":"ZONE NORD B"}]
["POWER CLUB DE FAREMOUTIERS","ILE DE FRANCE",{"$f":"IFERROR(VLOOKUP(B37,Comités!A:C,3,FALSE),\"\")","v":"ZONE NORD B"}]
["PSA ACC CHARLEVILLE MEZIERES","CHAMPAGNE ARDENNES",{"$f":"IFERROR(VLOOKUP(B38,Comités!A:C,3,FALSE),\"\")","v":"ZONE NORD EST"}]
["SA MONTMARTROISE","ILE DE FRANCE",{"$f":"IFERROR(VLOOKUP(B39,Comités!A:C,3,FALSE),\"\")","v":"ZONE NORD B"}]
["TOP FORME DOMART EN PONTHIEU","PICARDIE",{"$f":"IFERROR(VLOOKUP(B40,Comités!A:C,3,FALSE),\"\")","v":"ZONE NORD A"}]
["US CHAMPAGNE HM","ILE DE FRANCE",{"$f":"IFERROR(VLOOKUP(B41,Comités!A:C,3,FALSE),\"\")","v":"ZONE NORD B"}]
["US GRIGNY","ILE DE FRANCE",{"$f":"IFERROR(VLOOKUP(B42,Comités!A:C,3,FALSE),\"\")","v":"ZONE NORD B"}]
["US METRO PARIS","ILE DE FRANCE",{"$f":"IFERROR(VLOOKUP(B43,Comités!A:C,3,FALSE),\"\")","v":"ZONE NORD B"}]
["VAIRES DYNAMIC CLUB","ILE DE FRANCE",{"$f":"IFERROR(VLOOKUP(B44,Comités!A:C,3,FALSE),\"\")","v":"ZONE NORD B"}]
["VELIZY MUSCULATION","ILE DE FRANCE",{"$f":"IFERROR(VLOOKUP(B45,Comités!A:C,3,FALSE),\"\")","v":"ZONE NORD B"}]
[null,null,{"$f":"IFERROR(VLOOKUP(B46,Comités!A:C,3,FALSE),\"\")","v":""}]
[null,null,{"$f":"IFERROR(VLOOKUP(B47,Comités!A:C,3,FALSE),\"\")","v":""}]
[null,null,{"$f":"IFERROR(VLOOKUP(B48,Comités!A:C,3,FALSE),\"\")","v":""}]
[null,null,{"$f":"IFERROR(VLOOKUP(B49,Comités!A:C,3,FALSE),\"\")","v":""}]
[null,null,{"$f":"IFERROR(VLOOKUP(B50,Comités!A:C,3,FALSE),\"\")","v":""}]
[null,null,{"$f":"IFERROR(VLOOKUP(B51,Comités!A:C,3,FALSE),\"\")","v":""}]
[null,null,{"$f":"IFERROR(VLOOKUP(B52,Comités!A:C,3,FALSE),\"\")","v":""}]
[null,null,{"$f":"IFERROR(VLOOKUP(B53,Comités!A:C,3,FALSE),\"\")","v":""}]
[null,null,{"$f":"IFERROR(VLOOKUP(B54,Comités!A:C,3,FALSE),\"\")","v":""}]
[null,null,{"$f":"IFERROR(VLOOKUP(B55,Comités!A:C,3,FALSE),\"\")","v":""}]
[null,null,{"$f":"IFERROR(VLOOKUP(B56,Comités!A:C,3,FALSE),\"\")","v":""}]
[null,null,{"$f":"IFERROR(VLOOKUP(B57,Comités!A:C,3,FALSE),\"\")","v":""}]
[null,null,{"$f":"IFERROR(VLOOKUP(B58,Comités!A:C,3,FALSE),\"\")","v":""}]
[null,null,{"$f":"IFERROR(VLOOKUP(B59,Comités!A:C,3,FALSE),\"\")","v":""}]
[null,null,{"$f":"IFERROR(VLOOKUP(B60,Comités!A:C,3,FALSE),\"\")","v":""}]
[null,null,{"$f":"IFERROR(VLOOKUP(B61,Comités!A:C,3,FALSE),\"\")","v":""}]
[null,null,{"$f":"IFERROR(VLOOKUP(B62,Comités!A:C,3,FALSE),\"\")","v":""}]
[null,null,{"$f":"IFERROR(VLOOKUP(B63,Comités!A:C,3,FALSE),\"\")","v":""}]
[null,null,{"$f":"IFERROR(VLOOKUP(B64,Comités!A:C,3,FALSE),\"\")","v":""}]
[null,null,{"$f":"IFERROR(VLOOKUP(B65,Comités!A:C,3,FALSE),\"\")","v":""}]
[null,null,{"$f":"IFERROR(VLOOKUP(B66,Comités!A:C,3,FALSE),\"\")","v":""}]
[null,null,{"$f":"IFERROR(VLOOKUP(B67,Comités!A:C,3,FALSE),\"\")","v":""}]
[null,null,{"$f":"IFERROR(VLOOKUP(B68,Comités!A:C,3,FALSE),\"\")","v":""}]
[null,null,{"$f":"IFERROR(VLOOKUP(B69,Comités!A:C,3,FALSE),\"\")","v":""}]
[null,null,{"$f":"IFERROR(VLOOKUP(B70,Comités!A:C,3,FALSE),\"\")","v":""}]
[null,null,{"$f":"IFERROR(VLOOKUP(B71,Comités!A:C,3,FALSE),\"\")","v":""}]
[null,null,{"$f":"IFERROR(VLOOKUP(B72,Comités!A:C,3,FALSE),\"\")","v":""}]
[null,null,{"$f":"IFERROR(VLOOKUP(B73,Comités!A:C,3,FALSE),\"\")","v":""}]
[null,null,{"$f":"IFERROR(VLOOKUP(B74,Comités!A:C,3,FALSE),\"\")","v":""}]
[null,null,{"$f":"IFERROR(VLOOKUP(B75,Comités!A:C,3,FALSE),\"\")","v":""}]
[null,null,{"$f":"IFERROR(VLOOKUP(B76,Comités!A:C,3,FALSE),\"\")","v":""}]
[null,null,{"$f":"IFERROR(VLOOKUP(B77,Comités!A:C,3,FALSE),\"\")","v":""}]
[null,null,{"$f":"IFERROR(VLOOKUP(B78,Comités!A:C,3,FALSE),\"\")","v":""}]
[null,null,{"$f":"IFERROR(VLOOKUP(B79,Comités!A:C,3,FALSE),\"\")","v":""}]
[null,null,{"$f":"IFERROR(VLOOKUP(B80,Comités!A:C,3,FALSE),\"\")","v":""}]
[null,null,{"$f":"IFERROR(VLOOKUP(B81,Comités!A:C,3,FALSE),\"\")","v":""}]
[null,null,{"$f":"IFERROR(VLOOKUP(B82,Comités!A:C,3,FALSE),\"\")","v":""}]

{"sheet":"BASE","index":5,"n_rows":201,"n_cols":19,"rows_kept":201,"cut":false,"hidden":false,"merged":[]}
["NOM","PRENOM","H/F","DATE-NAISSANCE","ÂGE (ANS)","ÂGE (J)","N° LICENCE","CLUB","COMITE","POIDS","CATEGORIE normale","CATEGORIE","N° DOSSARD","PLACE","POINTS"]
["MONCOURTOIS","CHRISTELLE","F","1960-11-20",{"$f":"IF(ISBLANK(A2),\"\",DATEDIF(D2,saison,\"y\"))","v":51},{"$f":"IF(ISBLANK($A2),\"\",IF(ISERROR(DATEDIF($D2,saison,\"yd\")),\"\",(DATEDIF($D2,saison,\"yd\"))))","v":285},141090,"ASC MUSCLE GYM SOISSONS",{"$f":"IF(A2=\"\",\"\",VLOOKUP(H2,Clubs!A:B,2,FALSE))","v":"PICARDIE"},52.5,{"$f":"IF(E2=\"\",\"\",IF(E2<16,\"ERREUR\",IF(AND(E2<18,C2=\"F\"),\"CF\",IF(E2<21,\"JUNIOR\", IF(E2<23,IF(C2=\"F\",\"SENIOR\",\"ESPOIR\"),IF(E2<40,\"SENIOR\",IF(C2=\"F\",\"VETERAN\",IF(E2<50,\"VET1\",IF(E2<60,\"VET2\",\"VET3\")))))))))","v":"VETERAN"},"Couples",1,{"$f":"IFERROR(VLOOKUP((P2&L2),'Résultat final'!A:B,2,FALSE),\"\")","v":1},{"$f":"SUM(R2:S2)","v":0},{"$f":"A2&\"  \"&B2","v":"MONCOURTOIS  CHRISTELLE"},{"$f":"IFERROR(HLOOKUP(L2,Juges!$1:$22,22,FALSE),\"\")","v":"NCH/CF"},{"$f":"+IF(OR(LEFT($Q2,1)=\"I\",LEFT($Q2,1)=\"R\"),VLOOKUP($Q2,'Paramétrage des points'!$U:$V,2,FALSE),0)","v":0},{"$f":"IF(ISBLANK(M2),0,IFERROR(VLOOKUP(M2,'Résultat final'!D:L,9,FALSE),0))","v":0}]
["FOURNIER","SYLVIE","F","1960-11-20",51,{"$f":"IF(ISBLANK($A3),\"\",IF(ISERROR(DATEDIF($D3,saison,\"yd\")),\"\",(DATEDIF($D3,saison,\"yd\"))))","v":285},221849,"MUSCULATION HAUBOURDINOISE",{"$f":"IF(A3=\"\",\"\",VLOOKUP(H3,Clubs!A:B,2,FALSE))","v":"NORD PAS DE CALAIS"},59.1,"VETERAN","FV",20,{"$f":"IFERROR(VLOOKUP((P3&L3),'Résultat final'!A:B,2,FALSE),\"\")","v":2},0,"FOURNIER  SYLVIE",{"$f":"IFERROR(HLOOKUP(L3,Juges!$1:$22,22,FALSE),\"\")","v":"N"},{"$f":"+IF(OR(LEFT($Q3,1)=\"I\",LEFT($Q3,1)=\"R\"),VLOOKUP($Q3,'Paramétrage des points'!$U:$V,2,FALSE),0)","v":0},{"$f":"IF(ISBLANK(M3),0,IFERROR(VLOOKUP(M3,'Résultat final'!D:L,9,FALSE),0))","v":0}]
["OUSFANE","MOHAMED","F","1963-06-01",49,{"$f":"IF(ISBLANK(A4),\"\",IF(ISERROR(DATEDIF(D4,saison,\"y\")),\"\",(DATEDIF(D4,saison,\"y\"))))","v":49},292237,"PSA ACC CHARLEVILLE MEZIERES",{"$f":"IF(A4=\"\",\"\",VLOOKUP(H4,Clubs!A:B,2,FALSE))","v":"CHAMPAGNE ARDENNES"},72,"VETERAN","CULTURIS FORM",27,{"$f":"IFERROR(VLOOKUP((P4&L4),'Résultat final'!A:B,2,FALSE),\"\")","v":6},0,"OUSFANE  MOHAMED",{"$f":"IFERROR(HLOOKUP(L4,Juges!$1:$22,22,FALSE),\"\")","v":"NCUF"},{"$f":"+IF(OR(LEFT($Q4,1)=\"I\",LEFT($Q4,1)=\"R\"),VLOOKUP($Q4,'Paramétrage des points'!$U:$V,2,FALSE),0)","v":0},{"$f":"IF(ISBLANK(M4),0,IFERROR(VLOOKUP(M4,'Résultat final'!D:L,9,FALSE),0))","v":0}]
["BRONGNIART","SEBASTIEN","H","1983-03-01",29,{"$f":"DATEDIF(D5,saison,\"yd\")","v":184},311318,"FIT BODY HOUDINOIS",{"$f":"IF(A5=\"\",\"\",VLOOKUP(H5,Clubs!A:B,2,FALSE))","v":"NORD PAS DE CALAIS"},85,"SENIOR",null,55,{"$f":"IFERROR(VLOOKUP((P5&L5),'Résultat final'!A:B,2,FALSE),\"\")","v":""},0,"BRONGNIART  SEBASTIEN",{"$f":"IFERROR(HLOOKUP(L5,Juges!$1:$22,22,FALSE),\"\")","v":""},{"$f":"+IF(OR(LEFT($Q5,1)=\"I\",LEFT($Q5,1)=\"R\"),VLOOKUP($Q5,'Paramétrage des points'!$U:$V,2,FALSE),0)","v":0},{"$f":"IF(ISBLANK(M5),0,IFERROR(VLOOKUP(M5,'Résultat final'!D:L,9,FALSE),0))","v":0}]
["MIAN","Léonard","H","1967-02-09",45,{"$f":"IF(ISBLANK(A6),\"\",IF(ISERROR(DATEDIF(D6,saison,\"y\")),\"\",(DATEDIF(D6,saison,\"y\"))))","v":45},154855,"EVA FITNESS EMERAINVILLE",{"$f":"IF(A6=\"\",\"\",VLOOKUP(H6,Clubs!A:B,2,FALSE))","v":"ILE DE FRANCE"},85,"VET1",null,32,{"$f":"IFERROR(VLOOKUP((P6&L6),'Résultat final'!A:B,2,FALSE),\"\")","v":""},0,"MIAN  Léonard",{"$f":"IFERROR(HLOOKUP(L6,Juges!$1:$22,22,FALSE),\"\")","v":""},{"$f":"+IF(OR(LEFT($Q6,1)=\"I\",LEFT($Q6,1)=\"R\"),VLOOKUP($Q6,'Paramétrage des points'!$U:$V,2,FALSE),0)","v":0},{"$f":"IF(ISBLANK(M6),0,IFERROR(VLOOKUP(M6,'Résultat final'!D:L,9,FALSE),0))","v":0}]
["SIANGA-EYAP","Janvier","H","1977-01-15",35,{"$f":"IF(ISBLANK(A7),\"\",IF(ISERROR(DATEDIF(D7,saison,\"y\")),\"\",(DATEDIF(D7,saison,\"y\"))))","v":35},268322,"ASCAP - POISSY",{"$f":"IF(A7=\"\",\"\",VLOOKUP(H7,Clubs!A:B,2,FALSE))","v":"ILE DE FRANCE"},"113.70","SENIOR",null,62,{"$f":"IFERROR(VLOOKUP((P7&L7),'Résultat final'!A:B,2,FALSE),\"\")","v":""},0,"SIANGA-EYAP  Janvier",{"$f":"IFERROR(HLOOKUP(L7,Juges!$1:$22,22,FALSE),\"\")","v":""},{"$f":"+IF(OR(LEFT($Q7,1)=\"I\",LEFT($Q7,1)=\"R\"),VLOOKUP($Q7,'Paramétrage des points'!$U:$V,2,FALSE),0)","v":0},{"$f":"IF(ISBLANK(M7),0,IFERROR(VLOOKUP(M7,'Résultat final'!D:L,9,FALSE),0))","v":0}]
["DURET","Céline","F","1980-02-22",32,{"$f":"IF(ISBLANK(A8),\"\",IF(ISERROR(DATEDIF(D8,saison,\"y\")),\"\",(DATEDIF(D8,saison,\"y\"))))","v":32},317004,"EVA FITNESS EMERAINVILLE",{"$f":"IF(A8=\"\",\"\",VLOOKUP(H8,Clubs!A:B,2,FALSE))","v":"ILE DE FRANCE"},"46.55","SENIOR",null,49,{"$f":"IFERROR(VLOOKUP((P8&L8),'Résultat final'!A:B,2,FALSE),\"\")","v":""},0,"DURET  Céline",{"$f":"IFERROR(HLOOKUP(L8,Juges!$1:$22,22,FALSE),\"\")","v":""},{"$f":"+IF(OR(LEFT($Q8,1)=\"I\",LEFT($Q8,1)=\"R\"),VLOOKUP($Q8,'Paramétrage des points'!$U:$V,2,FALSE),0)","v":0},{"$f":"IF(ISBLANK(M8),0,IFERROR(VLOOKUP(M8,'Résultat final'!D:L,9,FALSE),0))","v":0}]
["MONCOURTOIS","CHRISTELLE","F","1960-11-20",51,{"$f":"IF(ISBLANK($A9),\"\",IF(ISERROR(DATEDIF($D9,saison,\"yd\")),\"\",(DATEDIF($D9,saison,\"yd\"))))","v":285},141090,"ASC MUSCLE GYM SOISSONS",{"$f":"IF(A9=\"\",\"\",VLOOKUP(H9,Clubs!A:B,2,FALSE))","v":"PICARDIE"},"51.80","VETERAN","FV",33,{"$f":"IFERROR(VLOOKUP((P9&L9),'Résultat final'!A:B,2,FALSE),\"\")","v":5},0,"MONCOURTOIS  CHRISTELLE",{"$f":"IFERROR(HLOOKUP(L9,Juges!$1:$22,22,FALSE),\"\")","v":"N"},{"$f":"+IF(OR(LEFT($Q9,1)=\"I\",LEFT($Q9,1)=\"R\"),VLOOKUP($Q9,'Paramétrage des points'!$U:$V,2,FALSE),0)","v":0},{"$f":"IF(ISBLANK(M9),0,IFERROR(VLOOKUP(M9,'Résultat final'!D:L,9,FALSE),0))","v":0}]
["HECTOR","LAURENCE","H","1988-11-20",23,285,241883,"CP MEDIOLANAISE",{"$f":"IF(A10=\"\",\"\",VLOOKUP(H10,Clubs!A:B,2,FALSE))","v":"NORD PAS DE CALAIS"},"55.55","SENIOR","C2",16,{"$f":"IFERROR(VLOOKUP((P10&L10),'Résultat final'!A:B,2,FALSE),\"\")","v":""},0,"HECTOR  LAURENCE",{"$f":"IFERROR(HLOOKUP(L10,Juges!$1:$22,22,FALSE),\"\")","v":"N"},{"$f":"+IF(OR(LEFT($Q10,1)=\"I\",LEFT($Q10,1)=\"R\"),VLOOKUP($Q10,'Paramétrage des points'!$U:$V,2,FALSE),0)","v":0},{"$f":"IF(ISBLANK(M10),0,IFERROR(VLOOKUP(M10,'Résultat final'!D:L,9,FALSE),0))","v":0}]
["RYCKEBUSCH","SOPHIE","H","1989-09-01",23,0,311317,"FIT BODY HOUDINOIS",{"$f":"IF(A11=\"\",\"\",VLOOKUP(H11,Clubs!A:B,2,FALSE))","v":"NORD PAS DE CALAIS"},"55.55","SENIOR","C2",28,{"$f":"IFERROR(VLOOKUP((P11&L11),'Résultat final'!A:B,2,FALSE),\"\")","v":""},0,"RYCKEBUSCH  SOPHIE",{"$f":"IFERROR(HLOOKUP(L11,Juges!$1:$22,22,FALSE),\"\")","v":"N"},{"$f":"+IF(OR(LEFT($Q11,1)=\"I\",LEFT($Q11,1)=\"R\"),VLOOKUP($Q11,'Paramétrage des points'!$U:$V,2,FALSE),0)","v":0},{"$f":"IF(ISBLANK(M11),0,IFERROR(VLOOKUP(M11,'Résultat final'!D:L,9,FALSE),0))","v":0}]
["MONTFLOR","Liliane","F","1989-09-02",22,364,210098,"EVA FITNESS EMERAINVILLE",{"$f":"IF(A12=\"\",\"\",VLOOKUP(H12,Clubs!A:B,2,FALSE))","v":"ILE DE FRANCE"},"57.60","SENIOR","C2",66,{"$f":"IFERROR(VLOOKUP((P12&L12),'Résultat final'!A:B,2,FALSE),\"\")","v":""},0,"MONTFLOR  Liliane",{"$f":"IFERROR(HLOOKUP(L12,Juges!$1:$22,22,FALSE),\"\")","v":"N"},{"$f":"+IF(OR(LEFT($Q12,1)=\"I\",LEFT($Q12,1)=\"R\"),VLOOKUP($Q12,'Paramétrage des points'!$U:$V,2,FALSE),0)","v":0},{"$f":"IF(ISBLANK(M12),0,IFERROR(VLOOKUP(M12,'Résultat final'!D:L,9,FALSE),0))","v":0}]
["STEPANOVA","IRYNA","F","1991-06-22",21,71,304082,"MUSCULATION HAUBOURDINOISE",{"$f":"IF(A13=\"\",\"\",VLOOKUP(H13,Clubs!A:B,2,FALSE))","v":"NORD PAS DE CALAIS"},"62.50","SENIOR","C2",63,{"$f":"IFERROR(VLOOKUP((P13&L13),'Résultat final'!A:B,2,FALSE),\"\")","v":""},0,"STEPANOVA  IRYNA",{"$f":"IFERROR(HLOOKUP(L13,Juges!$1:$22,22,FALSE),\"\")","v":"N"},{"$f":"+IF(OR(LEFT($Q13,1)=\"I\",LEFT($Q13,1)=\"R\"),VLOOKUP($Q13,'Paramétrage des points'!$U:$V,2,FALSE),0)","v":0},{"$f":"IF(ISBLANK(M13),0,IFERROR(VLOOKUP(M13,'Résultat final'!D:L,9,FALSE),0))","v":0}]
["DOYER","LUDOVIC","H","1988-09-03",23,363,121919,"MC FORM AUDRUICQ",{"$f":"IF(A14=\"\",\"\",VLOOKUP(H14,Clubs!A:B,2,FALSE))","v":"NORD PAS DE CALAIS"},"63.30","SENIOR","C3",34,{"$f":"IFERROR(VLOOKUP((P14&L14),'Résultat final'!A:B,2,FALSE),\"\")","v":6},0,"DOYER  LUDOVIC",{"$f":"IFERROR(HLOOKUP(L14,Juges!$1:$22,22,FALSE),\"\")","v":"N"},{"$f":"+IF(OR(LEFT($Q14,1)=\"I\",LEFT($Q14,1)=\"R\"),VLOOKUP($Q14,'Paramétrage des points'!$U:$V,2,FALSE),0)","v":0},{"$f":"IF(ISBLANK(M14),0,IFERROR(VLOOKUP(M14,'Résultat final'!D:L,9,FALSE),0))","v":0}]
["BUCHIN ","Franck","H","1988-08-31",24,1,211042,"ACH FONTENAY",{"$f":"IF(A15=\"\",\"\",VLOOKUP(H15,Clubs!A:B,2,FALSE))","v":"ILE DE FRANCE"},"63.65 ","SENIOR","C3",56,{"$f":"IFERROR(VLOOKUP((P15&L15),'Résultat final'!A:B,2,FALSE),\"\")","v":3},0,"BUCHIN   Franck",{"$f":"IFERROR(HLOOKUP(L15,Juges!$1:$22,22,FALSE),\"\")","v":"N"},{"$f":"+IF(OR(LEFT($Q15,1)=\"I\",LEFT($Q15,1)=\"R\"),VLOOKUP($Q15,'Paramétrage des points'!$U:$V,2,FALSE),0)","v":0},{"$f":"IF(ISBLANK(M15),0,IFERROR(VLOOKUP(M15,'Résultat final'!D:L,9,FALSE),0))","v":0}]
["MUNIER","CORINNE","F","1987-11-20",24,286,301962,"MUSCULATION HAUBOURDINOISE",{"$f":"IF(A16=\"\",\"\",VLOOKUP(H16,Clubs!A:B,2,FALSE))","v":"NORD PAS DE CALAIS"},"64.15","SENIOR","C2",17,{"$f":"IFERROR(VLOOKUP((P16&L16),'Résultat final'!A:B,2,FALSE),\"\")","v":""},0,"MUNIER  CORINNE",{"$f":"IFERROR(HLOOKUP(L16,Juges!$1:$22,22,FALSE),\"\")","v":"N"},{"$f":"+IF(OR(LEFT($Q16,1)=\"I\",LEFT($Q16,1)=\"R\"),VLOOKUP($Q16,'Paramétrage des points'!$U:$V,2,FALSE),0)","v":0},{"$f":"IF(ISBLANK(M16),0,IFERROR(VLOOKUP(M16,'Résultat final'!D:L,9,FALSE),0))","v":0}]
["VACTER","Christophe","F","1970-11-18",41,{"$f":"IF(ISBLANK(A17),\"\",IF(ISERROR(DATEDIF(D17,saison,\"y\")),\"\",(DATEDIF(D17,saison,\"y\"))))","v":41},318727,"CSAG MOURMELON",{"$f":"IF(A17=\"\",\"\",VLOOKUP(H17,Clubs!A:B,2,FALSE))","v":"CHAMPAGNE ARDENNES"},"64.30","VETERAN","CULTURIS FORM",50,{"$f":"IFERROR(VLOOKUP((P17&L17),'Résultat final'!A:B,2,FALSE),\"\")","v":5},0,"VACTER  Christophe",{"$f":"IFERROR(HLOOKUP(L17,Juges!$1:$22,22,FALSE),\"\")","v":"NCUF"},{"$f":"+IF(OR(LEFT($Q17,1)=\"I\",LEFT($Q17,1)=\"R\"),VLOOKUP($Q17,'Paramétrage des points'!$U:$V,2,FALSE),0)","v":0},{"$f":"IF(ISBLANK(M17),0,IFERROR(VLOOKUP(M17,'Résultat final'!D:L,9,FALSE),0))","v":0}]
["MANGOLD","NICOLAS","H","1988-11-26",23,{"$f":"IF(ISBLANK($A18),\"\",IF(ISERROR(DATEDIF($D18,saison,\"yd\")),\"\",(DATEDIF($D18,saison,\"yd\"))))","v":279},306829,"CHRIS FITNESS THIBOUVILLE",{"$f":"IF(A18=\"\",\"\",VLOOKUP(H18,Clubs!A:B,2,FALSE))","v":"HAUTE NORMANDIE"},"64.45","SENIOR","C1",35,{"$f":"IFERROR(VLOOKUP((P18&L18),'Résultat final'!A:B,2,FALSE),\"\")","v":""},0,"MANGOLD  NICOLAS",{"$f":"IFERROR(HLOOKUP(L18,Juges!$1:$22,22,FALSE),\"\")","v":"N"},{"$f":"+IF(OR(LEFT($Q18,1)=\"I\",LEFT($Q18,1)=\"R\"),VLOOKUP($Q18,'Paramétrage des points'!$U:$V,2,FALSE),0)","v":0},{"$f":"IF(ISBLANK(M18),0,IFERROR(VLOOKUP(M18,'Résultat final'!D:L,9,FALSE),0))","v":0}]
["DJEFAL","karim","H","1988-09-02",23,{"$f":"IF(ISBLANK($A19),\"\",IF(ISERROR(DATEDIF($D19,saison,\"yd\")),\"\",(DATEDIF($D19,saison,\"yd\"))))","v":364},208754,"CA LENSOIS",{"$f":"IF(A19=\"\",\"\",VLOOKUP(H19,Clubs!A:B,2,FALSE))","v":"NORD PAS DE CALAIS"},"64.65","SENIOR","C3",57,{"$f":"IFERROR(VLOOKUP((P19&L19),'Résultat final'!A:B,2,FALSE),\"\")","v":5},0,"DJEFAL  karim",{"$f":"IFERROR(HLOOKUP(L19,Juges!$1:$22,22,FALSE),\"\")","v":"N"},{"$f":"+IF(OR(LEFT($Q19,1)=\"I\",LEFT($Q19,1)=\"R\"),VLOOKUP($Q19,'Paramétrage des points'!$U:$V,2,FALSE),0)","v":0},{"$f":"IF(ISBLANK(M19),0,IFERROR(VLOOKUP(M19,'Résultat final'!D:L,9,FALSE),0))","v":0}]
["HENQUEZ","ROMAIN","H","1990-05-06",22,{"$f":"IF(ISBLANK($A20),\"\",IF(ISERROR(DATEDIF($D20,saison,\"yd\")),\"\",(DATEDIF($D20,saison,\"yd\"))))","v":118},316269,"MC FORM AUDRUICQ",{"$f":"IF(A20=\"\",\"\",VLOOKUP(H20,Clubs!A:B,2,FALSE))","v":"NORD PAS DE CALAIS"},"64.75","ESPOIR","C1",58,{"$f":"IFERROR(VLOOKUP((P20&L20),'Résultat final'!A:B,2,FALSE),\"\")","v":""},0,"HENQUEZ  ROMAIN",{"$f":"IFERROR(HLOOKUP(L20,Juges!$1:$22,22,FALSE),\"\")","v":"N"},{"$f":"+IF(OR(LEFT($Q20,1)=\"I\",LEFT($Q20,1)=\"R\"),VLOOKUP($Q20,'Paramétrage des points'!$U:$V,2,FALSE),0)","v":0},{"$f":"IF(ISBLANK(M20),0,IFERROR(VLOOKUP(M20,'Résultat final'!D:L,9,FALSE),0))","v":0}]
["COSTE","GEORGES","H","1988-09-01",24,{"$f":"IF(ISBLANK($A21),\"\",IF(ISERROR(DATEDIF($D21,saison,\"yd\")),\"\",(DATEDIF($D21,saison,\"yd\"))))","v":0},"O36507","GS SENLIS",{"$f":"IF(A21=\"\",\"\",VLOOKUP(H21,Clubs!A:B,2,FALSE))","v":"PICARDIE"},"64.90","SENIOR","C3",36,{"$f":"IFERROR(VLOOKUP((P21&L21),'Résultat final'!A:B,2,FALSE),\"\")","v":4},0,"COSTE  GEORGES",{"$f":"IFERROR(HLOOKUP(L21,Juges!$1:$22,22,FALSE),\"\")","v":"N"},{"$f":"+IF(OR(LEFT($Q21,1)=\"I\",LEFT($Q21,1)=\"R\"),VLOOKUP($Q21,'Paramétrage des points'!$U:$V,2,FALSE),0)","v":0},{"$f":"IF(ISBLANK(M21),0,IFERROR(VLOOKUP(M21,'Résultat final'!D:L,9,FALSE),0))","v":0}]
["QUANTIN","Maximilien","H","1945-07-04",67,{"$f":"DATEDIF(D22,saison,\"yd\")","v":59},291647,"FORCE ATHLETIQUE LONGJUMEAU",{"$f":"IF(A22=\"\",\"\",VLOOKUP(H22,Clubs!A:B,2,FALSE))","v":"ILE DE FRANCE"},"66.40","VET3","C5",18,{"$f":"IFERROR(VLOOKUP((P22&L22),'Résultat final'!A:B,2,FALSE),\"\")","v":""},0,"QUANTIN  Maximilien",{"$f":"IFERROR(HLOOKUP(L22,Juges!$1:$22,22,FALSE),\"\")","v":"N"},{"$f":"+IF(OR(LEFT($Q22,1)=\"I\",LEFT($Q22,1)=\"R\"),VLOOKUP($Q22,'Paramétrage des points'!$U:$V,2,FALSE),0)","v":0},{"$f":"IF(ISBLANK(M22),0,IFERROR(VLOOKUP(M22,'Résultat final'!D:L,9,FALSE),0))","v":0}]
["LESAGE ","CHRSISTOPHE","H","1945-07-03",67,{"$f":"DATEDIF(D23,saison,\"yd\")","v":60},293190,"FIT BODY HOUDINOIS",{"$f":"IF(A23=\"\",\"\",VLOOKUP(H23,Clubs!A:B,2,FALSE))","v":"NORD PAS DE CALAIS"},"66.55","VET3","C5",8,{"$f":"IFERROR(VLOOKUP((P23&L23),'Résultat final'!A:B,2,FALSE),\"\")","v":""},0,"LESAGE   CHRSISTOPHE",{"$f":"IFERROR(HLOOKUP(L23,Juges!$1:$22,22,FALSE),\"\")","v":"N"},{"$f":"+IF(OR(LEFT($Q23,1)=\"I\",LEFT($Q23,1)=\"R\"),VLOOKUP($Q23,'Paramétrage des points'!$U:$V,2,FALSE),0)","v":0},{"$f":"IF(ISBLANK(M23),0,IFERROR(VLOOKUP(M23,'Résultat final'!D:L,9,FALSE),0))","v":0}]
["ROCHE ","MATHIEU","H","1991-06-22",21,{"$f":"IF(ISBLANK($A24),\"\",IF(ISERROR(DATEDIF($D24,saison,\"yd\")),\"\",(DATEDIF($D24,saison,\"yd\"))))","v":71},318785,"ACADEMIE CLUB LUCON",{"$f":"IF(A24=\"\",\"\",VLOOKUP(H24,Clubs!A:B,2,FALSE))","v":"PAYS DE LOIRE"},"67.15","ESPOIR","C3",19,{"$f":"IFERROR(VLOOKUP((P24&L24),'Résultat final'!A:B,2,FALSE),\"\")","v":1},0,"ROCHE   MATHIEU",{"$f":"IFERROR(HLOOKUP(L24,Juges!$1:$22,22,FALSE),\"\")","v":"N"},{"$f":"+IF(OR(LEFT($Q24,1)=\"I\",LEFT($Q24,1)=\"R\"),VLOOKUP($Q24,'Paramétrage des points'!$U:$V,2,FALSE),0)","v":0},{"$f":"IF(ISBLANK(M24),0,IFERROR(VLOOKUP(M24,'Résultat final'!D:L,9,FALSE),0))","v":0}]
["ALNET","Philippe","H","1988-09-04",23,{"$f":"IF(ISBLANK($A25),\"\",IF(ISERROR(DATEDIF($D25,saison,\"yd\")),\"\",(DATEDIF($D25,saison,\"yd\"))))","v":362},304564,"VELIZY MUSCULATION",{"$f":"IF(A25=\"\",\"\",VLOOKUP(H25,Clubs!A:B,2,FALSE))","v":"ILE DE FRANCE"},"67.55","SENIOR","C3",22,{"$f":"IFERROR(VLOOKUP((P25&L25),'Résultat final'!A:B,2,FALSE),\"\")","v":7},0,"ALNET  Philippe",{"$f":"IFERROR(HLOOKUP(L25,Juges!$1:$22,22,FALSE),\"\")","v":"N"},{"$f":"+IF(OR(LEFT($Q25,1)=\"I\",LEFT($Q25,1)=\"R\"),VLOOKUP($Q25,'Paramétrage des points'!$U:$V,2,FALSE),0)","v":0},{"$f":"IF(ISBLANK(M25),0,IFERROR(VLOOKUP(M25,'Résultat final'!D:L,9,FALSE),0))","v":0}]
["WELTER","Yohan","H","1976-07-01",36,{"$f":"DATEDIF(D26,saison,\"yd\")","v":62},270224,"POWER CLUB DE FAREMOUTIERS",{"$f":"IF(A26=\"\",\"\",VLOOKUP(H26,Clubs!A:B,2,FALSE))","v":"ILE DE FRANCE"},"68.50","SENIOR","C5",69,{"$f":"IFERROR(VLOOKUP((P26&L26),'Résultat final'!A:B,2,FALSE),\"\")","v":""},0,"WELTER  Yohan",{"$f":"IFERROR(HLOOKUP(L26,Juges!$1:$22,22,FALSE),\"\")","v":"N"},{"$f":"+IF(OR(LEFT($Q26,1)=\"I\",LEFT($Q26,1)=\"R\"),VLOOKUP($Q26,'Paramétrage des points'!$U:$V,2,FALSE),0)","v":0},{"$f":"IF(ISBLANK(M26),0,IFERROR(VLOOKUP(M26,'Résultat final'!D:L,9,FALSE),0))","v":0}]
["LEFEVRE ","DAVID","H","1945-07-02",67,{"$f":"IF(ISBLANK($A27),\"\",IF(ISERROR(DATEDIF($D27,saison,\"yd\")),\"\",(DATEDIF($D27,saison,\"yd\"))))","v":61},264910,"MUSCULATION HAUBOURDINOISE",{"$f":"IF(A27=\"\",\"\",VLOOKUP(H27,Clubs!A:B,2,FALSE))","v":"NORD PAS DE CALAIS"},"68.55","VET3","C5",41,{"$f":"IFERROR(VLOOKUP((P27&L27),'Résultat final'!A:B,2,FALSE),\"\")","v":""},0,"LEFEVRE   DAVID",{"$f":"IFERROR(HLOOKUP(L27,Juges!$1:$22,22,FALSE),\"\")","v":"N"},{"$f":"+IF(OR(LEFT($Q27,1)=\"I\",LEFT($Q27,1)=\"R\"),VLOOKUP($Q27,'Paramétrage des points'!$U:$V,2,FALSE),0)","v":0},{"$f":"IF(ISBLANK(M27),0,IFERROR(VLOOKUP(M27,'Résultat final'!D:L,9,FALSE),0))","v":0}]
["CANTALOUVE","Christian","H","1952-11-07",59,{"$f":"IF(ISBLANK(A28),\"\",IF(ISERROR(DATEDIF(D28,saison,\"y\")),\"\",(DATEDIF(D28,saison,\"y\"))))","v":59},84988,"AGOS INRIA",{"$f":"IF(A28=\"\",\"\",VLOOKUP(H28,Clubs!A:B,2,FALSE))","v":"ILE DE FRANCE"},"68.85","VET2",null,23,{"$f":"IFERROR(VLOOKUP((P28&L28),'Résultat final'!A:B,2,FALSE),\"\")","v":""},0,"CANTALOUVE  Christian",{"$f":"IFERROR(HLOOKUP(L28,Juges!$1:$22,22,FALSE),\"\")","v":""},{"$f":"+IF(OR(LEFT($Q28,1)=\"I\",LEFT($Q28,1)=\"R\"),VLOOKUP($Q28,'Paramétrage des points'!$U:$V,2,FALSE),0)","v":0},{"$f":"IF(ISBLANK(M28),0,IFERROR(VLOOKUP(M28,'Résultat final'!D:L,9,FALSE),0))","v":0}]
["NORMAND","OLIVIER","H","1971-02-07",41,{"$f":"IF(ISBLANK(A29),\"\",IF(ISERROR(DATEDIF(D29,saison,\"y\")),\"\",(DATEDIF(D29,saison,\"y\"))))","v":41},246360,"TOP FORME DOMART EN PONTHIEU",{"$f":"IF(A29=\"\",\"\",VLOOKUP(H29,Clubs!A:B,2,FALSE))","v":"PICARDIE"},"68.90","VET1",null,37,{"$f":"IFERROR(VLOOKUP((P29&L29),'Résultat final'!A:B,2,FALSE),\"\")","v":""},0,"NORMAND  OLIVIER",{"$f":"IFERROR(HLOOKUP(L29,Juges!$1:$22,22,FALSE),\"\")","v":""},{"$f":"+IF(OR(LEFT($Q29,1)=\"I\",LEFT($Q29,1)=\"R\"),VLOOKUP($Q29,'Paramétrage des points'!$U:$V,2,FALSE),0)","v":0},{"$f":"IF(ISBLANK(M29),0,IFERROR(VLOOKUP(M29,'Résultat final'!D:L,9,FALSE),0))","v":0}]
["DUFLY","MATHIEU","H","1983-03-25",29,{"$f":"DATEDIF(D30,saison,\"yd\")","v":160},241086,"MH CLERMONTOIS",{"$f":"IF(A30=\"\",\"\",VLOOKUP(H30,Clubs!A:B,2,FALSE))","v":"PICARDIE"},"69.15","SENIOR","C5",29,{"$f":"IFERROR(VLOOKUP((P30&L30),'Résultat final'!A:B,2,FALSE),\"\")","v":""},0,"DUFLY  MATHIEU",{"$f":"IFERROR(HLOOKUP(L30,Juges!$1:$22,22,FALSE),\"\")","v":"N"},{"$f":"+IF(OR(LEFT($Q30,1)=\"I\",LEFT($Q30,1)=\"R\"),VLOOKUP($Q30,'Paramétrage des points'!$U:$V,2,FALSE),0)","v":0},{"$f":"IF(ISBLANK(M30),0,IFERROR(VLOOKUP(M30,'Résultat final'!D:L,9,FALSE),0))","v":0}]
["DUROT","OLIVIER","H","1945-07-01",67,{"$f":"IF(ISBLANK($A31),\"\",IF(ISERROR(DATEDIF($D31,saison,\"yd\")),\"\",(DATEDIF($D31,saison,\"yd\"))))","v":62},235811,"MUSCULATION HAUBOURDINOISE",{"$f":"IF(A31=\"\",\"\",VLOOKUP(H31,Clubs!A:B,2,FALSE))","v":"NORD PAS DE CALAIS"},"69.35","VET3","C5",59,{"$f":"IFERROR(VLOOKUP((P31&L31),'Résultat final'!A:B,2,FALSE),\"\")","v":""},0,"DUROT  OLIVIER",{"$f":"IFERROR(HLOOKUP(L31,Juges!$1:$22,22,FALSE),\"\")","v":"N"},{"$f":"+IF(OR(LEFT($Q31,1)=\"I\",LEFT($Q31,1)=\"R\"),VLOOKUP($Q31,'Paramétrage des points'!$U:$V,2,FALSE),0)","v":0},{"$f":"IF(ISBLANK(M31),0,IFERROR(VLOOKUP(M31,'Résultat final'!D:L,9,FALSE),0))","v":0}]
["LEPRETRE","THIERRY","H","1964-08-23",48,{"$f":"IF(ISBLANK(A32),\"\",IF(ISERROR(DATEDIF(D32,saison,\"y\")),\"\",(DATEDIF(D32,saison,\"y\"))))","v":48},235823,"MUSCULATION HAUBOURDINOISE",{"$f":"IF(A32=\"\",\"\",VLOOKUP(H32,Clubs!A:B,2,FALSE))","v":"NORD PAS DE CALAIS"},"69.70","VET1",null,64,{"$f":"IFERROR(VLOOKUP((P32&L32),'Résultat final'!A:B,2,FALSE),\"\")","v":""},0,"LEPRETRE  THIERRY",{"$f":"IFERROR(HLOOKUP(L32,Juges!$1:$22,22,FALSE),\"\")","v":""},{"$f":"+IF(OR(LEFT($Q32,1)=\"I\",LEFT($Q32,1)=\"R\"),VLOOKUP($Q32,'Paramétrage des points'!$U:$V,2,FALSE),0)","v":0},{"$f":"IF(ISBLANK(M32),0,IFERROR(VLOOKUP(M32,'Résultat final'!D:L,9,FALSE),0))","v":0}]
["BLANCHART","FREDDY","H","1957-08-19",55,{"$f":"IF(ISBLANK(A33),\"\",IF(ISERROR(DATEDIF(D33,saison,\"y\")),\"\",(DATEDIF(D33,saison,\"y\"))))","v":55},191823,"ASC MUSCLE GYM SOISSONS",{"$f":"IF(A33=\"\",\"\",VLOOKUP(H33,Clubs!A:B,2,FALSE))","v":"PICARDIE"},"70.45","VET2",null,15,{"$f":"IFERROR(VLOOKUP((P33&L33),'Résultat final'!A:B,2,FALSE),\"\")","v":""},0,"BLANCHART  FREDDY",{"$f":"IFERROR(HLOOKUP(L33,Juges!$1:$22,22,FALSE),\"\")","v":""},{"$f":"+IF(OR(LEFT($Q33,1)=\"I\",LEFT($Q33,1)=\"R\"),VLOOKUP($Q33,'Paramétrage des points'!$U:$V,2,FALSE),0)","v":0},{"$f":"IF(ISBLANK(M33),0,IFERROR(VLOOKUP(M33,'Résultat final'!D:L,9,FALSE),0))","v":0}]
["BLANCHART","FREDDY","H","1957-08-19",{"$f":"IF(ISBLANK(A34),\"\",DATEDIF(D34,saison,\"y\"))","v":55},null,191823,"ASC MUSCLE GYM SOISSONS",{"$f":"IF(A34=\"\",\"\",VLOOKUP(H34,Clubs!A:B,2,FALSE))","v":"PICARDIE"},"70.45",{"$f":"IF(E34=\"\",\"\",IF(E34<16,\"ERREUR\",IF(AND(E34<18,C34=\"F\"),\"CF\",IF(E34<21,\"JUNIOR\", IF(E34<23,IF(C34=\"F\",\"SENIOR\",\"ESPOIR\"),IF(E34<40,\"SENIOR\",IF(C34=\"F\",\"VETERAN\",IF(E34<50,\"VET1\",IF(E34<60,\"VET2\",\"VET3\")))))))))","v":"VET2"},"Couples",1,{"$f":"IFERROR(VLOOKUP((P34&L34),'Résultat final'!A:B,2,FALSE),\"\")","v":5},{"$f":"SUM(R34:S34)","v":0},{"$f":"A34&\"  \"&B34","v":"BLANCHART  FREDDY"},{"$f":"IFERROR(HLOOKUP(L34,Juges!$1:$22,22,FALSE),\"\")","v":"NCH/CF"},{"$f":"+IF(OR(LEFT($Q34,1)=\"I\",LEFT($Q34,1)=\"R\"),VLOOKUP($Q34,'Paramétrage des points'!$U:$V,2,FALSE),0)","v":0},{"$f":"IF(ISBLANK(M34),0,IFERROR(VLOOKUP(M34,'Résultat final'!D:L,9,FALSE),0))","v":0}]
["FORTIN ","JEAN DIDIER","H","1959-07-13",53,{"$f":"IF(ISBLANK(A35),\"\",IF(ISERROR(DATEDIF(D35,saison,\"y\")),\"\",(DATEDIF(D35,saison,\"y\"))))","v":53},124155,"EC FOURMISIENNE",{"$f":"IF(A35=\"\",\"\",VLOOKUP(H35,Clubs!A:B,2,FALSE))","v":"NORD PAS DE CALAIS"},"71.85","VET2",null,6,{"$f":"IFERROR(VLOOKUP((P35&L35),'Résultat final'!A:B,2,FALSE),\"\")","v":""},0,"FORTIN   JEAN DIDIER",{"$f":"IFERROR(HLOOKUP(L35,Juges!$1:$22,22,FALSE),\"\")","v":""},{"$f":"+IF(OR(LEFT($Q35,1)=\"I\",LEFT($Q35,1)=\"R\"),VLOOKUP($Q35,'Paramétrage des points'!$U:$V,2,FALSE),0)","v":0},{"$f":"IF(ISBLANK(M35),0,IFERROR(VLOOKUP(M35,'Résultat final'!D:L,9,FALSE),0))","v":0}]
["MARTIN","DANIEL","H","1947-03-10",65,{"$f":"IF(ISBLANK(A36),\"\",IF(ISERROR(DATEDIF(D36,saison,\"y\")),\"\",(DATEDIF(D36,saison,\"y\"))))","v":65},313233,"AGOS INRIA",{"$f":"IF(A36=\"\",\"\",VLOOKUP(H36,Clubs!A:B,2,FALSE))","v":"ILE DE FRANCE"},"71.85","VET3",null,30,{"$f":"IFERROR(VLOOKUP((P36&L36),'Résultat final'!A:B,2,FALSE),\"\")","v":""},0,"MARTIN  DANIEL",{"$f":"IFERROR(HLOOKUP(L36,Juges!$1:$22,22,FALSE),\"\")","v":""},{"$f":"+IF(OR(LEFT($Q36,1)=\"I\",LEFT($Q36,1)=\"R\"),VLOOKUP($Q36,'Paramétrage des points'!$U:$V,2,FALSE),0)","v":0},{"$f":"IF(ISBLANK(M36),0,IFERROR(VLOOKUP(M36,'Résultat final'!D:L,9,FALSE),0))","v":0}]
["MACHOME","DIDIER","H","1989-09-02",22,{"$f":"IF(ISBLANK($A37),\"\",IF(ISERROR(DATEDIF($D37,saison,\"yd\")),\"\",(DATEDIF($D37,saison,\"yd\"))))","v":364},313234,"AGOS INRIA",{"$f":"IF(A37=\"\",\"\",VLOOKUP(H37,Clubs!A:B,2,FALSE))","v":"ILE DE FRANCE"},"71.86","ESPOIR","C1",51,{"$f":"IFERROR(VLOOKUP((P37&L37),'Résultat final'!A:B,2,FALSE),\"\")","v":2},12,"MACHOME  DIDIER",{"$f":"IFERROR(HLOOKUP(L37,Juges!$1:$22,22,FALSE),\"\")","v":"N"},{"$f":"+IF(OR(LEFT($Q37,1)=\"I\",LEFT($Q37,1)=\"R\"),VLOOKUP($Q37,'Paramétrage des points'!$U:$V,2,FALSE),0)","v":0},{"$f":"IF(ISBLANK(M37),0,IFERROR(VLOOKUP(M37,'Résultat final'!D:L,9,FALSE),0))","v":12}]
["BLANCHET","PATRICK","F","1962-06-30",50,{"$f":"IF(ISBLANK(A38),\"\",IF(ISERROR(DATEDIF(D38,saison,\"y\")),\"\",(DATEDIF(D38,saison,\"y\"))))","v":50},"O11674","CHFM ROISEL",{"$f":"IF(A38=\"\",\"\",VLOOKUP(H38,Clubs!A:B,2,FALSE))","v":"PICARDIE"},"72.75","VETERAN","CULTURIS FORM",42,{"$f":"IFERROR(VLOOKUP((P38&L38),'Résultat final'!A:B,2,FALSE),\"\")","v":4},15,"BLANCHET  PATRICK",{"$f":"IFERROR(HLOOKUP(L38,Juges!$1:$22,22,FALSE),\"\")","v":"NCUF"},{"$f":"+IF(OR(LEFT($Q38,1)=\"I\",LEFT($Q38,1)=\"R\"),VLOOKUP($Q38,'Paramétrage des points'!$U:$V,2,FALSE),0)","v":0},{"$f":"IF(ISBLANK(M38),0,IFERROR(VLOOKUP(M38,'Résultat final'!D:L,9,FALSE),0))","v":15}]
["MARCHAL ","LAURENT","H","1962-10-24",49,{"$f":"IF(ISBLANK(A39),\"\",IF(ISERROR(DATEDIF(D39,saison,\"y\")),\"\",(DATEDIF(D39,saison,\"y\"))))","v":49},166316,"MH CLERMONTOIS",{"$f":"IF(A39=\"\",\"\",VLOOKUP(H39,Clubs!A:B,2,FALSE))","v":"PICARDIE"},"73.90","VET1","culturis form",46,{"$f":"IFERROR(VLOOKUP((P39&L39),'Résultat final'!A:B,2,FALSE),\"\")","v":3},0,"MARCHAL   LAURENT",{"$f":"IFERROR(HLOOKUP(L39,Juges!$1:$22,22,FALSE),\"\")","v":"NCUF"},{"$f":"+IF(OR(LEFT($Q39,1)=\"I\",LEFT($Q39,1)=\"R\"),VLOOKUP($Q39,'Paramétrage des points'!$U:$V,2,FALSE),0)","v":0},{"$f":"IF(ISBLANK(M39),0,IFERROR(VLOOKUP(M39,'Résultat final'!D:L,9,FALSE),0))","v":0}]
["OLIGIER","CEDRIC","H","1979-10-24",32,{"$f":"DATEDIF(D40,saison,\"yd\")","v":313},232616,"CH LUNEVILLE",{"$f":"IF(A40=\"\",\"\",VLOOKUP(H40,Clubs!A:B,2,FALSE))","v":"LORRAINE "},"74.35","SENIOR","C5",43,{"$f":"IFERROR(VLOOKUP((P40&L40),'Résultat final'!A:B,2,FALSE),\"\")","v":""},20,"OLIGIER  CEDRIC",{"$f":"IFERROR(HLOOKUP(L40,Juges!$1:$22,22,FALSE),\"\")","v":"N"},{"$f":"+IF(OR(LEFT($Q40,1)=\"I\",LEFT($Q40,1)=\"R\"),VLOOKUP($Q40,'Paramétrage des points'!$U:$V,2,FALSE),0)","v":0},{"$f":"IF(ISBLANK(M40),0,IFERROR(VLOOKUP(M40,'Résultat final'!D:L,9,FALSE),0))","v":20}]
["COUPEL","THIERRY","F","1962-07-21",50,{"$f":"IF(ISBLANK(A41),\"\",IF(ISERROR(DATEDIF(D41,saison,\"y\")),\"\",(DATEDIF(D41,saison,\"y\"))))","v":50},"O95667","MH CLERMONTOIS",{"$f":"IF(A41=\"\",\"\",VLOOKUP(H41,Clubs!A:B,2,FALSE))","v":"PICARDIE"},"74.40","VETERAN","CULTURIS FORM",7,{"$f":"IFERROR(VLOOKUP((P41&L41),'Résultat final'!A:B,2,FALSE),\"\")","v":2},0,"COUPEL  THIERRY",{"$f":"IFERROR(HLOOKUP(L41,Juges!$1:$22,22,FALSE),\"\")","v":"NCUF"},{"$f":"+IF(OR(LEFT($Q41,1)=\"I\",LEFT($Q41,1)=\"R\"),VLOOKUP($Q41,'Paramétrage des points'!$U:$V,2,FALSE),0)","v":0},{"$f":"IF(ISBLANK(M41),0,IFERROR(VLOOKUP(M41,'Résultat final'!D:L,9,FALSE),0))","v":0}]
["DUVAL","LAURENT","H","1975-01-22",37,{"$f":"DATEDIF(D42,saison,\"yd\")","v":222},211690,"MUSCULATION HAUBOURDINOISE",{"$f":"IF(A42=\"\",\"\",VLOOKUP(H42,Clubs!A:B,2,FALSE))","v":"NORD PAS DE CALAIS"},"74.45","SENIOR","C5",11,{"$f":"IFERROR(VLOOKUP((P42&L42),'Résultat final'!A:B,2,FALSE),\"\")","v":""},0,"DUVAL  LAURENT",{"$f":"IFERROR(HLOOKUP(L42,Juges!$1:$22,22,FALSE),\"\")","v":"N"},{"$f":"+IF(OR(LEFT($Q42,1)=\"I\",LEFT($Q42,1)=\"R\"),VLOOKUP($Q42,'Paramétrage des points'!$U:$V,2,FALSE),0)","v":0},{"$f":"IF(ISBLANK(M42),0,IFERROR(VLOOKUP(M42,'Résultat final'!D:L,9,FALSE),0))","v":0}]
["SEMAH","Gary","H","1989-11-20",22,{"$f":"IF(ISBLANK($A43),\"\",IF(ISERROR(DATEDIF($D43,saison,\"yd\")),\"\",(DATEDIF($D43,saison,\"yd\"))))","v":285},290398,"US METRO PARIS",{"$f":"IF(A43=\"\",\"\",VLOOKUP(H43,Clubs!A:B,2,FALSE))","v":"ILE DE FRANCE"},"74.50","ESPOIR","C1",52,{"$f":"IFERROR(VLOOKUP((P43&L43),'Résultat final'!A:B,2,FALSE),\"\")","v":""},25,"SEMAH  Gary",{"$f":"IFERROR(HLOOKUP(L43,Juges!$1:$22,22,FALSE),\"\")","v":"N"},{"$f":"+IF(OR(LEFT($Q43,1)=\"I\",LEFT($Q43,1)=\"R\"),VLOOKUP($Q43,'Paramétrage des points'!$U:$V,2,FALSE),0)","v":0},{"$f":"IF(ISBLANK(M43),0,IFERROR(VLOOKUP(M43,'Résultat final'!D:L,9,FALSE),0))","v":25}]
["LE MEUR","Sylvain","F","1967-08-05",45,{"$f":"IF(ISBLANK(A44),\"\",IF(ISERROR(DATEDIF(D44,saison,\"y\")),\"\",(DATEDIF(D44,saison,\"y\"))))","v":45},206890,"CMF LOCMINE",{"$f":"IF(A44=\"\",\"\",VLOOKUP(H44,Clubs!A:B,2,FALSE))","v":"BRETAGNE"},"74.65","VETERAN","CULTURIS FORM",68,{"$f":"IFERROR(VLOOKUP((P44&L44),'Résultat final'!A:B,2,FALSE),\"\")","v":1},0,"LE MEUR  Sylvain",{"$f":"IFERROR(HLOOKUP(L44,Juges!$1:$22,22,FALSE),\"\")","v":"NCUF"},{"$f":"+IF(OR(LEFT($Q44,1)=\"I\",LEFT($Q44,1)=\"R\"),VLOOKUP($Q44,'Paramétrage des points'!$U:$V,2,FALSE),0)","v":0},{"$f":"IF(ISBLANK(M44),0,IFERROR(VLOOKUP(M44,'Résultat final'!D:L,9,FALSE),0))","v":0}]
["ZANCANARO","WILLIAM","H","1973-02-09",39,{"$f":"DATEDIF(D45,saison,\"yd\")","v":204},197838,"GS SENLIS",{"$f":"IF(A45=\"\",\"\",VLOOKUP(H45,Clubs!A:B,2,FALSE))","v":"PICARDIE"},"74.95","SENIOR","C5",40,{"$f":"IFERROR(VLOOKUP((P45&L45),'Résultat final'!A:B,2,FALSE),\"\")","v":""},0,"ZANCANARO  WILLIAM",{"$f":"IFERROR(HLOOKUP(L45,Juges!$1:$22,22,FALSE),\"\")","v":"N"},{"$f":"+IF(OR(LEFT($Q45,1)=\"I\",LEFT($Q45,1)=\"R\"),VLOOKUP($Q45,'Paramétrage des points'!$U:$V,2,FALSE),0)","v":0},{"$f":"IF(ISBLANK(M45),0,IFERROR(VLOOKUP(M45,'Résultat final'!D:L,9,FALSE),0))","v":0}]
["COLIN","Bruno","H","1964-07-20",48,{"$f":"IF(ISBLANK(A46),\"\",IF(ISERROR(DATEDIF(D46,saison,\"y\")),\"\",(DATEDIF(D46,saison,\"y\"))))","v":48},236,"AFHMA FRANCONVILLE",{"$f":"IF(A46=\"\",\"\",VLOOKUP(H46,Clubs!A:B,2,FALSE))","v":"ILE DE FRANCE"},"75.30","VET1",null,2,{"$f":"IFERROR(VLOOKUP((P46&L46),'Résultat final'!A:B,2,FALSE),\"\")","v":""},0,"COLIN  Bruno",{"$f":"IFERROR(HLOOKUP(L46,Juges!$1:$22,22,FALSE),\"\")","v":""},{"$f":"+IF(OR(LEFT($Q46,1)=\"I\",LEFT($Q46,1)=\"R\"),VLOOKUP($Q46,'Paramétrage des points'!$U:$V,2,FALSE),0)","v":0},{"$f":"IF(ISBLANK(M46),0,IFERROR(VLOOKUP(M46,'Résultat final'!D:L,9,FALSE),0))","v":0}]
["POTEAU","ALEXANDRE","H","1989-08-31",23,{"$f":"IF(ISBLANK($A47),\"\",IF(ISERROR(DATEDIF($D47,saison,\"yd\")),\"\",(DATEDIF($D47,saison,\"yd\"))))","v":1},291588,"MUSCULATION HAUBOURDINOISE",{"$f":"IF(A47=\"\",\"\",VLOOKUP(H47,Clubs!A:B,2,FALSE))","v":"NORD PAS DE CALAIS"},"75.80","SENIOR","C1",10,{"$f":"IFERROR(VLOOKUP((P47&L47),'Résultat final'!A:B,2,FALSE),\"\")","v":1},0,"POTEAU  ALEXANDRE",{"$f":"IFERROR(HLOOKUP(L47,Juges!$1:$22,22,FALSE),\"\")","v":"N"},{"$f":"+IF(OR(LEFT($Q47,1)=\"I\",LEFT($Q47,1)=\"R\"),VLOOKUP($Q47,'Paramétrage des points'!$U:$V,2,FALSE),0)","v":0},{"$f":"IF(ISBLANK(M47),0,IFERROR(VLOOKUP(M47,'Résultat final'!D:L,9,FALSE),0))","v":0}]
["RIVIERE","Alain","H","1960-03-03",52,{"$f":"IF(ISBLANK(A48),\"\",IF(ISERROR(DATEDIF(D48,saison,\"y\")),\"\",(DATEDIF(D48,saison,\"y\"))))","v":52},5017,"AS FOURCHAMBAULT",{"$f":"IF(A48=\"\",\"\",VLOOKUP(H48,Clubs!A:B,2,FALSE))","v":"BOURGOGNE"},"75.80","VET2",null,3,{"$f":"IFERROR(VLOOKUP((P48&L48),'Résultat final'!A:B,2,FALSE),\"\")","v":""},0,"RIVIERE  Alain",{"$f":"IFERROR(HLOOKUP(L48,Juges!$1:$22,22,FALSE),\"\")","v":""},{"$f":"+IF(OR(LEFT($Q48,1)=\"I\",LEFT($Q48,1)=\"R\"),VLOOKUP($Q48,'Paramétrage des points'!$U:$V,2,FALSE),0)","v":0},{"$f":"IF(ISBLANK(M48),0,IFERROR(VLOOKUP(M48,'Résultat final'!D:L,9,FALSE),0))","v":0}]
["CARTRY","PHILIPPE","F","1958-06-05",54,54,132962,"CHFM ROISEL",{"$f":"IF(A49=\"\",\"\",VLOOKUP(H49,Clubs!A:B,2,FALSE))","v":"PICARDIE"},"75.85","VETERAN",null,4,{"$f":"IFERROR(VLOOKUP((P49&L49),'Résultat final'!A:B,2,FALSE),\"\")","v":""},0,"CARTRY  PHILIPPE",{"$f":"IFERROR(HLOOKUP(L49,Juges!$1:$22,22,FALSE),\"\")","v":""},{"$f":"+IF(OR(LEFT($Q49,1)=\"I\",LEFT($Q49,1)=\"R\"),VLOOKUP($Q49,'Paramétrage des points'!$U:$V,2,FALSE),0)","v":0},{"$f":"IF(ISBLANK(M49),0,IFERROR(VLOOKUP(M49,'Résultat final'!D:L,9,FALSE),0))","v":0}]
["BELROSE","BRUNO","H","1964-08-22",48,48,252669,"AFHMA FRANCONVILLE",{"$f":"IF(A50=\"\",\"\",VLOOKUP(H50,Clubs!A:B,2,FALSE))","v":"ILE DE FRANCE"},"75.95","VET1",null,47,{"$f":"IFERROR(VLOOKUP((P50&L50),'Résultat final'!A:B,2,FALSE),\"\")","v":""},0,"BELROSE  BRUNO",{"$f":"IFERROR(HLOOKUP(L50,Juges!$1:$22,22,FALSE),\"\")","v":""},{"$f":"+IF(OR(LEFT($Q50,1)=\"I\",LEFT($Q50,1)=\"R\"),VLOOKUP($Q50,'Paramétrage des points'!$U:$V,2,FALSE),0)","v":0},{"$f":"IF(ISBLANK(M50),0,IFERROR(VLOOKUP(M50,'Résultat final'!D:L,9,FALSE),0))","v":0}]
["TENIERE","JEAN FRANCOIS","H","1965-05-07",47,47,"O29036","MUSCULATION HAUBOURDINOISE",{"$f":"IF(A51=\"\",\"\",VLOOKUP(H51,Clubs!A:B,2,FALSE))","v":"NORD PAS DE CALAIS"},"77.20","VET1",null,24,{"$f":"IFERROR(VLOOKUP((P51&L51),'Résultat final'!A:B,2,FALSE),\"\")","v":""},0,"TENIERE  JEAN FRANCOIS",{"$f":"IFERROR(HLOOKUP(L51,Juges!$1:$22,22,FALSE),\"\")","v":""},{"$f":"+IF(OR(LEFT($Q51,1)=\"I\",LEFT($Q51,1)=\"R\"),VLOOKUP($Q51,'Paramétrage des points'!$U:$V,2,FALSE),0)","v":0},{"$f":"IF(ISBLANK(M51),0,IFERROR(VLOOKUP(M51,'Résultat final'!D:L,9,FALSE),0))","v":0}]
["DELAFONTAINE","MARTIAL","H","1963-03-28",49,49,242656,"MH CLERMONTOIS",{"$f":"IF(A52=\"\",\"\",VLOOKUP(H52,Clubs!A:B,2,FALSE))","v":"PICARDIE"},"77.30","VET1",null,53,{"$f":"IFERROR(VLOOKUP((P52&L52),'Résultat final'!A:B,2,FALSE),\"\")","v":""},0,"DELAFONTAINE  MARTIAL",{"$f":"IFERROR(HLOOKUP(L52,Juges!$1:$22,22,FALSE),\"\")","v":""},{"$f":"+IF(OR(LEFT($Q52,1)=\"I\",LEFT($Q52,1)=\"R\"),VLOOKUP($Q52,'Paramétrage des points'!$U:$V,2,FALSE),0)","v":0},{"$f":"IF(ISBLANK(M52),0,IFERROR(VLOOKUP(M52,'Résultat final'!D:L,9,FALSE),0))","v":0}]
["ALBERT","EMMANUEL","H","1968-11-02",43,43,"O73940","MH CLERMONTOIS",{"$f":"IF(A53=\"\",\"\",VLOOKUP(H53,Clubs!A:B,2,FALSE))","v":"PICARDIE"},"78.25","VET1",null,26,{"$f":"IFERROR(VLOOKUP((P53&L53),'Résultat final'!A:B,2,FALSE),\"\")","v":""},0,"ALBERT  EMMANUEL",{"$f":"IFERROR(HLOOKUP(L53,Juges!$1:$22,22,FALSE),\"\")","v":""},{"$f":"+IF(OR(LEFT($Q53,1)=\"I\",LEFT($Q53,1)=\"R\"),VLOOKUP($Q53,'Paramétrage des points'!$U:$V,2,FALSE),0)","v":0},{"$f":"IF(ISBLANK(M53),0,IFERROR(VLOOKUP(M53,'Résultat final'!D:L,9,FALSE),0))","v":0}]
["DELFAVERO","THIERRY","H","1966-10-22",45,45,"OO2176","FIT BODY HOUDINOIS",{"$f":"IF(A54=\"\",\"\",VLOOKUP(H54,Clubs!A:B,2,FALSE))","v":"NORD PAS DE CALAIS"},"78.75","VET1",null,12,{"$f":"IFERROR(VLOOKUP((P54&L54),'Résultat final'!A:B,2,FALSE),\"\")","v":""},0,"DELFAVERO  THIERRY",{"$f":"IFERROR(HLOOKUP(L54,Juges!$1:$22,22,FALSE),\"\")","v":""},{"$f":"+IF(OR(LEFT($Q54,1)=\"I\",LEFT($Q54,1)=\"R\"),VLOOKUP($Q54,'Paramétrage des points'!$U:$V,2,FALSE),0)","v":0},{"$f":"IF(ISBLANK(M54),0,IFERROR(VLOOKUP(M54,'Résultat final'!D:L,9,FALSE),0))","v":0}]
["PELLETIER","THIERRY","H","1984-04-22",28,{"$f":"DATEDIF(D55,saison,\"yd\")","v":132},316455,"ACADEMIE CLUB LUCON",{"$f":"IF(A55=\"\",\"\",VLOOKUP(H55,Clubs!A:B,2,FALSE))","v":"PAYS DE LOIRE"},"78.80","SENIOR","C5",44,{"$f":"IFERROR(VLOOKUP((P55&L55),'Résultat final'!A:B,2,FALSE),\"\")","v":""},0,"PELLETIER  THIERRY",{"$f":"IFERROR(HLOOKUP(L55,Juges!$1:$22,22,FALSE),\"\")","v":"N"},{"$f":"+IF(OR(LEFT($Q55,1)=\"I\",LEFT($Q55,1)=\"R\"),VLOOKUP($Q55,'Paramétrage des points'!$U:$V,2,FALSE),0)","v":0},{"$f":"IF(ISBLANK(M55),0,IFERROR(VLOOKUP(M55,'Résultat final'!D:L,9,FALSE),0))","v":0}]
["DORIZON","FLORENT","H","1989-11-20",22,{"$f":"IF(ISBLANK($A56),\"\",IF(ISERROR(DATEDIF($D56,saison,\"yd\")),\"\",(DATEDIF($D56,saison,\"yd\"))))","v":285},309724,"BBF ALLONES",{"$f":"IF(A56=\"\",\"\",VLOOKUP(H56,Clubs!A:B,2,FALSE))","v":"PAYS DE LOIRE"},"79.80","ESPOIR","C3",31,{"$f":"IFERROR(VLOOKUP((P56&L56),'Résultat final'!A:B,2,FALSE),\"\")","v":2},0,"DORIZON  FLORENT",{"$f":"IFERROR(HLOOKUP(L56,Juges!$1:$22,22,FALSE),\"\")","v":"N"},{"$f":"+IF(OR(LEFT($Q56,1)=\"I\",LEFT($Q56,1)=\"R\"),VLOOKUP($Q56,'Paramétrage des points'!$U:$V,2,FALSE),0)","v":0},{"$f":"IF(ISBLANK(M56),0,IFERROR(VLOOKUP(M56,'Résultat final'!D:L,9,FALSE),0))","v":0}]
["BASILE","LAURENT","H","1977-01-22",35,{"$f":"DATEDIF(D57,saison,\"yd\")","v":222},232997,"CP MEDIOLANAISE",{"$f":"IF(A57=\"\",\"\",VLOOKUP(H57,Clubs!A:B,2,FALSE))","v":"NORD PAS DE CALAIS"},"82.65","SENIOR","C5",65,{"$f":"IFERROR(VLOOKUP((P57&L57),'Résultat final'!A:B,2,FALSE),\"\")","v":""},0,"BASILE  LAURENT",{"$f":"IFERROR(HLOOKUP(L57,Juges!$1:$22,22,FALSE),\"\")","v":"N"},{"$f":"+IF(OR(LEFT($Q57,1)=\"I\",LEFT($Q57,1)=\"R\"),VLOOKUP($Q57,'Paramétrage des points'!$U:$V,2,FALSE),0)","v":0},{"$f":"IF(ISBLANK(M57),0,IFERROR(VLOOKUP(M57,'Résultat final'!D:L,9,FALSE),0))","v":0}]
["THOBOIS","Philippe","H","1963-01-06",49,{"$f":"DATEDIF(D58,saison,\"yd\")","v":238},315544,"US GRIGNY",{"$f":"IF(A58=\"\",\"\",VLOOKUP(H58,Clubs!A:B,2,FALSE))","v":"ILE DE FRANCE"},"83.48","VET1",null,67,{"$f":"IFERROR(VLOOKUP((P58&L58),'Résultat final'!A:B,2,FALSE),\"\")","v":""},0,"THOBOIS  Philippe",{"$f":"IFERROR(HLOOKUP(L58,Juges!$1:$22,22,FALSE),\"\")","v":""},{"$f":"+IF(OR(LEFT($Q58,1)=\"I\",LEFT($Q58,1)=\"R\"),VLOOKUP($Q58,'Paramétrage des points'!$U:$V,2,FALSE),0)","v":0},{"$f":"IF(ISBLANK(M58),0,IFERROR(VLOOKUP(M58,'Résultat final'!D:L,9,FALSE),0))","v":0}]
["HORCHOLLE","CEDRIC","H","1980-04-04",32,{"$f":"DATEDIF(D59,saison,\"yd\")","v":150},229473,"HC BEAUVAIS",{"$f":"IF(A59=\"\",\"\",VLOOKUP(H59,Clubs!A:B,2,FALSE))","v":"PICARDIE"},"83.50","SENIOR",null,9,{"$f":"IFERROR(VLOOKUP((P59&L59),'Résultat final'!A:B,2,FALSE),\"\")","v":""},0,"HORCHOLLE  CEDRIC",{"$f":"IFERROR(HLOOKUP(L59,Juges!$1:$22,22,FALSE),\"\")","v":""},{"$f":"+IF(OR(LEFT($Q59,1)=\"I\",LEFT($Q59,1)=\"R\"),VLOOKUP($Q59,'Paramétrage des points'!$U:$V,2,FALSE),0)","v":0},{"$f":"IF(ISBLANK(M59),0,IFERROR(VLOOKUP(M59,'Résultat final'!D:L,9,FALSE),0))","v":0}]
["CAMBIER","Richard","H","1980-01-22",32,{"$f":"DATEDIF(D60,saison,\"yd\")","v":223},204598,"APOLLO CLUB TREMBLAY",{"$f":"IF(A60=\"\",\"\",VLOOKUP(H60,Clubs!A:B,2,FALSE))","v":"ILE DE FRANCE"},"83.65","SENIOR",null,13,{"$f":"IFERROR(VLOOKUP((P60&L60),'Résultat final'!A:B,2,FALSE),\"\")","v":""},0,"CAMBIER  Richard",{"$f":"IFERROR(HLOOKUP(L60,Juges!$1:$22,22,FALSE),\"\")","v":""},{"$f":"+IF(OR(LEFT($Q60,1)=\"I\",LEFT($Q60,1)=\"R\"),VLOOKUP($Q60,'Paramétrage des points'!$U:$V,2,FALSE),0)","v":0},{"$f":"IF(ISBLANK(M60),0,IFERROR(VLOOKUP(M60,'Résultat final'!D:L,9,FALSE),0))","v":0}]
["FEUTRY","CHRISTOPHE","H","1977-06-18",35,{"$f":"DATEDIF(D61,saison,\"yd\")","v":75},315660,"MC FORM AUDRUICQ",{"$f":"IF(A61=\"\",\"\",VLOOKUP(H61,Clubs!A:B,2,FALSE))","v":"NORD PAS DE CALAIS"},"84.15","SENIOR",null,5,{"$f":"IFERROR(VLOOKUP((P61&L61),'Résultat final'!A:B,2,FALSE),\"\")","v":""},0,"FEUTRY  CHRISTOPHE",{"$f":"IFERROR(HLOOKUP(L61,Juges!$1:$22,22,FALSE),\"\")","v":""},{"$f":"+IF(OR(LEFT($Q61,1)=\"I\",LEFT($Q61,1)=\"R\"),VLOOKUP($Q61,'Paramétrage des points'!$U:$V,2,FALSE),0)","v":0},{"$f":"IF(ISBLANK(M61),0,IFERROR(VLOOKUP(M61,'Résultat final'!D:L,9,FALSE),0))","v":0}]
["THUILLIER","GERARD","H","1972-09-26",39,{"$f":"IF(ISBLANK(A62),\"\",IF(ISERROR(DATEDIF(D62,saison,\"y\")),\"\",(DATEDIF(D62,saison,\"y\"))))","v":39},237200,"FIT BODY HOUDINOIS",{"$f":"IF(A62=\"\",\"\",VLOOKUP(H62,Clubs!A:B,2,FALSE))","v":"NORD PAS DE CALAIS"},"84.3O","SENIOR",null,38,{"$f":"IFERROR(VLOOKUP((P62&L62),'Résultat final'!A:B,2,FALSE),\"\")","v":""},0,"THUILLIER  GERARD",{"$f":"IFERROR(HLOOKUP(L62,Juges!$1:$22,22,FALSE),\"\")","v":""},{"$f":"+IF(OR(LEFT($Q62,1)=\"I\",LEFT($Q62,1)=\"R\"),VLOOKUP($Q62,'Paramétrage des points'!$U:$V,2,FALSE),0)","v":0},{"$f":"IF(ISBLANK(M62),0,IFERROR(VLOOKUP(M62,'Résultat final'!D:L,9,FALSE),0))","v":0}]
["RANSON ","STEVE","H","1976-02-22",36,{"$f":"DATEDIF(D63,saison,\"yd\")","v":192},318560,"MUSCULATION HAUBOURDINOISE",{"$f":"IF(A63=\"\",\"\",VLOOKUP(H63,Clubs!A:B,2,FALSE))","v":"NORD PAS DE CALAIS"},"84.75","SENIOR",null,1,{"$f":"IFERROR(VLOOKUP((P63&L63),'Résultat final'!A:B,2,FALSE),\"\")","v":""},0,"RANSON   STEVE",{"$f":"IFERROR(HLOOKUP(L63,Juges!$1:$22,22,FALSE),\"\")","v":""},{"$f":"+IF(OR(LEFT($Q63,1)=\"I\",LEFT($Q63,1)=\"R\"),VLOOKUP($Q63,'Paramétrage des points'!$U:$V,2,FALSE),0)","v":0},{"$f":"IF(ISBLANK(M63),0,IFERROR(VLOOKUP(M63,'Résultat final'!D:L,9,FALSE),0))","v":0}]
["FORMENTEL","FREDERIC","H","1970-05-27",42,{"$f":"IF(ISBLANK(A64),\"\",IF(ISERROR(DATEDIF(D64,saison,\"y\")),\"\",(DATEDIF(D64,saison,\"y\"))))","v":42},117303,"MUSCULATION HAUBOURDINOISE",{"$f":"IF(A64=\"\",\"\",VLOOKUP(H64,Clubs!A:B,2,FALSE))","v":"NORD PAS DE CALAIS"},"84.95","VET1",null,60,{"$f":"IFERROR(VLOOKUP((P64&L64),'Résultat final'!A:B,2,FALSE),\"\")","v":""},0,"FORMENTEL  FREDERIC",{"$f":"IFERROR(HLOOKUP(L64,Juges!$1:$22,22,FALSE),\"\")","v":""},{"$f":"+IF(OR(LEFT($Q64,1)=\"I\",LEFT($Q64,1)=\"R\"),VLOOKUP($Q64,'Paramétrage des points'!$U:$V,2,FALSE),0)","v":0},{"$f":"IF(ISBLANK(M64),0,IFERROR(VLOOKUP(M64,'Résultat final'!D:L,9,FALSE),0))","v":0}]
["REULLIER","Bruno","H","1955-07-11",57,{"$f":"IF(ISBLANK(A65),\"\",IF(ISERROR(DATEDIF(D65,saison,\"y\")),\"\",(DATEDIF(D65,saison,\"y\"))))","v":57},181695,"CERCLE ATHLETIQUE PARIS 10",{"$f":"IF(A65=\"\",\"\",VLOOKUP(H65,Clubs!A:B,2,FALSE))","v":"ILE DE FRANCE"},"85.35","VET2",null,39,{"$f":"IFERROR(VLOOKUP((P65&L65),'Résultat final'!A:B,2,FALSE),\"\")","v":""},0,"REULLIER  Bruno",{"$f":"IFERROR(HLOOKUP(L65,Juges!$1:$22,22,FALSE),\"\")","v":""},{"$f":"+IF(OR(LEFT($Q65,1)=\"I\",LEFT($Q65,1)=\"R\"),VLOOKUP($Q65,'Paramétrage des points'!$U:$V,2,FALSE),0)","v":0},{"$f":"IF(ISBLANK(M65),0,IFERROR(VLOOKUP(M65,'Résultat final'!D:L,9,FALSE),0))","v":0}]
["VANHAUWAERT","OLIVIER","H","1966-06-01",{"$f":"IF(ISBLANK(A66),\"\",DATEDIF(D66,saison,\"y\"))","v":46},{"$f":"IF(ISBLANK(A66),\"\",IF(ISERROR(DATEDIF(D66,saison,\"y\")),\"\",(DATEDIF(D66,saison,\"y\"))))","v":46},266683,"PSA ACC CHARLEVILLE MEZIERES",{"$f":"IF(A66=\"\",\"\",VLOOKUP(H66,Clubs!A:B,2,FALSE))","v":"CHAMPAGNE ARDENNES"},"85.65",{"$f":"IF(E66=\"\",\"\",IF(E66<16,\"ERREUR\",IF(AND(E66<18,C66=\"F\"),\"CF\",IF(E66<21,\"JUNIOR\", IF(E66<23,IF(C66=\"F\",\"SENIOR\",\"ESPOIR\"),IF(E66<40,\"SENIOR\",IF(C66=\"F\",\"VETERAN\",IF(E66<50,\"VET1\",IF(E66<60,\"VET2\",\"VET3\")))))))))","v":"VET1"},null,45,{"$f":"IFERROR(VLOOKUP((P66&L66),'Résultat final'!A:B,2,FALSE),\"\")","v":""},0,"VANHAUWAERT  OLIVIER",{"$f":"IFERROR(HLOOKUP(L66,Juges!$1:$22,22,FALSE),\"\")","v":""},{"$f":"+IF(OR(LEFT($Q66,1)=\"I\",LEFT($Q66,1)=\"R\"),VLOOKUP($Q66,'Paramétrage des points'!$U:$V,2,FALSE),0)","v":0},{"$f":"IF(ISBLANK(M66),0,IFERROR(VLOOKUP(M66,'Résultat final'!D:L,9,FALSE),0))","v":0}]
["DESPIN","BERNARD","H","1975-05-06",37,{"$f":"IF(ISBLANK(A67),\"\",IF(ISERROR(DATEDIF(D67,saison,\"y\")),\"\",(DATEDIF(D67,saison,\"y\"))))","v":37},239541,"PSA ACC CHARLEVILLE MEZIERES",{"$f":"IF(A67=\"\",\"\",VLOOKUP(H67,Clubs!A:B,2,FALSE))","v":"CHAMPAGNE ARDENNES"},"90.20","SENIOR",null,48,{"$f":"IFERROR(VLOOKUP((P67&L67),'Résultat final'!A:B,2,FALSE),\"\")","v":""},0,"DESPIN  BERNARD",{"$f":"IFERROR(HLOOKUP(L67,Juges!$1:$22,22,FALSE),\"\")","v":""},{"$f":"+IF(OR(LEFT($Q67,1)=\"I\",LEFT($Q67,1)=\"R\"),VLOOKUP($Q67,'Paramétrage des points'!$U:$V,2,FALSE),0)","v":0},{"$f":"IF(ISBLANK(M67),0,IFERROR(VLOOKUP(M67,'Résultat final'!D:L,9,FALSE),0))","v":0}]
["CATEZ","VINCENT","H","1981-09-14",30,{"$f":"DATEDIF(D68,saison,\"yd\")","v":352},316595,"MUSCULATION HAUBOURDINOISE",{"$f":"IF(A68=\"\",\"\",VLOOKUP(H68,Clubs!A:B,2,FALSE))","v":"NORD PAS DE CALAIS"},"90.80","SENIOR",null,61,{"$f":"IFERROR(VLOOKUP((P68&L68),'Résultat final'!A:B,2,FALSE),\"\")","v":""},0,"CATEZ  VINCENT",{"$f":"IFERROR(HLOOKUP(L68,Juges!$1:$22,22,FALSE),\"\")","v":""},{"$f":"+IF(OR(LEFT($Q68,1)=\"I\",LEFT($Q68,1)=\"R\"),VLOOKUP($Q68,'Paramétrage des points'!$U:$V,2,FALSE),0)","v":0},{"$f":"IF(ISBLANK(M68),0,IFERROR(VLOOKUP(M68,'Résultat final'!D:L,9,FALSE),0))","v":0}]
["FERNAND","MATHIEU","H","1985-11-03",26,{"$f":"IF(ISBLANK(A69),\"\",IF(ISERROR(DATEDIF(D69,saison,\"y\")),\"\",(DATEDIF(D69,saison,\"y\"))))","v":26},293191,"FIT BODY HOUDINOIS",{"$f":"IF(A69=\"\",\"\",VLOOKUP(H69,Clubs!A:B,2,FALSE))","v":"NORD PAS DE CALAIS"},"93.05","SENIOR",null,21,{"$f":"IFERROR(VLOOKUP((P69&L69),'Résultat final'!A:B,2,FALSE),\"\")","v":""},0,"FERNAND  MATHIEU",{"$f":"IFERROR(HLOOKUP(L69,Juges!$1:$22,22,FALSE),\"\")","v":""},{"$f":"+IF(OR(LEFT($Q69,1)=\"I\",LEFT($Q69,1)=\"R\"),VLOOKUP($Q69,'Paramétrage des points'!$U:$V,2,FALSE),0)","v":0},{"$f":"IF(ISBLANK(M69),0,IFERROR(VLOOKUP(M69,'Résultat final'!D:L,9,FALSE),0))","v":0}]
["BERTHELOT","Sébastien","H","1982-11-19",29,{"$f":"DATEDIF(D70,saison,\"yd\")","v":286},300312,"ATHLETIQUE DE SAINT PRIX",{"$f":"IF(A70=\"\",\"\",VLOOKUP(H70,Clubs!A:B,2,FALSE))","v":"ILE DE FRANCE"},"93.60","SENIOR",null,25,{"$f":"IFERROR(VLOOKUP((P70&L70),'Résultat final'!A:B,2,FALSE),\"\")","v":""},0,"BERTHELOT  Sébastien",{"$f":"IFERROR(HLOOKUP(L70,Juges!$1:$22,22,FALSE),\"\")","v":""},{"$f":"+IF(OR(LEFT($Q70,1)=\"I\",LEFT($Q70,1)=\"R\"),VLOOKUP($Q70,'Paramétrage des points'!$U:$V,2,FALSE),0)","v":0},{"$f":"IF(ISBLANK(M70),0,IFERROR(VLOOKUP(M70,'Résultat final'!D:L,9,FALSE),0))","v":0}]
["DELACRESSONIERE","JOHANN","H","1974-05-10",38,{"$f":"IF(ISBLANK(A71),\"\",IF(ISERROR(DATEDIF(D71,saison,\"y\")),\"\",(DATEDIF(D71,saison,\"y\"))))","v":38},291472,"MUSCULATION HAUBOURDINOISE",{"$f":"IF(A71=\"\",\"\",VLOOKUP(H71,Clubs!A:B,2,FALSE))","v":"NORD PAS DE CALAIS"},"95.50","SENIOR",null,1]
[null,null,null," ","",{"$f":"IF(ISBLANK(A72),\"\",IF(ISERROR(DATEDIF(D72,saison,\"y\")),\"\",(DATEDIF(D72,saison,\"y\"))))","v":""},null,null,{"$f":"IF(A72=\"\",\"\",VLOOKUP(H72,Clubs!A:B,2,FALSE))","v":""},null,{"$f":"IF(E72=\"\",\"\",IF(E72<16,\"ERREUR\",IF(AND(E72<18,C72=\"F\"),\"CF\",IF(E72<21,\"JUNIOR\", IF(E72<23,IF(C72=\"F\",\"SENIOR\",\"ESPOIR\"),IF(E72<40,\"SENIOR\",IF(C72=\"F\",\"VETERAN\",IF(E72<50,\"VET1\",IF(E72<60,\"VET2\",\"VET3\")))))))))","v":""},null,null,null,null,{"$f":"A72&\"  \"&B72","v":"  "},{"$f":"IFERROR(HLOOKUP(L72,Juges!$1:$22,22,FALSE),\"\")","v":""},{"$f":"+IF(OR(LEFT($Q72,1)=\"I\",LEFT($Q72,1)=\"R\"),VLOOKUP($Q72,'Paramétrage des points'!$U:$V,2,FALSE),0)","v":0},{"$f":"IF(ISBLANK(M72),0,IFERROR(VLOOKUP(M72,'Résultat final'!D:L,9,FALSE),0))","v":0}]
[null,null,null," ","","",null,null,{"$f":"IF(A73=\"\",\"\",VLOOKUP(H73,Clubs!A:B,2,FALSE))","v":""},null,"",null,null,null,null,"  ",{"$f":"IFERROR(HLOOKUP(L73,Juges!$1:$22,22,FALSE),\"\")","v":""},{"$f":"+IF(OR(LEFT($Q73,1)=\"I\",LEFT($Q73,1)=\"R\"),VLOOKUP($Q73,'Paramétrage des points'!$U:$V,2,FALSE),0)","v":0},{"$f":"IF(ISBLANK(M73),0,IFERROR(VLOOKUP(M73,'Résultat final'!D:L,9,FALSE),0))","v":0}]
[null,null,null," ","","",null,null,{"$f":"IF(A74=\"\",\"\",VLOOKUP(H74,Clubs!A:B,2,FALSE))","v":""},null,"",null,null,null,null,"  ",{"$f":"IFERROR(HLOOKUP(L74,Juges!$1:$22,22,FALSE),\"\")","v":""},{"$f":"+IF(OR(LEFT($Q74,1)=\"I\",LEFT($Q74,1)=\"R\"),VLOOKUP($Q74,'Paramétrage des points'!$U:$V,2,FALSE),0)","v":0},{"$f":"IF(ISBLANK(M74),0,IFERROR(VLOOKUP(M74,'Résultat final'!D:L,9,FALSE),0))","v":0}]
[null,null,null," ","","",null,null,{"$f":"IF(A75=\"\",\"\",VLOOKUP(H75,Clubs!A:B,2,FALSE))","v":""},null,"",null,null,null,null,"  ",{"$f":"IFERROR(HLOOKUP(L75,Juges!$1:$22,22,FALSE),\"\")","v":""},{"$f":"+IF(OR(LEFT($Q75,1)=\"I\",LEFT($Q75,1)=\"R\"),VLOOKUP($Q75,'Paramétrage des points'!$U:$V,2,FALSE),0)","v":0},{"$f":"IF(ISBLANK(M75),0,IFERROR(VLOOKUP(M75,'Résultat final'!D:L,9,FALSE),0))","v":0}]
[null,null,null," ","","",null,null,{"$f":"IF(A76=\"\",\"\",VLOOKUP(H76,Clubs!A:B,2,FALSE))","v":""},null,"",null,null,null,null,"  ",{"$f":"IFERROR(HLOOKUP(L76,Juges!$1:$22,22,FALSE),\"\")","v":""},{"$f":"+IF(OR(LEFT($Q76,1)=\"I\",LEFT($Q76,1)=\"R\"),VLOOKUP($Q76,'Paramétrage des points'!$U:$V,2,FALSE),0)","v":0},{"$f":"IF(ISBLANK(M76),0,IFERROR(VLOOKUP(M76,'Résultat final'!D:L,9,FALSE),0))","v":0}]
[null,null,null," ","","",null,null,{"$f":"IF(A77=\"\",\"\",VLOOKUP(H77,Clubs!A:B,2,FALSE))","v":""},null,"",null,null,null,null,"  ",{"$f":"IFERROR(HLOOKUP(L77,Juges!$1:$22,22,FALSE),\"\")","v":""},{"$f":"+IF(OR(LEFT($Q77,1)=\"I\",LEFT($Q77,1)=\"R\"),VLOOKUP($Q77,'Paramétrage des points'!$U:$V,2,FALSE),0)","v":0},{"$f":"IF(ISBLANK(M77),0,IFERROR(VLOOKUP(M77,'Résultat final'!D:L,9,FALSE),0))","v":0}]
[null,null,null," ","","",null,null,{"$f":"IF(A78=\"\",\"\",VLOOKUP(H78,Clubs!A:B,2,FALSE))","v":""},null,"",null,null,null,null,"  ",{"$f":"IFERROR(HLOOKUP(L78,Juges!$1:$22,22,FALSE),\"\")","v":""},{"$f":"+IF(OR(LEFT($Q78,1)=\"I\",LEFT($Q78,1)=\"R\"),VLOOKUP($Q78,'Paramétrage des points'!$U:$V,2,FALSE),0)","v":0},{"$f":"IF(ISBLANK(M78),0,IFERROR(VLOOKUP(M78,'Résultat final'!D:L,9,FALSE),0))","v":0}]
[null,null,null," ","","",null,null,{"$f":"IF(A79=\"\",\"\",VLOOKUP(H79,Clubs!A:B,2,FALSE))","v":""},null,"",null,null,null,null,"  ",{"$f":"IFERROR(HLOOKUP(L79,Juges!$1:$22,22,FALSE),\"\")","v":""},{"$f":"+IF(OR(LEFT($Q79,1)=\"I\",LEFT($Q79,1)=\"R\"),VLOOKUP($Q79,'Paramétrage des points'!$U:$V,2,FALSE),0)","v":0},{"$f":"IF(ISBLANK(M79),0,IFERROR(VLOOKUP(M79,'Résultat final'!D:L,9,FALSE),0))","v":0}]
[null,null,null," ","","",null,null,{"$f":"IF(A80=\"\",\"\",VLOOKUP(H80,Clubs!A:B,2,FALSE))","v":""},null,"",null,null,null,null,"  ",{"$f":"IFERROR(HLOOKUP(L80,Juges!$1:$22,22,FALSE),\"\")","v":""},{"$f":"+IF(OR(LEFT($Q80,1)=\"I\",LEFT($Q80,1)=\"R\"),VLOOKUP($Q80,'Paramétrage des points'!$U:$V,2,FALSE),0)","v":0},{"$f":"IF(ISBLANK(M80),0,IFERROR(VLOOKUP(M80,'Résultat final'!D:L,9,FALSE),0))","v":0}]
[null,null,null," ",null,"",null,null,{"$f":"IF(A81=\"\",\"\",VLOOKUP(H81,Clubs!A:B,2,FALSE))","v":""},null,"",null,null,null,null,"  ",{"$f":"IFERROR(HLOOKUP(L81,Juges!$1:$22,22,FALSE),\"\")","v":""},{"$f":"+IF(OR(LEFT($Q81,1)=\"I\",LEFT($Q81,1)=\"R\"),VLOOKUP($Q81,'Paramétrage des points'!$U:$V,2,FALSE),0)","v":0},{"$f":"IF(ISBLANK(M81),0,IFERROR(VLOOKUP(M81,'Résultat final'!D:L,9,FALSE),0))","v":0}]
[null,null,null," ",null,"",null,null,{"$f":"IF(A82=\"\",\"\",VLOOKUP(H82,Clubs!A:B,2,FALSE))","v":""},null,"",null,null,null,null,"  ",{"$f":"IFERROR(HLOOKUP(L82,Juges!$1:$22,22,FALSE),\"\")","v":""},{"$f":"+IF(OR(LEFT($Q82,1)=\"I\",LEFT($Q82,1)=\"R\"),VLOOKUP($Q82,'Paramétrage des points'!$U:$V,2,FALSE),0)","v":0},{"$f":"IF(ISBLANK(M82),0,IFERROR(VLOOKUP(M82,'Résultat final'!D:L,9,FALSE),0))","v":0}]
[null,null,null," ",null,"",null,null,{"$f":"IF(A83=\"\",\"\",VLOOKUP(H83,Clubs!A:B,2,FALSE))","v":""},null,"",null,null,null,null,"  ",{"$f":"IFERROR(HLOOKUP(L83,Juges!$1:$22,22,FALSE),\"\")","v":""},{"$f":"+IF(OR(LEFT($Q83,1)=\"I\",LEFT($Q83,1)=\"R\"),VLOOKUP($Q83,'Paramétrage des points'!$U:$V,2,FALSE),0)","v":0},{"$f":"IF(ISBLANK(M83),0,IFERROR(VLOOKUP(M83,'Résultat final'!D:L,9,FALSE),0))","v":0}]
[null,null,null," ",null,"",null,null,{"$f":"IF(A84=\"\",\"\",VLOOKUP(H84,Clubs!A:B,2,FALSE))","v":""},null,"",null,null,null,null,"  ",{"$f":"IFERROR(HLOOKUP(L84,Juges!$1:$22,22,FALSE),\"\")","v":""},{"$f":"+IF(OR(LEFT($Q84,1)=\"I\",LEFT($Q84,1)=\"R\"),VLOOKUP($Q84,'Paramétrage des points'!$U:$V,2,FALSE),0)","v":0},{"$f":"IF(ISBLANK(M84),0,IFERROR(VLOOKUP(M84,'Résultat final'!D:L,9,FALSE),0))","v":0}]
[null,null,null," ",null,"",null,null,{"$f":"IF(A85=\"\",\"\",VLOOKUP(H85,Clubs!A:B,2,FALSE))","v":""},null,"",null,null,null,null,"  ",{"$f":"IFERROR(HLOOKUP(L85,Juges!$1:$22,22,FALSE),\"\")","v":""},{"$f":"+IF(OR(LEFT($Q85,1)=\"I\",LEFT($Q85,1)=\"R\"),VLOOKUP($Q85,'Paramétrage des points'!$U:$V,2,FALSE),0)","v":0},{"$f":"IF(ISBLANK(M85),0,IFERROR(VLOOKUP(M85,'Résultat final'!D:L,9,FALSE),0))","v":0}]
[null,null,null," ",null,"",null,null,{"$f":"IF(A86=\"\",\"\",VLOOKUP(H86,Clubs!A:B,2,FALSE))","v":""},null,"",null,null,null,null,"  ",{"$f":"IFERROR(HLOOKUP(L86,Juges!$1:$22,22,FALSE),\"\")","v":""},{"$f":"+IF(OR(LEFT($Q86,1)=\"I\",LEFT($Q86,1)=\"R\"),VLOOKUP($Q86,'Paramétrage des points'!$U:$V,2,FALSE),0)","v":0},{"$f":"IF(ISBLANK(M86),0,IFERROR(VLOOKUP(M86,'Résultat final'!D:L,9,FALSE),0))","v":0}]
[null,null,null," ",null,"",null,null,{"$f":"IF(A87=\"\",\"\",VLOOKUP(H87,Clubs!A:B,2,FALSE))","v":""},null,"",null,null,null,null,"  ",{"$f":"IFERROR(HLOOKUP(L87,Juges!$1:$22,22,FALSE),\"\")","v":""},{"$f":"+IF(OR(LEFT($Q87,1)=\"I\",LEFT($Q87,1)=\"R\"),VLOOKUP($Q87,'Paramétrage des points'!$U:$V,2,FALSE),0)","v":0},{"$f":"IF(ISBLANK(M87),0,IFERROR(VLOOKUP(M87,'Résultat final'!D:L,9,FALSE),0))","v":0}]
[null,null,null," ",null,"",null,null,{"$f":"IF(A88=\"\",\"\",VLOOKUP(H88,Clubs!A:B,2,FALSE))","v":""},null,"",null,null,null,null,"  ",{"$f":"IFERROR(HLOOKUP(L88,Juges!$1:$22,22,FALSE),\"\")","v":""},{"$f":"+IF(OR(LEFT($Q88,1)=\"I\",LEFT($Q88,1)=\"R\"),VLOOKUP($Q88,'Paramétrage des points'!$U:$V,2,FALSE),0)","v":0},{"$f":"IF(ISBLANK(M88),0,IFERROR(VLOOKUP(M88,'Résultat final'!D:L,9,FALSE),0))","v":0}]
[null,null,null," ",null,"",null,null,{"$f":"IF(A89=\"\",\"\",VLOOKUP(H89,Clubs!A:B,2,FALSE))","v":""},null,"",null,null,null,null,"  ",{"$f":"IFERROR(HLOOKUP(L89,Juges!$1:$22,22,FALSE),\"\")","v":""},{"$f":"+IF(OR(LEFT($Q89,1)=\"I\",LEFT($Q89,1)=\"R\"),VLOOKUP($Q89,'Paramétrage des points'!$U:$V,2,FALSE),0)","v":0},{"$f":"IF(ISBLANK(M89),0,IFERROR(VLOOKUP(M89,'Résultat final'!D:L,9,FALSE),0))","v":0}]
[null,null,null,null,null,"",null,null,{"$f":"IF(A90=\"\",\"\",VLOOKUP(H90,Clubs!A:B,2,FALSE))","v":""},null,"",null,null,null,null,"  ",{"$f":"IFERROR(HLOOKUP(L90,Juges!$1:$22,22,FALSE),\"\")","v":""},{"$f":"+IF(OR(LEFT($Q90,1)=\"I\",LEFT($Q90,1)=\"R\"),VLOOKUP($Q90,'Paramétrage des points'!$U:$V,2,FALSE),0)","v":0},{"$f":"IF(ISBLANK(M90),0,IFERROR(VLOOKUP(M90,'Résultat final'!D:L,9,FALSE),0))","v":0}]
[null,null,null,null,null,"",null,null,{"$f":"IF(A91=\"\",\"\",VLOOKUP(H91,Clubs!A:B,2,FALSE))","v":""},null,"",null,null,null,null,"  ",{"$f":"IFERROR(HLOOKUP(L91,Juges!$1:$22,22,FALSE),\"\")","v":""},{"$f":"+IF(OR(LEFT($Q91,1)=\"I\",LEFT($Q91,1)=\"R\"),VLOOKUP($Q91,'Paramétrage des points'!$U:$V,2,FALSE),0)","v":0},{"$f":"IF(ISBLANK(M91),0,IFERROR(VLOOKUP(M91,'Résultat final'!D:L,9,FALSE),0))","v":0}]
[null,null,null,null,null,"",null,null,{"$f":"IF(A92=\"\",\"\",VLOOKUP(H92,Clubs!A:B,2,FALSE))","v":""},null,"",null,null,null,null,"  ",{"$f":"IFERROR(HLOOKUP(L92,Juges!$1:$22,22,FALSE),\"\")","v":""},{"$f":"+IF(OR(LEFT($Q92,1)=\"I\",LEFT($Q92,1)=\"R\"),VLOOKUP($Q92,'Paramétrage des points'!$U:$V,2,FALSE),0)","v":0},{"$f":"IF(ISBLANK(M92),0,IFERROR(VLOOKUP(M92,'Résultat final'!D:L,9,FALSE),0))","v":0}]
[null,null,null,null,null,"",null,null,{"$f":"IF(A93=\"\",\"\",VLOOKUP(H93,Clubs!A:B,2,FALSE))","v":""},null,"",null,null,null,null,"  ",{"$f":"IFERROR(HLOOKUP(L93,Juges!$1:$22,22,FALSE),\"\")","v":""},{"$f":"+IF(OR(LEFT($Q93,1)=\"I\",LEFT($Q93,1)=\"R\"),VLOOKUP($Q93,'Paramétrage des points'!$U:$V,2,FALSE),0)","v":0},{"$f":"IF(ISBLANK(M93),0,IFERROR(VLOOKUP(M93,'Résultat final'!D:L,9,FALSE),0))","v":0}]
[null,null,null,null,null,"",null,null,{"$f":"IF(A94=\"\",\"\",VLOOKUP(H94,Clubs!A:B,2,FALSE))","v":""},null,"",null,null,null,null,"  ",{"$f":"IFERROR(HLOOKUP(L94,Juges!$1:$22,22,FALSE),\"\")","v":""},{"$f":"+IF(OR(LEFT($Q94,1)=\"I\",LEFT($Q94,1)=\"R\"),VLOOKUP($Q94,'Paramétrage des points'!$U:$V,2,FALSE),0)","v":0},{"$f":"IF(ISBLANK(M94),0,IFERROR(VLOOKUP(M94,'Résultat final'!D:L,9,FALSE),0))","v":0}]
[null,null,null,null,null,"",null,null,{"$f":"IF(A95=\"\",\"\",VLOOKUP(H95,Clubs!A:B,2,FALSE))","v":""},null,"",null,null,null,null,"  ",{"$f":"IFERROR(HLOOKUP(L95,Juges!$1:$22,22,FALSE),\"\")","v":""},{"$f":"+IF(OR(LEFT($Q95,1)=\"I\",LEFT($Q95,1)=\"R\"),VLOOKUP($Q95,'Paramétrage des points'!$U:$V,2,FALSE),0)","v":0},{"$f":"IF(ISBLANK(M95),0,IFERROR(VLOOKUP(M95,'Résultat final'!D:L,9,FALSE),0))","v":0}]
[null,null,null,null,null,"",null,null,{"$f":"IF(A96=\"\",\"\",VLOOKUP(H96,Clubs!A:B,2,FALSE))","v":""},null,"",null,null,null,null,"  ",{"$f":"IFERROR(HLOOKUP(L96,Juges!$1:$22,22,FALSE),\"\")","v":""},{"$f":"+IF(OR(LEFT($Q96,1)=\"I\",LEFT($Q96,1)=\"R\"),VLOOKUP($Q96,'Paramétrage des points'!$U:$V,2,FALSE),0)","v":0},{"$f":"IF(ISBLANK(M96),0,IFERROR(VLOOKUP(M96,'Résultat final'!D:L,9,FALSE),0))","v":0}]
[null,null,null,null,null,"",null,null,{"$f":"IF(A97=\"\",\"\",VLOOKUP(H97,Clubs!A:B,2,FALSE))","v":""},null,"",null,null,null,null,"  ",{"$f":"IFERROR(HLOOKUP(L97,Juges!$1:$22,22,FALSE),\"\")","v":""},{"$f":"+IF(OR(LEFT($Q97,1)=\"I\",LEFT($Q97,1)=\"R\"),VLOOKUP($Q97,'Paramétrage des points'!$U:$V,2,FALSE),0)","v":0},{"$f":"IF(ISBLANK(M97),0,IFERROR(VLOOKUP(M97,'Résultat final'!D:L,9,FALSE),0))","v":0}]
[null,null,null,null,null,{"$f":"IF(ISBLANK(A98),\"\",IF(ISERROR(DATEDIF(D98,saison,\"y\")),\"\",(DATEDIF(D98,saison,\"y\"))))","v":""},null,null,{"$f":"IF(A98=\"\",\"\",VLOOKUP(H98,Clubs!A:B,2,FALSE))","v":""},null,"",null,null,null,null,"  ",{"$f":"IFERROR(HLOOKUP(L98,Juges!$1:$22,22,FALSE),\"\")","v":""},{"$f":"+IF(OR(LEFT($Q98,1)=\"I\",LEFT($Q98,1)=\"R\"),VLOOKUP($Q98,'Paramétrage des points'!$U:$V,2,FALSE),0)","v":0},{"$f":"IF(ISBLANK(M98),0,IFERROR(VLOOKUP(M98,'Résultat final'!D:L,9,FALSE),0))","v":0}]
[null,null,null,null,null,"",null,null,{"$f":"IF(A99=\"\",\"\",VLOOKUP(H99,Clubs!A:B,2,FALSE))","v":""},null,"",null,null,null,null,"  ",{"$f":"IFERROR(HLOOKUP(L99,Juges!$1:$22,22,FALSE),\"\")","v":""},{"$f":"+IF(OR(LEFT($Q99,1)=\"I\",LEFT($Q99,1)=\"R\"),VLOOKUP($Q99,'Paramétrage des points'!$U:$V,2,FALSE),0)","v":0},{"$f":"IF(ISBLANK(M99),0,IFERROR(VLOOKUP(M99,'Résultat final'!D:L,9,FALSE),0))","v":0}]
[null,null,null,null,null,"",null,null,{"$f":"IF(A100=\"\",\"\",VLOOKUP(H100,Clubs!A:B,2,FALSE))","v":""},null,"",null,null,null,null,"  ",{"$f":"IFERROR(HLOOKUP(L100,Juges!$1:$22,22,FALSE),\"\")","v":""},{"$f":"+IF(OR(LEFT($Q100,1)=\"I\",LEFT($Q100,1)=\"R\"),VLOOKUP($Q100,'Paramétrage des points'!$U:$V,2,FALSE),0)","v":0},{"$f":"IF(ISBLANK(M100),0,IFERROR(VLOOKUP(M100,'Résultat final'!D:L,9,FALSE),0))","v":0}]
[null,null,null,null,null,"",null,null,{"$f":"IF(A101=\"\",\"\",VLOOKUP(H101,Clubs!A:B,2,FALSE))","v":""},null,"",null,null,null,null,"  ",{"$f":"IFERROR(HLOOKUP(L101,Juges!$1:$22,22,FALSE),\"\")","v":""},{"$f":"+IF(OR(LEFT($Q101,1)=\"I\",LEFT($Q101,1)=\"R\"),VLOOKUP($Q101,'Paramétrage des points'!$U:$V,2,FALSE),0)","v":0},{"$f":"IF(ISBLANK(M101),0,IFERROR(VLOOKUP(M101,'Résultat final'!D:L,9,FALSE),0))","v":0}]
[null,null,null,null,null,"",null,null,{"$f":"IF(A102=\"\",\"\",VLOOKUP(H102,Clubs!A:B,2,FALSE))","v":""},null,"",null,null,null,null,"  ",{"$f":"IFERROR(HLOOKUP(L102,Juges!$1:$22,22,FALSE),\"\")","v":""},{"$f":"+IF(OR(LEFT($Q102,1)=\"I\",LEFT($Q102,1)=\"R\"),VLOOKUP($Q102,'Paramétrage des points'!$U:$V,2,FALSE),0)","v":0},{"$f":"IF(ISBLANK(M102),0,IFERROR(VLOOKUP(M102,'Résultat final'!D:L,9,FALSE),0))","v":0}]
[null,null,null,null,null,"",null,null,{"$f":"IF(A103=\"\",\"\",VLOOKUP(H103,Clubs!A:B,2,FALSE))","v":""},null,"",null,null,null,null,"  ",{"$f":"IFERROR(HLOOKUP(L103,Juges!$1:$22,22,FALSE),\"\")","v":""},{"$f":"+IF(OR(LEFT($Q103,1)=\"I\",LEFT($Q103,1)=\"R\"),VLOOKUP($Q103,'Paramétrage des points'!$U:$V,2,FALSE),0)","v":0},{"$f":"IF(ISBLANK(M103),0,IFERROR(VLOOKUP(M103,'Résultat final'!D:L,9,FALSE),0))","v":0}]
[null,null,null,null,null,"",null,null,{"$f":"IF(A104=\"\",\"\",VLOOKUP(H104,Clubs!A:B,2,FALSE))","v":""},null,"",null,null,null,null,{"$f":"A104&\"  \"&B104","v":"  "},{"$f":"IFERROR(HLOOKUP(L104,Juges!$1:$22,22,FALSE),\"\")","v":""},{"$f":"+IF(OR(LEFT($Q104,1)=\"I\",LEFT($Q104,1)=\"R\"),VLOOKUP($Q104,'Paramétrage des points'!$U:$V,2,FALSE),0)","v":0},{"$f":"IF(ISBLANK(M104),0,IFERROR(VLOOKUP(M104,'Résultat final'!D:L,9,FALSE),0))","v":0}]
[null,null,null,null,null,"",null,null,{"$f":"IF(A105=\"\",\"\",VLOOKUP(H105,Clubs!A:B,2,FALSE))","v":""},null,"",null,null,null,null,"  ",{"$f":"IFERROR(HLOOKUP(L105,Juges!$1:$22,22,FALSE),\"\")","v":""},{"$f":"+IF(OR(LEFT($Q105,1)=\"I\",LEFT($Q105,1)=\"R\"),VLOOKUP($Q105,'Paramétrage des points'!$U:$V,2,FALSE),0)","v":0},{"$f":"IF(ISBLANK(M105),0,IFERROR(VLOOKUP(M105,'Résultat final'!D:L,9,FALSE),0))","v":0}]
[null,null,null,null,null,"",null,null,{"$f":"IF(A106=\"\",\"\",VLOOKUP(H106,Clubs!A:B,2,FALSE))","v":""},null,"",null,null,null,null,"  ",{"$f":"IFERROR(HLOOKUP(L106,Juges!$1:$22,22,FALSE),\"\")","v":""},{"$f":"+IF(OR(LEFT($Q106,1)=\"I\",LEFT($Q106,1)=\"R\"),VLOOKUP($Q106,'Paramétrage des points'!$U:$V,2,FALSE),0)","v":0},{"$f":"IF(ISBLANK(M106),0,IFERROR(VLOOKUP(M106,'Résultat final'!D:L,9,FALSE),0))","v":0}]
[null,null,null,null,null,"",null,null,{"$f":"IF(A107=\"\",\"\",VLOOKUP(H107,Clubs!A:B,2,FALSE))","v":""},null,"",null,null,null,null,"  ",{"$f":"IFERROR(HLOOKUP(L107,Juges!$1:$22,22,FALSE),\"\")","v":""},{"$f":"+IF(OR(LEFT($Q107,1)=\"I\",LEFT($Q107,1)=\"R\"),VLOOKUP($Q107,'Paramétrage des points'!$U:$V,2,FALSE),0)","v":0},{"$f":"IF(ISBLANK(M107),0,IFERROR(VLOOKUP(M107,'Résultat final'!D:L,9,FALSE),0))","v":0}]
[null,null,null,null,null,"",null,null,{"$f":"IF(A108=\"\",\"\",VLOOKUP(H108,Clubs!A:B,2,FALSE))","v":""},null,"",null,null,null,null,"  ",{"$f":"IFERROR(HLOOKUP(L108,Juges!$1:$22,22,FALSE),\"\")","v":""},{"$f":"+IF(OR(LEFT($Q108,1)=\"I\",LEFT($Q108,1)=\"R\"),VLOOKUP($Q108,'Paramétrage des points'!$U:$V,2,FALSE),0)","v":0},{"$f":"IF(ISBLANK(M108),0,IFERROR(VLOOKUP(M108,'Résultat final'!D:L,9,FALSE),0))","v":0}]
[null,null,null,null,null,"",null,null,{"$f":"IF(A109=\"\",\"\",VLOOKUP(H109,Clubs!A:B,2,FALSE))","v":""},null,"",null,null,null,null,"  ",{"$f":"IFERROR(HLOOKUP(L109,Juges!$1:$22,22,FALSE),\"\")","v":""},{"$f":"+IF(OR(LEFT($Q109,1)=\"I\",LEFT($Q109,1)=\"R\"),VLOOKUP($Q109,'Paramétrage des points'!$U:$V,2,FALSE),0)","v":0},{"$f":"IF(ISBLANK(M109),0,IFERROR(VLOOKUP(M109,'Résultat final'!D:L,9,FALSE),0))","v":0}]
[null,null,null,null,null,"",null,null,{"$f":"IF(A110=\"\",\"\",VLOOKUP(H110,Clubs!A:B,2,FALSE))","v":""},null,"",null,null,null,null,"  ",{"$f":"IFERROR(HLOOKUP(L110,Juges!$1:$22,22,FALSE),\"\")","v":""},{"$f":"+IF(OR(LEFT($Q110,1)=\"I\",LEFT($Q110,1)=\"R\"),VLOOKUP($Q110,'Paramétrage des points'!$U:$V,2,FALSE),0)","v":0},{"$f":"IF(ISBLANK(M110),0,IFERROR(VLOOKUP(M110,'Résultat final'!D:L,9,FALSE),0))","v":0}]
[null,null,null,null,null,"",null,null,{"$f":"IF(A111=\"\",\"\",VLOOKUP(H111,Clubs!A:B,2,FALSE))","v":""},null,"",null,null,null,null,"  ",{"$f":"IFERROR(HLOOKUP(L111,Juges!$1:$22,22,FALSE),\"\")","v":""},{"$f":"+IF(OR(LEFT($Q111,1)=\"I\",LEFT($Q111,1)=\"R\"),VLOOKUP($Q111,'Paramétrage des points'!$U:$V,2,FALSE),0)","v":0},{"$f":"IF(ISBLANK(M111),0,IFERROR(VLOOKUP(M111,'Résultat final'!D:L,9,FALSE),0))","v":0}]
[null,null,null,null,null,"",null,null,{"$f":"IF(A112=\"\",\"\",VLOOKUP(H112,Clubs!A:B,2,FALSE))","v":""},null,"",null,null,null,null,"  ",{"$f":"IFERROR(HLOOKUP(L112,Juges!$1:$22,22,FALSE),\"\")","v":""},{"$f":"+IF(OR(LEFT($Q112,1)=\"I\",LEFT($Q112,1)=\"R\"),VLOOKUP($Q112,'Paramétrage des points'!$U:$V,2,FALSE),0)","v":0},{"$f":"IF(ISBLANK(M112),0,IFERROR(VLOOKUP(M112,'Résultat final'!D:L,9,FALSE),0))","v":0}]
[null,null,null,null,null,"",null,null,{"$f":"IF(A113=\"\",\"\",VLOOKUP(H113,Clubs!A:B,2,FALSE))","v":""},null,"",null,null,null,null,"  ",{"$f":"IFERROR(HLOOKUP(L113,Juges!$1:$22,22,FALSE),\"\")","v":""},{"$f":"+IF(OR(LEFT($Q113,1)=\"I\",LEFT($Q113,1)=\"R\"),VLOOKUP($Q113,'Paramétrage des points'!$U:$V,2,FALSE),0)","v":0},{"$f":"IF(ISBLANK(M113),0,IFERROR(VLOOKUP(M113,'Résultat final'!D:L,9,FALSE),0))","v":0}]
[null,null,null,null,null,"",null,null,{"$f":"IF(A114=\"\",\"\",VLOOKUP(H114,Clubs!A:B,2,FALSE))","v":""},null,"",null,null,null,null,"  ",{"$f":"IFERROR(HLOOKUP(L114,Juges!$1:$22,22,FALSE),\"\")","v":""},{"$f":"+IF(OR(LEFT($Q114,1)=\"I\",LEFT($Q114,1)=\"R\"),VLOOKUP($Q114,'Paramétrage des points'!$U:$V,2,FALSE),0)","v":0},{"$f":"IF(ISBLANK(M114),0,IFERROR(VLOOKUP(M114,'Résultat final'!D:L,9,FALSE),0))","v":0}]
[null,null,null,null,null,"",null,null,{"$f":"IF(A115=\"\",\"\",VLOOKUP(H115,Clubs!A:B,2,FALSE))","v":""},null,"",null,null,null,null,"  ",{"$f":"IFERROR(HLOOKUP(L115,Juges!$1:$22,22,FALSE),\"\")","v":""},{"$f":"+IF(OR(LEFT($Q115,1)=\"I\",LEFT($Q115,1)=\"R\"),VLOOKUP($Q115,'Paramétrage des points'!$U:$V,2,FALSE),0)","v":0},{"$f":"IF(ISBLANK(M115),0,IFERROR(VLOOKUP(M115,'Résultat final'!D:L,9,FALSE),0))","v":0}]
[null,null,null,null,null,"",null,null,{"$f":"IF(A116=\"\",\"\",VLOOKUP(H116,Clubs!A:B,2,FALSE))","v":""},null,"",null,null,null,null,"  ",{"$f":"IFERROR(HLOOKUP(L116,Juges!$1:$22,22,FALSE),\"\")","v":""},{"$f":"+IF(OR(LEFT($Q116,1)=\"I\",LEFT($Q116,1)=\"R\"),VLOOKUP($Q116,'Paramétrage des points'!$U:$V,2,FALSE),0)","v":0},{"$f":"IF(ISBLANK(M116),0,IFERROR(VLOOKUP(M116,'Résultat final'!D:L,9,FALSE),0))","v":0}]
[null,null,null,null,null,"",null,null,{"$f":"IF(A117=\"\",\"\",VLOOKUP(H117,Clubs!A:B,2,FALSE))","v":""},null,"",null,null,null,null,"  ",{"$f":"IFERROR(HLOOKUP(L117,Juges!$1:$22,22,FALSE),\"\")","v":""},{"$f":"+IF(OR(LEFT($Q117,1)=\"I\",LEFT($Q117,1)=\"R\"),VLOOKUP($Q117,'Paramétrage des points'!$U:$V,2,FALSE),0)","v":0},{"$f":"IF(ISBLANK(M117),0,IFERROR(VLOOKUP(M117,'Résultat final'!D:L,9,FALSE),0))","v":0}]
[null,null,null,null,null,"",null,null,{"$f":"IF(A118=\"\",\"\",VLOOKUP(H118,Clubs!A:B,2,FALSE))","v":""},null,"",null,null,null,null,"  ",{"$f":"IFERROR(HLOOKUP(L118,Juges!$1:$22,22,FALSE),\"\")","v":""},{"$f":"+IF(OR(LEFT($Q118,1)=\"I\",LEFT($Q118,1)=\"R\"),VLOOKUP($Q118,'Paramétrage des points'!$U:$V,2,FALSE),0)","v":0},{"$f":"IF(ISBLANK(M118),0,IFERROR(VLOOKUP(M118,'Résultat final'!D:L,9,FALSE),0))","v":0}]
[null,null,null,null,null,"",null,null,{"$f":"IF(A119=\"\",\"\",VLOOKUP(H119,Clubs!A:B,2,FALSE))","v":""},null,"",null,null,null,null,"  ",{"$f":"IFERROR(HLOOKUP(L119,Juges!$1:$22,22,FALSE),\"\")","v":""},{"$f":"+IF(OR(LEFT($Q119,1)=\"I\",LEFT($Q119,1)=\"R\"),VLOOKUP($Q119,'Paramétrage des points'!$U:$V,2,FALSE),0)","v":0},{"$f":"IF(ISBLANK(M119),0,IFERROR(VLOOKUP(M119,'Résultat final'!D:L,9,FALSE),0))","v":0}]
[null,null,null,null,null,"",null,null,{"$f":"IF(A120=\"\",\"\",VLOOKUP(H120,Clubs!A:B,2,FALSE))","v":""},null,"",null,null,null,null,"  ",{"$f":"IFERROR(HLOOKUP(L120,Juges!$1:$22,22,FALSE),\"\")","v":""},{"$f":"+IF(OR(LEFT($Q120,1)=\"I\",LEFT($Q120,1)=\"R\"),VLOOKUP($Q120,'Paramétrage des points'!$U:$V,2,FALSE),0)","v":0},{"$f":"IF(ISBLANK(M120),0,IFERROR(VLOOKUP(M120,'Résultat final'!D:L,9,FALSE),0))","v":0}]
[null,null,null,null,null,"",null,null,{"$f":"IF(A121=\"\",\"\",VLOOKUP(H121,Clubs!A:B,2,FALSE))","v":""},null,"",null,null,null,null,"  ",{"$f":"IFERROR(HLOOKUP(L121,Juges!$1:$22,22,FALSE),\"\")","v":""},{"$f":"+IF(OR(LEFT($Q121,1)=\"I\",LEFT($Q121,1)=\"R\"),VLOOKUP($Q121,'Paramétrage des points'!$U:$V,2,FALSE),0)","v":0},{"$f":"IF(ISBLANK(M121),0,IFERROR(VLOOKUP(M121,'Résultat final'!D:L,9,FALSE),0))","v":0}]
[null,null,null,null,null,"",null,null,{"$f":"IF(A122=\"\",\"\",VLOOKUP(H122,Clubs!A:B,2,FALSE))","v":""},null,"",null,null,null,null,"  ",{"$f":"IFERROR(HLOOKUP(L122,Juges!$1:$22,22,FALSE),\"\")","v":""},{"$f":"+IF(OR(LEFT($Q122,1)=\"I\",LEFT($Q122,1)=\"R\"),VLOOKUP($Q122,'Paramétrage des points'!$U:$V,2,FALSE),0)","v":0},{"$f":"IF(ISBLANK(M122),0,IFERROR(VLOOKUP(M122,'Résultat final'!D:L,9,FALSE),0))","v":0}]
[null,null,null,null,null,"",null,null,{"$f":"IF(A123=\"\",\"\",VLOOKUP(H123,Clubs!A:B,2,FALSE))","v":""},null,"",null,null,null,null,"  ",{"$f":"IFERROR(HLOOKUP(L123,Juges!$1:$22,22,FALSE),\"\")","v":""},{"$f":"+IF(OR(LEFT($Q123,1)=\"I\",LEFT($Q123,1)=\"R\"),VLOOKUP($Q123,'Paramétrage des points'!$U:$V,2,FALSE),0)","v":0},{"$f":"IF(ISBLANK(M123),0,IFERROR(VLOOKUP(M123,'Résultat final'!D:L,9,FALSE),0))","v":0}]
[null,null,null,null,null,"",null,null,{"$f":"IF(A124=\"\",\"\",VLOOKUP(H124,Clubs!A:B,2,FALSE))","v":""},null,"",null,null,null,null,"  ",{"$f":"IFERROR(HLOOKUP(L124,Juges!$1:$22,22,FALSE),\"\")","v":""},{"$f":"+IF(OR(LEFT($Q124,1)=\"I\",LEFT($Q124,1)=\"R\"),VLOOKUP($Q124,'Paramétrage des points'!$U:$V,2,FALSE),0)","v":0},{"$f":"IF(ISBLANK(M124),0,IFERROR(VLOOKUP(M124,'Résultat final'!D:L,9,FALSE),0))","v":0}]
[null,null,null,null,null,"",null,null,{"$f":"IF(A125=\"\",\"\",VLOOKUP(H125,Clubs!A:B,2,FALSE))","v":""},null,"",null,null,null,null,"  ",{"$f":"IFERROR(HLOOKUP(L125,Juges!$1:$22,22,FALSE),\"\")","v":""},{"$f":"+IF(OR(LEFT($Q125,1)=\"I\",LEFT($Q125,1)=\"R\"),VLOOKUP($Q125,'Paramétrage des points'!$U:$V,2,FALSE),0)","v":0},{"$f":"IF(ISBLANK(M125),0,IFERROR(VLOOKUP(M125,'Résultat final'!D:L,9,FALSE),0))","v":0}]
[null,null,null,null,null,"",null,null,{"$f":"IF(A126=\"\",\"\",VLOOKUP(H126,Clubs!A:B,2,FALSE))","v":""},null,"",null,null,null,null,"  ",{"$f":"IFERROR(HLOOKUP(L126,Juges!$1:$22,22,FALSE),\"\")","v":""},{"$f":"+IF(OR(LEFT($Q126,1)=\"I\",LEFT($Q126,1)=\"R\"),VLOOKUP($Q126,'Paramétrage des points'!$U:$V,2,FALSE),0)","v":0},{"$f":"IF(ISBLANK(M126),0,IFERROR(VLOOKUP(M126,'Résultat final'!D:L,9,FALSE),0))","v":0}]
[null,null,null,null,null,"",null,null,{"$f":"IF(A127=\"\",\"\",VLOOKUP(H127,Clubs!A:B,2,FALSE))","v":""},null,"",null,null,null,null,"  ",{"$f":"IFERROR(HLOOKUP(L127,Juges!$1:$22,22,FALSE),\"\")","v":""},{"$f":"+IF(OR(LEFT($Q127,1)=\"I\",LEFT($Q127,1)=\"R\"),VLOOKUP($Q127,'Paramétrage des points'!$U:$V,2,FALSE),0)","v":0},{"$f":"IF(ISBLANK(M127),0,IFERROR(VLOOKUP(M127,'Résultat final'!D:L,9,FALSE),0))","v":0}]
[null,null,null,null,null,"",null,null,{"$f":"IF(A128=\"\",\"\",VLOOKUP(H128,Clubs!A:B,2,FALSE))","v":""},null,"",null,null,null,null,"  ",{"$f":"IFERROR(HLOOKUP(L128,Juges!$1:$22,22,FALSE),\"\")","v":""},{"$f":"+IF(OR(LEFT($Q128,1)=\"I\",LEFT($Q128,1)=\"R\"),VLOOKUP($Q128,'Paramétrage des points'!$U:$V,2,FALSE),0)","v":0},{"$f":"IF(ISBLANK(M128),0,IFERROR(VLOOKUP(M128,'Résultat final'!D:L,9,FALSE),0))","v":0}]
[null,null,null,null,null,"",null,null,{"$f":"IF(A129=\"\",\"\",VLOOKUP(H129,Clubs!A:B,2,FALSE))","v":""},null,"",null,null,null,null,"  ",{"$f":"IFERROR(HLOOKUP(L129,Juges!$1:$22,22,FALSE),\"\")","v":""},{"$f":"+IF(OR(LEFT($Q129,1)=\"I\",LEFT($Q129,1)=\"R\"),VLOOKUP($Q129,'Paramétrage des points'!$U:$V,2,FALSE),0)","v":0},{"$f":"IF(ISBLANK(M129),0,IFERROR(VLOOKUP(M129,'Résultat final'!D:L,9,FALSE),0))","v":0}]
[null,null,null,null,null,{"$f":"IF(ISBLANK(A130),\"\",IF(ISERROR(DATEDIF(D130,saison,\"y\")),\"\",(DATEDIF(D130,saison,\"y\"))))","v":""},null,null,{"$f":"IF(A130=\"\",\"\",VLOOKUP(H130,Clubs!A:B,2,FALSE))","v":""},null,"",null,null,null,null,"  ",{"$f":"IFERROR(HLOOKUP(L130,Juges!$1:$22,22,FALSE),\"\")","v":""},{"$f":"+IF(OR(LEFT($Q130,1)=\"I\",LEFT($Q130,1)=\"R\"),VLOOKUP($Q130,'Paramétrage des points'!$U:$V,2,FALSE),0)","v":0},{"$f":"IF(ISBLANK(M130),0,IFERROR(VLOOKUP(M130,'Résultat final'!D:L,9,FALSE),0))","v":0}]
[null,null,null,null,null,"",null,null,{"$f":"IF(A131=\"\",\"\",VLOOKUP(H131,Clubs!A:B,2,FALSE))","v":""},null,{"$f":"IF(E131=\"\",\"\",IF(E131<16,\"ERREUR\",IF(AND(E131<18,C131=\"F\"),\"CF\",IF(E131<21,\"JUNIOR\", IF(E131<23,IF(C131=\"F\",\"SENIOR\",\"ESPOIR\"),IF(E131<40,\"SENIOR\",IF(C131=\"F\",\"VETERAN\",IF(E131<50,\"VET1\",IF(E131<60,\"VET2\",\"VET3\")))))))))","v":""},null,null,null,null,{"$f":"A131&\"  \"&B131","v":"  "},{"$f":"IFERROR(HLOOKUP(L131,Juges!$1:$22,22,FALSE),\"\")","v":""},{"$f":"+IF(OR(LEFT($Q131,1)=\"I\",LEFT($Q131,1)=\"R\"),VLOOKUP($Q131,'Paramétrage des points'!$U:$V,2,FALSE),0)","v":0},{"$f":"IF(ISBLANK(M131),0,IFERROR(VLOOKUP(M131,'Résultat final'!D:L,9,FALSE),0))","v":0}]
[null,null,null,null,null,"",null,null,{"$f":"IF(A132=\"\",\"\",VLOOKUP(H132,Clubs!A:B,2,FALSE))","v":""},null,"",null,null,null,null,"  ",{"$f":"IFERROR(HLOOKUP(L132,Juges!$1:$22,22,FALSE),\"\")","v":""},{"$f":"+IF(OR(LEFT($Q132,1)=\"I\",LEFT($Q132,1)=\"R\"),VLOOKUP($Q132,'Paramétrage des points'!$U:$V,2,FALSE),0)","v":0},{"$f":"IF(ISBLANK(M132),0,IFERROR(VLOOKUP(M132,'Résultat final'!D:L,9,FALSE),0))","v":0}]
[null,null,null,null,null,"",null,null,{"$f":"IF(A133=\"\",\"\",VLOOKUP(H133,Clubs!A:B,2,FALSE))","v":""},null,"",null,null,null,null,"  ",{"$f":"IFERROR(HLOOKUP(L133,Juges!$1:$22,22,FALSE),\"\")","v":""},{"$f":"+IF(OR(LEFT($Q133,1)=\"I\",LEFT($Q133,1)=\"R\"),VLOOKUP($Q133,'Paramétrage des points'!$U:$V,2,FALSE),0)","v":0},{"$f":"IF(ISBLANK(M133),0,IFERROR(VLOOKUP(M133,'Résultat final'!D:L,9,FALSE),0))","v":0}]
[null,null,null,null,null,"",null,null,{"$f":"IF(A134=\"\",\"\",VLOOKUP(H134,Clubs!A:B,2,FALSE))","v":""},null,"",null,null,null,null,"  ",{"$f":"IFERROR(HLOOKUP(L134,Juges!$1:$22,22,FALSE),\"\")","v":""},{"$f":"+IF(OR(LEFT($Q134,1)=\"I\",LEFT($Q134,1)=\"R\"),VLOOKUP($Q134,'Paramétrage des points'!$U:$V,2,FALSE),0)","v":0},{"$f":"IF(ISBLANK(M134),0,IFERROR(VLOOKUP(M134,'Résultat final'!D:L,9,FALSE),0))","v":0}]
[null,null,null,null,null,"",null,null,{"$f":"IF(A135=\"\",\"\",VLOOKUP(H135,Clubs!A:B,2,FALSE))","v":""},null,"",null,null,null,null,"  ",{"$f":"IFERROR(HLOOKUP(L135,Juges!$1:$22,22,FALSE),\"\")","v":""},{"$f":"+IF(OR(LEFT($Q135,1)=\"I\",LEFT($Q135,1)=\"R\"),VLOOKUP($Q135,'Paramétrage des points'!$U:$V,2,FALSE),0)","v":0},{"$f":"IF(ISBLANK(M135),0,IFERROR(VLOOKUP(M135,'Résultat final'!D:L,9,FALSE),0))","v":0}]
[null,null,null,null,null,"",null,null,{"$f":"IF(A136=\"\",\"\",VLOOKUP(H136,Clubs!A:B,2,FALSE))","v":""},null,"",null,null,null,null,"  ",{"$f":"IFERROR(HLOOKUP(L136,Juges!$1:$22,22,FALSE),\"\")","v":""},{"$f":"+IF(OR(LEFT($Q136,1)=\"I\",LEFT($Q136,1)=\"R\"),VLOOKUP($Q136,'Paramétrage des points'!$U:$V,2,FALSE),0)","v":0},{"$f":"IF(ISBLANK(M136),0,IFERROR(VLOOKUP(M136,'Résultat final'!D:L,9,FALSE),0))","v":0}]
[null,null,null,null,null,"",null,null,{"$f":"IF(A137=\"\",\"\",VLOOKUP(H137,Clubs!A:B,2,FALSE))","v":""},null,"",null,null,null,null,"  ",{"$f":"IFERROR(HLOOKUP(L137,Juges!$1:$22,22,FALSE),\"\")","v":""},{"$f":"+IF(OR(LEFT($Q137,1)=\"I\",LEFT($Q137,1)=\"R\"),VLOOKUP($Q137,'Paramétrage des points'!$U:$V,2,FALSE),0)","v":0},{"$f":"IF(ISBLANK(M137),0,IFERROR(VLOOKUP(M137,'Résultat final'!D:L,9,FALSE),0))","v":0}]
[null,null,null,null,null,"",null,null,{"$f":"IF(A138=\"\",\"\",VLOOKUP(H138,Clubs!A:B,2,FALSE))","v":""},null,"",null,null,null,null,"  ",{"$f":"IFERROR(HLOOKUP(L138,Juges!$1:$22,22,FALSE),\"\")","v":""},{"$f":"+IF(OR(LEFT($Q138,1)=\"I\",LEFT($Q138,1)=\"R\"),VLOOKUP($Q138,'Paramétrage des points'!$U:$V,2,FALSE),0)","v":0},{"$f":"IF(ISBLANK(M138),0,IFERROR(VLOOKUP(M138,'Résultat final'!D:L,9,FALSE),0))","v":0}]
[null,null,null,null,null,"",null,null,{"$f":"IF(A139=\"\",\"\",VLOOKUP(H139,Clubs!A:B,2,FALSE))","v":""},null,"",null,null,null,null,"  ",{"$f":"IFERROR(HLOOKUP(L139,Juges!$1:$22,22,FALSE),\"\")","v":""},{"$f":"+IF(OR(LEFT($Q139,1)=\"I\",LEFT($Q139,1)=\"R\"),VLOOKUP($Q139,'Paramétrage des points'!$U:$V,2,FALSE),0)","v":0},{"$f":"IF(ISBLANK(M139),0,IFERROR(VLOOKUP(M139,'Résultat final'!D:L,9,FALSE),0))","v":0}]
[null,null,null,null,null,"",null,null,{"$f":"IF(A140=\"\",\"\",VLOOKUP(H140,Clubs!A:B,2,FALSE))","v":""},null,"",null,null,null,null,"  ",{"$f":"IFERROR(HLOOKUP(L140,Juges!$1:$22,22,FALSE),\"\")","v":""},{"$f":"+IF(OR(LEFT($Q140,1)=\"I\",LEFT($Q140,1)=\"R\"),VLOOKUP($Q140,'Paramétrage des points'!$U:$V,2,FALSE),0)","v":0},{"$f":"IF(ISBLANK(M140),0,IFERROR(VLOOKUP(M140,'Résultat final'!D:L,9,FALSE),0))","v":0}]
[null,null,null,null,null,"",null,null,{"$f":"IF(A141=\"\",\"\",VLOOKUP(H141,Clubs!A:B,2,FALSE))","v":""},null,"",null,null,null,null,"  ",{"$f":"IFERROR(HLOOKUP(L141,Juges!$1:$22,22,FALSE),\"\")","v":""},{"$f":"+IF(OR(LEFT($Q141,1)=\"I\",LEFT($Q141,1)=\"R\"),VLOOKUP($Q141,'Paramétrage des points'!$U:$V,2,FALSE),0)","v":0},{"$f":"IF(ISBLANK(M141),0,IFERROR(VLOOKUP(M141,'Résultat final'!D:L,9,FALSE),0))","v":0}]
[null,null,null,null,null,"",null,null,{"$f":"IF(A142=\"\",\"\",VLOOKUP(H142,Clubs!A:B,2,FALSE))","v":""},null,"",null,null,null,null,"  ",{"$f":"IFERROR(HLOOKUP(L142,Juges!$1:$22,22,FALSE),\"\")","v":""},{"$f":"+IF(OR(LEFT($Q142,1)=\"I\",LEFT($Q142,1)=\"R\"),VLOOKUP($Q142,'Paramétrage des points'!$U:$V,2,FALSE),0)","v":0},{"$f":"IF(ISBLANK(M142),0,IFERROR(VLOOKUP(M142,'Résultat final'!D:L,9,FALSE),0))","v":0}]
[null,null,null,null,null,"",null,null,{"$f":"IF(A143=\"\",\"\",VLOOKUP(H143,Clubs!A:B,2,FALSE))","v":""},null,"",null,null,null,null,"  ",{"$f":"IFERROR(HLOOKUP(L143,Juges!$1:$22,22,FALSE),\"\")","v":""},{"$f":"+IF(OR(LEFT($Q143,1)=\"I\",LEFT($Q143,1)=\"R\"),VLOOKUP($Q143,'Paramétrage des points'!$U:$V,2,FALSE),0)","v":0},{"$f":"IF(ISBLANK(M143),0,IFERROR(VLOOKUP(M143,'Résultat final'!D:L,9,FALSE),0))","v":0}]
[null,null,null,null,null,"",null,null,{"$f":"IF(A144=\"\",\"\",VLOOKUP(H144,Clubs!A:B,2,FALSE))","v":""},null,"",null,null,null,null,"  ",{"$f":"IFERROR(HLOOKUP(L144,Juges!$1:$22,22,FALSE),\"\")","v":""},{"$f":"+IF(OR(LEFT($Q144,1)=\"I\",LEFT($Q144,1)=\"R\"),VLOOKUP($Q144,'Paramétrage des points'!$U:$V,2,FALSE),0)","v":0},{"$f":"IF(ISBLANK(M144),0,IFERROR(VLOOKUP(M144,'Résultat final'!D:L,9,FALSE),0))","v":0}]
[null,null,null,null,null,"",null,null,{"$f":"IF(A145=\"\",\"\",VLOOKUP(H145,Clubs!A:B,2,FALSE))","v":""},null,"",null,null,null,null,"  ",{"$f":"IFERROR(HLOOKUP(L145,Juges!$1:$22,22,FALSE),\"\")","v":""},{"$f":"+IF(OR(LEFT($Q145,1)=\"I\",LEFT($Q145,1)=\"R\"),VLOOKUP($Q145,'Paramétrage des points'!$U:$V,2,FALSE),0)","v":0},{"$f":"IF(ISBLANK(M145),0,IFERROR(VLOOKUP(M145,'Résultat final'!D:L,9,FALSE),0))","v":0}]
[null,null,null,null,null,"",null,null,{"$f":"IF(A146=\"\",\"\",VLOOKUP(H146,Clubs!A:B,2,FALSE))","v":""},null,"",null,null,null,null,"  ",{"$f":"IFERROR(HLOOKUP(L146,Juges!$1:$22,22,FALSE),\"\")","v":""},{"$f":"+IF(OR(LEFT($Q146,1)=\"I\",LEFT($Q146,1)=\"R\"),VLOOKUP($Q146,'Paramétrage des points'!$U:$V,2,FALSE),0)","v":0},{"$f":"IF(ISBLANK(M146),0,IFERROR(VLOOKUP(M146,'Résultat final'!D:L,9,FALSE),0))","v":0}]
[null,null,null,null,null,"",null,null,{"$f":"IF(A147=\"\",\"\",VLOOKUP(H147,Clubs!A:B,2,FALSE))","v":""},null,"",null,null,null,null,"  ",{"$f":"IFERROR(HLOOKUP(L147,Juges!$1:$22,22,FALSE),\"\")","v":""},{"$f":"+IF(OR(LEFT($Q147,1)=\"I\",LEFT($Q147,1)=\"R\"),VLOOKUP($Q147,'Paramétrage des points'!$U:$V,2,FALSE),0)","v":0},{"$f":"IF(ISBLANK(M147),0,IFERROR(VLOOKUP(M147,'Résultat final'!D:L,9,FALSE),0))","v":0}]
[null,null,null,null,null,"",null,null,{"$f":"IF(A148=\"\",\"\",VLOOKUP(H148,Clubs!A:B,2,FALSE))","v":""},null,"",null,null,null,null,"  ",{"$f":"IFERROR(HLOOKUP(L148,Juges!$1:$22,22,FALSE),\"\")","v":""},{"$f":"+IF(OR(LEFT($Q148,1)=\"I\",LEFT($Q148,1)=\"R\"),VLOOKUP($Q148,'Paramétrage des points'!$U:$V,2,FALSE),0)","v":0},{"$f":"IF(ISBLANK(M148),0,IFERROR(VLOOKUP(M148,'Résultat final'!D:L,9,FALSE),0))","v":0}]
[null,null,null,null,null,"",null,null,{"$f":"IF(A149=\"\",\"\",VLOOKUP(H149,Clubs!A:B,2,FALSE))","v":""},null,"",null,null,null,null,"  ",{"$f":"IFERROR(HLOOKUP(L149,Juges!$1:$22,22,FALSE),\"\")","v":""},{"$f":"+IF(OR(LEFT($Q149,1)=\"I\",LEFT($Q149,1)=\"R\"),VLOOKUP($Q149,'Paramétrage des points'!$U:$V,2,FALSE),0)","v":0},{"$f":"IF(ISBLANK(M149),0,IFERROR(VLOOKUP(M149,'Résultat final'!D:L,9,FALSE),0))","v":0}]
[null,null,null,null,null,"",null,null,{"$f":"IF(A150=\"\",\"\",VLOOKUP(H150,Clubs!A:B,2,FALSE))","v":""},null,"",null,null,null,null,"  ",{"$f":"IFERROR(HLOOKUP(L150,Juges!$1:$22,22,FALSE),\"\")","v":""},{"$f":"+IF(OR(LEFT($Q150,1)=\"I\",LEFT($Q150,1)=\"R\"),VLOOKUP($Q150,'Paramétrage des points'!$U:$V,2,FALSE),0)","v":0},{"$f":"IF(ISBLANK(M150),0,IFERROR(VLOOKUP(M150,'Résultat final'!D:L,9,FALSE),0))","v":0}]
[null,null,null,null,null,"",null,null,{"$f":"IF(A151=\"\",\"\",VLOOKUP(H151,Clubs!A:B,2,FALSE))","v":""},null,"",null,null,null,null,"  ",{"$f":"IFERROR(HLOOKUP(L151,Juges!$1:$22,22,FALSE),\"\")","v":""},{"$f":"+IF(OR(LEFT($Q151,1)=\"I\",LEFT($Q151,1)=\"R\"),VLOOKUP($Q151,'Paramétrage des points'!$U:$V,2,FALSE),0)","v":0},{"$f":"IF(ISBLANK(M151),0,IFERROR(VLOOKUP(M151,'Résultat final'!D:L,9,FALSE),0))","v":0}]
[null,null,null,null,null,"",null,null,{"$f":"IF(A152=\"\",\"\",VLOOKUP(H152,Clubs!A:B,2,FALSE))","v":""},null,"",null,null,null,null,"  ",{"$f":"IFERROR(HLOOKUP(L152,Juges!$1:$22,22,FALSE),\"\")","v":""},{"$f":"+IF(OR(LEFT($Q152,1)=\"I\",LEFT($Q152,1)=\"R\"),VLOOKUP($Q152,'Paramétrage des points'!$U:$V,2,FALSE),0)","v":0},{"$f":"IF(ISBLANK(M152),0,IFERROR(VLOOKUP(M152,'Résultat final'!D:L,9,FALSE),0))","v":0}]
[null,null,null,null,null,"",null,null,{"$f":"IF(A153=\"\",\"\",VLOOKUP(H153,Clubs!A:B,2,FALSE))","v":""},null,"",null,null,null,null,"  ",{"$f":"IFERROR(HLOOKUP(L153,Juges!$1:$22,22,FALSE),\"\")","v":""},{"$f":"+IF(OR(LEFT($Q153,1)=\"I\",LEFT($Q153,1)=\"R\"),VLOOKUP($Q153,'Paramétrage des points'!$U:$V,2,FALSE),0)","v":0},{"$f":"IF(ISBLANK(M153),0,IFERROR(VLOOKUP(M153,'Résultat final'!D:L,9,FALSE),0))","v":0}]
[null,null,null,null,null,"",null,null,{"$f":"IF(A154=\"\",\"\",VLOOKUP(H154,Clubs!A:B,2,FALSE))","v":""},null,"",null,null,null,null,"  ",{"$f":"IFERROR(HLOOKUP(L154,Juges!$1:$22,22,FALSE),\"\")","v":""},{"$f":"+IF(OR(LEFT($Q154,1)=\"I\",LEFT($Q154,1)=\"R\"),VLOOKUP($Q154,'Paramétrage des points'!$U:$V,2,FALSE),0)","v":0},{"$f":"IF(ISBLANK(M154),0,IFERROR(VLOOKUP(M154,'Résultat final'!D:L,9,FALSE),0))","v":0}]
[null,null,null,null,null,"",null,null,{"$f":"IF(A155=\"\",\"\",VLOOKUP(H155,Clubs!A:B,2,FALSE))","v":""},null,"",null,null,null,null,"  ",{"$f":"IFERROR(HLOOKUP(L155,Juges!$1:$22,22,FALSE),\"\")","v":""},{"$f":"+IF(OR(LEFT($Q155,1)=\"I\",LEFT($Q155,1)=\"R\"),VLOOKUP($Q155,'Paramétrage des points'!$U:$V,2,FALSE),0)","v":0},{"$f":"IF(ISBLANK(M155),0,IFERROR(VLOOKUP(M155,'Résultat final'!D:L,9,FALSE),0))","v":0}]
[null,null,null,null,null,"",null,null,{"$f":"IF(A156=\"\",\"\",VLOOKUP(H156,Clubs!A:B,2,FALSE))","v":""},null,"",null,null,null,null,"  ",{"$f":"IFERROR(HLOOKUP(L156,Juges!$1:$22,22,FALSE),\"\")","v":""},{"$f":"+IF(OR(LEFT($Q156,1)=\"I\",LEFT($Q156,1)=\"R\"),VLOOKUP($Q156,'Paramétrage des points'!$U:$V,2,FALSE),0)","v":0},{"$f":"IF(ISBLANK(M156),0,IFERROR(VLOOKUP(M156,'Résultat final'!D:L,9,FALSE),0))","v":0}]
[null,null,null,null,null,"",null,null,{"$f":"IF(A157=\"\",\"\",VLOOKUP(H157,Clubs!A:B,2,FALSE))","v":""},null,"",null,null,null,null,"  ",{"$f":"IFERROR(HLOOKUP(L157,Juges!$1:$22,22,FALSE),\"\")","v":""},{"$f":"+IF(OR(LEFT($Q157,1)=\"I\",LEFT($Q157,1)=\"R\"),VLOOKUP($Q157,'Paramétrage des points'!$U:$V,2,FALSE),0)","v":0},{"$f":"IF(ISBLANK(M157),0,IFERROR(VLOOKUP(M157,'Résultat final'!D:L,9,FALSE),0))","v":0}]
[null,null,null,null,null,"",null,null,{"$f":"IF(A158=\"\",\"\",VLOOKUP(H158,Clubs!A:B,2,FALSE))","v":""},null,"",null,null,null,null,"  ",{"$f":"IFERROR(HLOOKUP(L158,Juges!$1:$22,22,FALSE),\"\")","v":""},{"$f":"+IF(OR(LEFT($Q158,1)=\"I\",LEFT($Q158,1)=\"R\"),VLOOKUP($Q158,'Paramétrage des points'!$U:$V,2,FALSE),0)","v":0},{"$f":"IF(ISBLANK(M158),0,IFERROR(VLOOKUP(M158,'Résultat final'!D:L,9,FALSE),0))","v":0}]
[null,null,null,null,null,"",null,null,{"$f":"IF(A159=\"\",\"\",VLOOKUP(H159,Clubs!A:B,2,FALSE))","v":""},null,"",null,null,null,null,"  ",{"$f":"IFERROR(HLOOKUP(L159,Juges!$1:$22,22,FALSE),\"\")","v":""},{"$f":"+IF(OR(LEFT($Q159,1)=\"I\",LEFT($Q159,1)=\"R\"),VLOOKUP($Q159,'Paramétrage des points'!$U:$V,2,FALSE),0)","v":0},{"$f":"IF(ISBLANK(M159),0,IFERROR(VLOOKUP(M159,'Résultat final'!D:L,9,FALSE),0))","v":0}]
[null,null,null,null,null,"",null,null,{"$f":"IF(A160=\"\",\"\",VLOOKUP(H160,Clubs!A:B,2,FALSE))","v":""},null,"",null,null,null,null,"  ",{"$f":"IFERROR(HLOOKUP(L160,Juges!$1:$22,22,FALSE),\"\")","v":""},{"$f":"+IF(OR(LEFT($Q160,1)=\"I\",LEFT($Q160,1)=\"R\"),VLOOKUP($Q160,'Paramétrage des points'!$U:$V,2,FALSE),0)","v":0},{"$f":"IF(ISBLANK(M160),0,IFERROR(VLOOKUP(M160,'Résultat final'!D:L,9,FALSE),0))","v":0}]
[null,null,null,null,null,"",null,null,{"$f":"IF(A161=\"\",\"\",VLOOKUP(H161,Clubs!A:B,2,FALSE))","v":""},null,"",null,null,null,null,"  ",{"$f":"IFERROR(HLOOKUP(L161,Juges!$1:$22,22,FALSE),\"\")","v":""},{"$f":"+IF(OR(LEFT($Q161,1)=\"I\",LEFT($Q161,1)=\"R\"),VLOOKUP($Q161,'Paramétrage des points'!$U:$V,2,FALSE),0)","v":0},{"$f":"IF(ISBLANK(M161),0,IFERROR(VLOOKUP(M161,'Résultat final'!D:L,9,FALSE),0))","v":0}]
[null,null,null,null,null,{"$f":"IF(ISBLANK(A162),\"\",IF(ISERROR(DATEDIF(D162,saison,\"y\")),\"\",(DATEDIF(D162,saison,\"y\"))))","v":""},null,null,{"$f":"IF(A162=\"\",\"\",VLOOKUP(H162,Clubs!A:B,2,FALSE))","v":""},null,"",null,null,null,null,"  ",{"$f":"IFERROR(HLOOKUP(L162,Juges!$1:$22,22,FALSE),\"\")","v":""},{"$f":"+IF(OR(LEFT($Q162,1)=\"I\",LEFT($Q162,1)=\"R\"),VLOOKUP($Q162,'Paramétrage des points'!$U:$V,2,FALSE),0)","v":0},{"$f":"IF(ISBLANK(M162),0,IFERROR(VLOOKUP(M162,'Résultat final'!D:L,9,FALSE),0))","v":0}]
[null,null,null,null,null,"",null,null,{"$f":"IF(A163=\"\",\"\",VLOOKUP(H163,Clubs!A:B,2,FALSE))","v":""},null,"",null,null,null,null,"  ",{"$f":"IFERROR(HLOOKUP(L163,Juges!$1:$22,22,FALSE),\"\")","v":""},{"$f":"+IF(OR(LEFT($Q163,1)=\"I\",LEFT($Q163,1)=\"R\"),VLOOKUP($Q163,'Paramétrage des points'!$U:$V,2,FALSE),0)","v":0},{"$f":"IF(ISBLANK(M163),0,IFERROR(VLOOKUP(M163,'Résultat final'!D:L,9,FALSE),0))","v":0}]
[null,null,null,null,null,"",null,null,{"$f":"IF(A164=\"\",\"\",VLOOKUP(H164,Clubs!A:B,2,FALSE))","v":""},null,"",null,null,null,null,"  ",{"$f":"IFERROR(HLOOKUP(L164,Juges!$1:$22,22,FALSE),\"\")","v":""},{"$f":"+IF(OR(LEFT($Q164,1)=\"I\",LEFT($Q164,1)=\"R\"),VLOOKUP($Q164,'Paramétrage des points'!$U:$V,2,FALSE),0)","v":0},{"$f":"IF(ISBLANK(M164),0,IFERROR(VLOOKUP(M164,'Résultat final'!D:L,9,FALSE),0))","v":0}]
[null,null,null,null,null,"",null,null,{"$f":"IF(A165=\"\",\"\",VLOOKUP(H165,Clubs!A:B,2,FALSE))","v":""},null,"",null,null,null,null,"  ",{"$f":"IFERROR(HLOOKUP(L165,Juges!$1:$22,22,FALSE),\"\")","v":""},{"$f":"+IF(OR(LEFT($Q165,1)=\"I\",LEFT($Q165,1)=\"R\"),VLOOKUP($Q165,'Paramétrage des points'!$U:$V,2,FALSE),0)","v":0},{"$f":"IF(ISBLANK(M165),0,IFERROR(VLOOKUP(M165,'Résultat final'!D:L,9,FALSE),0))","v":0}]
[null,null,null,null,null,"",null,null,{"$f":"IF(A166=\"\",\"\",VLOOKUP(H166,Clubs!A:B,2,FALSE))","v":""},null,"",null,null,null,null,"  ",{"$f":"IFERROR(HLOOKUP(L166,Juges!$1:$22,22,FALSE),\"\")","v":""},{"$f":"+IF(OR(LEFT($Q166,1)=\"I\",LEFT($Q166,1)=\"R\"),VLOOKUP($Q166,'Paramétrage des points'!$U:$V,2,FALSE),0)","v":0},{"$f":"IF(ISBLANK(M166),0,IFERROR(VLOOKUP(M166,'Résultat final'!D:L,9,FALSE),0))","v":0}]
[null,null,null,null,null,"",null,null,{"$f":"IF(A167=\"\",\"\",VLOOKUP(H167,Clubs!A:B,2,FALSE))","v":""},null,"",null,null,null,null,"  ",{"$f":"IFERROR(HLOOKUP(L167,Juges!$1:$22,22,FALSE),\"\")","v":""},{"$f":"+IF(OR(LEFT($Q167,1)=\"I\",LEFT($Q167,1)=\"R\"),VLOOKUP($Q167,'Paramétrage des points'!$U:$V,2,FALSE),0)","v":0},{"$f":"IF(ISBLANK(M167),0,IFERROR(VLOOKUP(M167,'Résultat final'!D:L,9,FALSE),0))","v":0}]
[null,null,null,null,null,"",null,null,{"$f":"IF(A168=\"\",\"\",VLOOKUP(H168,Clubs!A:B,2,FALSE))","v":""},null,"",null,null,null,null,"  ",{"$f":"IFERROR(HLOOKUP(L168,Juges!$1:$22,22,FALSE),\"\")","v":""},{"$f":"+IF(OR(LEFT($Q168,1)=\"I\",LEFT($Q168,1)=\"R\"),VLOOKUP($Q168,'Paramétrage des points'!$U:$V,2,FALSE),0)","v":0},{"$f":"IF(ISBLANK(M168),0,IFERROR(VLOOKUP(M168,'Résultat final'!D:L,9,FALSE),0))","v":0}]
[null,null,null,null,null,"",null,null,{"$f":"IF(A169=\"\",\"\",VLOOKUP(H169,Clubs!A:B,2,FALSE))","v":""},null,"",null,null,null,null,"  ",{"$f":"IFERROR(HLOOKUP(L169,Juges!$1:$22,22,FALSE),\"\")","v":""},{"$f":"+IF(OR(LEFT($Q169,1)=\"I\",LEFT($Q169,1)=\"R\"),VLOOKUP($Q169,'Paramétrage des points'!$U:$V,2,FALSE),0)","v":0},{"$f":"IF(ISBLANK(M169),0,IFERROR(VLOOKUP(M169,'Résultat final'!D:L,9,FALSE),0))","v":0}]
[null,null,null,null,null,"",null,null,{"$f":"IF(A170=\"\",\"\",VLOOKUP(H170,Clubs!A:B,2,FALSE))","v":""},null,"",null,null,null,null,"  ",{"$f":"IFERROR(HLOOKUP(L170,Juges!$1:$22,22,FALSE),\"\")","v":""},{"$f":"+IF(OR(LEFT($Q170,1)=\"I\",LEFT($Q170,1)=\"R\"),VLOOKUP($Q170,'Paramétrage des points'!$U:$V,2,FALSE),0)","v":0},{"$f":"IF(ISBLANK(M170),0,IFERROR(VLOOKUP(M170,'Résultat final'!D:L,9,FALSE),0))","v":0}]
[null,null,null,null,null,"",null,null,{"$f":"IF(A171=\"\",\"\",VLOOKUP(H171,Clubs!A:B,2,FALSE))","v":""},null,"",null,null,null,null,"  ",{"$f":"IFERROR(HLOOKUP(L171,Juges!$1:$22,22,FALSE),\"\")","v":""},{"$f":"+IF(OR(LEFT($Q171,1)=\"I\",LEFT($Q171,1)=\"R\"),VLOOKUP($Q171,'Paramétrage des points'!$U:$V,2,FALSE),0)","v":0},{"$f":"IF(ISBLANK(M171),0,IFERROR(VLOOKUP(M171,'Résultat final'!D:L,9,FALSE),0))","v":0}]
[null,null,null,null,null,"",null,null,{"$f":"IF(A172=\"\",\"\",VLOOKUP(H172,Clubs!A:B,2,FALSE))","v":""},null,"",null,null,null,null,"  ",{"$f":"IFERROR(HLOOKUP(L172,Juges!$1:$22,22,FALSE),\"\")","v":""},{"$f":"+IF(OR(LEFT($Q172,1)=\"I\",LEFT($Q172,1)=\"R\"),VLOOKUP($Q172,'Paramétrage des points'!$U:$V,2,FALSE),0)","v":0},{"$f":"IF(ISBLANK(M172),0,IFERROR(VLOOKUP(M172,'Résultat final'!D:L,9,FALSE),0))","v":0}]
[null,null,null,null,null,"",null,null,{"$f":"IF(A173=\"\",\"\",VLOOKUP(H173,Clubs!A:B,2,FALSE))","v":""},null,"",null,null,null,null,"  ",{"$f":"IFERROR(HLOOKUP(L173,Juges!$1:$22,22,FALSE),\"\")","v":""},{"$f":"+IF(OR(LEFT($Q173,1)=\"I\",LEFT($Q173,1)=\"R\"),VLOOKUP($Q173,'Paramétrage des points'!$U:$V,2,FALSE),0)","v":0},{"$f":"IF(ISBLANK(M173),0,IFERROR(VLOOKUP(M173,'Résultat final'!D:L,9,FALSE),0))","v":0}]
[null,null,null,null,null,"",null,null,{"$f":"IF(A174=\"\",\"\",VLOOKUP(H174,Clubs!A:B,2,FALSE))","v":""},null,"",null,null,null,null,"  ",{"$f":"IFERROR(HLOOKUP(L174,Juges!$1:$22,22,FALSE),\"\")","v":""},{"$f":"+IF(OR(LEFT($Q174,1)=\"I\",LEFT($Q174,1)=\"R\"),VLOOKUP($Q174,'Paramétrage des points'!$U:$V,2,FALSE),0)","v":0},{"$f":"IF(ISBLANK(M174),0,IFERROR(VLOOKUP(M174,'Résultat final'!D:L,9,FALSE),0))","v":0}]
[null,null,null,null,null,"",null,null,{"$f":"IF(A175=\"\",\"\",VLOOKUP(H175,Clubs!A:B,2,FALSE))","v":""},null,"",null,null,null,null,"  ",{"$f":"IFERROR(HLOOKUP(L175,Juges!$1:$22,22,FALSE),\"\")","v":""},{"$f":"+IF(OR(LEFT($Q175,1)=\"I\",LEFT($Q175,1)=\"R\"),VLOOKUP($Q175,'Paramétrage des points'!$U:$V,2,FALSE),0)","v":0},{"$f":"IF(ISBLANK(M175),0,IFERROR(VLOOKUP(M175,'Résultat final'!D:L,9,FALSE),0))","v":0}]
[null,null,null,null,null,"",null,null,{"$f":"IF(A176=\"\",\"\",VLOOKUP(H176,Clubs!A:B,2,FALSE))","v":""},null,"",null,null,null,null,"  ",{"$f":"IFERROR(HLOOKUP(L176,Juges!$1:$22,22,FALSE),\"\")","v":""},{"$f":"+IF(OR(LEFT($Q176,1)=\"I\",LEFT($Q176,1)=\"R\"),VLOOKUP($Q176,'Paramétrage des points'!$U:$V,2,FALSE),0)","v":0},{"$f":"IF(ISBLANK(M176),0,IFERROR(VLOOKUP(M176,'Résultat final'!D:L,9,FALSE),0))","v":0}]
[null,null,null,null,null,"",null,null,{"$f":"IF(A177=\"\",\"\",VLOOKUP(H177,Clubs!A:B,2,FALSE))","v":""},null,"",null,null,null,null,"  ",{"$f":"IFERROR(HLOOKUP(L177,Juges!$1:$22,22,FALSE),\"\")","v":""},{"$f":"+IF(OR(LEFT($Q177,1)=\"I\",LEFT($Q177,1)=\"R\"),VLOOKUP($Q177,'Paramétrage des points'!$U:$V,2,FALSE),0)","v":0},{"$f":"IF(ISBLANK(M177),0,IFERROR(VLOOKUP(M177,'Résultat final'!D:L,9,FALSE),0))","v":0}]
[null,null,null,null,null,"",null,null,{"$f":"IF(A178=\"\",\"\",VLOOKUP(H178,Clubs!A:B,2,FALSE))","v":""},null,"",null,null,null,null,"  ",{"$f":"IFERROR(HLOOKUP(L178,Juges!$1:$22,22,FALSE),\"\")","v":""},{"$f":"+IF(OR(LEFT($Q178,1)=\"I\",LEFT($Q178,1)=\"R\"),VLOOKUP($Q178,'Paramétrage des points'!$U:$V,2,FALSE),0)","v":0},{"$f":"IF(ISBLANK(M178),0,IFERROR(VLOOKUP(M178,'Résultat final'!D:L,9,FALSE),0))","v":0}]
[null,null,null,null,null,"",null,null,{"$f":"IF(A179=\"\",\"\",VLOOKUP(H179,Clubs!A:B,2,FALSE))","v":""},null,"",null,null,null,null,"  ",{"$f":"IFERROR(HLOOKUP(L179,Juges!$1:$22,22,FALSE),\"\")","v":""},{"$f":"+IF(OR(LEFT($Q179,1)=\"I\",LEFT($Q179,1)=\"R\"),VLOOKUP($Q179,'Paramétrage des points'!$U:$V,2,FALSE),0)","v":0},{"$f":"IF(ISBLANK(M179),0,IFERROR(VLOOKUP(M179,'Résultat final'!D:L,9,FALSE),0))","v":0}]
[null,null,null,null,null,"",null,null,{"$f":"IF(A180=\"\",\"\",VLOOKUP(H180,Clubs!A:B,2,FALSE))","v":""},null,"",null,null,null,null,"  ",{"$f":"IFERROR(HLOOKUP(L180,Juges!$1:$22,22,FALSE),\"\")","v":""},{"$f":"+IF(OR(LEFT($Q180,1)=\"I\",LEFT($Q180,1)=\"R\"),VLOOKUP($Q180,'Paramétrage des points'!$U:$V,2,FALSE),0)","v":0},{"$f":"IF(ISBLANK(M180),0,IFERROR(VLOOKUP(M180,'Résultat final'!D:L,9,FALSE),0))","v":0}]
[null,null,null,null,null,"",null,null,{"$f":"IF(A181=\"\",\"\",VLOOKUP(H181,Clubs!A:B,2,FALSE))","v":""},null,"",null,null,null,null,"  ",{"$f":"IFERROR(HLOOKUP(L181,Juges!$1:$22,22,FALSE),\"\")","v":""},{"$f":"+IF(OR(LEFT($Q181,1)=\"I\",LEFT($Q181,1)=\"R\"),VLOOKUP($Q181,'Paramétrage des points'!$U:$V,2,FALSE),0)","v":0},{"$f":"IF(ISBLANK(M181),0,IFERROR(VLOOKUP(M181,'Résultat final'!D:L,9,FALSE),0))","v":0}]
[null,null,null,null,null,"",null,null,{"$f":"IF(A182=\"\",\"\",VLOOKUP(H182,Clubs!A:B,2,FALSE))","v":""},null,"",null,null,null,null,"  ",{"$f":"IFERROR(HLOOKUP(L182,Juges!$1:$22,22,FALSE),\"\")","v":""},{"$f":"+IF(OR(LEFT($Q182,1)=\"I\",LEFT($Q182,1)=\"R\"),VLOOKUP($Q182,'Paramétrage des points'!$U:$V,2,FALSE),0)","v":0},{"$f":"IF(ISBLANK(M182),0,IFERROR(VLOOKUP(M182,'Résultat final'!D:L,9,FALSE),0))","v":0}]
[null,null,null,null,null,"",null,null,{"$f":"IF(A183=\"\",\"\",VLOOKUP(H183,Clubs!A:B,2,FALSE))","v":""},null,"",null,null,null,null,"  ",{"$f":"IFERROR(HLOOKUP(L183,Juges!$1:$22,22,FALSE),\"\")","v":""},{"$f":"+IF(OR(LEFT($Q183,1)=\"I\",LEFT($Q183,1)=\"R\"),VLOOKUP($Q183,'Paramétrage des points'!$U:$V,2,FALSE),0)","v":0},{"$f":"IF(ISBLANK(M183),0,IFERROR(VLOOKUP(M183,'Résultat final'!D:L,9,FALSE),0))","v":0}]
[null,null,null,null,null,"",null,null,{"$f":"IF(A184=\"\",\"\",VLOOKUP(H184,Clubs!A:B,2,FALSE))","v":""},null,"",null,null,null,null,"  ",{"$f":"IFERROR(HLOOKUP(L184,Juges!$1:$22,22,FALSE),\"\")","v":""},{"$f":"+IF(OR(LEFT($Q184,1)=\"I\",LEFT($Q184,1)=\"R\"),VLOOKUP($Q184,'Paramétrage des points'!$U:$V,2,FALSE),0)","v":0},{"$f":"IF(ISBLANK(M184),0,IFERROR(VLOOKUP(M184,'Résultat final'!D:L,9,FALSE),0))","v":0}]
[null,null,null,null,null,"",null,null,{"$f":"IF(A185=\"\",\"\",VLOOKUP(H185,Clubs!A:B,2,FALSE))","v":""},null,"",null,null,null,null,"  ",{"$f":"IFERROR(HLOOKUP(L185,Juges!$1:$22,22,FALSE),\"\")","v":""},{"$f":"+IF(OR(LEFT($Q185,1)=\"I\",LEFT($Q185,1)=\"R\"),VLOOKUP($Q185,'Paramétrage des points'!$U:$V,2,FALSE),0)","v":0},{"$f":"IF(ISBLANK(M185),0,IFERROR(VLOOKUP(M185,'Résultat final'!D:L,9,FALSE),0))","v":0}]
[null,null,null,null,null,"",null,null,{"$f":"IF(A186=\"\",\"\",VLOOKUP(H186,Clubs!A:B,2,FALSE))","v":""},null,"",null,null,null,null,"  ",{"$f":"IFERROR(HLOOKUP(L186,Juges!$1:$22,22,FALSE),\"\")","v":""},{"$f":"+IF(OR(LEFT($Q186,1)=\"I\",LEFT($Q186,1)=\"R\"),VLOOKUP($Q186,'Paramétrage des points'!$U:$V,2,FALSE),0)","v":0},{"$f":"IF(ISBLANK(M186),0,IFERROR(VLOOKUP(M186,'Résultat final'!D:L,9,FALSE),0))","v":0}]
[null,null,null,null,null,"",null,null,{"$f":"IF(A187=\"\",\"\",VLOOKUP(H187,Clubs!A:B,2,FALSE))","v":""},null,"",null,null,null,null,"  ",{"$f":"IFERROR(HLOOKUP(L187,Juges!$1:$22,22,FALSE),\"\")","v":""},{"$f":"+IF(OR(LEFT($Q187,1)=\"I\",LEFT($Q187,1)=\"R\"),VLOOKUP($Q187,'Paramétrage des points'!$U:$V,2,FALSE),0)","v":0},{"$f":"IF(ISBLANK(M187),0,IFERROR(VLOOKUP(M187,'Résultat final'!D:L,9,FALSE),0))","v":0}]
[null,null,null,null,null,"",null,null,{"$f":"IF(A188=\"\",\"\",VLOOKUP(H188,Clubs!A:B,2,FALSE))","v":""},null,"",null,null,null,null,"  ",{"$f":"IFERROR(HLOOKUP(L188,Juges!$1:$22,22,FALSE),\"\")","v":""},{"$f":"+IF(OR(LEFT($Q188,1)=\"I\",LEFT($Q188,1)=\"R\"),VLOOKUP($Q188,'Paramétrage des points'!$U:$V,2,FALSE),0)","v":0},{"$f":"IF(ISBLANK(M188),0,IFERROR(VLOOKUP(M188,'Résultat final'!D:L,9,FALSE),0))","v":0}]
[null,null,null,null,null,"",null,null,{"$f":"IF(A189=\"\",\"\",VLOOKUP(H189,Clubs!A:B,2,FALSE))","v":""},null,"",null,null,null,null,"  ",{"$f":"IFERROR(HLOOKUP(L189,Juges!$1:$22,22,FALSE),\"\")","v":""},{"$f":"+IF(OR(LEFT($Q189,1)=\"I\",LEFT($Q189,1)=\"R\"),VLOOKUP($Q189,'Paramétrage des points'!$U:$V,2,FALSE),0)","v":0},{"$f":"IF(ISBLANK(M189),0,IFERROR(VLOOKUP(M189,'Résultat final'!D:L,9,FALSE),0))","v":0}]
[null,null,null,null,null,"",null,null,{"$f":"IF(A190=\"\",\"\",VLOOKUP(H190,Clubs!A:B,2,FALSE))","v":""},null,"",null,null,null,null,"  ",{"$f":"IFERROR(HLOOKUP(L190,Juges!$1:$22,22,FALSE),\"\")","v":""},{"$f":"+IF(OR(LEFT($Q190,1)=\"I\",LEFT($Q190,1)=\"R\"),VLOOKUP($Q190,'Paramétrage des points'!$U:$V,2,FALSE),0)","v":0},{"$f":"IF(ISBLANK(M190),0,IFERROR(VLOOKUP(M190,'Résultat final'!D:L,9,FALSE),0))","v":0}]
[null,null,null,null,null,"",null,null,{"$f":"IF(A191=\"\",\"\",VLOOKUP(H191,Clubs!A:B,2,FALSE))","v":""},null,"",null,null,null,null,"  ",{"$f":"IFERROR(HLOOKUP(L191,Juges!$1:$22,22,FALSE),\"\")","v":""},{"$f":"+IF(OR(LEFT($Q191,1)=\"I\",LEFT($Q191,1)=\"R\"),VLOOKUP($Q191,'Paramétrage des points'!$U:$V,2,FALSE),0)","v":0},{"$f":"IF(ISBLANK(M191),0,IFERROR(VLOOKUP(M191,'Résultat final'!D:L,9,FALSE),0))","v":0}]
[null,null,null,null,null,"",null,null,{"$f":"IF(A192=\"\",\"\",VLOOKUP(H192,Clubs!A:B,2,FALSE))","v":""},null,"",null,null,null,null,"  ",{"$f":"IFERROR(HLOOKUP(L192,Juges!$1:$22,22,FALSE),\"\")","v":""},{"$f":"+IF(OR(LEFT($Q192,1)=\"I\",LEFT($Q192,1)=\"R\"),VLOOKUP($Q192,'Paramétrage des points'!$U:$V,2,FALSE),0)","v":0},{"$f":"IF(ISBLANK(M192),0,IFERROR(VLOOKUP(M192,'Résultat final'!D:L,9,FALSE),0))","v":0}]
[null,null,null,null,null,"",null,null,{"$f":"IF(A193=\"\",\"\",VLOOKUP(H193,Clubs!A:B,2,FALSE))","v":""},null,"",null,null,null,null,"  ",{"$f":"IFERROR(HLOOKUP(L193,Juges!$1:$22,22,FALSE),\"\")","v":""},{"$f":"+IF(OR(LEFT($Q193,1)=\"I\",LEFT($Q193,1)=\"R\"),VLOOKUP($Q193,'Paramétrage des points'!$U:$V,2,FALSE),0)","v":0},{"$f":"IF(ISBLANK(M193),0,IFERROR(VLOOKUP(M193,'Résultat final'!D:L,9,FALSE),0))","v":0}]
[null,null,null,null,null,{"$f":"IF(ISBLANK(A194),\"\",IF(ISERROR(DATEDIF(D194,saison,\"y\")),\"\",(DATEDIF(D194,saison,\"y\"))))","v":""},null,null,{"$f":"IF(A194=\"\",\"\",VLOOKUP(H194,Clubs!A:B,2,FALSE))","v":""},null,"",null,null,null,null,"  ",{"$f":"IFERROR(HLOOKUP(L194,Juges!$1:$22,22,FALSE),\"\")","v":""},{"$f":"+IF(OR(LEFT($Q194,1)=\"I\",LEFT($Q194,1)=\"R\"),VLOOKUP($Q194,'Paramétrage des points'!$U:$V,2,FALSE),0)","v":0},{"$f":"IF(ISBLANK(M194),0,IFERROR(VLOOKUP(M194,'Résultat final'!D:L,9,FALSE),0))","v":0}]
[null,null,null,null,null,"",null,null,{"$f":"IF(A195=\"\",\"\",VLOOKUP(H195,Clubs!A:B,2,FALSE))","v":""},null,{"$f":"IF(E195=\"\",\"\",IF(E195<16,\"ERREUR\",IF(AND(E195<18,C195=\"F\"),\"CF\",IF(E195<21,\"JUNIOR\", IF(E195<23,IF(C195=\"F\",\"SENIOR\",\"ESPOIR\"),IF(E195<40,\"SENIOR\",IF(C195=\"F\",\"VETERAN\",IF(E195<50,\"VET1\",IF(E195<60,\"VET2\",\"VET3\")))))))))","v":""},null,null,null,null,{"$f":"A195&\"  \"&B195","v":"  "},{"$f":"IFERROR(HLOOKUP(L195,Juges!$1:$22,22,FALSE),\"\")","v":""},{"$f":"+IF(OR(LEFT($Q195,1)=\"I\",LEFT($Q195,1)=\"R\"),VLOOKUP($Q195,'Paramétrage des points'!$U:$V,2,FALSE),0)","v":0},{"$f":"IF(ISBLANK(M195),0,IFERROR(VLOOKUP(M195,'Résultat final'!D:L,9,FALSE),0))","v":0}]
[null,null,null,null,null,"",null,null,{"$f":"IF(A196=\"\",\"\",VLOOKUP(H196,Clubs!A:B,2,FALSE))","v":""},null,"",null,null,null,null,"  ",{"$f":"IFERROR(HLOOKUP(L196,Juges!$1:$22,22,FALSE),\"\")","v":""},{"$f":"+IF(OR(LEFT($Q196,1)=\"I\",LEFT($Q196,1)=\"R\"),VLOOKUP($Q196,'Paramétrage des points'!$U:$V,2,FALSE),0)","v":0},{"$f":"IF(ISBLANK(M196),0,IFERROR(VLOOKUP(M196,'Résultat final'!D:L,9,FALSE),0))","v":0}]
[null,null,null,null,null,"",null,null,{"$f":"IF(A197=\"\",\"\",VLOOKUP(H197,Clubs!A:B,2,FALSE))","v":""},null,"",null,null,null,null,"  ",{"$f":"IFERROR(HLOOKUP(L197,Juges!$1:$22,22,FALSE),\"\")","v":""},{"$f":"+IF(OR(LEFT($Q197,1)=\"I\",LEFT($Q197,1)=\"R\"),VLOOKUP($Q197,'Paramétrage des points'!$U:$V,2,FALSE),0)","v":0},{"$f":"IF(ISBLANK(M197),0,IFERROR(VLOOKUP(M197,'Résultat final'!D:L,9,FALSE),0))","v":0}]
[null,null,null,null,null,"",null,null,{"$f":"IF(A198=\"\",\"\",VLOOKUP(H198,Clubs!A:B,2,FALSE))","v":""},null,"",null,null,null,null,"  ",{"$f":"IFERROR(HLOOKUP(L198,Juges!$1:$22,22,FALSE),\"\")","v":""},{"$f":"+IF(OR(LEFT($Q198,1)=\"I\",LEFT($Q198,1)=\"R\"),VLOOKUP($Q198,'Paramétrage des points'!$U:$V,2,FALSE),0)","v":0},{"$f":"IF(ISBLANK(M198),0,IFERROR(VLOOKUP(M198,'Résultat final'!D:L,9,FALSE),0))","v":0}]
[null,null,null,null,null,"",null,null,{"$f":"IF(A199=\"\",\"\",VLOOKUP(H199,Clubs!A:B,2,FALSE))","v":""},null,"",null,null,null,null,"  ",{"$f":"IFERROR(HLOOKUP(L199,Juges!$1:$22,22,FALSE),\"\")","v":""},{"$f":"+IF(OR(LEFT($Q199,1)=\"I\",LEFT($Q199,1)=\"R\"),VLOOKUP($Q199,'Paramétrage des points'!$U:$V,2,FALSE),0)","v":0},{"$f":"IF(ISBLANK(M199),0,IFERROR(VLOOKUP(M199,'Résultat final'!D:L,9,FALSE),0))","v":0}]
[null,null,null,null,null,"",null,null,{"$f":"IF(A200=\"\",\"\",VLOOKUP(H200,Clubs!A:B,2,FALSE))","v":""},null,"",null,null,null,null,"  ",{"$f":"IFERROR(HLOOKUP(L200,Juges!$1:$22,22,FALSE),\"\")","v":""},{"$f":"+IF(OR(LEFT($Q200,1)=\"I\",LEFT($Q200,1)=\"R\"),VLOOKUP($Q200,'Paramétrage des points'!$U:$V,2,FALSE),0)","v":0},{"$f":"IF(ISBLANK(M200),0,IFERROR(VLOOKUP(M200,'Résultat final'!D:L,9,FALSE),0))","v":0}]
[null,null,null,null,null,"",null,null,{"$f":"IF(A201=\"\",\"\",VLOOKUP(H201,Clubs!A:B,2,FALSE))","v":""},null,"",null,null,null,null,"  ",{"$f":"IFERROR(HLOOKUP(L201,Juges!$1:$22,22,FALSE),\"\")","v":""},{"$f":"+IF(OR(LEFT($Q201,1)=\"I\",LEFT($Q201,1)=\"R\"),VLOOKUP($Q201,'Paramétrage des points'!$U:$V,2,FALSE),0)","v":0},{"$f":"IF(ISBLANK(M201),0,IFERROR(VLOOKUP(M201,'Résultat final'!D:L,9,FALSE),0))","v":0}]

{"sheet":"pesée","index":6,"n_rows":12,"n_cols":8,"rows_kept":12,"cut":false,"hidden":false,"merged":[[0,0,0,7],[1,0,1,7],[3,0,3,7]]}
["FEDERATION FRANCAISE D'HALTEROPHILIE,"]
["MUSCULATION, FORCE ATHLETIQUE ET CULTURISME"]
[]
[" DISCIPLINE  CULTURISME"]
[]
["COMPETITION     ",{"$f":"+Parametres!B3","v":"Compétition magnifique"},null,null,"LIEU    ",null,{"$f":"+Parametres!B9","v":"Gymnase c'est ici"}]
[]
["DATE    ",{"$f":"+dateco","v":"2013-03-13"},null,null,"CATEGORIE",null,"FV"]
[null,null,null,null,{"$f":"G8","v":"FV"}]
["NOM","PRENOM","DATE-NAISSANCE","N° LICENCE","CLUB","COMITE","N° DOSSARD","POIDS"]
["FOURNIER","SYLVIE","1960-11-20",221849,"MUSCULATION HAUBOURDINOISE","NORD PAS DE CALAIS",20,59.1]
["MONCOURTOIS","CHRISTELLE","1960-11-20",141090,"ASC MUSCLE GYM SOISSONS","PICARDIE",33,"51.80"]

{"sheet":"FV","index":7,"n_rows":30,"n_cols":20,"rows_kept":30,"cut":false,"hidden":false,"merged":[[7,2,7,7],[7,11,7,12]]}
[null,"FEDERATION FRANCAISE D'HALTEROPHILIE,"]
[null,"MUSCULATION, FORCE ATHLETIQUE ET CULTURISME"]
[]
[null," DISCIPLINE  CULTURISME"]
[null,null,2,2,2,2,2,0,0,0,0]
[null,"COMPETITION  :","Compétition magnifique",null,null,null,null,null,null,null,"LIEU : ","Gymnase c'est ici"]
[]
[null,"Date : ","2013-03-13",null,null,null,null,null,null,null,"Catégorie : ","FV",null,null,null,"N",null,null,null,5]
["Juges!I1:I15",0,0,0]
[2,null,2,2,2,2,2,0,0,0,0,2,null,null,null,null,null,null,null,9]
[null,null,"JUGES TITULAIRES",null,null,null,null,null,null,null,null,15,null,null,null,null,null,null,null,0]
[null,null,"N°1","N°2","N°3","N°4","N°5","N°6","N°7","N°8","N°9",null,null,null,null,null,null,null,null,2]
["N°","NOM, PRENOM DES ATHLETES","GG","FF","EE","HH","II","","","","","TOTAL","PLACE",null,null,"NOM","N°","CLUB","COMITE",5]
[33,"MONCOURTOIS CHRISTELLE",1,1,1,1,1,null,null,null,null,5,1,null,null,"  ",0,0,0,5]
[20,"FOURNIER SYLVIE",2,2,2,2,2,null,null,null,null,10,2,null,null,"FOURNIER  SYLVIE",20,"MUSCULATION HAUBOURDINOISE","NORD PAS DE CALAIS",5]
[0," ",null,null,null,null,null,null,null,null,null,"","",null,null,"  ",0,0,0,0]
[0," ",null,null,null,null,null,null,null,null,null,"","",null,null,"  ",0,0,0,0]
[0," ",null,null,null,null,null,null,null,null,null,"","",null,null,"MONCOURTOIS  CHRISTELLE",33,"ASC MUSCLE GYM SOISSONS","PICARDIE",0]
[0," ",null,null,null,null,null,null,null,null,null,"","",null,null,"  ",0,0,0,0]
[0," ",null,null,null,null,null,null,null,null,null,"","",null,null,"  ",0,0,0,0]
[0," ",null,null,null,null,null,null,null,null,null,"","",null,null,"  ",0,0,0,0]
[0," ",null,null,null,null,null,null,null,null,null,"","",null,null,"  ",0,0,0,0]
[0," ",null,null,null,null,null,null,null,null,null,"","",null,null,"  ",0,0,0,0]
[0," ",null,null,null,null,null,null,null,null,null,"","",null,null,"  ",0,0,0,0]
[0," ",null,null,null,null,null,null,null,null,null,"","",null,null,"  ",0,0,0,0]
[0," ",null,null,null,null,null,null,null,null,null,"","",null,null,"  ",0,0,0,0]
[0," ",null,null,null,null,null,null,null,null,null,"","",null,null,"  ",0,0,0,0]
[0," ",null,null,null,null,null,null,null,null,null,"","",null,null,"  ",0,0,0,0]
["La secrétaire,",null,"Le responsable,",null,null,null,null,null,null,null,null,"le responsable des juges : "]
["Signature,",null,"Signature,",null,null,null,null,null,null,null,null,"Signature,"]

{"sheet":"notes juge","index":8,"n_rows":145,"n_cols":10,"rows_kept":145,"cut":false,"hidden":false,"merged":[]}
[]
[null,"Compétition :",{"$f":"résultat!C6","v":"Compétition magnifique"},null,null,null,null,null,"Compétition :",{"$f":"C2","v":"Compétition magnifique"}]
[]
[null,"Date :",{"$f":"résultat!C8","v":"2013-03-13"},null,null,null,null,null,"Date :",{"$f":"C4","v":"2013-03-13"}]
[]
[null,"Juge","N° 1",null,null,null,null,null,"Juge","N° 2"]
[null,{"$f":"résultat!C13","v":"GG"},null,null,null,null,null,null,{"$f":"résultat!D13","v":"FF"}]
[null,"Juge :",null,null,null,null,null,null,"Juge :"]
[]
[null,"Catégorie :",{"$f":"résultat!L8","v":"FV"},null,null,null,null,null,"Catégorie :",{"$f":"C10","v":"FV"}]
[]
[null,"N° dossard","classement",null,null,null,null,null,"N° dossard","classement"]
[null,{"$f":"résultat!A14","v":20},null,null,null,null,null,null,{"$f":"B13","v":20}]
[null,{"$f":"résultat!A15","v":33},null,null,null,null,null,null,33]
[null,{"$f":"résultat!A16","v":0},null,null,null,null,null,null,0]
[null,{"$f":"résultat!A17","v":0},null,null,null,null,null,null,0]
[null,{"$f":"résultat!A18","v":0},null,null,null,null,null,null,0]
[null,{"$f":"résultat!A19","v":0},null,null,null,null,null,null,0]
[null,{"$f":"résultat!A20","v":0},null,null,null,null,null,null,0]
[null,{"$f":"résultat!A21","v":0},null,null,null,null,null,null,0]
[null,{"$f":"résultat!A22","v":0},null,null,null,null,null,null,0]
[null,{"$f":"résultat!A23","v":0},null,null,null,null,null,null,0]
[null,{"$f":"résultat!A24","v":0},null,null,null,null,null,null,0]
[null,{"$f":"résultat!A25","v":0},null,null,null,null,null,null,0]
[null,{"$f":"résultat!A26","v":0},null,null,null,null,null,null,0]
[null,{"$f":"résultat!A27","v":0},null,null,null,null,null,null,0]
[null,{"$f":"résultat!A28","v":0},null,null,null,null,null,null,0]
[]
[null,"Signature,",null,null,null,null,null,null,"Signature,"]
[]
[null,"Compétition :",{"$f":"C2","v":"Compétition magnifique"},null,null,null,null,null,"Compétition :",{"$f":"C2","v":"Compétition magnifique"}]
[]
[null,"Date :",{"$f":"C4","v":"2013-03-13"},null,null,null,null,null,"Date :",{"$f":"C4","v":"2013-03-13"}]
[]
[null,"Juge","N° 3",null,null,null,null,null,"Juge","N° 4"]
[null,{"$f":"résultat!E13","v":"EE"},null,null,null,null,null,null,{"$f":"résultat!F13","v":"HH"}]
[null,"Juge :",null,null,null,null,null,null,"Juge :"]
[]
[null,"Catégorie :",{"$f":"C10","v":"FV"},null,null,null,null,null,"Catégorie :",{"$f":"C10","v":"FV"}]
[]
[null,"N° dossard","classement",null,null,null,null,null,"N° dossard","classement"]
[null,{"$f":"B13","v":20},null,null,null,null,null,null,{"$f":"B13","v":20}]
[null,33,null,null,null,null,null,null,{"$f":"B14","v":33}]
[null,0,null,null,null,null,null,null,0]
[null,0,null,null,null,null,null,null,0]
[null,0,null,null,null,null,null,null,0]
[null,0,null,null,null,null,null,null,0]
[null,0,null,null,null,null,null,null,0]
[null,0,null,null,null,null,null,null,0]
[null,0,null,null,null,null,null,null,0]
[null,0,null,null,null,null,null,null,0]
[null,0,null,null,null,null,null,null,0]
[null,0,null,null,null,null,null,null,0]
[null,0,null,null,null,null,null,null,0]
[null,0,null,null,null,null,null,null,0]
[null,0,null,null,null,null,null,null,0]
[]
[null,"Signature,",null,null,null,null,null,null,"Signature,"]
[]
[null,"Compétition :",{"$f":"C2","v":"Compétition magnifique"},null,null,null,null,null,"Compétition :",{"$f":"C2","v":"Compétition magnifique"}]
[]
[null,"Date :",{"$f":"C4","v":"2013-03-13"},null,null,null,null,null,"Date :",{"$f":"C4","v":"2013-03-13"}]
[]
[null,"Juge","N° 5",null,null,null,null,null,"Juge","N° 6"]
[null,{"$f":"résultat!G13","v":"II"},null,null,null,null,null,null,{"$f":"résultat!H13","v":""}]
[null,"Juge :",null,null,null,null,null,null,"Juge :"]
[]
[null,"Catégorie :",{"$f":"C10","v":"FV"},null,null,null,null,null,"Catégorie :",{"$f":"C10","v":"FV"}]
[]
[null,"N° dossard","classement",null,null,null,null,null,"N° dossard","classement"]
[null,{"$f":"B13","v":20},null,null,null,null,null,null,{"$f":"B13","v":20}]
[null,{"$f":"B14","v":33},null,null,null,null,null,null,{"$f":"B14","v":33}]
[null,0,null,null,null,null,null,null,0]
[null,0,null,null,null,null,null,null,0]
[null,0,null,null,null,null,null,null,0]
[null,0,null,null,null,null,null,null,0]
[null,0,null,null,null,null,null,null,0]
[null,0,null,null,null,null,null,null,0]
[null,0,null,null,null,null,null,null,0]
[null,0,null,null,null,null,null,null,0]
[null,0,null,null,null,null,null,null,0]
[null,0,null,null,null,null,null,null,0]
[null,0,null,null,null,null,null,null,0]
[null,0,null,null,null,null,null,null,0]
[null,0,null,null,null,null,null,null,0]
[]
[null,"Signature,",null,null,null,null,null,null,"Signature,"]
[]
[null,"Compétition :",{"$f":"C2","v":"Compétition magnifique"},null,null,null,null,null,"Compétition :",{"$f":"C2","v":"Compétition magnifique"}]
[]
[null,"Date :",{"$f":"C4","v":"2013-03-13"},null,null,null,null,null,"Date :",{"$f":"C4","v":"2013-03-13"}]
[]
[null,"Juge","N° 7",null,null,null,null,null,"Juge","N° 8"]
[null,{"$f":"résultat!I13","v":""},null,null,null,null,null,null,{"$f":"résultat!J13","v":""}]
[null,"Juge :",null,null,null,null,null,null,"Juge :"]
[]
[null,"Catégorie :",{"$f":"C10","v":"FV"},null,null,null,null,null,"Catégorie :",{"$f":"C10","v":"FV"}]
[]
[null,"N° dossard","classement",null,null,null,null,null,"N° dossard","classement"]
[null,{"$f":"B13","v":20},null,null,null,null,null,null,{"$f":"B13","v":20}]
[null,{"$f":"B14","v":33},null,null,null,null,null,null,{"$f":"B14","v":33}]
[null,0,null,null,null,null,null,null,0]
[null,0,null,null,null,null,null,null,0]
[null,0,null,null,null,null,null,null,0]
[null,0,null,null,null,null,null,null,0]
[null,0,null,null,null,null,null,null,0]
[null,0,null,null,null,null,null,null,0]
[null,0,null,null,null,null,null,null,0]
[null,0,null,null,null,null,null,null,0]
[null,0,null,null,null,null,null,null,0]
[null,0,null,null,null,null,null,null,0]
[null,0,null,null,null,null,null,null,0]
[null,0,null,null,null,null,null,null,0]
[null,0,null,null,null,null,null,null,0]
[]
[null,"Signature,",null,null,null,null,null,null,"Signature,"]
[]
[null,"Compétition :",{"$f":"C2","v":"Compétition magnifique"},null,null,null,null,null,"Compétition :",{"$f":"C2","v":"Compétition magnifique"}]
[]
[null,"Date :",{"$f":"C4","v":"2013-03-13"},null,null,null,null,null,"Date :",{"$f":"C4","v":"2013-03-13"}]
[]
[null,"Juge","N° 9",null,null,null,null,null,"Juge","N° "]
[null,{"$f":"résultat!K13","v":""}]
[null,"Juge :",null,null,null,null,null,null,"Juge :"]
[]
[null,"Catégorie :",{"$f":"C10","v":"FV"},null,null,null,null,null,"Catégorie :"]
[]
[null,"N° dossard","classement",null,null,null,null,null,"N° dossard","classement"]
[null,{"$f":"B13","v":20}]
[null,{"$f":"B14","v":33}]
[null,0]
[null,0]
[null,0]
[null,0]
[null,0]
[null,0]
[null,0]
[null,0]
[null,0]
[null,0]
[null,0]
[null,0]
[null,0]
[]
[null,"Signature,",null,null,null,null,null,null,"Signature,"]

{"sheet":"résultat","index":9,"n_rows":30,"n_cols":20,"rows_kept":30,"cut":false,"hidden":false,"merged":[[7,11,7,12],[7,2,7,7]]}
[null,{"$f":"pesée!A1","v":"FEDERATION FRANCAISE D'HALTEROPHILIE,"}]
[null,{"$f":"pesée!A2","v":"MUSCULATION, FORCE ATHLETIQUE ET CULTURISME"}]
[]
[null,{"$f":"pesée!A4","v":" DISCIPLINE  CULTURISME"}]
[null,null,{"$f":"MAX(C14:C28)","v":0},{"$f":"MAX(D14:D28)","v":0},0,0,0,0,0,0,0]
[null,"COMPETITION  :",{"$f":"pesée!$B$6","v":"Compétition magnifique"},null,null,null,null,null,null,null,"LIEU : ",{"$f":"pesée!G6","v":"Gymnase c'est ici"}]
[]
[null,"Date : ",{"$f":"pesée!$B$8","v":"2013-03-13"},null,null,null,null,null,null,null,"Catégorie : ",{"$f":"pesée!$G$8","v":"FV"},null,null,null,{"$f":"Parametres!C5","v":"N"},null,null,null,{"$f":"AVERAGEIF(T14:T28,\">0\")","v":{"$error":"#DIV/0!"}}]
[{"$f":"IF(L8=Juges!B1,\"Juges!B1:B15\",IF(L8=Juges!C1,\"Juges!C1:C15\",IF(L8=Juges!D1,\"Juges!D1:D15\",IF(L8=Juges!E1,\"Juges!E1:E15\",IF(L8=Juges!F1,\"Juges!F1:F15\",IF(L8=Juges!G1,\"Juges!G1:G15\",IF(L8=Juges!H1,\"Juges!H1:H15\",IF(L8=Juges!I1,\"Juges!I1:I15\",B9))))))))","v":"Juges!I1:I15"},{"$f":"IF(L8=Juges!J1,\"Juges!J1:J15\",IF(L8=Juges!K1,\"Juges!k1:K15\",IF(L8=Juges!L1,\"Juges!L1:L15\",IF(L8=Juges!M1,\"Juges!M1:M15\",IF(L8=Juges!N1,\"Juges!N1:N15\",IF(L8=Juges!O1,\"Juges!O1:O15\",IF(L8=Juges!P1,\"Juges!P1:P15\",IF(L8=Juges!Q1,\"Juges!Q1:Q15\",C9))))))))","v":0},{"$f":"IF(L8=Juges!R1,\"Juges!R1:R15\",IF(L8=Juges!S1,\"Juges!S1:S15\",IF(L8=Juges!T1,\"Juges!T1:T15\",IF(L8=Juges!U1,\"Juges!U1:U15\",IF(L8=Juges!V1,\"Juges!V1:V15\",IF(L8=Juges!W1,\"Juges!W1:W15\",IF(L8=Juges!X1,\"Juges!X1:X15\",IF(L8=Juges!Y1,\"Juges!y1:y15\",D9))))))))","v":0},{"$f":"IF(L8=Juges!Z1,\"Juges!z1:z15\",IF(L8=Juges!AA1,\"Juges!aa1:aa15\",IF(L8=Juges!AB1,\"Juges!ab1:ab15\",IF(L8=Juges!AC1,\"Juges!ac1:ac15\",IF(L8=Juges!AD1,\"Juges!ad1:ad15\",IF(L8=Juges!AE1,\"Juges!ae1:ae15\",))))))","v":0}]
[{"$f":"COUNTIF(A14:A28,\">0\")","v":2},null,{"$f":"COUNTA(C14:C28)","v":0},{"$f":"COUNTA(D14:D28)","v":0},0,0,0,0,0,0,{"$f":"COUNTA(K14:K28)","v":0},{"$f":"COUNTIF(L14:L28,\">0\")","v":0},null,null,null,null,null,null,null,{"$f":"COUNT(C10:K10)","v":9}]
[null,null,"JUGES TITULAIRES",null,null,null,null,null,null,null,null,{"$f":"SUM(L14:L28)","v":0},null,null,null,null,null,null,null,{"$f":"MIN(C10:K10)","v":0}]
[null,null,"N°1","N°2","N°3","N°4","N°5","N°6","N°7","N°8","N°9",null,null,null,null,null,null,null,null,{"$f":"COUNTIF(T14:T28,\">0\")","v":0}]
["N°","NOM, PRENOM DES ATHLETES",{"$f":"IFERROR(IF(ISBLANK(INDEX(Juges!A1:Z16,MATCH(1,INDIRECT(A9),),1)),\"\",INDEX(Juges!A1:Z16,MATCH(1,INDIRECT(A9),),1)),\"\")","v":"GG"},{"$f":"IFERROR(IF(ISBLANK(INDEX(Juges!A1:Z16,MATCH(2,INDIRECT(A9),),1)),\"\",INDEX(Juges!A1:Z16,MATCH(2,INDIRECT(A9),),1)),\"\")","v":"FF"},{"$f":"IFERROR(IF(ISBLANK(INDEX(Juges!A1:Z16,MATCH(3,INDIRECT(A9),),1)),\"\",INDEX(Juges!A1:Z16,MATCH(3,INDIRECT(A9),),1)),\"\")","v":"EE"},{"$f":"IFERROR(IF(ISBLANK(INDEX(Juges!A1:Z16,MATCH(4,INDIRECT(A9),),1)),\"\",INDEX(Juges!A1:Z16,MATCH(4,INDIRECT(A9),),1)),\"\")","v":"HH"},{"$f":"IFERROR(IF(ISBLANK(INDEX(Juges!A1:Z16,MATCH(5,INDIRECT(A9),),1)),\"\",INDEX(Juges!A1:Z16,MATCH(5,INDIRECT(A9),),1)),\"\")","v":"II"},{"$f":"IFERROR(IF(ISBLANK(INDEX(Juges!A1:Z16,MATCH(6,INDIRECT(A9),),1)),\"\",INDEX(Juges!A1:Z16,MATCH(6,INDIRECT(A9),),1)),\"\")","v":""},{"$f":"IFERROR(IF(ISBLANK(INDEX(Juges!A1:Z16,MATCH(7,INDIRECT(A9),),1)),\"\",INDEX(Juges!A1:Z16,MATCH(7,INDIRECT(A9),),1)),\"\")","v":""},{"$f":"IFERROR(IF(ISBLANK(INDEX(Juges!A1:Z16,MATCH(8,INDIRECT(A9),),1)),\"\",INDEX(Juges!A1:Z16,MATCH(8,INDIRECT(A9),),1)),\"\")","v":""},{"$f":"IFERROR(IF(ISBLANK(INDEX(Juges!A1:Z16,MATCH(9,INDIRECT(A9),),1)),\"\",INDEX(Juges!A1:Z16,MATCH(9,INDIRECT(A9),),1)),\"\")","v":""},"TOTAL","PLACE",null,null,{"$f":"pesée!A10","v":"NOM"},"N°","CLUB","COMITE",{"$f":"COUNTA(C13:K13)-COUNTIF(C13:K13,\"\")","v":5}]
[{"$f":"pesée!G11","v":20},{"$f":"pesée!A11&\" \"&pesée!B11","v":"FOURNIER SYLVIE"},null,null,null,null,null,null,null,null,null,{"$f":"IF(C14<>\"\",(IF(H14=\"\",SUM(C14:G14),(IF(K14=\"\",SUM(C14:K14)-MIN(C14:K14)-MAX(C14:K14),SUM(C14:K14)-MIN(C14:K14)-MAX(C14:K14)-SMALL(C14:K14,2)-LARGE(C14:K14,2))))),\"\")","v":""},{"$f":"IF(ISERROR(RANK(L14,$L$14:$L$28,3)),\"\",(RANK(L14,$L$14:$L$28,3)))","v":""},null,null,{"$f":"pesée!A11&\"  \"&pesée!B11","v":"FOURNIER  SYLVIE"},{"$f":"pesée!G11","v":20},{"$f":"pesée!E11","v":"MUSCULATION HAUBOURDINOISE"},{"$f":"pesée!F11","v":"NORD PAS DE CALAIS"},{"$f":"COUNTA(C14:K14)","v":0}]
[{"$f":"pesée!G12","v":33},{"$f":"pesée!A12&\" \"&pesée!B12","v":"MONCOURTOIS CHRISTELLE"},null,null,null,null,null,null,null,null,null,"","",null,null,{"$f":"pesée!A15&\"  \"&pesée!B15","v":"  "},{"$f":"pesée!G15","v":0},{"$f":"pesée!E15","v":0},{"$f":"pesée!F15","v":0},{"$f":"COUNTA(C15:K15)","v":0}]
[{"$f":"pesée!G13","v":0},{"$f":"pesée!A13&\" \"&pesée!B13","v":" "},null,null,null,null,null,null,null,null,null,"","",null,null,{"$f":"pesée!A14&\"  \"&pesée!B14","v":"  "},{"$f":"pesée!G14","v":0},{"$f":"pesée!E14","v":0},{"$f":"pesée!F14","v":0},0]
[{"$f":"pesée!G14","v":0},{"$f":"pesée!A14&\" \"&pesée!B14","v":" "},null,null,null,null,null,null,null,null,null,"","",null,null,{"$f":"pesée!A13&\"  \"&pesée!B13","v":"  "},{"$f":"pesée!G13","v":0},{"$f":"pesée!E13","v":0},{"$f":"pesée!F13","v":0},0]
[{"$f":"pesée!G15","v":0},{"$f":"pesée!A15&\" \"&pesée!B15","v":" "},null,null,null,null,null,null,null,null,null,"","",null,null,{"$f":"pesée!A12&\"  \"&pesée!B12","v":"MONCOURTOIS  CHRISTELLE"},{"$f":"pesée!G12","v":33},{"$f":"pesée!E12","v":"ASC MUSCLE GYM SOISSONS"},{"$f":"pesée!F12","v":"PICARDIE"},0]
[{"$f":"pesée!G16","v":0},{"$f":"pesée!A16&\" \"&pesée!B16","v":" "},null,null,null,null,null,null,null,null,null,"","",null,null,{"$f":"pesée!A16&\"  \"&pesée!B16","v":"  "},{"$f":"pesée!G16","v":0},{"$f":"pesée!E16","v":0},{"$f":"pesée!F16","v":0},0]
[{"$f":"pesée!G17","v":0},{"$f":"pesée!A17&\" \"&pesée!B17","v":" "},null,null,null,null,null,null,null,null,null,"","",null,null,{"$f":"pesée!A17&\"  \"&pesée!B17","v":"  "},{"$f":"pesée!G17","v":0},{"$f":"pesée!E17","v":0},{"$f":"pesée!F17","v":0},0]
[{"$f":"pesée!G18","v":0},{"$f":"pesée!A18&\" \"&pesée!B18","v":" "},null,null,null,null,null,null,null,null,null,{"$f":"IF(C21<>\"\",(IF(H21=\"\",SUM(C21:G21),(IF(K21=\"\",SUM(C21:K21)-MIN(C21:K21)-MAX(C21:K21),SUM(C21:K21)-MIN(C21:K21)-MAX(C21:K21)-SMALL(C21:K21,2)-LARGE(C21:K21,2))))),\"\")","v":""},{"$f":"IF(ISERROR(RANK(L21,$L$14:$L$28,3)),\"\",(RANK(L21,$L$14:$L$28,3)))","v":""},null,null,{"$f":"pesée!A18&\"  \"&pesée!B18","v":"  "},{"$f":"pesée!G18","v":0},{"$f":"pesée!E18","v":0},{"$f":"pesée!F18","v":0},0]
[{"$f":"pesée!G19","v":0},{"$f":"pesée!A19&\" \"&pesée!B19","v":" "},null,null,null,null,null,null,null,null,null,"","",null,null,{"$f":"pesée!A19&\"  \"&pesée!B19","v":"  "},{"$f":"pesée!G19","v":0},{"$f":"pesée!E19","v":0},{"$f":"pesée!F19","v":0},0]
[{"$f":"pesée!G20","v":0},{"$f":"pesée!A20&\" \"&pesée!B20","v":" "},null,null,null,null,null,null,null,null,null,"","",null,null,{"$f":"pesée!A20&\"  \"&pesée!B20","v":"  "},{"$f":"pesée!G20","v":0},{"$f":"pesée!E20","v":0},{"$f":"pesée!F20","v":0},0]
[{"$f":"pesée!G21","v":0},{"$f":"pesée!A21&\" \"&pesée!B21","v":" "},null,null,null,null,null,null,null,null,null,"","",null,null,{"$f":"pesée!A21&\"  \"&pesée!B21","v":"  "},{"$f":"pesée!G21","v":0},{"$f":"pesée!E21","v":0},{"$f":"pesée!F21","v":0},0]
[{"$f":"pesée!G22","v":0},{"$f":"pesée!A22&\" \"&pesée!B22","v":" "},null,null,null,null,null,null,null,null,null,{"$f":"IF(C25<>\"\",(IF(H25=\"\",SUM(C25:G25),(IF(K25=\"\",SUM(C25:K25)-MIN(C25:K25)-MAX(C25:K25),SUM(C25:K25)-MIN(C25:K25)-MAX(C25:K25)-SMALL(C25:K25,2)-LARGE(C25:K25,2))))),\"\")","v":""},{"$f":"IF(ISERROR(RANK(L25,$L$14:$L$28,3)),\"\",(RANK(L25,$L$14:$L$28,3)))","v":""},null,null,{"$f":"pesée!A22&\"  \"&pesée!B22","v":"  "},{"$f":"pesée!G22","v":0},{"$f":"pesée!E22","v":0},{"$f":"pesée!F22","v":0},0]
[{"$f":"pesée!G23","v":0},{"$f":"pesée!A23&\" \"&pesée!B23","v":" "},null,null,null,null,null,null,null,null,null,"","",null,null,{"$f":"pesée!A23&\"  \"&pesée!B23","v":"  "},{"$f":"pesée!G23","v":0},{"$f":"pesée!E23","v":0},{"$f":"pesée!F23","v":0},0]
[{"$f":"pesée!G24","v":0},{"$f":"pesée!A24&\" \"&pesée!B24","v":" "},null,null,null,null,null,null,null,null,null,"","",null,null,{"$f":"pesée!A24&\"  \"&pesée!B24","v":"  "},{"$f":"pesée!G24","v":0},{"$f":"pesée!E24","v":0},{"$f":"pesée!F24","v":0},0]
[{"$f":"pesée!G25","v":0},{"$f":"pesée!A25&\" \"&pesée!B25","v":" "},null,null,null,null,null,null,null,null,null,"","",null,null,{"$f":"pesée!A25&\"  \"&pesée!B25","v":"  "},{"$f":"pesée!G25","v":0},{"$f":"pesée!E25","v":0},{"$f":"pesée!F25","v":0},0]
["La secrétaire,",null,"Le responsable,",null,null,null,null,null,null,null,null,"le responsable des juges : "]
["Signature,",null,"Signature,",null,null,null,null,null,null,null,null,"Signature,"]

{"sheet":"résultat culturis form","index":10,"n_rows":30,"n_cols":50,"rows_kept":30,"cut":false,"hidden":false,"merged":[[7,2,7,12],[7,20,7,21],[11,2,11,3],[11,4,11,5],[11,6,11,7],[11,8,11,9],[11,10,11,11],[11,12,11,13],[11,14,11,15],[11,16,11,17],[11,18,11,19],[12,12,12,13],[12,14,12,15],[12,16,12,17],[12,18,12,19],[12,2,12,3],[12,4,12,5],[12,6,12,7],[12,8,12,9],[12,10,12,11]]}
[null,{"$f":"pesée!A1","v":"FEDERATION FRANCAISE D'HALTEROPHILIE,"}]
[null,{"$f":"pesée!A2","v":"MUSCULATION, FORCE ATHLETIQUE ET CULTURISME"}]
[]
[null,{"$f":"pesée!A4","v":" DISCIPLINE  CULTURISME"}]
[null,null,{"$f":"MAX(C14:C28)","v":0},{"$f":"MAX(D14:D28)","v":0},0,0,0,0,0,0,0,0,0,0,0,0,0,0,0,0]
[null,"COMPETITION  :",{"$f":"pesée!$B$6","v":"Compétition magnifique"},null,null,null,null,null,null,null,null,null,null,null,null,null,null,null,"LIEU : ",null,{"$f":"pesée!G6","v":"Gymnase c'est ici"}]
[null,null,{"$f":"COUNTIF(C13,\"> \")","v":1},{"$f":"+C7","v":1},{"$f":"COUNTIF(E13,\"> \")","v":1},{"$f":"+E7","v":1},{"$f":"COUNTIF(G13,\"> \")","v":1},{"$f":"+G7","v":1},{"$f":"COUNTIF(I13,\"> \")","v":1},{"$f":"+I7","v":1},{"$f":"COUNTIF(K13,\"> \")","v":1},{"$f":"+K7","v":1},{"$f":"COUNTIF(M13,\"> \")","v":0},{"$f":"+M7","v":0},{"$f":"COUNTIF(O13,\"> \")","v":0},{"$f":"+O7","v":0},{"$f":"COUNTIF(Q13,\"> \")","v":0},{"$f":"+Q7","v":0},{"$f":"COUNTIF(S13,\"> \")","v":0},{"$f":"+S7","v":0}]
[null,"Date : ",{"$f":"pesée!$B$8","v":"2013-03-13"},null,null,null,null,null,null,null,null,null,null,null,null,null,null,null,"Catégorie : ",null,{"$f":"pesée!$G$8","v":"FV"},null,null,{"$f":"Parametres!C5","v":"N"},null,null,null,null,null,null,null,null,null,null,null,null,null,null,null,null,null,null,null,null,null,null,null,null,null,{"$f":"AVERAGEIF(AX14:AX28,\">0\")","v":{"$error":"#DIV/0!"}}]
[{"$f":"IF(U8=Juges!B1,\"Juges!B1:B15\",IF(U8=Juges!C1,\"Juges!C1:C15\",IF(U8=Juges!D1,\"Juges!D1:D15\",IF(U8=Juges!E1,\"Juges!E1:E15\",IF(U8=Juges!F1,\"Juges!F1:F15\",IF(U8=Juges!G1,\"Juges!G1:G15\",IF(U8=Juges!H1,\"Juges!H1:H15\",IF(U8=Juges!I1,\"Juges!I1:I15\",B9))))))))","v":"Juges!I1:I15"},{"$f":"IF(U8=Juges!J1,\"Juges!J1:J15\",IF(U8=Juges!K1,\"Juges!k1:K15\",IF(U8=Juges!L1,\"Juges!L1:L15\",IF(U8=Juges!M1,\"Juges!M1:M15\",IF(U8=Juges!N1,\"Juges!N1:N15\",IF(U8=Juges!O1,\"Juges!O1:O15\",IF(U8=Juges!P1,\"Juges!P1:P15\",IF(U8=Juges!Q1,\"Juges!Q1:Q15\",C9))))))))","v":0},{"$f":"IF(U8=Juges!R1,\"Juges!R1:R15\",IF(U8=Juges!S1,\"Juges!S1:S15\",IF(U8=Juges!T1,\"Juges!T1:T15\",IF(U8=Juges!U1,\"Juges!U1:U15\",IF(U8=Juges!V1,\"Juges!V1:V15\",IF(U8=Juges!W1,\"Juges!W1:W15\",IF(U8=Juges!X1,\"Juges!X1:X15\",IF(U8=Juges!Y1,\"Juges!y1:y15\",D9))))))))","v":0},{"$f":"IF(U8=Juges!Z1,\"Juges!z1:z15\",IF(U8=Juges!AA1,\"Juges!aa1:aa15\",IF(U8=Juges!AB1,\"Juges!ab1:ab15\",IF(U8=Juges!AC1,\"Juges!ac1:ac15\",IF(U8=Juges!AD1,\"Juges!ad1:ad15\",IF(U8=Juges!AE1,\"Juges!ae1:ae15\",))))))","v":0}]
[{"$f":"COUNTIF(A14:A28,\">0\")","v":2},null,{"$f":"COUNTA(C14:C28)","v":0},{"$f":"COUNTA(D14:D28)","v":0},0,0,0,0,0,0,{"$f":"COUNTA(K14:K28)","v":0},{"$f":"COUNTA(L14:L28)","v":0},0,0,0,0,0,0,0,0,{"$f":"COUNTIF(U14:U28,\">0\")","v":0},null,null,null,null,null,null,null,null,null,null,null,null,null,null,null,null,null,null,null,null,null,null,null,null,null,null,null,null,{"$f":"COUNT(C10:T10)/2","v":9}]
[null,null,"JUGES TITULAIRES",null,null,null,null,null,null,null,null,null,null,null,null,null,null,null,null,null,{"$f":"SUM(U14:U28)","v":0},null,null,null,null,null,null,null,null,null,null,null,null,null,null,null,null,null,null,null,null,null,null,null,null,null,null,null,null,{"$f":"MIN(AG10:AO10)","v":0}]
[null,null,"N°1",null,"N°2",null,"N°3",null,"N°4",null,"N°5",null,"N°6",null,"N°7",null,"N°8",null,"N°9",null,null,null,null,null,null,null,null,null,null,null,null,null,null,null,null,null,null,null,null,null,null,null,null,null,null,null,null,null,null,{"$f":"COUNTIF(AX14:AX28,\">0\")","v":0}]
["N°","NOM, PRENOM DES ATHLETES",{"$f":"IFERROR(IF(ISBLANK(INDEX(Juges!A1:Z16,MATCH(1,INDIRECT(A9),),1)),\"\",INDEX(Juges!A1:Z16,MATCH(1,INDIRECT(A9),),1)),\"\")","v":"GG"},null,{"$f":"IFERROR(IF(ISBLANK(INDEX(Juges!A1:Z16,MATCH(2,INDIRECT(A9),),1)),\"\",INDEX(Juges!A1:Z16,MATCH(2,INDIRECT(A9),),1)),\"\")","v":"FF"},null,{"$f":"IFERROR(IF(ISBLANK(INDEX(Juges!A1:Z16,MATCH(3,INDIRECT(A9),),1)),\"\",INDEX(Juges!A1:Z16,MATCH(3,INDIRECT(A9),),1)),\"\")","v":"EE"},null,{"$f":"IFERROR(IF(ISBLANK(INDEX(Juges!A1:Z16,MATCH(4,INDIRECT(A9),),1)),\"\",INDEX(Juges!A1:Z16,MATCH(4,INDIRECT(A9),),1)),\"\")","v":"HH"},null,{"$f":"IFERROR(IF(ISBLANK(INDEX(Juges!A1:Z16,MATCH(5,INDIRECT(A9),),1)),\"\",INDEX(Juges!A1:Z16,MATCH(5,INDIRECT(A9),),1)),\"\")","v":"II"},null,{"$f":"IFERROR(IF(ISBLANK(INDEX(Juges!A1:Z16,MATCH(6,INDIRECT(A9),),1)),\"\",INDEX(Juges!A1:Z16,MATCH(6,INDIRECT(A9),),1)),\"\")","v":""},null,{"$f":"IFERROR(IF(ISBLANK(INDEX(Juges!A1:Z16,MATCH(7,INDIRECT(A9),),1)),\"\",INDEX(Juges!A1:Z16,MATCH(7,INDIRECT(A9),),1)),\"\")","v":""},null,{"$f":"IFERROR(IF(ISBLANK(INDEX(Juges!A1:Z16,MATCH(8,INDIRECT(A9),),1)),\"\",INDEX(Juges!A1:Z16,MATCH(8,INDIRECT(A9),),1)),\"\")","v":""},null,{"$f":"IFERROR(IF(ISBLANK(INDEX(Juges!A1:Z16,MATCH(9,INDIRECT(A9),),1)),\"\",INDEX(Juges!A1:Z16,MATCH(9,INDIRECT(A9),),1)),\"\")","v":""},null,"TOTAL","PLACE",null,{"$f":"pesée!A10","v":"NOM"},"N°","CLUB","COMITE",null,{"$f":"+C13","v":"GG"},{"$f":"+E13","v":"FF"},{"$f":"+G13","v":"EE"},{"$f":"+I13","v":"HH"},{"$f":"+K13","v":"II"},{"$f":"+M13","v":""},{"$f":"+O13","v":""},{"$f":"+Q13","v":""},{"$f":"+S13","v":""},null,null,null,null,null,null,null,null,null,null,null,null,{"$f":"SUM(C7:T7)","v":10}]
[{"$f":"pesée!G11","v":20},{"$f":"pesée!A11&\" \"&pesée!B11","v":"FOURNIER SYLVIE"},null,null,null,null,null,null,null,null,null,null,null,null,null,null,null,null,null,null,{"$f":"IF(C14<>\"\",SUM(AL14+AW14),\"\")","v":""},{"$f":"IF(ISERROR(RANK(U14,$U$14:$U$28,3)),\"\",(RANK(U14,$U$14:$U$28,3)))","v":""},null,{"$f":"pesée!A12&\"  \"&pesée!B12","v":"MONCOURTOIS  CHRISTELLE"},{"$f":"pesée!G12","v":33},{"$f":"pesée!E12","v":"ASC MUSCLE GYM SOISSONS"},{"$f":"pesée!F12","v":"PICARDIE"},null,{"$f":"C14","v":0},{"$f":"E14","v":0},{"$f":"G14","v":0},{"$f":"I14","v":0},{"$f":"K14","v":0},{"$f":"M14","v":0},{"$f":"O14","v":0},{"$f":"Q14","v":0},{"$f":"S14","v":0},{"$f":"IF(C14<>\"\",(IF(M14=\"\",SUM(AC14:AG14),(IF(AK14=\"\",SUM(AC14:AK14)-MIN(AC14:AK14)-MAX(AC14:AK14),SUM(AC14:AK14)-MIN(AC14:AK14)-MAX(AC14:AK14)-SMALL(AC14:AK14,2)-LARGE(AC14:AK14,2))))),\"\")","v":""},null,{"$f":"D14","v":0},{"$f":"F14","v":0},{"$f":"H14","v":0},{"$f":"J14","v":0},{"$f":"L14","v":0},{"$f":"N14","v":0},{"$f":"P14","v":0},{"$f":"R14","v":0},{"$f":"T14","v":0},{"$f":"IF(C14<>\"\",(IF(M14=\"\",SUM(AN14:AR14),(IF(AV14=\"\",SUM(AN14:AV14)-MIN(AN14:AV14)-MAX(AN14:AV14),SUM(AN14:AV14)-MIN(AN14:AV14)-MAX(AN14:AV14)-SMALL(AN14:AV14,2)-LARGE(AN14:AV14,2))))),\"\")","v":""},{"$f":"COUNTA(C14:T14)","v":0}]
[{"$f":"pesée!G12","v":33},{"$f":"pesée!A12&\" \"&pesée!B12","v":"MONCOURTOIS CHRISTELLE"},null,null,null,null,null,null,null,null,null,null,null,null,null,null,null,null,null,null,"","",null,{"$f":"pesée!A11&\"  \"&pesée!B11","v":"FOURNIER  SYLVIE"},{"$f":"pesée!G11","v":20},{"$f":"pesée!E11","v":"MUSCULATION HAUBOURDINOISE"},{"$f":"pesée!F11","v":"NORD PAS DE CALAIS"},null,0,0,0,0,0,0,0,0,0,"",null,0,0,0,0,0,0,0,0,0,"",0]
[{"$f":"pesée!G13","v":0},{"$f":"pesée!A13&\" \"&pesée!B13","v":" "},null,null,null,null,null,null,null,null,null,null,null,null,null,null,null,null,null,null,"","",null,{"$f":"pesée!A14&\"  \"&pesée!B14","v":"  "},{"$f":"pesée!G14","v":0},{"$f":"pesée!E14","v":0},{"$f":"pesée!F14","v":0},null,0,0,0,0,0,0,0,0,0,"",null,0,0,0,0,0,0,0,0,0,"",0]
[{"$f":"pesée!G14","v":0},{"$f":"pesée!A14&\" \"&pesée!B14","v":" "},null,null,null,null,null,null,null,null,null,null,null,null,null,null,null,null,null,null,"","",null,{"$f":"pesée!A15&\"  \"&pesée!B15","v":"  "},{"$f":"pesée!G15","v":0},{"$f":"pesée!E15","v":0},{"$f":"pesée!F15","v":0},null,0,0,0,0,0,0,0,0,0,"",null,0,0,0,0,0,0,0,0,0,"",0]
[{"$f":"pesée!G15","v":0},{"$f":"pesée!A15&\" \"&pesée!B15","v":" "},null,null,null,null,null,null,null,null,null,null,null,null,null,null,null,null,null,null,"","",null,{"$f":"pesée!A13&\"  \"&pesée!B13","v":"  "},{"$f":"pesée!G13","v":0},{"$f":"pesée!E13","v":0},{"$f":"pesée!F13","v":0},null,0,0,0,0,0,0,0,0,0,"",null,0,0,0,0,0,0,0,0,0,"",0]
[{"$f":"pesée!G16","v":0},{"$f":"pesée!A16&\" \"&pesée!B16","v":" "},null,null,null,null,null,null,null,null,null,null,null,null,null,null,null,null,null,null,"","",null,{"$f":"pesée!A16&\"  \"&pesée!B16","v":"  "},{"$f":"pesée!G16","v":0},{"$f":"pesée!E16","v":0},{"$f":"pesée!F16","v":0},null,0,0,0,0,0,0,0,0,0,"",null,0,0,0,0,0,0,0,0,0,"",0]
[{"$f":"pesée!G17","v":0},{"$f":"pesée!A17&\" \"&pesée!B17","v":" "},null,null,null,null,null,null,null,null,null,null,null,null,null,null,null,null,null,null,{"$f":"IF(C20<>\"\",SUM(AL20+AW20),\"\")","v":""},{"$f":"IF(ISERROR(RANK(U20,$U$14:$U$28,3)),\"\",(RANK(U20,$U$14:$U$28,3)))","v":""},null,{"$f":"pesée!A17&\"  \"&pesée!B17","v":"  "},{"$f":"pesée!G17","v":0},{"$f":"pesée!E17","v":0},{"$f":"pesée!F17","v":0},null,{"$f":"C20","v":0},{"$f":"E20","v":0},{"$f":"G20","v":0},{"$f":"I20","v":0},{"$f":"K20","v":0},{"$f":"M20","v":0},{"$f":"O20","v":0},{"$f":"Q20","v":0},{"$f":"S20","v":0},{"$f":"IF(C20<>\"\",(IF(M20=\"\",SUM(AC20:AG20),(IF(AK20=\"\",SUM(AC20:AK20)-MIN(AC20:AK20)-MAX(AC20:AK20),SUM(AC20:AK20)-MIN(AC20:AK20)-MAX(AC20:AK20)-SMALL(AC20:AK20,2)-LARGE(AC20:AK20,2))))),\"\")","v":""},null,{"$f":"D20","v":0},{"$f":"F20","v":0},{"$f":"H20","v":0},{"$f":"J20","v":0},{"$f":"L20","v":0},{"$f":"N20","v":0},{"$f":"P20","v":0},{"$f":"R20","v":0},{"$f":"T20","v":0},{"$f":"IF(C20<>\"\",(IF(M20=\"\",SUM(AN20:AR20),(IF(AV20=\"\",SUM(AN20:AV20)-MIN(AN20:AV20)-MAX(AN20:AV20),SUM(AN20:AV20)-MIN(AN20:AV20)-MAX(AN20:AV20)-SMALL(AN20:AV20,2)-LARGE(AN20:AV20,2))))),\"\")","v":""},{"$f":"COUNTA(C20:T20)","v":0}]
[{"$f":"pesée!G18","v":0},{"$f":"pesée!A18&\" \"&pesée!B18","v":" "},null,null,null,null,null,null,null,null,null,null,null,null,null,null,null,null,null,null,"","",null,{"$f":"pesée!A18&\"  \"&pesée!B18","v":"  "},{"$f":"pesée!G18","v":0},{"$f":"pesée!E18","v":0},{"$f":"pesée!F18","v":0},null,0,0,0,0,0,0,0,0,0,"",null,0,0,0,0,0,0,0,0,0,"",0]
[{"$f":"pesée!G19","v":0},{"$f":"pesée!A19&\" \"&pesée!B19","v":" "},null,null,null,null,null,null,null,null,null,null,null,null,null,null,null,null,null,null,"","",null,{"$f":"pesée!A19&\"  \"&pesée!B19","v":"  "},{"$f":"pesée!G19","v":0},{"$f":"pesée!E19","v":0},{"$f":"pesée!F19","v":0},null,0,0,0,0,0,0,0,0,0,"",null,0,0,0,0,0,0,0,0,0,"",0]
[{"$f":"pesée!G20","v":0},{"$f":"pesée!A20&\" \"&pesée!B20","v":" "},null,null,null,null,null,null,null,null,null,null,null,null,null,null,null,null,null,null,"","",null,{"$f":"pesée!A20&\"  \"&pesée!B20","v":"  "},{"$f":"pesée!G20","v":0},{"$f":"pesée!E20","v":0},{"$f":"pesée!F20","v":0},null,0,0,0,0,0,0,0,0,0,"",null,0,0,0,0,0,0,0,0,0,"",0]
[{"$f":"pesée!G21","v":0},{"$f":"pesée!A21&\" \"&pesée!B21","v":" "},null,null,null,null,null,null,null,null,null,null,null,null,null,null,null,null,null,null,"","",null,{"$f":"pesée!A21&\"  \"&pesée!B21","v":"  "},{"$f":"pesée!G21","v":0},{"$f":"pesée!E21","v":0},{"$f":"pesée!F21","v":0},null,0,0,0,0,0,0,0,0,0,"",null,0,0,0,0,0,0,0,0,0,"",0]
[{"$f":"pesée!G22","v":0},{"$f":"pesée!A22&\" \"&pesée!B22","v":" "},null,null,null,null,null,null,null,null,null,null,null,null,null,null,null,null,null,null,{"$f":"IF(C25<>\"\",SUM(AL25+AW25),\"\")","v":""},{"$f":"IF(ISERROR(RANK(U25,$U$14:$U$28,3)),\"\",(RANK(U25,$U$14:$U$28,3)))","v":""},null,{"$f":"pesée!A22&\"  \"&pesée!B22","v":"  "},{"$f":"pesée!G22","v":0},{"$f":"pesée!E22","v":0},{"$f":"pesée!F22","v":0},null,{"$f":"C25","v":0},{"$f":"E25","v":0},{"$f":"G25","v":0},{"$f":"I25","v":0},{"$f":"K25","v":0},{"$f":"M25","v":0},{"$f":"O25","v":0},{"$f":"Q25","v":0},{"$f":"S25","v":0},{"$f":"IF(C25<>\"\",(IF(M25=\"\",SUM(AC25:AG25),(IF(AK25=\"\",SUM(AC25:AK25)-MIN(AC25:AK25)-MAX(AC25:AK25),SUM(AC25:AK25)-MIN(AC25:AK25)-MAX(AC25:AK25)-SMALL(AC25:AK25,2)-LARGE(AC25:AK25,2))))),\"\")","v":""},null,{"$f":"D25","v":0},{"$f":"F25","v":0},{"$f":"H25","v":0},{"$f":"J25","v":0},{"$f":"L25","v":0},{"$f":"N25","v":0},{"$f":"P25","v":0},{"$f":"R25","v":0},{"$f":"T25","v":0},{"$f":"IF(C25<>\"\",(IF(M25=\"\",SUM(AN25:AR25),(IF(AV25=\"\",SUM(AN25:AV25)-MIN(AN25:AV25)-MAX(AN25:AV25),SUM(AN25:AV25)-MIN(AN25:AV25)-MAX(AN25:AV25)-SMALL(AN25:AV25,2)-LARGE(AN25:AV25,2))))),\"\")","v":""},0]
[{"$f":"pesée!G23","v":0},{"$f":"pesée!A23&\" \"&pesée!B23","v":" "},null,null,null,null,null,null,null,null,null,null,null,null,null,null,null,null,null,null,"","",null,{"$f":"pesée!A23&\"  \"&pesée!B23","v":"  "},{"$f":"pesée!G23","v":0},{"$f":"pesée!E23","v":0},{"$f":"pesée!F23","v":0},null,0,0,0,0,0,0,0,0,0,"",null,0,0,0,0,0,0,0,0,0,"",0]
[{"$f":"pesée!G24","v":0},{"$f":"pesée!A24&\" \"&pesée!B24","v":" "},null,null,null,null,null,null,null,null,null,null,null,null,null,null,null,null,null,null,"","",null,{"$f":"pesée!A24&\"  \"&pesée!B24","v":"  "},{"$f":"pesée!G24","v":0},{"$f":"pesée!E24","v":0},{"$f":"pesée!F24","v":0},null,0,0,0,0,0,0,0,0,0,"",null,0,0,0,0,0,0,0,0,0,"",0]
[{"$f":"pesée!G25","v":0},{"$f":"pesée!A25&\" \"&pesée!B25","v":" "},null,null,null,null,null,null,null,null,null,null,null,null,null,null,null,null,null,null,"","",null,{"$f":"pesée!A25&\"  \"&pesée!B25","v":"  "},{"$f":"pesée!G25","v":0},{"$f":"pesée!E25","v":0},{"$f":"pesée!F25","v":0},null,0,0,0,0,0,0,0,0,0,"",null,0,0,0,0,0,0,0,0,0,"",0]
["La secrétaire,",null,"Le responsable,",null,null,null,null,null,null,null,null,null,null,null,null,null,null,null,null,null,"le responsable des juges : "]
["Signature,",null,"Signature,",null,null,null,null,null,null,null,null,null,null,null,null,null,null,null,null,null,"Signature,"]

{"sheet":"C3","index":11,"n_rows":30,"n_cols":20,"rows_kept":30,"cut":false,"hidden":false,"merged":[[7,2,7,7],[7,11,7,12]]}
[null,"FEDERATION FRANCAISE D'HALTEROPHILIE,"]
[null,"MUSCULATION, FORCE ATHLETIQUE ET CULTURISME"]
[]
[null," DISCIPLINE  CULTURISME"]
[null,null,7,7,7,0,0,0,0,0,0]
[null,"COMPETITION  :","Compétition magnifique",null,null,null,null,null,null,null,"LIEU : ","Gymnase c'est ici"]
[]
[null,"Date : ","2013-03-13",null,null,null,null,null,null,null,"Catégorie : ","C3",null,null,null,"N",null,null,null,3]
["Juges!D1:D15",0,0,0]
[7,null,7,7,7,0,0,0,0,0,0,7,null,null,null,null,null,null,null,9]
[null,null,"JUGES TITULAIRES",null,null,null,null,null,null,null,null,84,null,null,null,null,null,null,null,0]
[null,null,"N°1","N°2","N°3","N°4","N°5","N°6","N°7","N°8","N°9",null,null,null,null,null,null,null,null,7]
["N°","NOM, PRENOM DES ATHLETES","AA","CC","BB","","","","","","","TOTAL","PLACE",null,null,"NOM","N°","CLUB","COMITE",3]
[9,"ROCHE  MATHIEU",2,2,2,null,null,null,null,null,null,6,1,null,null,"ROCHE   MATHIEU",9,"ACADEMIE CLUB LUCON","PAYS DE LOIRE",3]
[8,"DORIZON FLORENT",1,1,1,null,null,null,null,null,null,3,2,null,null,"DORIZON  FLORENT",8,"BBF ALLONES","PAYS DE LOIRE",3]
[16,"BUCHIN  Franck",3,3,3,null,null,null,null,null,null,9,3,null,null,"BUCHIN   Franck",16,"ACH FONTENAY","ILE DE FRANCE",3]
[17,"COSTE GEORGES",4,4,4,null,null,null,null,null,null,12,4,null,null,"COSTE  GEORGES",17,"GS SENLIS","PICARDIE",3]
[18,"DJEFAL karim",5,5,5,null,null,null,null,null,null,15,5,null,null,"DJEFAL  karim",18,"CA LENSOIS","NORD PAS DE CALAIS",3]
[19,"DOYER LUDOVIC",6,6,6,null,null,null,null,null,null,18,6,null,null,"DOYER  LUDOVIC",19,"MC FORM AUDRUICQ","NORD PAS DE CALAIS",3]
[20,"ALNET Philippe",7,7,7,null,null,null,null,null,null,21,7,null,null,"ALNET  Philippe",20,"VELIZY MUSCULATION","ILE DE FRANCE",3]
[0," ",null,null,null,null,null,null,null,null,null,"","",null,null,"  ",0,0,0,0]
[0," ",null,null,null,null,null,null,null,null,null,"","",null,null,"  ",0,0,0,0]
[0," ",null,null,null,null,null,null,null,null,null,"","",null,null,"  ",0,0,0,0]
[0," ",null,null,null,null,null,null,null,null,null,"","",null,null,"  ",0,0,0,0]
[0," ",null,null,null,null,null,null,null,null,null,"","",null,null,"  ",0,0,0,0]
[0," ",null,null,null,null,null,null,null,null,null,"","",null,null,"  ",0,0,0,0]
[0," ",null,null,null,null,null,null,null,null,null,"","",null,null,"  ",0,0,0,0]
[0," ",null,null,null,null,null,null,null,null,null,"","",null,null,"  ",0,0,0,0]
["La secrétaire,",null,"Le responsable,",null,null,null,null,null,null,null,null,"le responsable des juges : "]
["Signature,",null,"Signature,",null,null,null,null,null,null,null,null,"Signature,"]

{"sheet":"CULTURIS FORM","index":12,"n_rows":30,"n_cols":50,"rows_kept":30,"cut":false,"hidden":false,"merged":[[7,2,7,12],[7,20,7,21],[11,2,11,3],[11,4,11,5],[11,6,11,7],[11,8,11,9],[11,10,11,11],[11,12,11,13],[11,14,11,15],[11,16,11,17],[11,18,11,19],[12,2,12,3],[12,4,12,5],[12,6,12,7],[12,8,12,9],[12,10,12,11],[12,12,12,13],[12,14,12,15],[12,16,12,17],[12,18,12,19]]}
[null,"FEDERATION FRANCAISE D'HALTEROPHILIE,"]
[null,"MUSCULATION, FORCE ATHLETIQUE ET CULTURISME"]
[]
[null," DISCIPLINE  CULTURISME"]
[null,null,6,6,6,6,6,6,6,6,6,6,6,6,6,6,0,0,0,0]
[null,"COMPETITION  :","Compétition magnifique",null,null,null,null,null,null,null,null,null,null,null,null,null,null,null,"LIEU : ",null,"Gymnase c'est ici"]
[null,null,1,1,1,1,1,1,1,1,1,1,1,1,1,1,0,0,0,0]
[null,"Date : ","2013-03-13",null,null,null,null,null,null,null,null,null,null,null,null,null,null,null,"Catégorie : ",null,"CULTURIS FORM",null,null,"N",null,null,null,null,null,null,null,null,null,null,null,null,null,null,null,null,null,null,null,null,null,null,null,null,null,14]
["Juges!G1:G15",0,0,0]
[6,null,6,6,6,6,6,6,6,6,6,6,6,6,6,6,0,0,0,0,6,null,null,null,null,null,null,null,null,null,null,null,null,null,null,null,null,null,null,null,null,null,null,null,null,null,null,null,null,9]
[null,null,"JUGES TITULAIRES",null,null,null,null,null,null,null,null,null,null,null,null,null,null,null,null,null,210,null,null,null,null,null,null,null,null,null,null,null,null,null,null,null,null,null,null,null,null,null,null,null,null,null,null,null,null,0]
[null,null,"N°1",null,"N°2",null,"N°3",null,"N°4",null,"N°5",null,"N°6",null,"N°7",null,"N°8",null,"N°9",null,null,null,null,null,null,null,null,null,null,null,null,null,null,null,null,null,null,null,null,null,null,null,null,null,null,null,null,null,null,6]
["N°","NOM, PRENOM DES ATHLETES","FF",null,"DD",null,"CC",null,"BB",null,"AA",null,"HH",null,"KK",null,"",null,"",null,"TOTAL","PLACE",null,"NOM","N°","CLUB","COMITE",null,"FF","DD","CC","BB","AA","HH","KK","","",null,null,null,null,null,null,null,null,null,null,null,null,14]
[52,"LE MEUR Sylvain",1,1,1,1,1,1,1,1,1,1,1,1,1,1,null,null,null,null,10,1,null,"LE MEUR  Sylvain",52,"CMF LOCMINE","BRETAGNE",null,1,1,1,1,1,1,1,0,0,5,null,1,1,1,1,1,1,1,0,0,5,14]
[43,"COUPEL THIERRY",2,2,2,2,2,2,2,2,2,2,2,2,2,2,null,null,null,null,20,2,null,"COUPEL  THIERRY",43,"MH CLERMONTOIS","PICARDIE",null,2,2,2,2,2,2,2,0,0,10,null,2,2,2,2,2,2,2,0,0,10,14]
[42,"MARCHAL  LAURENT",3,3,3,3,3,3,3,3,3,3,3,3,3,3,null,null,null,null,30,3,null,"MARCHAL   LAURENT",42,"MH CLERMONTOIS","PICARDIE",null,3,3,3,3,3,3,3,0,0,15,null,3,3,3,3,3,3,3,0,0,15,14]
[51,"BLANCHET PATRICK",4,4,4,4,4,4,4,4,4,4,4,4,4,4,null,null,null,null,40,4,null,"BLANCHET  PATRICK",51,"CHFM ROISEL","PICARDIE",null,4,4,4,4,4,4,4,0,0,20,null,4,4,4,4,4,4,4,0,0,20,14]
[17,"VACTER Christophe",5,5,5,5,5,5,5,5,5,5,5,5,5,5,null,null,null,null,50,5,null,"VACTER  Christophe",17,"CSAG MOURMELON","CHAMPAGNE ARDENNES",null,5,5,5,5,5,5,5,0,0,25,null,5,5,5,5,5,5,5,0,0,25,14]
[20,"OUSFANE MOHAMED",6,6,6,6,6,6,6,6,6,6,6,6,6,6,null,null,null,null,60,6,null,"OUSFANE  MOHAMED",20,"PSA ACC CHARLEVILLE MEZIERES","CHAMPAGNE ARDENNES",null,6,6,6,6,6,6,6,0,0,30,null,6,6,6,6,6,6,6,0,0,30,14]
[0," ",null,null,null,null,null,null,null,null,null,null,null,null,null,null,null,null,null,null,"","",null,"  ",0,0,0,null,0,0,0,0,0,0,0,0,0,"",null,0,0,0,0,0,0,0,0,0,"",0]
[0," ",null,null,null,null,null,null,null,null,null,null,null,null,null,null,null,null,null,null,"","",null,"  ",0,0,0,null,0,0,0,0,0,0,0,0,0,"",null,0,0,0,0,0,0,0,0,0,"",0]
[0," ",null,null,null,null,null,null,null,null,null,null,null,null,null,null,null,null,null,null,"","",null,"  ",0,0,0,null,0,0,0,0,0,0,0,0,0,"",null,0,0,0,0,0,0,0,0,0,"",0]
[0," ",null,null,null,null,null,null,null,null,null,null,null,null,null,null,null,null,null,null,"","",null,"  ",0,0,0,null,0,0,0,0,0,0,0,0,0,"",null,0,0,0,0,0,0,0,0,0,"",0]
[0," ",null,null,null,null,null,null,null,null,null,null,null,null,null,null,null,null,null,null,"","",null,"  ",0,0,0,null,0,0,0,0,0,0,0,0,0,"",null,0,0,0,0,0,0,0,0,0,"",0]
[0," ",null,null,null,null,null,null,null,null,null,null,null,null,null,null,null,null,null,null,"","",null,"  ",0,0,0,null,0,0,0,0,0,0,0,0,0,"",null,0,0,0,0,0,0,0,0,0,"",0]
[0," ",null,null,null,null,null,null,null,null,null,null,null,null,null,null,null,null,null,null,"","",null,"  ",0,0,0,null,0,0,0,0,0,0,0,0,0,"",null,0,0,0,0,0,0,0,0,0,"",0]
[0," ",null,null,null,null,null,null,null,null,null,null,null,null,null,null,null,null,null,null,"","",null,"  ",0,0,0,null,0,0,0,0,0,0,0,0,0,"",null,0,0,0,0,0,0,0,0,0,"",0]
[0," ",null,null,null,null,null,null,null,null,null,null,null,null,null,null,null,null,null,null,"","",null,"  ",0,0,0,null,0,0,0,0,0,0,0,0,0,"",null,0,0,0,0,0,0,0,0,0,"",0]
["La secrétaire,",null,"Le responsable,",null,null,null,null,null,null,null,null,null,null,null,null,null,null,null,null,null,"le responsable des juges : "]
["Signature,",null,"Signature,",null,null,null,null,null,null,null,null,null,null,null,null,null,null,null,null,null,"Signature,"]

{"sheet":"Couples","index":13,"n_rows":30,"n_cols":20,"rows_kept":30,"cut":false,"hidden":false,"merged":[[7,2,7,7],[7,11,7,12]]}
[null,"FEDERATION FRANCAISE D'HALTEROPHILIE,"]
[null,"MUSCULATION, FORCE ATHLETIQUE ET CULTURISME"]
[]
[null," DISCIPLINE  CULTURISME"]
[null,null,1,1,2,2,2,2,2,2,2]
[null,"COMPETITION  :","Compétition magnifique",null,null,null,null,null,null,null,"LIEU : ","Gymnase c'est ici"]
[]
[null,"Date : ","2013-03-13",null,null,null,null,null,null,null,"Catégorie : ","Couples",null,null,null,"N",null,null,null,9]
["Juges!H1:H15",0,0,0]
[2,null,2,2,2,2,2,2,2,2,2,2,null,null,null,null,null,null,null,9]
[null,null,"JUGES TITULAIRES",null,null,null,null,null,null,null,null,20,null,null,null,null,null,null,null,2]
[null,null,"N°1","N°2","N°3","N°4","N°5","N°6","N°7","N°8","N°9",null,null,null,null,null,null,null,null,2]
["N°","NOM, PRENOM DES ATHLETES","AA","BB","CC","DD","EE","GG","FF","JJ","NN","TOTAL","PLACE",null,null,"NOM","N°","CLUB","COMITE",9]
[1,"MONCOURTOIS CHRISTELLE",1,1,2,2,2,2,2,2,2,10,1,null,null,"MONCOURTOIS  CHRISTELLE",1,"ASC MUSCLE GYM SOISSONS","PICARDIE",9]
[1,"BLANCHART FREDDY",1,1,2,2,2,2,2,2,2,10,1,null,null,"  ",0,0,0,9]
[0," ",null,null,null,null,null,null,null,null,null,"","",null,null,"  ",0,0,0,0]
[0," ",null,null,null,null,null,null,null,null,null,"","",null,null,"  ",0,0,0,0]
[0," ",null,null,null,null,null,null,null,null,null,"","",null,null,"BLANCHART  FREDDY",1,"ASC MUSCLE GYM SOISSONS","PICARDIE",0]
[0," ",null,null,null,null,null,null,null,null,null,"","",null,null,"  ",0,0,0,0]
[0," ",null,null,null,null,null,null,null,null,null,"","",null,null,"  ",0,0,0,0]
[0," ",null,null,null,null,null,null,null,null,null,"","",null,null,"  ",0,0,0,0]
[0," ",null,null,null,null,null,null,null,null,null,"","",null,null,"  ",0,0,0,0]
[0," ",null,null,null,null,null,null,null,null,null,"","",null,null,"  ",0,0,0,0]
[0," ",null,null,null,null,null,null,null,null,null,"","",null,null,"  ",0,0,0,0]
[0," ",null,null,null,null,null,null,null,null,null,"","",null,null,"  ",0,0,0,0]
[0," ",null,null,null,null,null,null,null,null,null,"","",null,null,"  ",0,0,0,0]
[0," ",null,null,null,null,null,null,null,null,null,"","",null,null,"  ",0,0,0,0]
[0," ",null,null,null,null,null,null,null,null,null,"","",null,null,"  ",0,0,0,0]
["La secrétaire,",null,"Le responsable,",null,null,null,null,null,null,null,null,"le responsable des juges : "]
["Signature,",null,"Signature,",null,null,null,null,null,null,null,null,"Signature,"]

{"sheet":"Résultat final","index":14,"n_rows":544,"n_cols":12,"rows_kept":544,"cut":false,"hidden":false,"merged":[[509,1,509,5],[401,1,401,5],[203,1,203,5],[275,1,275,5],[293,1,293,5],[311,1,311,5],[257,1,257,5],[0,0,0,6],[527,1,527,5],[419,1,419,5],[437,1,437,5],[455,1,455,5],[473,1,473,5],[491,1,491,5],[329,1,329,5],[347,1,347,5],[95,1,95,5],[5,1,5,5],[365,1,365,5],[383,1,383,5],[23,1,23,5],[221,1,221,5],[239,1,239,5],[1,0,1,6],[3,0,3,6],[185,1,185,5],[77,1,77,5],[59,1,59,5],[41,1,41,5],[167,1,167,5],[149,1,149,5],[131,1,131,5],[113,1,113,5]]}
["FEDERATION FRANCAISE D'HALTEROPHILIE,"]
["MUSCULATION, FORCE ATHLETIQUE ET CULTURISME"]
[null,null,null,null,null,null,null,null,{"$f":"Parametres!G5","v":"N"}]
[" DISCIPLINE  CULTURISME"]
[]
[{"$f":"C6&G6","v":"C1"},{"$f":"Juges!B1","v":"C1"},null,null,null,null,{"$f":"B6","v":"C1"},null,null,{"$f":"VLOOKUP(B6,'Paramétrage des points'!$A$5:$C$29,3,FALSE)","v":{"$error":"#N/A"}},null,{"$f":"IFERROR(VLOOKUP(K6,'Paramétrage des points'!AA:AB,2,FALSE),0)","v":0}]
["N0M / PRENOMC1","PLACE","N0M / PRENOM","DOSSARD","CLUB","COMITE",{"$f":"+G6","v":"C1"},null,null,{"$f":"J6","v":{"$error":"#N/A"}},null,{"$f":"IFERROR(VLOOKUP(K7,'Paramétrage des points'!AA:AB,2,FALSE),0)","v":0}]
["POTEAU  ALEXANDREC1",{"$f":"1","v":1},"POTEAU  ALEXANDRE",5,null,null,{"$f":"+G7","v":"C1"},null,null,{"$f":"J7","v":{"$error":"#N/A"}},{"$f":"IF($I$3=\"N\",\"N\"&J8&B8,\"\")","v":{"$error":"#N/A"}},{"$f":"IFERROR(VLOOKUP(K8,'Paramétrage des points'!AA:AB,2,FALSE),0)","v":0}]
["MACHOME  DIDIERC1",2,"MACHOME  DIDIER",6,null,null,{"$f":"+G8","v":"C1"},null,null,{"$error":"#N/A"},{"$error":"#N/A"},{"$f":"IFERROR(VLOOKUP(K9,'Paramétrage des points'!AA:AB,2,FALSE),0)","v":0}]
["C1",3,null,null,null,null,{"$f":"+G9","v":"C1"},null,null,{"$error":"#N/A"},{"$error":"#N/A"},{"$f":"IFERROR(VLOOKUP(K10,'Paramétrage des points'!AA:AB,2,FALSE),0)","v":0}]
["C1",4,null,null,null,null,{"$f":"+G10","v":"C1"},null,null,{"$error":"#N/A"},{"$error":"#N/A"},{"$f":"IFERROR(VLOOKUP(K11,'Paramétrage des points'!AA:AB,2,FALSE),0)","v":0}]
["C1",5,null,null,null,null,"C1",null,null,{"$error":"#N/A"},{"$error":"#N/A"},{"$f":"IFERROR(VLOOKUP(K12,'Paramétrage des points'!AA:AB,2,FALSE),0)","v":0}]
["C1",6,null,null,null,null,"C1",null,null,{"$error":"#N/A"},{"$error":"#N/A"},{"$f":"IFERROR(VLOOKUP(K13,'Paramétrage des points'!AA:AB,2,FALSE),0)","v":0}]
["  C1",7,"  ",0,0,0,"C1",null,null,{"$error":"#N/A"},{"$error":"#N/A"},{"$f":"IFERROR(VLOOKUP(K14,'Paramétrage des points'!AA:AB,2,FALSE),0)","v":0}]
["  C1",8,"  ",0,0,0,"C1",null,null,{"$error":"#N/A"},{"$error":"#N/A"},{"$f":"IFERROR(VLOOKUP(K15,'Paramétrage des points'!AA:AB,2,FALSE),0)","v":0}]
["  C1",9,"  ",0,0,0,"C1",null,null,{"$error":"#N/A"},{"$error":"#N/A"},{"$f":"IFERROR(VLOOKUP(K16,'Paramétrage des points'!AA:AB,2,FALSE),0)","v":0}]
["  C1",10,"  ",0,0,0,"C1",null,null,{"$error":"#N/A"},{"$error":"#N/A"},{"$f":"IFERROR(VLOOKUP(K17,'Paramétrage des points'!AA:AB,2,FALSE),0)","v":0}]
["  C1",11,"  ",0,0,0,"C1",null,null,{"$error":"#N/A"},{"$error":"#N/A"},{"$f":"IFERROR(VLOOKUP(K18,'Paramétrage des points'!AA:AB,2,FALSE),0)","v":0}]
["  C1",12,"  ",0,0,0,"C1",null,null,{"$error":"#N/A"},{"$error":"#N/A"},{"$f":"IFERROR(VLOOKUP(K19,'Paramétrage des points'!AA:AB,2,FALSE),0)","v":0}]
["  C1",13,"  ",0,0,0,"C1",null,null,{"$error":"#N/A"},{"$error":"#N/A"},{"$f":"IFERROR(VLOOKUP(K20,'Paramétrage des points'!AA:AB,2,FALSE),0)","v":0}]
["  C1",14,"  ",0,0,0,"C1",null,null,{"$error":"#N/A"},{"$error":"#N/A"},{"$f":"IFERROR(VLOOKUP(K21,'Paramétrage des points'!AA:AB,2,FALSE),0)","v":0}]
["  C1",15,"  ",0,0,0,"C1",null,null,{"$error":"#N/A"},{"$error":"#N/A"},{"$f":"IFERROR(VLOOKUP(K22,'Paramétrage des points'!AA:AB,2,FALSE),0)","v":0}]
["",null,null,null,null,null,null,null,null,null,null,{"$f":"IFERROR(VLOOKUP(K23,'Paramétrage des points'!AA:AB,2,FALSE),0)","v":0}]
["C2",{"$f":"Juges!C1","v":"C2"},null,null,null,null,{"$f":"B24","v":"C2"},null,null,{"$f":"VLOOKUP(B24,'Paramétrage des points'!$A$5:$C$29,3,FALSE)","v":{"$error":"#N/A"}},null,{"$f":"IFERROR(VLOOKUP(K24,'Paramétrage des points'!AA:AB,2,FALSE),0)","v":0}]
["N0M / PRENOMC2","PLACE","N0M / PRENOM","DOSSARD","CLUB","COMITE",{"$f":"+G24","v":"C2"},null,null,{"$f":"J24","v":{"$error":"#N/A"}},null,{"$f":"IFERROR(VLOOKUP(K25,'Paramétrage des points'!AA:AB,2,FALSE),0)","v":0}]
["C2",{"$f":"1","v":1},null,null,null,null,{"$f":"+G25","v":"C2"},null,null,{"$f":"J25","v":{"$error":"#N/A"}},{"$f":"IF($I$3=\"N\",\"N\"&J26&B26,\"\")","v":{"$error":"#N/A"}},{"$f":"IFERROR(VLOOKUP(K26,'Paramétrage des points'!AA:AB,2,FALSE),0)","v":0}]
["C2",2,null,null,null,null,{"$f":"+G26","v":"C2"},null,null,{"$error":"#N/A"},{"$error":"#N/A"},{"$f":"IFERROR(VLOOKUP(K27,'Paramétrage des points'!AA:AB,2,FALSE),0)","v":0}]
["C2",3,null,null,null,null,{"$f":"+G27","v":"C2"},null,null,{"$error":"#N/A"},{"$error":"#N/A"},{"$f":"IFERROR(VLOOKUP(K28,'Paramétrage des points'!AA:AB,2,FALSE),0)","v":0}]
["C2",4,null,null,null,null,{"$f":"+G28","v":"C2"},null,null,{"$error":"#N/A"},{"$error":"#N/A"},{"$f":"IFERROR(VLOOKUP(K29,'Paramétrage des points'!AA:AB,2,FALSE),0)","v":0}]
["C2",5,null,null,null,null,"C2",null,null,{"$error":"#N/A"},{"$error":"#N/A"},{"$f":"IFERROR(VLOOKUP(K30,'Paramétrage des points'!AA:AB,2,FALSE),0)","v":0}]
["C2",6,null,null,null,null,"C2",null,null,{"$error":"#N/A"},{"$error":"#N/A"},{"$f":"IFERROR(VLOOKUP(K31,'Paramétrage des points'!AA:AB,2,FALSE),0)","v":0}]
["C2",7,null,null,null,null,"C2",null,null,{"$error":"#N/A"},{"$error":"#N/A"},{"$f":"IFERROR(VLOOKUP(K32,'Paramétrage des points'!AA:AB,2,FALSE),0)","v":0}]
["C2",8,null,null,null,null,"C2",null,null,{"$error":"#N/A"},{"$error":"#N/A"},{"$f":"IFERROR(VLOOKUP(K33,'Paramétrage des points'!AA:AB,2,FALSE),0)","v":0}]
["C2",9,null,null,null,null,"C2",null,null,{"$error":"#N/A"},{"$error":"#N/A"},{"$f":"IFERROR(VLOOKUP(K34,'Paramétrage des points'!AA:AB,2,FALSE),0)","v":0}]
["  C2",10,"  ",0,0,0,"C2",null,null,{"$error":"#N/A"},{"$error":"#N/A"},{"$f":"IFERROR(VLOOKUP(K35,'Paramétrage des points'!AA:AB,2,FALSE),0)","v":0}]
["  C2",11,"  ",0,0,0,"C2",null,null,{"$error":"#N/A"},{"$error":"#N/A"},{"$f":"IFERROR(VLOOKUP(K36,'Paramétrage des points'!AA:AB,2,FALSE),0)","v":0}]
["  C2",12,"  ",0,0,0,"C2",null,null,{"$error":"#N/A"},{"$error":"#N/A"},{"$f":"IFERROR(VLOOKUP(K37,'Paramétrage des points'!AA:AB,2,FALSE),0)","v":0}]
["  C2",13,"  ",0,0,0,"C2",null,null,{"$error":"#N/A"},{"$error":"#N/A"},{"$f":"IFERROR(VLOOKUP(K38,'Paramétrage des points'!AA:AB,2,FALSE),0)","v":0}]
["  C2",14,"  ",0,0,0,"C2",null,null,{"$error":"#N/A"},{"$error":"#N/A"},{"$f":"IFERROR(VLOOKUP(K39,'Paramétrage des points'!AA:AB,2,FALSE),0)","v":0}]
["  C2",15,"  ",0,0,0,"C2",null,null,{"$error":"#N/A"},{"$error":"#N/A"},{"$f":"IFERROR(VLOOKUP(K40,'Paramétrage des points'!AA:AB,2,FALSE),0)","v":0}]
["",null,null,null,null,null,null,null,null,null,null,{"$f":"IFERROR(VLOOKUP(K41,'Paramétrage des points'!AA:AB,2,FALSE),0)","v":0}]
["C3",{"$f":"Juges!D1","v":"C3"},null,null,null,null,{"$f":"B42","v":"C3"},null,null,{"$f":"VLOOKUP(B42,'Paramétrage des points'!$A$5:$C$29,3,FALSE)","v":{"$error":"#N/A"}},null,{"$f":"IFERROR(VLOOKUP(K42,'Paramétrage des points'!AA:AB,2,FALSE),0)","v":0}]
["N0M / PRENOMC3","PLACE","N0M / PRENOM","DOSSARD","CLUB","COMITE",{"$f":"+G42","v":"C3"},null,null,{"$f":"J42","v":{"$error":"#N/A"}},null,{"$f":"IFERROR(VLOOKUP(K43,'Paramétrage des points'!AA:AB,2,FALSE),0)","v":0}]
["ROCHE   MATHIEUC3",1,"ROCHE   MATHIEU",9,"ACADEMIE CLUB LUCON","PAYS DE LOIRE",{"$f":"+G43","v":"C3"},null,null,{"$f":"J43","v":{"$error":"#N/A"}},{"$f":"IF($I$3=\"N\",\"N\"&J44&B44,\"\")","v":{"$error":"#N/A"}},{"$f":"IFERROR(VLOOKUP(K44,'Paramétrage des points'!AA:AB,2,FALSE),0)","v":0}]
["DORIZON  FLORENTC3",2,"DORIZON  FLORENT",8,"BBF ALLONES","PAYS DE LOIRE",{"$f":"+G44","v":"C3"},null,null,{"$error":"#N/A"},{"$error":"#N/A"},{"$f":"IFERROR(VLOOKUP(K45,'Paramétrage des points'!AA:AB,2,FALSE),0)","v":0}]
["BUCHIN   FranckC3",3,"BUCHIN   Franck",16,"ACH FONTENAY","ILE DE FRANCE",{"$f":"+G45","v":"C3"},null,null,{"$error":"#N/A"},{"$error":"#N/A"},{"$f":"IFERROR(VLOOKUP(K46,'Paramétrage des points'!AA:AB,2,FALSE),0)","v":0}]
["COSTE  GEORGESC3",4,"COSTE  GEORGES",17,"GS SENLIS","PICARDIE",{"$f":"+G46","v":"C3"},null,null,{"$error":"#N/A"},{"$error":"#N/A"},{"$f":"IFERROR(VLOOKUP(K47,'Paramétrage des points'!AA:AB,2,FALSE),0)","v":0}]
["DJEFAL  karimC3",5,"DJEFAL  karim",18,"CA LENSOIS","NORD PAS DE CALAIS","C3",null,null,{"$error":"#N/A"},{"$error":"#N/A"},{"$f":"IFERROR(VLOOKUP(K48,'Paramétrage des points'!AA:AB,2,FALSE),0)","v":0}]
["DOYER  LUDOVICC3",6,"DOYER  LUDOVIC",19,"MC FORM AUDRUICQ","NORD PAS DE CALAIS","C3",null,null,{"$error":"#N/A"},{"$error":"#N/A"},{"$f":"IFERROR(VLOOKUP(K49,'Paramétrage des points'!AA:AB,2,FALSE),0)","v":0}]
["ALNET  PhilippeC3",7,"ALNET  Philippe",20,"VELIZY MUSCULATION","ILE DE FRANCE","C3",null,null,{"$error":"#N/A"},{"$error":"#N/A"},{"$f":"IFERROR(VLOOKUP(K50,'Paramétrage des points'!AA:AB,2,FALSE),0)","v":0}]
["  C3",8,"  ",0,0,0,"C3",null,null,{"$error":"#N/A"},{"$error":"#N/A"},{"$f":"IFERROR(VLOOKUP(K51,'Paramétrage des points'!AA:AB,2,FALSE),0)","v":0}]
["  C3",9,"  ",0,0,0,"C3",null,null,{"$error":"#N/A"},{"$error":"#N/A"},{"$f":"IFERROR(VLOOKUP(K52,'Paramétrage des points'!AA:AB,2,FALSE),0)","v":0}]
["  C3",10,"  ",0,0,0,"C3",null,null,{"$error":"#N/A"},{"$error":"#N/A"},{"$f":"IFERROR(VLOOKUP(K53,'Paramétrage des points'!AA:AB,2,FALSE),0)","v":0}]
["  C3",11,"  ",0,0,0,"C3",null,null,{"$error":"#N/A"},{"$error":"#N/A"},{"$f":"IFERROR(VLOOKUP(K54,'Paramétrage des points'!AA:AB,2,FALSE),0)","v":0}]
["  C3",12,"  ",0,0,0,"C3",null,null,{"$error":"#N/A"},{"$error":"#N/A"},{"$f":"IFERROR(VLOOKUP(K55,'Paramétrage des points'!AA:AB,2,FALSE),0)","v":0}]
["  C3",13,"  ",0,0,0,"C3",null,null,{"$error":"#N/A"},{"$error":"#N/A"},{"$f":"IFERROR(VLOOKUP(K56,'Paramétrage des points'!AA:AB,2,FALSE),0)","v":0}]
["  C3",14,"  ",0,0,0,"C3",null,null,{"$error":"#N/A"},{"$error":"#N/A"},{"$f":"IFERROR(VLOOKUP(K57,'Paramétrage des points'!AA:AB,2,FALSE),0)","v":0}]
["  C3",15,"  ",0,0,0,"C3",null,null,{"$error":"#N/A"},{"$error":"#N/A"},{"$f":"IFERROR(VLOOKUP(K58,'Paramétrage des points'!AA:AB,2,FALSE),0)","v":0}]
["",null,null,null,null,null,null,null,null,null,null,{"$f":"IFERROR(VLOOKUP(K59,'Paramétrage des points'!AA:AB,2,FALSE),0)","v":0}]
["C4",{"$f":"Juges!E1","v":"C4"},null,null,null,null,{"$f":"B60","v":"C4"},null,null,{"$f":"VLOOKUP(B60,'Paramétrage des points'!$A$5:$C$29,3,FALSE)","v":{"$error":"#N/A"}},null,{"$f":"IFERROR(VLOOKUP(K60,'Paramétrage des points'!AA:AB,2,FALSE),0)","v":0}]
["N0M / PRENOMC4","PLACE","N0M / PRENOM","DOSSARD","CLUB","COMITE",{"$f":"+G60","v":"C4"},null,null,{"$f":"J60","v":{"$error":"#N/A"}},null,{"$f":"IFERROR(VLOOKUP(K61,'Paramétrage des points'!AA:AB,2,FALSE),0)","v":0}]
["C4",1,null,null,null,null,{"$f":"+G61","v":"C4"},null,null,{"$f":"J61","v":{"$error":"#N/A"}},{"$f":"IF($I$3=\"N\",\"N\"&J62&B62,\"\")","v":{"$error":"#N/A"}},{"$f":"IFERROR(VLOOKUP(K62,'Paramétrage des points'!AA:AB,2,FALSE),0)","v":0}]
["C4",2,null,null,null,null,{"$f":"+G62","v":"C4"},null,null,{"$error":"#N/A"},{"$error":"#N/A"},{"$f":"IFERROR(VLOOKUP(K63,'Paramétrage des points'!AA:AB,2,FALSE),0)","v":0}]
["C4",3,null,null,null,null,{"$f":"+G63","v":"C4"},null,null,{"$error":"#N/A"},{"$error":"#N/A"},{"$f":"IFERROR(VLOOKUP(K64,'Paramétrage des points'!AA:AB,2,FALSE),0)","v":0}]
["C4",4,null,null,null,null,{"$f":"+G64","v":"C4"},null,null,{"$error":"#N/A"},{"$error":"#N/A"},{"$f":"IFERROR(VLOOKUP(K65,'Paramétrage des points'!AA:AB,2,FALSE),0)","v":0}]
["C4",5,null,null,null,null,"C4",null,null,{"$error":"#N/A"},{"$error":"#N/A"},{"$f":"IFERROR(VLOOKUP(K66,'Paramétrage des points'!AA:AB,2,FALSE),0)","v":0}]
["C4",6,null,null,null,null,"C4",null,null,{"$error":"#N/A"},{"$error":"#N/A"},{"$f":"IFERROR(VLOOKUP(K67,'Paramétrage des points'!AA:AB,2,FALSE),0)","v":0}]
["C4",7,null,null,null,null,"C4",null,null,{"$error":"#N/A"},{"$error":"#N/A"},{"$f":"IFERROR(VLOOKUP(K68,'Paramétrage des points'!AA:AB,2,FALSE),0)","v":0}]
["C4",8,null,null,null,null,"C4",null,null,{"$error":"#N/A"},{"$error":"#N/A"},{"$f":"IFERROR(VLOOKUP(K69,'Paramétrage des points'!AA:AB,2,FALSE),0)","v":0}]
["C4",9,null,null,null,null,"C4",null,null,{"$error":"#N/A"},{"$error":"#N/A"},{"$f":"IFERROR(VLOOKUP(K70,'Paramétrage des points'!AA:AB,2,FALSE),0)","v":0}]
["C4",10,null,null,null,null,"C4",null,null,{"$error":"#N/A"},{"$error":"#N/A"},{"$f":"IFERROR(VLOOKUP(K71,'Paramétrage des points'!AA:AB,2,FALSE),0)","v":0}]
["C4",11,null,null,null,null,"C4",null,null,{"$error":"#N/A"},{"$error":"#N/A"},{"$f":"IFERROR(VLOOKUP(K72,'Paramétrage des points'!AA:AB,2,FALSE),0)","v":0}]
[{"$f":"C73&G73","v":"C4"},12,null,null,null,null,"C4",null,null,{"$error":"#N/A"},{"$error":"#N/A"},{"$f":"IFERROR(VLOOKUP(K73,'Paramétrage des points'!AA:AB,2,FALSE),0)","v":0}]
["C4",13,null,null,null,null,"C4",null,null,{"$error":"#N/A"},{"$error":"#N/A"},{"$f":"IFERROR(VLOOKUP(K74,'Paramétrage des points'!AA:AB,2,FALSE),0)","v":0}]
["C4",14,null,null,null,null,"C4",null,null,{"$error":"#N/A"},{"$error":"#N/A"},{"$f":"IFERROR(VLOOKUP(K75,'Paramétrage des points'!AA:AB,2,FALSE),0)","v":0}]
["C4",15,null,null,null,null,"C4",null,null,{"$error":"#N/A"},{"$error":"#N/A"},{"$f":"IFERROR(VLOOKUP(K76,'Paramétrage des points'!AA:AB,2,FALSE),0)","v":0}]
["",null,null,null,null,null,null,null,null,null,null,{"$f":"IFERROR(VLOOKUP(K77,'Paramétrage des points'!AA:AB,2,FALSE),0)","v":0}]
["C5",{"$f":"Juges!F1","v":"C5"},null,null,null,null,{"$f":"B78","v":"C5"},null,null,{"$f":"VLOOKUP(B78,'Paramétrage des points'!$A$5:$C$29,3,FALSE)","v":{"$error":"#N/A"}},null,{"$f":"IFERROR(VLOOKUP(K78,'Paramétrage des points'!AA:AB,2,FALSE),0)","v":0}]
["N0M / PRENOMC5","PLACE","N0M / PRENOM","DOSSARD","CLUB","COMITE",{"$f":"+G78","v":"C5"},null,null,{"$f":"J78","v":{"$error":"#N/A"}},null,{"$f":"IFERROR(VLOOKUP(K79,'Paramétrage des points'!AA:AB,2,FALSE),0)","v":0}]
["C5",1,null,null,null,null,{"$f":"+G79","v":"C5"},null,null,{"$f":"J79","v":{"$error":"#N/A"}},{"$f":"IF($I$3=\"N\",\"N\"&J80&B80,\"\")","v":{"$error":"#N/A"}},{"$f":"IFERROR(VLOOKUP(K80,'Paramétrage des points'!AA:AB,2,FALSE),0)","v":0}]
["C5",2,null,null,null,null,{"$f":"+G80","v":"C5"},null,null,{"$error":"#N/A"},{"$error":"#N/A"},{"$f":"IFERROR(VLOOKUP(K81,'Paramétrage des points'!AA:AB,2,FALSE),0)","v":0}]
["C5",3,null,null,null,null,{"$f":"+G81","v":"C5"},null,null,{"$error":"#N/A"},{"$error":"#N/A"},{"$f":"IFERROR(VLOOKUP(K82,'Paramétrage des points'!AA:AB,2,FALSE),0)","v":0}]
["C5",4,null,null,null,null,{"$f":"+G82","v":"C5"},null,null,{"$error":"#N/A"},{"$error":"#N/A"},{"$f":"IFERROR(VLOOKUP(K83,'Paramétrage des points'!AA:AB,2,FALSE),0)","v":0}]
["C5",5,null,null,null,null,"C5",null,null,{"$error":"#N/A"},{"$error":"#N/A"},{"$f":"IFERROR(VLOOKUP(K84,'Paramétrage des points'!AA:AB,2,FALSE),0)","v":0}]
["C5",6,null,null,null,null,"C5",null,null,{"$error":"#N/A"},{"$error":"#N/A"},{"$f":"IFERROR(VLOOKUP(K85,'Paramétrage des points'!AA:AB,2,FALSE),0)","v":0}]
["C5",7,null,null,null,null,"C5",null,null,{"$error":"#N/A"},{"$error":"#N/A"},{"$f":"IFERROR(VLOOKUP(K86,'Paramétrage des points'!AA:AB,2,FALSE),0)","v":0}]
["C5",8,null,null,null,null,"C5",null,null,{"$error":"#N/A"},{"$error":"#N/A"},{"$f":"IFERROR(VLOOKUP(K87,'Paramétrage des points'!AA:AB,2,FALSE),0)","v":0}]
["C5",9,null,null,null,null,"C5",null,null,{"$error":"#N/A"},{"$error":"#N/A"},{"$f":"IFERROR(VLOOKUP(K88,'Paramétrage des points'!AA:AB,2,FALSE),0)","v":0}]
["C5",10,null,null,null,null,"C5",null,null,{"$error":"#N/A"},{"$error":"#N/A"},{"$f":"IFERROR(VLOOKUP(K89,'Paramétrage des points'!AA:AB,2,FALSE),0)","v":0}]
["C5",11,null,null,null,null,"C5",null,null,{"$error":"#N/A"},{"$error":"#N/A"},{"$f":"IFERROR(VLOOKUP(K90,'Paramétrage des points'!AA:AB,2,FALSE),0)","v":0}]
["C5",12,null,null,null,null,"C5",null,null,{"$error":"#N/A"},{"$error":"#N/A"},{"$f":"IFERROR(VLOOKUP(K91,'Paramétrage des points'!AA:AB,2,FALSE),0)","v":0}]
["C5",13,null,null,null,null,"C5",null,null,{"$error":"#N/A"},{"$error":"#N/A"},{"$f":"IFERROR(VLOOKUP(K92,'Paramétrage des points'!AA:AB,2,FALSE),0)","v":0}]
["C5",14,null,null,null,null,"C5",null,null,{"$error":"#N/A"},{"$error":"#N/A"},{"$f":"IFERROR(VLOOKUP(K93,'Paramétrage des points'!AA:AB,2,FALSE),0)","v":0}]
["  C5",15,"  ",0,0,0,"C5",null,null,{"$error":"#N/A"},{"$error":"#N/A"},{"$f":"IFERROR(VLOOKUP(K94,'Paramétrage des points'!AA:AB,2,FALSE),0)","v":0}]
["",null,null,null,null,null,null,null,null,null,null,{"$f":"IFERROR(VLOOKUP(K95,'Paramétrage des points'!AA:AB,2,FALSE),0)","v":0}]
["CULTURIS FORM",{"$f":"Juges!G1","v":"CULTURIS FORM"},null,null,null,null,{"$f":"B96","v":"CULTURIS FORM"},null,null,{"$f":"VLOOKUP(B96,'Paramétrage des points'!$A$5:$C$29,3,FALSE)","v":"CUF"},null,{"$f":"IFERROR(VLOOKUP(K96,'Paramétrage des points'!AA:AB,2,FALSE),0)","v":0}]
["N0M / PRENOMCULTURIS FORM","PLACE","N0M / PRENOM","DOSSARD","CLUB","COMITE",{"$f":"+G96","v":"CULTURIS FORM"},null,null,{"$f":"J96","v":"CUF"},null,{"$f":"IFERROR(VLOOKUP(K97,'Paramétrage des points'!AA:AB,2,FALSE),0)","v":0}]
["LE MEUR  SylvainCULTURIS FORM",1,"LE MEUR  Sylvain",52,"CMF LOCMINE","BRETAGNE",{"$f":"+G97","v":"CULTURIS FORM"},null,null,{"$f":"J97","v":"CUF"},{"$f":"IF($I$3=\"N\",\"N\"&J98&B98,\"\")","v":"NCUF1"},{"$f":"IFERROR(VLOOKUP(K98,'Paramétrage des points'!AA:AB,2,FALSE),0)","v":25}]
["COUPEL  THIERRYCULTURIS FORM",2,"COUPEL  THIERRY",43,"MH CLERMONTOIS","PICARDIE",{"$f":"+G98","v":"CULTURIS FORM"},null,null,"CUF","NCUF2",{"$f":"IFERROR(VLOOKUP(K99,'Paramétrage des points'!AA:AB,2,FALSE),0)","v":20}]
["MARCHAL   LAURENTCULTURIS FORM",3,"MARCHAL   LAURENT",42,"MH CLERMONTOIS","PICARDIE",{"$f":"+G99","v":"CULTURIS FORM"},null,null,"CUF","NCUF3",{"$f":"IFERROR(VLOOKUP(K100,'Paramétrage des points'!AA:AB,2,FALSE),0)","v":15}]
["BLANCHET  PATRICKCULTURIS FORM",4,"BLANCHET  PATRICK",51,"CHFM ROISEL","PICARDIE",{"$f":"+G100","v":"CULTURIS FORM"},null,null,"CUF","NCUF4",{"$f":"IFERROR(VLOOKUP(K101,'Paramétrage des points'!AA:AB,2,FALSE),0)","v":12}]
["VACTER  ChristopheCULTURIS FORM",5,"VACTER  Christophe",17,"CSAG MOURMELON","CHAMPAGNE ARDENNES","CULTURIS FORM",null,null,"CUF","NCUF5",{"$f":"IFERROR(VLOOKUP(K102,'Paramétrage des points'!AA:AB,2,FALSE),0)","v":8}]
["OUSFANE  MOHAMEDCULTURIS FORM",6,"OUSFANE  MOHAMED",20,"PSA ACC CHARLEVILLE MEZIERES","CHAMPAGNE ARDENNES","CULTURIS FORM",null,null,"CUF","NCUF6",{"$f":"IFERROR(VLOOKUP(K103,'Paramétrage des points'!AA:AB,2,FALSE),0)","v":6}]
["  CULTURIS FORM",7,"  ",0,0,0,"CULTURIS FORM",null,null,"CUF","NCUF7",{"$f":"IFERROR(VLOOKUP(K104,'Paramétrage des points'!AA:AB,2,FALSE),0)","v":2}]
["  CULTURIS FORM",8,"  ",0,0,0,"CULTURIS FORM",null,null,"CUF","NCUF8",{"$f":"IFERROR(VLOOKUP(K105,'Paramétrage des points'!AA:AB,2,FALSE),0)","v":2}]
["  CULTURIS FORM",9,"  ",0,0,0,"CULTURIS FORM",null,null,"CUF","NCUF9",{"$f":"IFERROR(VLOOKUP(K106,'Paramétrage des points'!AA:AB,2,FALSE),0)","v":2}]
["  CULTURIS FORM",10,"  ",0,0,0,"CULTURIS FORM",null,null,"CUF","NCUF10",{"$f":"IFERROR(VLOOKUP(K107,'Paramétrage des points'!AA:AB,2,FALSE),0)","v":2}]
["  CULTURIS FORM",11,"  ",0,0,0,"CULTURIS FORM",null,null,"CUF","NCUF11",{"$f":"IFERROR(VLOOKUP(K108,'Paramétrage des points'!AA:AB,2,FALSE),0)","v":2}]
["  CULTURIS FORM",12,"  ",0,0,0,"CULTURIS FORM",null,null,"CUF","NCUF12",{"$f":"IFERROR(VLOOKUP(K109,'Paramétrage des points'!AA:AB,2,FALSE),0)","v":2}]
["  CULTURIS FORM",13,"  ",0,0,0,"CULTURIS FORM",null,null,"CUF","NCUF13",{"$f":"IFERROR(VLOOKUP(K110,'Paramétrage des points'!AA:AB,2,FALSE),0)","v":2}]
["  CULTURIS FORM",14,"  ",0,0,0,"CULTURIS FORM",null,null,"CUF","NCUF14",{"$f":"IFERROR(VLOOKUP(K111,'Paramétrage des points'!AA:AB,2,FALSE),0)","v":2}]
["  CULTURIS FORM",15,"  ",0,0,0,"CULTURIS FORM",null,null,"CUF","NCUF15",{"$f":"IFERROR(VLOOKUP(K112,'Paramétrage des points'!AA:AB,2,FALSE),0)","v":2}]
["",null,null,null,null,null,null,null,null,null,null,{"$f":"IFERROR(VLOOKUP(K113,'Paramétrage des points'!AA:AB,2,FALSE),0)","v":0}]
["Couples",{"$f":"Juges!H1","v":"Couples"},null,null,null,null,{"$f":"B114","v":"Couples"},null,null,{"$f":"VLOOKUP(B114,'Paramétrage des points'!$A$5:$C$29,3,FALSE)","v":"CH/CF"},null,{"$f":"IFERROR(VLOOKUP(K114,'Paramétrage des points'!AA:AB,2,FALSE),0)","v":0}]
["N0M / PRENOMCouples","PLACE","N0M / PRENOM","DOSSARD","CLUB","COMITE",{"$f":"+G114","v":"Couples"},null,null,{"$f":"J114","v":"CH/CF"},null,{"$f":"IFERROR(VLOOKUP(K115,'Paramétrage des points'!AA:AB,2,FALSE),0)","v":0}]
["MONCOURTOIS  CHRISTELLECouples",1,"MONCOURTOIS  CHRISTELLE",1,"ASC MUSCLE GYM SOISSONS","PICARDIE",{"$f":"+G115","v":"Couples"},null,null,{"$f":"J115","v":"CH/CF"},{"$f":"IF($I$3=\"N\",\"N\"&J116&B116,\"\")","v":"NCH/CF1"},{"$f":"IFERROR(VLOOKUP(K116,'Paramétrage des points'!AA:AB,2,FALSE),0)","v":0}]
["  Couples",2,"  ",0,0,0,{"$f":"+G116","v":"Couples"},null,null,"CH/CF","NCH/CF2",{"$f":"IFERROR(VLOOKUP(K117,'Paramétrage des points'!AA:AB,2,FALSE),0)","v":0}]
["  Couples",3,"  ",0,0,0,{"$f":"+G117","v":"Couples"},null,null,"CH/CF","NCH/CF3",{"$f":"IFERROR(VLOOKUP(K118,'Paramétrage des points'!AA:AB,2,FALSE),0)","v":0}]
["  Couples",4,"  ",0,0,0,{"$f":"+G118","v":"Couples"},null,null,"CH/CF","NCH/CF4",{"$f":"IFERROR(VLOOKUP(K119,'Paramétrage des points'!AA:AB,2,FALSE),0)","v":0}]
["BLANCHART  FREDDYCouples",5,"BLANCHART  FREDDY",1,"ASC MUSCLE GYM SOISSONS","PICARDIE","Couples",null,null,"CH/CF","NCH/CF5",{"$f":"IFERROR(VLOOKUP(K120,'Paramétrage des points'!AA:AB,2,FALSE),0)","v":0}]
["  Couples",6,"  ",0,0,0,"Couples",null,null,"CH/CF","NCH/CF6",{"$f":"IFERROR(VLOOKUP(K121,'Paramétrage des points'!AA:AB,2,FALSE),0)","v":0}]
["  Couples",7,"  ",0,0,0,"Couples",null,null,"CH/CF","NCH/CF7",{"$f":"IFERROR(VLOOKUP(K122,'Paramétrage des points'!AA:AB,2,FALSE),0)","v":0}]
["  Couples",8,"  ",0,0,0,"Couples",null,null,"CH/CF","NCH/CF8",{"$f":"IFERROR(VLOOKUP(K123,'Paramétrage des points'!AA:AB,2,FALSE),0)","v":0}]
["  Couples",9,"  ",0,0,0,"Couples",null,null,"CH/CF","NCH/CF9",{"$f":"IFERROR(VLOOKUP(K124,'Paramétrage des points'!AA:AB,2,FALSE),0)","v":0}]
["  Couples",10,"  ",0,0,0,"Couples",null,null,"CH/CF","NCH/CF10",{"$f":"IFERROR(VLOOKUP(K125,'Paramétrage des points'!AA:AB,2,FALSE),0)","v":0}]
["  Couples",11,"  ",0,0,0,"Couples",null,null,"CH/CF","NCH/CF11",{"$f":"IFERROR(VLOOKUP(K126,'Paramétrage des points'!AA:AB,2,FALSE),0)","v":0}]
["  Couples",12,"  ",0,0,0,"Couples",null,null,"CH/CF","NCH/CF12",{"$f":"IFERROR(VLOOKUP(K127,'Paramétrage des points'!AA:AB,2,FALSE),0)","v":0}]
["  Couples",13,"  ",0,0,0,"Couples",null,null,"CH/CF","NCH/CF13",{"$f":"IFERROR(VLOOKUP(K128,'Paramétrage des points'!AA:AB,2,FALSE),0)","v":0}]
["  Couples",14,"  ",0,0,0,"Couples",null,null,"CH/CF","NCH/CF14",{"$f":"IFERROR(VLOOKUP(K129,'Paramétrage des points'!AA:AB,2,FALSE),0)","v":0}]
["  Couples",15,"  ",0,0,0,"Couples",null,null,"CH/CF","NCH/CF15",{"$f":"IFERROR(VLOOKUP(K130,'Paramétrage des points'!AA:AB,2,FALSE),0)","v":0}]
["",null,null,null,null,null,null,null,null,null,null,{"$f":"IFERROR(VLOOKUP(K131,'Paramétrage des points'!AA:AB,2,FALSE),0)","v":0}]
["FV",{"$f":"Juges!I1","v":"FV"},null,null,null,null,{"$f":"B132","v":"FV"},null,null,{"$f":"VLOOKUP(B132,'Paramétrage des points'!$A$5:$C$29,3,FALSE)","v":{"$error":"#N/A"}},null,{"$f":"IFERROR(VLOOKUP(K132,'Paramétrage des points'!AA:AB,2,FALSE),0)","v":0}]
["N0M / PRENOMFV","PLACE","N0M / PRENOM","DOSSARD","CLUB","COMITE",{"$f":"+G132","v":"FV"},null,null,{"$f":"J132","v":{"$error":"#N/A"}},null,{"$f":"IFERROR(VLOOKUP(K133,'Paramétrage des points'!AA:AB,2,FALSE),0)","v":0}]
["  FV",1,"  ",0,0,0,{"$f":"+G133","v":"FV"},null,null,{"$f":"J133","v":{"$error":"#N/A"}},{"$f":"IF($I$3=\"N\",\"N\"&J134&B134,\"\")","v":{"$error":"#N/A"}},{"$f":"IFERROR(VLOOKUP(K134,'Paramétrage des points'!AA:AB,2,FALSE),0)","v":0}]
["FOURNIER  SYLVIEFV",2,"FOURNIER  SYLVIE",20,"MUSCULATION HAUBOURDINOISE","NORD PAS DE CALAIS",{"$f":"+G134","v":"FV"},null,null,{"$error":"#N/A"},{"$error":"#N/A"},{"$f":"IFERROR(VLOOKUP(K135,'Paramétrage des points'!AA:AB,2,FALSE),0)","v":0}]
["  FV",3,"  ",0,0,0,{"$f":"+G135","v":"FV"},null,null,{"$error":"#N/A"},{"$error":"#N/A"},{"$f":"IFERROR(VLOOKUP(K136,'Paramétrage des points'!AA:AB,2,FALSE),0)","v":0}]
[{"$f":"C137&G137","v":"  FV"},4,"  ",0,0,0,{"$f":"+G136","v":"FV"},null,null,{"$error":"#N/A"},{"$error":"#N/A"},{"$f":"IFERROR(VLOOKUP(K137,'Paramétrage des points'!AA:AB,2,FALSE),0)","v":0}]
["MONCOURTOIS  CHRISTELLEFV",5,"MONCOURTOIS  CHRISTELLE",33,"ASC MUSCLE GYM SOISSONS","PICARDIE","FV",null,null,{"$error":"#N/A"},{"$error":"#N/A"},{"$f":"IFERROR(VLOOKUP(K138,'Paramétrage des points'!AA:AB,2,FALSE),0)","v":0}]
["  FV",6,"  ",0,0,0,"FV",null,null,{"$error":"#N/A"},{"$error":"#N/A"},{"$f":"IFERROR(VLOOKUP(K139,'Paramétrage des points'!AA:AB,2,FALSE),0)","v":0}]
["  FV",7,"  ",0,0,0,"FV",null,null,{"$error":"#N/A"},{"$error":"#N/A"},{"$f":"IFERROR(VLOOKUP(K140,'Paramétrage des points'!AA:AB,2,FALSE),0)","v":0}]
["  FV",8,"  ",0,0,0,"FV",null,null,{"$error":"#N/A"},{"$error":"#N/A"},{"$f":"IFERROR(VLOOKUP(K141,'Paramétrage des points'!AA:AB,2,FALSE),0)","v":0}]
["  FV",9,"  ",0,0,0,"FV",null,null,{"$error":"#N/A"},{"$error":"#N/A"},{"$f":"IFERROR(VLOOKUP(K142,'Paramétrage des points'!AA:AB,2,FALSE),0)","v":0}]
["  FV",10,"  ",0,0,0,"FV",null,null,{"$error":"#N/A"},{"$error":"#N/A"},{"$f":"IFERROR(VLOOKUP(K143,'Paramétrage des points'!AA:AB,2,FALSE),0)","v":0}]
["  FV",11,"  ",0,0,0,"FV",null,null,{"$error":"#N/A"},{"$error":"#N/A"},{"$f":"IFERROR(VLOOKUP(K144,'Paramétrage des points'!AA:AB,2,FALSE),0)","v":0}]
["  FV",12,"  ",0,0,0,"FV",null,null,{"$error":"#N/A"},{"$error":"#N/A"},{"$f":"IFERROR(VLOOKUP(K145,'Paramétrage des points'!AA:AB,2,FALSE),0)","v":0}]
["  FV",13,"  ",0,0,0,"FV",null,null,{"$error":"#N/A"},{"$error":"#N/A"},{"$f":"IFERROR(VLOOKUP(K146,'Paramétrage des points'!AA:AB,2,FALSE),0)","v":0}]
["  FV",14,"  ",0,0,0,"FV",null,null,{"$error":"#N/A"},{"$error":"#N/A"},{"$f":"IFERROR(VLOOKUP(K147,'Paramétrage des points'!AA:AB,2,FALSE),0)","v":0}]
["  FV",15,"  ",0,0,0,"FV",null,null,{"$error":"#N/A"},{"$error":"#N/A"},{"$f":"IFERROR(VLOOKUP(K148,'Paramétrage des points'!AA:AB,2,FALSE),0)","v":0}]
["",null,null,null,null,null,null,null,null,null,null,{"$f":"IFERROR(VLOOKUP(K149,'Paramétrage des points'!AA:AB,2,FALSE),0)","v":0}]
["0",{"$f":"Juges!J1","v":0},null,null,null,null,{"$f":"B150","v":0},null,null,{"$f":"VLOOKUP(B150,'Paramétrage des points'!$A$5:$C$29,3,FALSE)","v":{"$error":"#N/A"}},null,{"$f":"IFERROR(VLOOKUP(K150,'Paramétrage des points'!AA:AB,2,FALSE),0)","v":0}]
["N0M / PRENOM0","PLACE","N0M / PRENOM","DOSSARD","CLUB","COMITE",{"$f":"+G150","v":0},null,null,{"$f":"J150","v":{"$error":"#N/A"}},null,{"$f":"IFERROR(VLOOKUP(K151,'Paramétrage des points'!AA:AB,2,FALSE),0)","v":0}]
["0",1,null,null,null,null,{"$f":"+G151","v":0},null,null,{"$f":"J151","v":{"$error":"#N/A"}},{"$f":"IF($I$3=\"N\",\"N\"&J152&B152,\"\")","v":{"$error":"#N/A"}},{"$f":"IFERROR(VLOOKUP(K152,'Paramétrage des points'!AA:AB,2,FALSE),0)","v":0}]
["0",2,null,null,null,null,{"$f":"+G152","v":0},null,null,{"$error":"#N/A"},{"$error":"#N/A"},{"$f":"IFERROR(VLOOKUP(K153,'Paramétrage des points'!AA:AB,2,FALSE),0)","v":0}]
["0",3,null,null,null,null,{"$f":"+G153","v":0},null,null,{"$error":"#N/A"},{"$error":"#N/A"},{"$f":"IFERROR(VLOOKUP(K154,'Paramétrage des points'!AA:AB,2,FALSE),0)","v":0}]
["0",4,null,null,null,null,{"$f":"+G154","v":0},null,null,{"$error":"#N/A"},{"$error":"#N/A"},{"$f":"IFERROR(VLOOKUP(K155,'Paramétrage des points'!AA:AB,2,FALSE),0)","v":0}]
["0",5,null,null,null,null,0,null,null,{"$error":"#N/A"},{"$error":"#N/A"},{"$f":"IFERROR(VLOOKUP(K156,'Paramétrage des points'!AA:AB,2,FALSE),0)","v":0}]
["0",6,null,null,null,null,0,null,null,{"$error":"#N/A"},{"$error":"#N/A"},{"$f":"IFERROR(VLOOKUP(K157,'Paramétrage des points'!AA:AB,2,FALSE),0)","v":0}]
["0",7,null,null,null,null,0,null,null,{"$error":"#N/A"},{"$error":"#N/A"},{"$f":"IFERROR(VLOOKUP(K158,'Paramétrage des points'!AA:AB,2,FALSE),0)","v":0}]
["0",8,null,null,null,null,0,null,null,{"$error":"#N/A"},{"$error":"#N/A"},{"$f":"IFERROR(VLOOKUP(K159,'Paramétrage des points'!AA:AB,2,FALSE),0)","v":0}]
["0",9,null,null,null,null,0,null,null,{"$error":"#N/A"},{"$error":"#N/A"},{"$f":"IFERROR(VLOOKUP(K160,'Paramétrage des points'!AA:AB,2,FALSE),0)","v":0}]
["0",10,null,null,null,null,0,null,null,{"$error":"#N/A"},{"$error":"#N/A"},{"$f":"IFERROR(VLOOKUP(K161,'Paramétrage des points'!AA:AB,2,FALSE),0)","v":0}]
["0",11,null,null,null,null,0,null,null,{"$error":"#N/A"},{"$error":"#N/A"},{"$f":"IFERROR(VLOOKUP(K162,'Paramétrage des points'!AA:AB,2,FALSE),0)","v":0}]
["0",12,null,null,null,null,0,null,null,{"$error":"#N/A"},{"$error":"#N/A"},{"$f":"IFERROR(VLOOKUP(K163,'Paramétrage des points'!AA:AB,2,FALSE),0)","v":0}]
["0",13,null,null,null,null,0,null,null,{"$error":"#N/A"},{"$error":"#N/A"},{"$f":"IFERROR(VLOOKUP(K164,'Paramétrage des points'!AA:AB,2,FALSE),0)","v":0}]
["0",14,null,null,null,null,0,null,null,{"$error":"#N/A"},{"$error":"#N/A"},{"$f":"IFERROR(VLOOKUP(K165,'Paramétrage des points'!AA:AB,2,FALSE),0)","v":0}]
["0",15,null,null,null,null,0,null,null,{"$error":"#N/A"},{"$error":"#N/A"},{"$f":"IFERROR(VLOOKUP(K166,'Paramétrage des points'!AA:AB,2,FALSE),0)","v":0}]
["",null,null,null,null,null,null,null,null,null,null,{"$f":"IFERROR(VLOOKUP(K167,'Paramétrage des points'!AA:AB,2,FALSE),0)","v":0}]
["0",{"$f":"Juges!K1","v":0},null,null,null,null,{"$f":"B168","v":0},null,null,{"$f":"VLOOKUP(B168,'Paramétrage des points'!$A$5:$C$29,3,FALSE)","v":{"$error":"#N/A"}},null,{"$f":"IFERROR(VLOOKUP(K168,'Paramétrage des points'!AA:AB,2,FALSE),0)","v":0}]
["N0M / PRENOM0","PLACE","N0M / PRENOM","DOSSARD","CLUB","COMITE",{"$f":"+G168","v":0},null,null,{"$f":"J168","v":{"$error":"#N/A"}},null,{"$f":"IFERROR(VLOOKUP(K169,'Paramétrage des points'!AA:AB,2,FALSE),0)","v":0}]
["0",1,null,null,null,null,{"$f":"+G169","v":0},null,null,{"$f":"J169","v":{"$error":"#N/A"}},{"$f":"IF($I$3=\"N\",\"N\"&J170&B170,\"\")","v":{"$error":"#N/A"}},{"$f":"IFERROR(VLOOKUP(K170,'Paramétrage des points'!AA:AB,2,FALSE),0)","v":0}]
["0",2,null,null,null,null,{"$f":"+G170","v":0},null,null,{"$error":"#N/A"},{"$error":"#N/A"},{"$f":"IFERROR(VLOOKUP(K171,'Paramétrage des points'!AA:AB,2,FALSE),0)","v":0}]
["0",3,null,null,null,null,{"$f":"+G171","v":0},null,null,{"$error":"#N/A"},{"$error":"#N/A"},{"$f":"IFERROR(VLOOKUP(K172,'Paramétrage des points'!AA:AB,2,FALSE),0)","v":0}]
["0",4,null,null,null,null,{"$f":"+G172","v":0},null,null,{"$error":"#N/A"},{"$error":"#N/A"},{"$f":"IFERROR(VLOOKUP(K173,'Paramétrage des points'!AA:AB,2,FALSE),0)","v":0}]
["0",5,null,null,null,null,0,null,null,{"$error":"#N/A"},{"$error":"#N/A"},{"$f":"IFERROR(VLOOKUP(K174,'Paramétrage des points'!AA:AB,2,FALSE),0)","v":0}]
["0",6,null,null,null,null,0,null,null,{"$error":"#N/A"},{"$error":"#N/A"},{"$f":"IFERROR(VLOOKUP(K175,'Paramétrage des points'!AA:AB,2,FALSE),0)","v":0}]
["0",7,null,null,null,null,0,null,null,{"$error":"#N/A"},{"$error":"#N/A"},{"$f":"IFERROR(VLOOKUP(K176,'Paramétrage des points'!AA:AB,2,FALSE),0)","v":0}]
["0",8,null,null,null,null,0,null,null,{"$error":"#N/A"},{"$error":"#N/A"},{"$f":"IFERROR(VLOOKUP(K177,'Paramétrage des points'!AA:AB,2,FALSE),0)","v":0}]
["0",9,null,null,null,null,0,null,null,{"$error":"#N/A"},{"$error":"#N/A"},{"$f":"IFERROR(VLOOKUP(K178,'Paramétrage des points'!AA:AB,2,FALSE),0)","v":0}]
["0",10,null,null,null,null,0,null,null,{"$error":"#N/A"},{"$error":"#N/A"},{"$f":"IFERROR(VLOOKUP(K179,'Paramétrage des points'!AA:AB,2,FALSE),0)","v":0}]
["0",11,null,null,null,null,0,null,null,{"$error":"#N/A"},{"$error":"#N/A"},{"$f":"IFERROR(VLOOKUP(K180,'Paramétrage des points'!AA:AB,2,FALSE),0)","v":0}]
["0",12,null,null,null,null,0,null,null,{"$error":"#N/A"},{"$error":"#N/A"},{"$f":"IFERROR(VLOOKUP(K181,'Paramétrage des points'!AA:AB,2,FALSE),0)","v":0}]
["0",13,null,null,null,null,0,null,null,{"$error":"#N/A"},{"$error":"#N/A"},{"$f":"IFERROR(VLOOKUP(K182,'Paramétrage des points'!AA:AB,2,FALSE),0)","v":0}]
["0",14,null,null,null,null,0,null,null,{"$error":"#N/A"},{"$error":"#N/A"},{"$f":"IFERROR(VLOOKUP(K183,'Paramétrage des points'!AA:AB,2,FALSE),0)","v":0}]
["0",15,null,null,null,null,0,null,null,{"$error":"#N/A"},{"$error":"#N/A"},{"$f":"IFERROR(VLOOKUP(K184,'Paramétrage des points'!AA:AB,2,FALSE),0)","v":0}]
["",null,null,null,null,null,null,null,null,null,null,{"$f":"IFERROR(VLOOKUP(K185,'Paramétrage des points'!AA:AB,2,FALSE),0)","v":0}]
["0",{"$f":"Juges!L1","v":0},null,null,null,null,{"$f":"B186","v":0},null,null,{"$f":"VLOOKUP(B186,'Paramétrage des points'!$A$5:$C$29,3,FALSE)","v":{"$error":"#N/A"}},null,{"$f":"IFERROR(VLOOKUP(K186,'Paramétrage des points'!AA:AB,2,FALSE),0)","v":0}]
["N0M / PRENOM0","PLACE","N0M / PRENOM","DOSSARD","CLUB","COMITE",{"$f":"+G186","v":0},null,null,{"$f":"J186","v":{"$error":"#N/A"}},null,{"$f":"IFERROR(VLOOKUP(K187,'Paramétrage des points'!AA:AB,2,FALSE),0)","v":0}]
["0",1,null,null,null,null,{"$f":"+G187","v":0},null,null,{"$f":"J187","v":{"$error":"#N/A"}},{"$f":"IF($I$3=\"N\",\"N\"&J188&B188,\"\")","v":{"$error":"#N/A"}},{"$f":"IFERROR(VLOOKUP(K188,'Paramétrage des points'!AA:AB,2,FALSE),0)","v":0}]
["0",2,null,null,null,null,{"$f":"+G188","v":0},null,null,{"$error":"#N/A"},{"$error":"#N/A"},{"$f":"IFERROR(VLOOKUP(K189,'Paramétrage des points'!AA:AB,2,FALSE),0)","v":0}]
["0",3,null,null,null,null,{"$f":"+G189","v":0},null,null,{"$error":"#N/A"},{"$error":"#N/A"},{"$f":"IFERROR(VLOOKUP(K190,'Paramétrage des points'!AA:AB,2,FALSE),0)","v":0}]
["0",4,null,null,null,null,{"$f":"+G190","v":0},null,null,{"$error":"#N/A"},{"$error":"#N/A"},{"$f":"IFERROR(VLOOKUP(K191,'Paramétrage des points'!AA:AB,2,FALSE),0)","v":0}]
["0",5,null,null,null,null,0,null,null,{"$error":"#N/A"},{"$error":"#N/A"},{"$f":"IFERROR(VLOOKUP(K192,'Paramétrage des points'!AA:AB,2,FALSE),0)","v":0}]
["0",6,null,null,null,null,0,null,null,{"$error":"#N/A"},{"$error":"#N/A"},{"$f":"IFERROR(VLOOKUP(K193,'Paramétrage des points'!AA:AB,2,FALSE),0)","v":0}]
["0",7,null,null,null,null,0,null,null,{"$error":"#N/A"},{"$error":"#N/A"},{"$f":"IFERROR(VLOOKUP(K194,'Paramétrage des points'!AA:AB,2,FALSE),0)","v":0}]
["0",8,null,null,null,null,0,null,null,{"$error":"#N/A"},{"$error":"#N/A"},{"$f":"IFERROR(VLOOKUP(K195,'Paramétrage des points'!AA:AB,2,FALSE),0)","v":0}]
["0",9,null,null,null,null,0,null,null,{"$error":"#N/A"},{"$error":"#N/A"},{"$f":"IFERROR(VLOOKUP(K196,'Paramétrage des points'!AA:AB,2,FALSE),0)","v":0}]
["0",10,null,null,null,null,0,null,null,{"$error":"#N/A"},{"$error":"#N/A"},{"$f":"IFERROR(VLOOKUP(K197,'Paramétrage des points'!AA:AB,2,FALSE),0)","v":0}]
["0",11,null,null,null,null,0,null,null,{"$error":"#N/A"},{"$error":"#N/A"},{"$f":"IFERROR(VLOOKUP(K198,'Paramétrage des points'!AA:AB,2,FALSE),0)","v":0}]
["0",12,null,null,null,null,0,null,null,{"$error":"#N/A"},{"$error":"#N/A"},{"$f":"IFERROR(VLOOKUP(K199,'Paramétrage des points'!AA:AB,2,FALSE),0)","v":0}]
["0",13,null,null,null,null,0,null,null,{"$error":"#N/A"},{"$error":"#N/A"},{"$f":"IFERROR(VLOOKUP(K200,'Paramétrage des points'!AA:AB,2,FALSE),0)","v":0}]
[{"$f":"C201&G201","v":"0"},14,null,null,null,null,0,null,null,{"$error":"#N/A"},{"$error":"#N/A"},{"$f":"IFERROR(VLOOKUP(K201,'Paramétrage des points'!AA:AB,2,FALSE),0)","v":0}]
["0",15,null,null,null,null,0,null,null,{"$error":"#N/A"},{"$error":"#N/A"},{"$f":"IFERROR(VLOOKUP(K202,'Paramétrage des points'!AA:AB,2,FALSE),0)","v":0}]
["",null,null,null,null,null,null,null,null,null,null,{"$f":"IFERROR(VLOOKUP(K203,'Paramétrage des points'!AA:AB,2,FALSE),0)","v":0}]
["0",{"$f":"Juges!M1","v":0},null,null,null,null,{"$f":"B204","v":0},null,null,{"$f":"VLOOKUP(B204,'Paramétrage des points'!$A$5:$C$29,3,FALSE)","v":{"$error":"#N/A"}},null,{"$f":"IFERROR(VLOOKUP(K204,'Paramétrage des points'!AA:AB,2,FALSE),0)","v":0}]
["N0M / PRENOM0","PLACE","N0M / PRENOM","DOSSARD","CLUB","COMITE",{"$f":"+G204","v":0},null,null,{"$f":"J204","v":{"$error":"#N/A"}},null,{"$f":"IFERROR(VLOOKUP(K205,'Paramétrage des points'!AA:AB,2,FALSE),0)","v":0}]
["0",1,null,null,null,null,{"$f":"+G205","v":0},null,null,{"$f":"J205","v":{"$error":"#N/A"}},{"$f":"IF($I$3=\"N\",\"N\"&J206&B206,\"\")","v":{"$error":"#N/A"}},{"$f":"IFERROR(VLOOKUP(K206,'Paramétrage des points'!AA:AB,2,FALSE),0)","v":0}]
["0",2,null,null,null,null,{"$f":"+G206","v":0},null,null,{"$error":"#N/A"},{"$error":"#N/A"},{"$f":"IFERROR(VLOOKUP(K207,'Paramétrage des points'!AA:AB,2,FALSE),0)","v":0}]
["0",3,null,null,null,null,{"$f":"+G207","v":0},null,null,{"$error":"#N/A"},{"$error":"#N/A"},{"$f":"IFERROR(VLOOKUP(K208,'Paramétrage des points'!AA:AB,2,FALSE),0)","v":0}]
["0",4,null,null,null,null,{"$f":"+G208","v":0},null,null,{"$error":"#N/A"},{"$error":"#N/A"},{"$f":"IFERROR(VLOOKUP(K209,'Paramétrage des points'!AA:AB,2,FALSE),0)","v":0}]
["0",5,null,null,null,null,0,null,null,{"$error":"#N/A"},{"$error":"#N/A"},{"$f":"IFERROR(VLOOKUP(K210,'Paramétrage des points'!AA:AB,2,FALSE),0)","v":0}]
["0",6,null,null,null,null,0,null,null,{"$error":"#N/A"},{"$error":"#N/A"},{"$f":"IFERROR(VLOOKUP(K211,'Paramétrage des points'!AA:AB,2,FALSE),0)","v":0}]
["0",7,null,null,null,null,0,null,null,{"$error":"#N/A"},{"$error":"#N/A"},{"$f":"IFERROR(VLOOKUP(K212,'Paramétrage des points'!AA:AB,2,FALSE),0)","v":0}]
["0",8,null,null,null,null,0,null,null,{"$error":"#N/A"},{"$error":"#N/A"},{"$f":"IFERROR(VLOOKUP(K213,'Paramétrage des points'!AA:AB,2,FALSE),0)","v":0}]
["0",9,null,null,null,null,0,null,null,{"$error":"#N/A"},{"$error":"#N/A"},{"$f":"IFERROR(VLOOKUP(K214,'Paramétrage des points'!AA:AB,2,FALSE),0)","v":0}]
["0",10,null,null,null,null,0,null,null,{"$error":"#N/A"},{"$error":"#N/A"},{"$f":"IFERROR(VLOOKUP(K215,'Paramétrage des points'!AA:AB,2,FALSE),0)","v":0}]
["0",11,null,null,null,null,0,null,null,{"$error":"#N/A"},{"$error":"#N/A"},{"$f":"IFERROR(VLOOKUP(K216,'Paramétrage des points'!AA:AB,2,FALSE),0)","v":0}]
["0",12,null,null,null,null,0,null,null,{"$error":"#N/A"},{"$error":"#N/A"},{"$f":"IFERROR(VLOOKUP(K217,'Paramétrage des points'!AA:AB,2,FALSE),0)","v":0}]
["0",13,null,null,null,null,0,null,null,{"$error":"#N/A"},{"$error":"#N/A"},{"$f":"IFERROR(VLOOKUP(K218,'Paramétrage des points'!AA:AB,2,FALSE),0)","v":0}]
["0",14,null,null,null,null,0,null,null,{"$error":"#N/A"},{"$error":"#N/A"},{"$f":"IFERROR(VLOOKUP(K219,'Paramétrage des points'!AA:AB,2,FALSE),0)","v":0}]
["0",15,null,null,null,null,0,null,null,{"$error":"#N/A"},{"$error":"#N/A"},{"$f":"IFERROR(VLOOKUP(K220,'Paramétrage des points'!AA:AB,2,FALSE),0)","v":0}]
["",null,null,null,null,null,null,null,null,null,null,{"$f":"IFERROR(VLOOKUP(K221,'Paramétrage des points'!AA:AB,2,FALSE),0)","v":0}]
["0",{"$f":"Juges!N1","v":0},null,null,null,null,{"$f":"B222","v":0},null,null,{"$f":"VLOOKUP(B222,'Paramétrage des points'!$A$5:$C$29,3,FALSE)","v":{"$error":"#N/A"}},null,{"$f":"IFERROR(VLOOKUP(K222,'Paramétrage des points'!AA:AB,2,FALSE),0)","v":0}]
["N0M / PRENOM0","PLACE","N0M / PRENOM","DOSSARD","CLUB","COMITE",{"$f":"+G222","v":0},null,null,{"$f":"J222","v":{"$error":"#N/A"}},null,{"$f":"IFERROR(VLOOKUP(K223,'Paramétrage des points'!AA:AB,2,FALSE),0)","v":0}]
["0",1,null,null,null,null,{"$f":"+G223","v":0},null,null,{"$f":"J223","v":{"$error":"#N/A"}},{"$f":"IF($I$3=\"N\",\"N\"&J224&B224,\"\")","v":{"$error":"#N/A"}},{"$f":"IFERROR(VLOOKUP(K224,'Paramétrage des points'!AA:AB,2,FALSE),0)","v":0}]
["0",2,null,null,null,null,{"$f":"+G224","v":0},null,null,{"$error":"#N/A"},{"$error":"#N/A"},{"$f":"IFERROR(VLOOKUP(K225,'Paramétrage des points'!AA:AB,2,FALSE),0)","v":0}]
["0",3,null,null,null,null,{"$f":"+G225","v":0},null,null,{"$error":"#N/A"},{"$error":"#N/A"},{"$f":"IFERROR(VLOOKUP(K226,'Paramétrage des points'!AA:AB,2,FALSE),0)","v":0}]
["0",4,null,null,null,null,{"$f":"+G226","v":0},null,null,{"$error":"#N/A"},{"$error":"#N/A"},{"$f":"IFERROR(VLOOKUP(K227,'Paramétrage des points'!AA:AB,2,FALSE),0)","v":0}]
["0",5,null,null,null,null,0,null,null,{"$error":"#N/A"},{"$error":"#N/A"},{"$f":"IFERROR(VLOOKUP(K228,'Paramétrage des points'!AA:AB,2,FALSE),0)","v":0}]
["0",6,null,null,null,null,0,null,null,{"$error":"#N/A"},{"$error":"#N/A"},{"$f":"IFERROR(VLOOKUP(K229,'Paramétrage des points'!AA:AB,2,FALSE),0)","v":0}]
["0",7,null,null,null,null,0,null,null,{"$error":"#N/A"},{"$error":"#N/A"},{"$f":"IFERROR(VLOOKUP(K230,'Paramétrage des points'!AA:AB,2,FALSE),0)","v":0}]
["0",8,null,null,null,null,0,null,null,{"$error":"#N/A"},{"$error":"#N/A"},{"$f":"IFERROR(VLOOKUP(K231,'Paramétrage des points'!AA:AB,2,FALSE),0)","v":0}]
["0",9,null,null,null,null,0,null,null,{"$error":"#N/A"},{"$error":"#N/A"},{"$f":"IFERROR(VLOOKUP(K232,'Paramétrage des points'!AA:AB,2,FALSE),0)","v":0}]
["0",10,null,null,null,null,0,null,null,{"$error":"#N/A"},{"$error":"#N/A"},{"$f":"IFERROR(VLOOKUP(K233,'Paramétrage des points'!AA:AB,2,FALSE),0)","v":0}]
["0",11,null,null,null,null,0,null,null,{"$error":"#N/A"},{"$error":"#N/A"},{"$f":"IFERROR(VLOOKUP(K234,'Paramétrage des points'!AA:AB,2,FALSE),0)","v":0}]
["0",12,null,null,null,null,0,null,null,{"$error":"#N/A"},{"$error":"#N/A"},{"$f":"IFERROR(VLOOKUP(K235,'Paramétrage des points'!AA:AB,2,FALSE),0)","v":0}]
["0",13,null,null,null,null,0,null,null,{"$error":"#N/A"},{"$error":"#N/A"},{"$f":"IFERROR(VLOOKUP(K236,'Paramétrage des points'!AA:AB,2,FALSE),0)","v":0}]
["0",14,null,null,null,null,0,null,null,{"$error":"#N/A"},{"$error":"#N/A"},{"$f":"IFERROR(VLOOKUP(K237,'Paramétrage des points'!AA:AB,2,FALSE),0)","v":0}]
["0",15,null,null,null,null,0,null,null,{"$error":"#N/A"},{"$error":"#N/A"},{"$f":"IFERROR(VLOOKUP(K238,'Paramétrage des points'!AA:AB,2,FALSE),0)","v":0}]
["",null,null,null,null,null,null,null,null,null,null,{"$f":"IFERROR(VLOOKUP(K239,'Paramétrage des points'!AA:AB,2,FALSE),0)","v":0}]
["0",{"$f":"Juges!O1","v":0},null,null,null,null,{"$f":"B240","v":0},null,null,{"$f":"VLOOKUP(B240,'Paramétrage des points'!$A$5:$C$29,3,FALSE)","v":{"$error":"#N/A"}},null,{"$f":"IFERROR(VLOOKUP(K240,'Paramétrage des points'!AA:AB,2,FALSE),0)","v":0}]
["N0M / PRENOM0","PLACE","N0M / PRENOM","DOSSARD","CLUB","COMITE",{"$f":"+G240","v":0},null,null,{"$f":"J240","v":{"$error":"#N/A"}},null,{"$f":"IFERROR(VLOOKUP(K241,'Paramétrage des points'!AA:AB,2,FALSE),0)","v":0}]
["0",1,null,null,null,null,{"$f":"+G241","v":0},null,null,{"$f":"J241","v":{"$error":"#N/A"}},{"$f":"IF($I$3=\"N\",\"N\"&J242&B242,\"\")","v":{"$error":"#N/A"}},{"$f":"IFERROR(VLOOKUP(K242,'Paramétrage des points'!AA:AB,2,FALSE),0)","v":0}]
["0",2,null,null,null,null,{"$f":"+G242","v":0},null,null,{"$error":"#N/A"},{"$error":"#N/A"},{"$f":"IFERROR(VLOOKUP(K243,'Paramétrage des points'!AA:AB,2,FALSE),0)","v":0}]
["0",3,null,null,null,null,{"$f":"+G243","v":0},null,null,{"$error":"#N/A"},{"$error":"#N/A"},{"$f":"IFERROR(VLOOKUP(K244,'Paramétrage des points'!AA:AB,2,FALSE),0)","v":0}]
["0",4,null,null,null,null,{"$f":"+G244","v":0},null,null,{"$error":"#N/A"},{"$error":"#N/A"},{"$f":"IFERROR(VLOOKUP(K245,'Paramétrage des points'!AA:AB,2,FALSE),0)","v":0}]
["0",5,null,null,null,null,0,null,null,{"$error":"#N/A"},{"$error":"#N/A"},{"$f":"IFERROR(VLOOKUP(K246,'Paramétrage des points'!AA:AB,2,FALSE),0)","v":0}]
["0",6,null,null,null,null,0,null,null,{"$error":"#N/A"},{"$error":"#N/A"},{"$f":"IFERROR(VLOOKUP(K247,'Paramétrage des points'!AA:AB,2,FALSE),0)","v":0}]
["0",7,null,null,null,null,0,null,null,{"$error":"#N/A"},{"$error":"#N/A"},{"$f":"IFERROR(VLOOKUP(K248,'Paramétrage des points'!AA:AB,2,FALSE),0)","v":0}]
["0",8,null,null,null,null,0,null,null,{"$error":"#N/A"},{"$error":"#N/A"},{"$f":"IFERROR(VLOOKUP(K249,'Paramétrage des points'!AA:AB,2,FALSE),0)","v":0}]
["0",9,null,null,null,null,0,null,null,{"$error":"#N/A"},{"$error":"#N/A"},{"$f":"IFERROR(VLOOKUP(K250,'Paramétrage des points'!AA:AB,2,FALSE),0)","v":0}]
["0",10,null,null,null,null,0,null,null,{"$error":"#N/A"},{"$error":"#N/A"},{"$f":"IFERROR(VLOOKUP(K251,'Paramétrage des points'!AA:AB,2,FALSE),0)","v":0}]
["0",11,null,null,null,null,0,null,null,{"$error":"#N/A"},{"$error":"#N/A"},{"$f":"IFERROR(VLOOKUP(K252,'Paramétrage des points'!AA:AB,2,FALSE),0)","v":0}]
["0",12,null,null,null,null,0,null,null,{"$error":"#N/A"},{"$error":"#N/A"},{"$f":"IFERROR(VLOOKUP(K253,'Paramétrage des points'!AA:AB,2,FALSE),0)","v":0}]
["0",13,null,null,null,null,0,null,null,{"$error":"#N/A"},{"$error":"#N/A"},{"$f":"IFERROR(VLOOKUP(K254,'Paramétrage des points'!AA:AB,2,FALSE),0)","v":0}]
["0",14,null,null,null,null,0,null,null,{"$error":"#N/A"},{"$error":"#N/A"},{"$f":"IFERROR(VLOOKUP(K255,'Paramétrage des points'!AA:AB,2,FALSE),0)","v":0}]
["0",15,null,null,null,null,0,null,null,{"$error":"#N/A"},{"$error":"#N/A"},{"$f":"IFERROR(VLOOKUP(K256,'Paramétrage des points'!AA:AB,2,FALSE),0)","v":0}]
["",null,null,null,null,null,null,null,null,null,null,{"$f":"IFERROR(VLOOKUP(K257,'Paramétrage des points'!AA:AB,2,FALSE),0)","v":0}]
["0",{"$f":"Juges!P1","v":0},null,null,null,null,{"$f":"B258","v":0},null,null,{"$f":"VLOOKUP(B258,'Paramétrage des points'!$A$5:$C$29,3,FALSE)","v":{"$error":"#N/A"}},null,{"$f":"IFERROR(VLOOKUP(K258,'Paramétrage des points'!AA:AB,2,FALSE),0)","v":0}]
["N0M / PRENOM0","PLACE","N0M / PRENOM","DOSSARD","CLUB","COMITE",{"$f":"+G258","v":0},null,null,{"$f":"J258","v":{"$error":"#N/A"}},null,{"$f":"IFERROR(VLOOKUP(K259,'Paramétrage des points'!AA:AB,2,FALSE),0)","v":0}]
["0",1,null,null,null,null,{"$f":"+G259","v":0},null,null,{"$f":"J259","v":{"$error":"#N/A"}},{"$f":"IF($I$3=\"N\",\"N\"&J260&B260,\"\")","v":{"$error":"#N/A"}},{"$f":"IFERROR(VLOOKUP(K260,'Paramétrage des points'!AA:AB,2,FALSE),0)","v":0}]
["0",2,null,null,null,null,{"$f":"+G260","v":0},null,null,{"$error":"#N/A"},{"$error":"#N/A"},{"$f":"IFERROR(VLOOKUP(K261,'Paramétrage des points'!AA:AB,2,FALSE),0)","v":0}]
["0",3,null,null,null,null,{"$f":"+G261","v":0},null,null,{"$error":"#N/A"},{"$error":"#N/A"},{"$f":"IFERROR(VLOOKUP(K262,'Paramétrage des points'!AA:AB,2,FALSE),0)","v":0}]
["0",4,null,null,null,null,{"$f":"+G262","v":0},null,null,{"$error":"#N/A"},{"$error":"#N/A"},{"$f":"IFERROR(VLOOKUP(K263,'Paramétrage des points'!AA:AB,2,FALSE),0)","v":0}]
["0",5,null,null,null,null,0,null,null,{"$error":"#N/A"},{"$error":"#N/A"},{"$f":"IFERROR(VLOOKUP(K264,'Paramétrage des points'!AA:AB,2,FALSE),0)","v":0}]
[{"$f":"C265&G265","v":"0"},6,null,null,null,null,0,null,null,{"$error":"#N/A"},{"$error":"#N/A"},{"$f":"IFERROR(VLOOKUP(K265,'Paramétrage des points'!AA:AB,2,FALSE),0)","v":0}]
["0",7,null,null,null,null,0,null,null,{"$error":"#N/A"},{"$error":"#N/A"},{"$f":"IFERROR(VLOOKUP(K266,'Paramétrage des points'!AA:AB,2,FALSE),0)","v":0}]
["0",8,null,null,null,null,0,null,null,{"$error":"#N/A"},{"$error":"#N/A"},{"$f":"IFERROR(VLOOKUP(K267,'Paramétrage des points'!AA:AB,2,FALSE),0)","v":0}]
["0",9,null,null,null,null,0,null,null,{"$error":"#N/A"},{"$error":"#N/A"},{"$f":"IFERROR(VLOOKUP(K268,'Paramétrage des points'!AA:AB,2,FALSE),0)","v":0}]
["0",10,null,null,null,null,0,null,null,{"$error":"#N/A"},{"$error":"#N/A"},{"$f":"IFERROR(VLOOKUP(K269,'Paramétrage des points'!AA:AB,2,FALSE),0)","v":0}]
["0",11,null,null,null,null,0,null,null,{"$error":"#N/A"},{"$error":"#N/A"},{"$f":"IFERROR(VLOOKUP(K270,'Paramétrage des points'!AA:AB,2,FALSE),0)","v":0}]
["0",12,null,null,null,null,0,null,null,{"$error":"#N/A"},{"$error":"#N/A"},{"$f":"IFERROR(VLOOKUP(K271,'Paramétrage des points'!AA:AB,2,FALSE),0)","v":0}]
["0",13,null,null,null,null,0,null,null,{"$error":"#N/A"},{"$error":"#N/A"},{"$f":"IFERROR(VLOOKUP(K272,'Paramétrage des points'!AA:AB,2,FALSE),0)","v":0}]
["0",14,null,null,null,null,0,null,null,{"$error":"#N/A"},{"$error":"#N/A"},{"$f":"IFERROR(VLOOKUP(K273,'Paramétrage des points'!AA:AB,2,FALSE),0)","v":0}]
["0",15,null,null,null,null,0,null,null,{"$error":"#N/A"},{"$error":"#N/A"},{"$f":"IFERROR(VLOOKUP(K274,'Paramétrage des points'!AA:AB,2,FALSE),0)","v":0}]
["",null,null,null,null,null,null,null,null,null,null,{"$f":"IFERROR(VLOOKUP(K275,'Paramétrage des points'!AA:AB,2,FALSE),0)","v":0}]
["0",{"$f":"Juges!Q1","v":0},null,null,null,null,{"$f":"B276","v":0},null,null,{"$f":"VLOOKUP(B276,'Paramétrage des points'!$A$5:$C$29,3,FALSE)","v":{"$error":"#N/A"}},null,{"$f":"IFERROR(VLOOKUP(K276,'Paramétrage des points'!AA:AB,2,FALSE),0)","v":0}]
["N0M / PRENOM0","PLACE","N0M / PRENOM","DOSSARD","CLUB","COMITE",{"$f":"+G276","v":0},null,null,{"$f":"J276","v":{"$error":"#N/A"}},null,{"$f":"IFERROR(VLOOKUP(K277,'Paramétrage des points'!AA:AB,2,FALSE),0)","v":0}]
["0",1,null,null,null,null,{"$f":"+G277","v":0},null,null,{"$f":"J277","v":{"$error":"#N/A"}},{"$f":"IF($I$3=\"N\",\"N\"&J278&B278,\"\")","v":{"$error":"#N/A"}},{"$f":"IFERROR(VLOOKUP(K278,'Paramétrage des points'!AA:AB,2,FALSE),0)","v":0}]
["0",2,null,null,null,null,{"$f":"+G278","v":0},null,null,{"$error":"#N/A"},{"$error":"#N/A"},{"$f":"IFERROR(VLOOKUP(K279,'Paramétrage des points'!AA:AB,2,FALSE),0)","v":0}]
["0",3,null,null,null,null,{"$f":"+G279","v":0},null,null,{"$error":"#N/A"},{"$error":"#N/A"},{"$f":"IFERROR(VLOOKUP(K280,'Paramétrage des points'!AA:AB,2,FALSE),0)","v":0}]
["0",4,null,null,null,null,{"$f":"+G280","v":0},null,null,{"$error":"#N/A"},{"$error":"#N/A"},{"$f":"IFERROR(VLOOKUP(K281,'Paramétrage des points'!AA:AB,2,FALSE),0)","v":0}]
["0",5,null,null,null,null,0,null,null,{"$error":"#N/A"},{"$error":"#N/A"},{"$f":"IFERROR(VLOOKUP(K282,'Paramétrage des points'!AA:AB,2,FALSE),0)","v":0}]
["0",6,null,null,null,null,0,null,null,{"$error":"#N/A"},{"$error":"#N/A"},{"$f":"IFERROR(VLOOKUP(K283,'Paramétrage des points'!AA:AB,2,FALSE),0)","v":0}]
["0",7,null,null,null,null,0,null,null,{"$error":"#N/A"},{"$error":"#N/A"},{"$f":"IFERROR(VLOOKUP(K284,'Paramétrage des points'!AA:AB,2,FALSE),0)","v":0}]
["0",8,null,null,null,null,0,null,null,{"$error":"#N/A"},{"$error":"#N/A"},{"$f":"IFERROR(VLOOKUP(K285,'Paramétrage des points'!AA:AB,2,FALSE),0)","v":0}]
["0",9,null,null,null,null,0,null,null,{"$error":"#N/A"},{"$error":"#N/A"},{"$f":"IFERROR(VLOOKUP(K286,'Paramétrage des points'!AA:AB,2,FALSE),0)","v":0}]
["0",10,null,null,null,null,0,null,null,{"$error":"#N/A"},{"$error":"#N/A"},{"$f":"IFERROR(VLOOKUP(K287,'Paramétrage des points'!AA:AB,2,FALSE),0)","v":0}]
["0",11,null,null,null,null,0,null,null,{"$error":"#N/A"},{"$error":"#N/A"},{"$f":"IFERROR(VLOOKUP(K288,'Paramétrage des points'!AA:AB,2,FALSE),0)","v":0}]
["0",12,null,null,null,null,0,null,null,{"$error":"#N/A"},{"$error":"#N/A"},{"$f":"IFERROR(VLOOKUP(K289,'Paramétrage des points'!AA:AB,2,FALSE),0)","v":0}]
["0",13,null,null,null,null,0,null,null,{"$error":"#N/A"},{"$error":"#N/A"},{"$f":"IFERROR(VLOOKUP(K290,'Paramétrage des points'!AA:AB,2,FALSE),0)","v":0}]
["0",14,null,null,null,null,0,null,null,{"$error":"#N/A"},{"$error":"#N/A"},{"$f":"IFERROR(VLOOKUP(K291,'Paramétrage des points'!AA:AB,2,FALSE),0)","v":0}]
["0",15,null,null,null,null,0,null,null,{"$error":"#N/A"},{"$error":"#N/A"},{"$f":"IFERROR(VLOOKUP(K292,'Paramétrage des points'!AA:AB,2,FALSE),0)","v":0}]
["",null,null,null,null,null,null,null,null,null,null,{"$f":"IFERROR(VLOOKUP(K293,'Paramétrage des points'!AA:AB,2,FALSE),0)","v":0}]
["0",{"$f":"Juges!R1","v":0},null,null,null,null,{"$f":"B294","v":0},null,null,{"$f":"VLOOKUP(B294,'Paramétrage des points'!$A$5:$C$29,3,FALSE)","v":{"$error":"#N/A"}},null,{"$f":"IFERROR(VLOOKUP(K294,'Paramétrage des points'!AA:AB,2,FALSE),0)","v":0}]
["N0M / PRENOM0","PLACE","N0M / PRENOM","DOSSARD","CLUB","COMITE",{"$f":"+G294","v":0},null,null,{"$f":"J294","v":{"$error":"#N/A"}},null,{"$f":"IFERROR(VLOOKUP(K295,'Paramétrage des points'!AA:AB,2,FALSE),0)","v":0}]
["0",1,null,null,null,null,{"$f":"+G295","v":0},null,null,{"$f":"J295","v":{"$error":"#N/A"}},{"$f":"IF($I$3=\"N\",\"N\"&J296&B296,\"\")","v":{"$error":"#N/A"}},{"$f":"IFERROR(VLOOKUP(K296,'Paramétrage des points'!AA:AB,2,FALSE),0)","v":0}]
["0",2,null,null,null,null,{"$f":"+G296","v":0},null,null,{"$error":"#N/A"},{"$error":"#N/A"},{"$f":"IFERROR(VLOOKUP(K297,'Paramétrage des points'!AA:AB,2,FALSE),0)","v":0}]
["0",3,null,null,null,null,{"$f":"+G297","v":0},null,null,{"$error":"#N/A"},{"$error":"#N/A"},{"$f":"IFERROR(VLOOKUP(K298,'Paramétrage des points'!AA:AB,2,FALSE),0)","v":0}]
["0",4,null,null,null,null,{"$f":"+G298","v":0},null,null,{"$error":"#N/A"},{"$error":"#N/A"},{"$f":"IFERROR(VLOOKUP(K299,'Paramétrage des points'!AA:AB,2,FALSE),0)","v":0}]
["0",5,null,null,null,null,0,null,null,{"$error":"#N/A"},{"$error":"#N/A"},{"$f":"IFERROR(VLOOKUP(K300,'Paramétrage des points'!AA:AB,2,FALSE),0)","v":0}]
["0",6,null,null,null,null,0,null,null,{"$error":"#N/A"},{"$error":"#N/A"},{"$f":"IFERROR(VLOOKUP(K301,'Paramétrage des points'!AA:AB,2,FALSE),0)","v":0}]
["0",7,null,null,null,null,0,null,null,{"$error":"#N/A"},{"$error":"#N/A"},{"$f":"IFERROR(VLOOKUP(K302,'Paramétrage des points'!AA:AB,2,FALSE),0)","v":0}]
["0",8,null,null,null,null,0,null,null,{"$error":"#N/A"},{"$error":"#N/A"},{"$f":"IFERROR(VLOOKUP(K303,'Paramétrage des points'!AA:AB,2,FALSE),0)","v":0}]
["0",9,null,null,null,null,0,null,null,{"$error":"#N/A"},{"$error":"#N/A"},{"$f":"IFERROR(VLOOKUP(K304,'Paramétrage des points'!AA:AB,2,FALSE),0)","v":0}]
["0",10,null,null,null,null,0,null,null,{"$error":"#N/A"},{"$error":"#N/A"},{"$f":"IFERROR(VLOOKUP(K305,'Paramétrage des points'!AA:AB,2,FALSE),0)","v":0}]
["0",11,null,null,null,null,0,null,null,{"$error":"#N/A"},{"$error":"#N/A"},{"$f":"IFERROR(VLOOKUP(K306,'Paramétrage des points'!AA:AB,2,FALSE),0)","v":0}]
["0",12,null,null,null,null,0,null,null,{"$error":"#N/A"},{"$error":"#N/A"},{"$f":"IFERROR(VLOOKUP(K307,'Paramétrage des points'!AA:AB,2,FALSE),0)","v":0}]
["0",13,null,null,null,null,0,null,null,{"$error":"#N/A"},{"$error":"#N/A"},{"$f":"IFERROR(VLOOKUP(K308,'Paramétrage des points'!AA:AB,2,FALSE),0)","v":0}]
["0",14,null,null,null,null,0,null,null,{"$error":"#N/A"},{"$error":"#N/A"},{"$f":"IFERROR(VLOOKUP(K309,'Paramétrage des points'!AA:AB,2,FALSE),0)","v":0}]
["0",15,null,null,null,null,0,null,null,{"$error":"#N/A"},{"$error":"#N/A"},{"$f":"IFERROR(VLOOKUP(K310,'Paramétrage des points'!AA:AB,2,FALSE),0)","v":0}]
["",null,null,null,null,null,null,null,null,null,null,{"$f":"IFERROR(VLOOKUP(K311,'Paramétrage des points'!AA:AB,2,FALSE),0)","v":0}]
["0",{"$f":"Juges!S1","v":0},null,null,null,null,{"$f":"B312","v":0},null,null,{"$f":"VLOOKUP(B312,'Paramétrage des points'!$A$5:$C$29,3,FALSE)","v":{"$error":"#N/A"}},null,{"$f":"IFERROR(VLOOKUP(K312,'Paramétrage des points'!AA:AB,2,FALSE),0)","v":0}]
["N0M / PRENOM0","PLACE","N0M / PRENOM","DOSSARD","CLUB","COMITE",{"$f":"+G312","v":0},null,null,{"$f":"J312","v":{"$error":"#N/A"}},null,{"$f":"IFERROR(VLOOKUP(K313,'Paramétrage des points'!AA:AB,2,FALSE),0)","v":0}]
["0",1,null,null,null,null,{"$f":"+G313","v":0},null,null,{"$f":"J313","v":{"$error":"#N/A"}},{"$f":"IF($I$3=\"N\",\"N\"&J314&B314,\"\")","v":{"$error":"#N/A"}},{"$f":"IFERROR(VLOOKUP(K314,'Paramétrage des points'!AA:AB,2,FALSE),0)","v":0}]
["0",2,null,null,null,null,{"$f":"+G314","v":0},null,null,{"$error":"#N/A"},{"$error":"#N/A"},{"$f":"IFERROR(VLOOKUP(K315,'Paramétrage des points'!AA:AB,2,FALSE),0)","v":0}]
["0",3,null,null,null,null,{"$f":"+G315","v":0},null,null,{"$error":"#N/A"},{"$error":"#N/A"},{"$f":"IFERROR(VLOOKUP(K316,'Paramétrage des points'!AA:AB,2,FALSE),0)","v":0}]
["0",4,null,null,null,null,{"$f":"+G316","v":0},null,null,{"$error":"#N/A"},{"$error":"#N/A"},{"$f":"IFERROR(VLOOKUP(K317,'Paramétrage des points'!AA:AB,2,FALSE),0)","v":0}]
["0",5,null,null,null,null,0,null,null,{"$error":"#N/A"},{"$error":"#N/A"},{"$f":"IFERROR(VLOOKUP(K318,'Paramétrage des points'!AA:AB,2,FALSE),0)","v":0}]
["0",6,null,null,null,null,0,null,null,{"$error":"#N/A"},{"$error":"#N/A"},{"$f":"IFERROR(VLOOKUP(K319,'Paramétrage des points'!AA:AB,2,FALSE),0)","v":0}]
["0",7,null,null,null,null,0,null,null,{"$error":"#N/A"},{"$error":"#N/A"},{"$f":"IFERROR(VLOOKUP(K320,'Paramétrage des points'!AA:AB,2,FALSE),0)","v":0}]
["0",8,null,null,null,null,0,null,null,{"$error":"#N/A"},{"$error":"#N/A"},{"$f":"IFERROR(VLOOKUP(K321,'Paramétrage des points'!AA:AB,2,FALSE),0)","v":0}]
["0",9,null,null,null,null,0,null,null,{"$error":"#N/A"},{"$error":"#N/A"},{"$f":"IFERROR(VLOOKUP(K322,'Paramétrage des points'!AA:AB,2,FALSE),0)","v":0}]
["0",10,null,null,null,null,0,null,null,{"$error":"#N/A"},{"$error":"#N/A"},{"$f":"IFERROR(VLOOKUP(K323,'Paramétrage des points'!AA:AB,2,FALSE),0)","v":0}]
["0",11,null,null,null,null,0,null,null,{"$error":"#N/A"},{"$error":"#N/A"},{"$f":"IFERROR(VLOOKUP(K324,'Paramétrage des points'!AA:AB,2,FALSE),0)","v":0}]
["0",12,null,null,null,null,0,null,null,{"$error":"#N/A"},{"$error":"#N/A"},{"$f":"IFERROR(VLOOKUP(K325,'Paramétrage des points'!AA:AB,2,FALSE),0)","v":0}]
["0",13,null,null,null,null,0,null,null,{"$error":"#N/A"},{"$error":"#N/A"},{"$f":"IFERROR(VLOOKUP(K326,'Paramétrage des points'!AA:AB,2,FALSE),0)","v":0}]
["0",14,null,null,null,null,0,null,null,{"$error":"#N/A"},{"$error":"#N/A"},{"$f":"IFERROR(VLOOKUP(K327,'Paramétrage des points'!AA:AB,2,FALSE),0)","v":0}]
["0",15,null,null,null,null,0,null,null,{"$error":"#N/A"},{"$error":"#N/A"},{"$f":"IFERROR(VLOOKUP(K328,'Paramétrage des points'!AA:AB,2,FALSE),0)","v":0}]
[{"$f":"C329&G329","v":""},null,null,null,null,null,null,null,null,null,null,{"$f":"IFERROR(VLOOKUP(K329,'Paramétrage des points'!AA:AB,2,FALSE),0)","v":0}]
["0",{"$f":"Juges!T1","v":0},null,null,null,null,{"$f":"B330","v":0},null,null,{"$f":"VLOOKUP(B330,'Paramétrage des points'!$A$5:$C$29,3,FALSE)","v":{"$error":"#N/A"}},null,{"$f":"IFERROR(VLOOKUP(K330,'Paramétrage des points'!AA:AB,2,FALSE),0)","v":0}]
["N0M / PRENOM0","PLACE","N0M / PRENOM","DOSSARD","CLUB","COMITE",{"$f":"+G330","v":0},null,null,{"$f":"J330","v":{"$error":"#N/A"}},null,{"$f":"IFERROR(VLOOKUP(K331,'Paramétrage des points'!AA:AB,2,FALSE),0)","v":0}]
["0",1,null,null,null,null,{"$f":"+G331","v":0},null,null,{"$f":"J331","v":{"$error":"#N/A"}},{"$f":"IF($I$3=\"N\",\"N\"&J332&B332,\"\")","v":{"$error":"#N/A"}},{"$f":"IFERROR(VLOOKUP(K332,'Paramétrage des points'!AA:AB,2,FALSE),0)","v":0}]
["0",2,null,null,null,null,{"$f":"+G332","v":0},null,null,{"$error":"#N/A"},{"$error":"#N/A"},{"$f":"IFERROR(VLOOKUP(K333,'Paramétrage des points'!AA:AB,2,FALSE),0)","v":0}]
["0",3,null,null,null,null,{"$f":"+G333","v":0},null,null,{"$error":"#N/A"},{"$error":"#N/A"},{"$f":"IFERROR(VLOOKUP(K334,'Paramétrage des points'!AA:AB,2,FALSE),0)","v":0}]
["0",4,null,null,null,null,{"$f":"+G334","v":0},null,null,{"$error":"#N/A"},{"$error":"#N/A"},{"$f":"IFERROR(VLOOKUP(K335,'Paramétrage des points'!AA:AB,2,FALSE),0)","v":0}]
["0",5,null,null,null,null,0,null,null,{"$error":"#N/A"},{"$error":"#N/A"},{"$f":"IFERROR(VLOOKUP(K336,'Paramétrage des points'!AA:AB,2,FALSE),0)","v":0}]
["0",6,null,null,null,null,0,null,null,{"$error":"#N/A"},{"$error":"#N/A"},{"$f":"IFERROR(VLOOKUP(K337,'Paramétrage des points'!AA:AB,2,FALSE),0)","v":0}]
["0",7,null,null,null,null,0,null,null,{"$error":"#N/A"},{"$error":"#N/A"},{"$f":"IFERROR(VLOOKUP(K338,'Paramétrage des points'!AA:AB,2,FALSE),0)","v":0}]
["0",8,null,null,null,null,0,null,null,{"$error":"#N/A"},{"$error":"#N/A"},{"$f":"IFERROR(VLOOKUP(K339,'Paramétrage des points'!AA:AB,2,FALSE),0)","v":0}]
["0",9,null,null,null,null,0,null,null,{"$error":"#N/A"},{"$error":"#N/A"},{"$f":"IFERROR(VLOOKUP(K340,'Paramétrage des points'!AA:AB,2,FALSE),0)","v":0}]
["0",10,null,null,null,null,0,null,null,{"$error":"#N/A"},{"$error":"#N/A"},{"$f":"IFERROR(VLOOKUP(K341,'Paramétrage des points'!AA:AB,2,FALSE),0)","v":0}]
["0",11,null,null,null,null,0,null,null,{"$error":"#N/A"},{"$error":"#N/A"},{"$f":"IFERROR(VLOOKUP(K342,'Paramétrage des points'!AA:AB,2,FALSE),0)","v":0}]
["0",12,null,null,null,null,0,null,null,{"$error":"#N/A"},{"$error":"#N/A"},{"$f":"IFERROR(VLOOKUP(K343,'Paramétrage des points'!AA:AB,2,FALSE),0)","v":0}]
["0",13,null,null,null,null,0,null,null,{"$error":"#N/A"},{"$error":"#N/A"},{"$f":"IFERROR(VLOOKUP(K344,'Paramétrage des points'!AA:AB,2,FALSE),0)","v":0}]
["0",14,null,null,null,null,0,null,null,{"$error":"#N/A"},{"$error":"#N/A"},{"$f":"IFERROR(VLOOKUP(K345,'Paramétrage des points'!AA:AB,2,FALSE),0)","v":0}]
["0",15,null,null,null,null,0,null,null,{"$error":"#N/A"},{"$error":"#N/A"},{"$f":"IFERROR(VLOOKUP(K346,'Paramétrage des points'!AA:AB,2,FALSE),0)","v":0}]
["",null,null,null,null,null,null,null,null,null,null,{"$f":"IFERROR(VLOOKUP(K347,'Paramétrage des points'!AA:AB,2,FALSE),0)","v":0}]
["0",{"$f":"Juges!U1","v":0},null,null,null,null,{"$f":"B348","v":0},null,null,{"$f":"VLOOKUP(B348,'Paramétrage des points'!$A$5:$C$29,3,FALSE)","v":{"$error":"#N/A"}},null,{"$f":"IFERROR(VLOOKUP(K348,'Paramétrage des points'!AA:AB,2,FALSE),0)","v":0}]
["N0M / PRENOM0","PLACE","N0M / PRENOM","DOSSARD","CLUB","COMITE",{"$f":"+G348","v":0},null,null,{"$f":"J348","v":{"$error":"#N/A"}},null,{"$f":"IFERROR(VLOOKUP(K349,'Paramétrage des points'!AA:AB,2,FALSE),0)","v":0}]
["0",1,null,null,null,null,{"$f":"+G349","v":0},null,null,{"$f":"J349","v":{"$error":"#N/A"}},{"$f":"IF($I$3=\"N\",\"N\"&J350&B350,\"\")","v":{"$error":"#N/A"}},{"$f":"IFERROR(VLOOKUP(K350,'Paramétrage des points'!AA:AB,2,FALSE),0)","v":0}]
["0",2,null,null,null,null,{"$f":"+G350","v":0},null,null,{"$error":"#N/A"},{"$error":"#N/A"},{"$f":"IFERROR(VLOOKUP(K351,'Paramétrage des points'!AA:AB,2,FALSE),0)","v":0}]
["0",3,null,null,null,null,{"$f":"+G351","v":0},null,null,{"$error":"#N/A"},{"$error":"#N/A"},{"$f":"IFERROR(VLOOKUP(K352,'Paramétrage des points'!AA:AB,2,FALSE),0)","v":0}]
["0",4,null,null,null,null,{"$f":"+G352","v":0},null,null,{"$error":"#N/A"},{"$error":"#N/A"},{"$f":"IFERROR(VLOOKUP(K353,'Paramétrage des points'!AA:AB,2,FALSE),0)","v":0}]
["0",5,null,null,null,null,0,null,null,{"$error":"#N/A"},{"$error":"#N/A"},{"$f":"IFERROR(VLOOKUP(K354,'Paramétrage des points'!AA:AB,2,FALSE),0)","v":0}]
["0",6,null,null,null,null,0,null,null,{"$error":"#N/A"},{"$error":"#N/A"},{"$f":"IFERROR(VLOOKUP(K355,'Paramétrage des points'!AA:AB,2,FALSE),0)","v":0}]
["0",7,null,null,null,null,0,null,null,{"$error":"#N/A"},{"$error":"#N/A"},{"$f":"IFERROR(VLOOKUP(K356,'Paramétrage des points'!AA:AB,2,FALSE),0)","v":0}]
["0",8,null,null,null,null,0,null,null,{"$error":"#N/A"},{"$error":"#N/A"},{"$f":"IFERROR(VLOOKUP(K357,'Paramétrage des points'!AA:AB,2,FALSE),0)","v":0}]
["0",9,null,null,null,null,0,null,null,{"$error":"#N/A"},{"$error":"#N/A"},{"$f":"IFERROR(VLOOKUP(K358,'Paramétrage des points'!AA:AB,2,FALSE),0)","v":0}]
["0",10,null,null,null,null,0,null,null,{"$error":"#N/A"},{"$error":"#N/A"},{"$f":"IFERROR(VLOOKUP(K359,'Paramétrage des points'!AA:AB,2,FALSE),0)","v":0}]
["0",11,null,null,null,null,0,null,null,{"$error":"#N/A"},{"$error":"#N/A"},{"$f":"IFERROR(VLOOKUP(K360,'Paramétrage des points'!AA:AB,2,FALSE),0)","v":0}]
["0",12,null,null,null,null,0,null,null,{"$error":"#N/A"},{"$error":"#N/A"},{"$f":"IFERROR(VLOOKUP(K361,'Paramétrage des points'!AA:AB,2,FALSE),0)","v":0}]
["0",13,null,null,null,null,0,null,null,{"$error":"#N/A"},{"$error":"#N/A"},{"$f":"IFERROR(VLOOKUP(K362,'Paramétrage des points'!AA:AB,2,FALSE),0)","v":0}]
["0",14,null,null,null,null,0,null,null,{"$error":"#N/A"},{"$error":"#N/A"},{"$f":"IFERROR(VLOOKUP(K363,'Paramétrage des points'!AA:AB,2,FALSE),0)","v":0}]
["0",15,null,null,null,null,0,null,null,{"$error":"#N/A"},{"$error":"#N/A"},{"$f":"IFERROR(VLOOKUP(K364,'Paramétrage des points'!AA:AB,2,FALSE),0)","v":0}]
["",null,null,null,null,null,null,null,null,null,null,{"$f":"IFERROR(VLOOKUP(K365,'Paramétrage des points'!AA:AB,2,FALSE),0)","v":0}]
["0",{"$f":"Juges!V1","v":0},null,null,null,null,{"$f":"B366","v":0},null,null,{"$f":"VLOOKUP(B366,'Paramétrage des points'!$A$5:$C$29,3,FALSE)","v":{"$error":"#N/A"}},null,{"$f":"IFERROR(VLOOKUP(K366,'Paramétrage des points'!AA:AB,2,FALSE),0)","v":0}]
["N0M / PRENOM0","PLACE","N0M / PRENOM","DOSSARD","CLUB","COMITE",{"$f":"+G366","v":0},null,null,{"$f":"J366","v":{"$error":"#N/A"}},null,{"$f":"IFERROR(VLOOKUP(K367,'Paramétrage des points'!AA:AB,2,FALSE),0)","v":0}]
["0",1,null,null,null,null,{"$f":"+G367","v":0},null,null,{"$f":"J367","v":{"$error":"#N/A"}},{"$f":"IF($I$3=\"N\",\"N\"&J368&B368,\"\")","v":{"$error":"#N/A"}},{"$f":"IFERROR(VLOOKUP(K368,'Paramétrage des points'!AA:AB,2,FALSE),0)","v":0}]
["0",2,null,null,null,null,{"$f":"+G368","v":0},null,null,{"$error":"#N/A"},{"$error":"#N/A"},{"$f":"IFERROR(VLOOKUP(K369,'Paramétrage des points'!AA:AB,2,FALSE),0)","v":0}]
["0",3,null,null,null,null,{"$f":"+G369","v":0},null,null,{"$error":"#N/A"},{"$error":"#N/A"},{"$f":"IFERROR(VLOOKUP(K370,'Paramétrage des points'!AA:AB,2,FALSE),0)","v":0}]
["0",4,null,null,null,null,{"$f":"+G370","v":0},null,null,{"$error":"#N/A"},{"$error":"#N/A"},{"$f":"IFERROR(VLOOKUP(K371,'Paramétrage des points'!AA:AB,2,FALSE),0)","v":0}]
["0",5,null,null,null,null,0,null,null,{"$error":"#N/A"},{"$error":"#N/A"},{"$f":"IFERROR(VLOOKUP(K372,'Paramétrage des points'!AA:AB,2,FALSE),0)","v":0}]
["0",6,null,null,null,null,0,null,null,{"$error":"#N/A"},{"$error":"#N/A"},{"$f":"IFERROR(VLOOKUP(K373,'Paramétrage des points'!AA:AB,2,FALSE),0)","v":0}]
["0",7,null,null,null,null,0,null,null,{"$error":"#N/A"},{"$error":"#N/A"},{"$f":"IFERROR(VLOOKUP(K374,'Paramétrage des points'!AA:AB,2,FALSE),0)","v":0}]
["0",8,null,null,null,null,0,null,null,{"$error":"#N/A"},{"$error":"#N/A"},{"$f":"IFERROR(VLOOKUP(K375,'Paramétrage des points'!AA:AB,2,FALSE),0)","v":0}]
["0",9,null,null,null,null,0,null,null,{"$error":"#N/A"},{"$error":"#N/A"},{"$f":"IFERROR(VLOOKUP(K376,'Paramétrage des points'!AA:AB,2,FALSE),0)","v":0}]
["0",10,null,null,null,null,0,null,null,{"$error":"#N/A"},{"$error":"#N/A"},{"$f":"IFERROR(VLOOKUP(K377,'Paramétrage des points'!AA:AB,2,FALSE),0)","v":0}]
["0",11,null,null,null,null,0,null,null,{"$error":"#N/A"},{"$error":"#N/A"},{"$f":"IFERROR(VLOOKUP(K378,'Paramétrage des points'!AA:AB,2,FALSE),0)","v":0}]
["0",12,null,null,null,null,0,null,null,{"$error":"#N/A"},{"$error":"#N/A"},{"$f":"IFERROR(VLOOKUP(K379,'Paramétrage des points'!AA:AB,2,FALSE),0)","v":0}]
["0",13,null,null,null,null,0,null,null,{"$error":"#N/A"},{"$error":"#N/A"},{"$f":"IFERROR(VLOOKUP(K380,'Paramétrage des points'!AA:AB,2,FALSE),0)","v":0}]
["0",14,null,null,null,null,0,null,null,{"$error":"#N/A"},{"$error":"#N/A"},{"$f":"IFERROR(VLOOKUP(K381,'Paramétrage des points'!AA:AB,2,FALSE),0)","v":0}]
["0",15,null,null,null,null,0,null,null,{"$error":"#N/A"},{"$error":"#N/A"},{"$f":"IFERROR(VLOOKUP(K382,'Paramétrage des points'!AA:AB,2,FALSE),0)","v":0}]
["",null,null,null,null,null,null,null,null,null,null,{"$f":"IFERROR(VLOOKUP(K383,'Paramétrage des points'!AA:AB,2,FALSE),0)","v":0}]
["0",{"$f":"Juges!W1","v":0},null,null,null,null,{"$f":"B384","v":0},null,null,{"$f":"VLOOKUP(B384,'Paramétrage des points'!$A$5:$C$29,3,FALSE)","v":{"$error":"#N/A"}},null,{"$f":"IFERROR(VLOOKUP(K384,'Paramétrage des points'!AA:AB,2,FALSE),0)","v":0}]
["N0M / PRENOM0","PLACE","N0M / PRENOM","DOSSARD","CLUB","COMITE",{"$f":"+G384","v":0},null,null,{"$f":"J384","v":{"$error":"#N/A"}},null,{"$f":"IFERROR(VLOOKUP(K385,'Paramétrage des points'!AA:AB,2,FALSE),0)","v":0}]
["0",1,null,null,null,null,{"$f":"+G385","v":0},null,null,{"$f":"J385","v":{"$error":"#N/A"}},{"$f":"IF($I$3=\"N\",\"N\"&J386&B386,\"\")","v":{"$error":"#N/A"}},{"$f":"IFERROR(VLOOKUP(K386,'Paramétrage des points'!AA:AB,2,FALSE),0)","v":0}]
["0",2,null,null,null,null,{"$f":"+G386","v":0},null,null,{"$error":"#N/A"},{"$error":"#N/A"},{"$f":"IFERROR(VLOOKUP(K387,'Paramétrage des points'!AA:AB,2,FALSE),0)","v":0}]
["0",3,null,null,null,null,{"$f":"+G387","v":0},null,null,{"$error":"#N/A"},{"$error":"#N/A"},{"$f":"IFERROR(VLOOKUP(K388,'Paramétrage des points'!AA:AB,2,FALSE),0)","v":0}]
["0",4,null,null,null,null,{"$f":"+G388","v":0},null,null,{"$error":"#N/A"},{"$error":"#N/A"},{"$f":"IFERROR(VLOOKUP(K389,'Paramétrage des points'!AA:AB,2,FALSE),0)","v":0}]
["0",5,null,null,null,null,0,null,null,{"$error":"#N/A"},{"$error":"#N/A"},{"$f":"IFERROR(VLOOKUP(K390,'Paramétrage des points'!AA:AB,2,FALSE),0)","v":0}]
["0",6,null,null,null,null,0,null,null,{"$error":"#N/A"},{"$error":"#N/A"},{"$f":"IFERROR(VLOOKUP(K391,'Paramétrage des points'!AA:AB,2,FALSE),0)","v":0}]
["0",7,null,null,null,null,0,null,null,{"$error":"#N/A"},{"$error":"#N/A"},{"$f":"IFERROR(VLOOKUP(K392,'Paramétrage des points'!AA:AB,2,FALSE),0)","v":0}]
[{"$f":"C393&G393","v":"0"},8,null,null,null,null,0,null,null,{"$error":"#N/A"},{"$error":"#N/A"},{"$f":"IFERROR(VLOOKUP(K393,'Paramétrage des points'!AA:AB,2,FALSE),0)","v":0}]
["0",9,null,null,null,null,0,null,null,{"$error":"#N/A"},{"$error":"#N/A"},{"$f":"IFERROR(VLOOKUP(K394,'Paramétrage des points'!AA:AB,2,FALSE),0)","v":0}]
["0",10,null,null,null,null,0,null,null,{"$error":"#N/A"},{"$error":"#N/A"},{"$f":"IFERROR(VLOOKUP(K395,'Paramétrage des points'!AA:AB,2,FALSE),0)","v":0}]
["0",11,null,null,null,null,0,null,null,{"$error":"#N/A"},{"$error":"#N/A"},{"$f":"IFERROR(VLOOKUP(K396,'Paramétrage des points'!AA:AB,2,FALSE),0)","v":0}]
["0",12,null,null,null,null,0,null,null,{"$error":"#N/A"},{"$error":"#N/A"},{"$f":"IFERROR(VLOOKUP(K397,'Paramétrage des points'!AA:AB,2,FALSE),0)","v":0}]
["0",13,null,null,null,null,0,null,null,{"$error":"#N/A"},{"$error":"#N/A"},{"$f":"IFERROR(VLOOKUP(K398,'Paramétrage des points'!AA:AB,2,FALSE),0)","v":0}]
["0",14,null,null,null,null,0,null,null,{"$error":"#N/A"},{"$error":"#N/A"},{"$f":"IFERROR(VLOOKUP(K399,'Paramétrage des points'!AA:AB,2,FALSE),0)","v":0}]
["0",15,null,null,null,null,0,null,null,{"$error":"#N/A"},{"$error":"#N/A"},{"$f":"IFERROR(VLOOKUP(K400,'Paramétrage des points'!AA:AB,2,FALSE),0)","v":0}]
["",null,null,null,null,null,null,null,null,null,null,{"$f":"IFERROR(VLOOKUP(K401,'Paramétrage des points'!AA:AB,2,FALSE),0)","v":0}]
["0",{"$f":"Juges!X1","v":0},null,null,null,null,{"$f":"B402","v":0},null,null,{"$f":"VLOOKUP(B402,'Paramétrage des points'!$A$5:$C$29,3,FALSE)","v":{"$error":"#N/A"}},null,{"$f":"IFERROR(VLOOKUP(K402,'Paramétrage des points'!AA:AB,2,FALSE),0)","v":0}]
["N0M / PRENOM0","PLACE","N0M / PRENOM","DOSSARD","CLUB","COMITE",{"$f":"+G402","v":0},null,null,{"$f":"J402","v":{"$error":"#N/A"}},null,{"$f":"IFERROR(VLOOKUP(K403,'Paramétrage des points'!AA:AB,2,FALSE),0)","v":0}]
["0",1,null,null,null,null,{"$f":"+G403","v":0},null,null,{"$f":"J403","v":{"$error":"#N/A"}},{"$f":"IF($I$3=\"N\",\"N\"&J404&B404,\"\")","v":{"$error":"#N/A"}},{"$f":"IFERROR(VLOOKUP(K404,'Paramétrage des points'!AA:AB,2,FALSE),0)","v":0}]
["0",2,null,null,null,null,{"$f":"+G404","v":0},null,null,{"$error":"#N/A"},{"$error":"#N/A"},{"$f":"IFERROR(VLOOKUP(K405,'Paramétrage des points'!AA:AB,2,FALSE),0)","v":0}]
["0",3,null,null,null,null,{"$f":"+G405","v":0},null,null,{"$error":"#N/A"},{"$error":"#N/A"},{"$f":"IFERROR(VLOOKUP(K406,'Paramétrage des points'!AA:AB,2,FALSE),0)","v":0}]
["0",4,null,null,null,null,{"$f":"+G406","v":0},null,null,{"$error":"#N/A"},{"$error":"#N/A"},{"$f":"IFERROR(VLOOKUP(K407,'Paramétrage des points'!AA:AB,2,FALSE),0)","v":0}]
["0",5,null,null,null,null,0,null,null,{"$error":"#N/A"},{"$error":"#N/A"},{"$f":"IFERROR(VLOOKUP(K408,'Paramétrage des points'!AA:AB,2,FALSE),0)","v":0}]
["0",6,null,null,null,null,0,null,null,{"$error":"#N/A"},{"$error":"#N/A"},{"$f":"IFERROR(VLOOKUP(K409,'Paramétrage des points'!AA:AB,2,FALSE),0)","v":0}]
["0",7,null,null,null,null,0,null,null,{"$error":"#N/A"},{"$error":"#N/A"},{"$f":"IFERROR(VLOOKUP(K410,'Paramétrage des points'!AA:AB,2,FALSE),0)","v":0}]
["0",8,null,null,null,null,0,null,null,{"$error":"#N/A"},{"$error":"#N/A"},{"$f":"IFERROR(VLOOKUP(K411,'Paramétrage des points'!AA:AB,2,FALSE),0)","v":0}]
["0",9,null,null,null,null,0,null,null,{"$error":"#N/A"},{"$error":"#N/A"},{"$f":"IFERROR(VLOOKUP(K412,'Paramétrage des points'!AA:AB,2,FALSE),0)","v":0}]
["0",10,null,null,null,null,0,null,null,{"$error":"#N/A"},{"$error":"#N/A"},{"$f":"IFERROR(VLOOKUP(K413,'Paramétrage des points'!AA:AB,2,FALSE),0)","v":0}]
["0",11,null,null,null,null,0,null,null,{"$error":"#N/A"},{"$error":"#N/A"},{"$f":"IFERROR(VLOOKUP(K414,'Paramétrage des points'!AA:AB,2,FALSE),0)","v":0}]
["0",12,null,null,null,null,0,null,null,{"$error":"#N/A"},{"$error":"#N/A"},{"$f":"IFERROR(VLOOKUP(K415,'Paramétrage des points'!AA:AB,2,FALSE),0)","v":0}]
["0",13,null,null,null,null,0,null,null,{"$error":"#N/A"},{"$error":"#N/A"},{"$f":"IFERROR(VLOOKUP(K416,'Paramétrage des points'!AA:AB,2,FALSE),0)","v":0}]
["0",14,null,null,null,null,0,null,null,{"$error":"#N/A"},{"$error":"#N/A"},{"$f":"IFERROR(VLOOKUP(K417,'Paramétrage des points'!AA:AB,2,FALSE),0)","v":0}]
["0",15,null,null,null,null,0,null,null,{"$error":"#N/A"},{"$error":"#N/A"},{"$f":"IFERROR(VLOOKUP(K418,'Paramétrage des points'!AA:AB,2,FALSE),0)","v":0}]
["",null,null,null,null,null,null,null,null,null,null,{"$f":"IFERROR(VLOOKUP(K419,'Paramétrage des points'!AA:AB,2,FALSE),0)","v":0}]
["0",{"$f":"Juges!Y1","v":0},null,null,null,null,{"$f":"B420","v":0},null,null,{"$f":"VLOOKUP(B420,'Paramétrage des points'!$A$5:$C$29,3,FALSE)","v":{"$error":"#N/A"}},null,{"$f":"IFERROR(VLOOKUP(K420,'Paramétrage des points'!AA:AB,2,FALSE),0)","v":0}]
["N0M / PRENOM0","PLACE","N0M / PRENOM","DOSSARD","CLUB","COMITE",{"$f":"+G420","v":0},null,null,{"$f":"J420","v":{"$error":"#N/A"}},null,{"$f":"IFERROR(VLOOKUP(K421,'Paramétrage des points'!AA:AB,2,FALSE),0)","v":0}]
["0",1,null,null,null,null,{"$f":"+G421","v":0},null,null,{"$f":"J421","v":{"$error":"#N/A"}},{"$f":"IF($I$3=\"N\",\"N\"&J422&B422,\"\")","v":{"$error":"#N/A"}},{"$f":"IFERROR(VLOOKUP(K422,'Paramétrage des points'!AA:AB,2,FALSE),0)","v":0}]
["0",2,null,null,null,null,{"$f":"+G422","v":0},null,null,{"$error":"#N/A"},{"$error":"#N/A"},{"$f":"IFERROR(VLOOKUP(K423,'Paramétrage des points'!AA:AB,2,FALSE),0)","v":0}]
["0",3,null,null,null,null,{"$f":"+G423","v":0},null,null,{"$error":"#N/A"},{"$error":"#N/A"},{"$f":"IFERROR(VLOOKUP(K424,'Paramétrage des points'!AA:AB,2,FALSE),0)","v":0}]
["0",4,null,null,null,null,{"$f":"+G424","v":0},null,null,{"$error":"#N/A"},{"$error":"#N/A"},{"$f":"IFERROR(VLOOKUP(K425,'Paramétrage des points'!AA:AB,2,FALSE),0)","v":0}]
["0",5,null,null,null,null,0,null,null,{"$error":"#N/A"},{"$error":"#N/A"},{"$f":"IFERROR(VLOOKUP(K426,'Paramétrage des points'!AA:AB,2,FALSE),0)","v":0}]
["0",6,null,null,null,null,0,null,null,{"$error":"#N/A"},{"$error":"#N/A"},{"$f":"IFERROR(VLOOKUP(K427,'Paramétrage des points'!AA:AB,2,FALSE),0)","v":0}]
["0",7,null,null,null,null,0,null,null,{"$error":"#N/A"},{"$error":"#N/A"},{"$f":"IFERROR(VLOOKUP(K428,'Paramétrage des points'!AA:AB,2,FALSE),0)","v":0}]
["0",8,null,null,null,null,0,null,null,{"$error":"#N/A"},{"$error":"#N/A"},{"$f":"IFERROR(VLOOKUP(K429,'Paramétrage des points'!AA:AB,2,FALSE),0)","v":0}]
["0",9,null,null,null,null,0,null,null,{"$error":"#N/A"},{"$error":"#N/A"},{"$f":"IFERROR(VLOOKUP(K430,'Paramétrage des points'!AA:AB,2,FALSE),0)","v":0}]
["0",10,null,null,null,null,0,null,null,{"$error":"#N/A"},{"$error":"#N/A"},{"$f":"IFERROR(VLOOKUP(K431,'Paramétrage des points'!AA:AB,2,FALSE),0)","v":0}]
["0",11,null,null,null,null,0,null,null,{"$error":"#N/A"},{"$error":"#N/A"},{"$f":"IFERROR(VLOOKUP(K432,'Paramétrage des points'!AA:AB,2,FALSE),0)","v":0}]
["0",12,null,null,null,null,0,null,null,{"$error":"#N/A"},{"$error":"#N/A"},{"$f":"IFERROR(VLOOKUP(K433,'Paramétrage des points'!AA:AB,2,FALSE),0)","v":0}]
["0",13,null,null,null,null,0,null,null,{"$error":"#N/A"},{"$error":"#N/A"},{"$f":"IFERROR(VLOOKUP(K434,'Paramétrage des points'!AA:AB,2,FALSE),0)","v":0}]
["0",14,null,null,null,null,0,null,null,{"$error":"#N/A"},{"$error":"#N/A"},{"$f":"IFERROR(VLOOKUP(K435,'Paramétrage des points'!AA:AB,2,FALSE),0)","v":0}]
["0",15,null,null,null,null,0,null,null,{"$error":"#N/A"},{"$error":"#N/A"},{"$f":"IFERROR(VLOOKUP(K436,'Paramétrage des points'!AA:AB,2,FALSE),0)","v":0}]
["",null,null,null,null,null,null,null,null,null,null,{"$f":"IFERROR(VLOOKUP(K437,'Paramétrage des points'!AA:AB,2,FALSE),0)","v":0}]
["0",{"$f":"Juges!Z1","v":0},null,null,null,null,{"$f":"B438","v":0},null,null,{"$f":"VLOOKUP(B438,'Paramétrage des points'!$A$5:$C$29,3,FALSE)","v":{"$error":"#N/A"}},null,{"$f":"IFERROR(VLOOKUP(K438,'Paramétrage des points'!AA:AB,2,FALSE),0)","v":0}]
["N0M / PRENOM0","PLACE","N0M / PRENOM","DOSSARD","CLUB","COMITE",{"$f":"+G438","v":0},null,null,{"$f":"J438","v":{"$error":"#N/A"}},null,{"$f":"IFERROR(VLOOKUP(K439,'Paramétrage des points'!AA:AB,2,FALSE),0)","v":0}]
["0",1,null,null,null,null,{"$f":"+G439","v":0},null,null,{"$f":"J439","v":{"$error":"#N/A"}},{"$f":"IF($I$3=\"N\",\"N\"&J440&B440,\"\")","v":{"$error":"#N/A"}},{"$f":"IFERROR(VLOOKUP(K440,'Paramétrage des points'!AA:AB,2,FALSE),0)","v":0}]
["0",2,null,null,null,null,{"$f":"+G440","v":0},null,null,{"$error":"#N/A"},{"$error":"#N/A"},{"$f":"IFERROR(VLOOKUP(K441,'Paramétrage des points'!AA:AB,2,FALSE),0)","v":0}]
["0",3,null,null,null,null,{"$f":"+G441","v":0},null,null,{"$error":"#N/A"},{"$error":"#N/A"},{"$f":"IFERROR(VLOOKUP(K442,'Paramétrage des points'!AA:AB,2,FALSE),0)","v":0}]
["0",4,null,null,null,null,{"$f":"+G442","v":0},null,null,{"$error":"#N/A"},{"$error":"#N/A"},{"$f":"IFERROR(VLOOKUP(K443,'Paramétrage des points'!AA:AB,2,FALSE),0)","v":0}]
["0",5,null,null,null,null,0,null,null,{"$error":"#N/A"},{"$error":"#N/A"},{"$f":"IFERROR(VLOOKUP(K444,'Paramétrage des points'!AA:AB,2,FALSE),0)","v":0}]
["0",6,null,null,null,null,0,null,null,{"$error":"#N/A"},{"$error":"#N/A"},{"$f":"IFERROR(VLOOKUP(K445,'Paramétrage des points'!AA:AB,2,FALSE),0)","v":0}]
["0",7,null,null,null,null,0,null,null,{"$error":"#N/A"},{"$error":"#N/A"},{"$f":"IFERROR(VLOOKUP(K446,'Paramétrage des points'!AA:AB,2,FALSE),0)","v":0}]
["0",8,null,null,null,null,0,null,null,{"$error":"#N/A"},{"$error":"#N/A"},{"$f":"IFERROR(VLOOKUP(K447,'Paramétrage des points'!AA:AB,2,FALSE),0)","v":0}]
["0",9,null,null,null,null,0,null,null,{"$error":"#N/A"},{"$error":"#N/A"},{"$f":"IFERROR(VLOOKUP(K448,'Paramétrage des points'!AA:AB,2,FALSE),0)","v":0}]
["0",10,null,null,null,null,0,null,null,{"$error":"#N/A"},{"$error":"#N/A"},{"$f":"IFERROR(VLOOKUP(K449,'Paramétrage des points'!AA:AB,2,FALSE),0)","v":0}]
["0",11,null,null,null,null,0,null,null,{"$error":"#N/A"},{"$error":"#N/A"},{"$f":"IFERROR(VLOOKUP(K450,'Paramétrage des points'!AA:AB,2,FALSE),0)","v":0}]
["0",12,null,null,null,null,0,null,null,{"$error":"#N/A"},{"$error":"#N/A"},{"$f":"IFERROR(VLOOKUP(K451,'Paramétrage des points'!AA:AB,2,FALSE),0)","v":0}]
["0",13,null,null,null,null,0,null,null,{"$error":"#N/A"},{"$error":"#N/A"},{"$f":"IFERROR(VLOOKUP(K452,'Paramétrage des points'!AA:AB,2,FALSE),0)","v":0}]
["0",14,null,null,null,null,0,null,null,{"$error":"#N/A"},{"$error":"#N/A"},{"$f":"IFERROR(VLOOKUP(K453,'Paramétrage des points'!AA:AB,2,FALSE),0)","v":0}]
["0",15,null,null,null,null,0,null,null,{"$error":"#N/A"},{"$error":"#N/A"},{"$f":"IFERROR(VLOOKUP(K454,'Paramétrage des points'!AA:AB,2,FALSE),0)","v":0}]
["",null,null,null,null,null,null,null,null,null,null,{"$f":"IFERROR(VLOOKUP(K455,'Paramétrage des points'!AA:AB,2,FALSE),0)","v":0}]
["0",{"$f":"Juges!AA1","v":0},null,null,null,null,{"$f":"B456","v":0},null,null,{"$f":"VLOOKUP(B456,'Paramétrage des points'!$A$5:$C$29,3,FALSE)","v":{"$error":"#N/A"}},null,{"$f":"IFERROR(VLOOKUP(K456,'Paramétrage des points'!AA:AB,2,FALSE),0)","v":0}]
[{"$f":"C457&G457","v":"N0M / PRENOM0"},"PLACE","N0M / PRENOM","DOSSARD","CLUB","COMITE",{"$f":"+G456","v":0},null,null,{"$f":"J456","v":{"$error":"#N/A"}},null,{"$f":"IFERROR(VLOOKUP(K457,'Paramétrage des points'!AA:AB,2,FALSE),0)","v":0}]
["0",1,null,null,null,null,{"$f":"+G457","v":0},null,null,{"$f":"J457","v":{"$error":"#N/A"}},{"$f":"IF($I$3=\"N\",\"N\"&J458&B458,\"\")","v":{"$error":"#N/A"}},{"$f":"IFERROR(VLOOKUP(K458,'Paramétrage des points'!AA:AB,2,FALSE),0)","v":0}]
["0",2,null,null,null,null,{"$f":"+G458","v":0},null,null,{"$error":"#N/A"},{"$error":"#N/A"},{"$f":"IFERROR(VLOOKUP(K459,'Paramétrage des points'!AA:AB,2,FALSE),0)","v":0}]
["0",3,null,null,null,null,{"$f":"+G459","v":0},null,null,{"$error":"#N/A"},{"$error":"#N/A"},{"$f":"IFERROR(VLOOKUP(K460,'Paramétrage des points'!AA:AB,2,FALSE),0)","v":0}]
["0",4,null,null,null,null,{"$f":"+G460","v":0},null,null,{"$error":"#N/A"},{"$error":"#N/A"},{"$f":"IFERROR(VLOOKUP(K461,'Paramétrage des points'!AA:AB,2,FALSE),0)","v":0}]
["0",5,null,null,null,null,0,null,null,{"$error":"#N/A"},{"$error":"#N/A"},{"$f":"IFERROR(VLOOKUP(K462,'Paramétrage des points'!AA:AB,2,FALSE),0)","v":0}]
["0",6,null,null,null,null,0,null,null,{"$error":"#N/A"},{"$error":"#N/A"},{"$f":"IFERROR(VLOOKUP(K463,'Paramétrage des points'!AA:AB,2,FALSE),0)","v":0}]
["0",7,null,null,null,null,0,null,null,{"$error":"#N/A"},{"$error":"#N/A"},{"$f":"IFERROR(VLOOKUP(K464,'Paramétrage des points'!AA:AB,2,FALSE),0)","v":0}]
["0",8,null,null,null,null,0,null,null,{"$error":"#N/A"},{"$error":"#N/A"},{"$f":"IFERROR(VLOOKUP(K465,'Paramétrage des points'!AA:AB,2,FALSE),0)","v":0}]
["0",9,null,null,null,null,0,null,null,{"$error":"#N/A"},{"$error":"#N/A"},{"$f":"IFERROR(VLOOKUP(K466,'Paramétrage des points'!AA:AB,2,FALSE),0)","v":0}]
["0",10,null,null,null,null,0,null,null,{"$error":"#N/A"},{"$error":"#N/A"},{"$f":"IFERROR(VLOOKUP(K467,'Paramétrage des points'!AA:AB,2,FALSE),0)","v":0}]
["0",11,null,null,null,null,0,null,null,{"$error":"#N/A"},{"$error":"#N/A"},{"$f":"IFERROR(VLOOKUP(K468,'Paramétrage des points'!AA:AB,2,FALSE),0)","v":0}]
["0",12,null,null,null,null,0,null,null,{"$error":"#N/A"},{"$error":"#N/A"},{"$f":"IFERROR(VLOOKUP(K469,'Paramétrage des points'!AA:AB,2,FALSE),0)","v":0}]
["0",13,null,null,null,null,0,null,null,{"$error":"#N/A"},{"$error":"#N/A"},{"$f":"IFERROR(VLOOKUP(K470,'Paramétrage des points'!AA:AB,2,FALSE),0)","v":0}]
["0",14,null,null,null,null,0,null,null,{"$error":"#N/A"},{"$error":"#N/A"},{"$f":"IFERROR(VLOOKUP(K471,'Paramétrage des points'!AA:AB,2,FALSE),0)","v":0}]
["0",15,null,null,null,null,0,null,null,{"$error":"#N/A"},{"$error":"#N/A"},{"$f":"IFERROR(VLOOKUP(K472,'Paramétrage des points'!AA:AB,2,FALSE),0)","v":0}]
["",null,null,null,null,null,null,null,null,null,null,{"$f":"IFERROR(VLOOKUP(K473,'Paramétrage des points'!AA:AB,2,FALSE),0)","v":0}]
["0",{"$f":"Juges!AB1","v":0},null,null,null,null,{"$f":"B474","v":0},null,null,{"$f":"VLOOKUP(B474,'Paramétrage des points'!$A$5:$C$29,3,FALSE)","v":{"$error":"#N/A"}},null,{"$f":"IFERROR(VLOOKUP(K474,'Paramétrage des points'!AA:AB,2,FALSE),0)","v":0}]
["N0M / PRENOM0","PLACE","N0M / PRENOM","DOSSARD","CLUB","COMITE",{"$f":"+G474","v":0},null,null,{"$f":"J474","v":{"$error":"#N/A"}},null,{"$f":"IFERROR(VLOOKUP(K475,'Paramétrage des points'!AA:AB,2,FALSE),0)","v":0}]
["0",1,null,null,null,null,{"$f":"+G475","v":0},null,null,{"$f":"J475","v":{"$error":"#N/A"}},{"$f":"IF($I$3=\"N\",\"N\"&J476&B476,\"\")","v":{"$error":"#N/A"}},{"$f":"IFERROR(VLOOKUP(K476,'Paramétrage des points'!AA:AB,2,FALSE),0)","v":0}]
["0",2,null,null,null,null,{"$f":"+G476","v":0},null,null,{"$error":"#N/A"},{"$error":"#N/A"},{"$f":"IFERROR(VLOOKUP(K477,'Paramétrage des points'!AA:AB,2,FALSE),0)","v":0}]
["0",3,null,null,null,null,{"$f":"+G477","v":0},null,null,{"$error":"#N/A"},{"$error":"#N/A"},{"$f":"IFERROR(VLOOKUP(K478,'Paramétrage des points'!AA:AB,2,FALSE),0)","v":0}]
["0",4,null,null,null,null,{"$f":"+G478","v":0},null,null,{"$error":"#N/A"},{"$error":"#N/A"},{"$f":"IFERROR(VLOOKUP(K479,'Paramétrage des points'!AA:AB,2,FALSE),0)","v":0}]
["0",5,null,null,null,null,0,null,null,{"$error":"#N/A"},{"$error":"#N/A"},{"$f":"IFERROR(VLOOKUP(K480,'Paramétrage des points'!AA:AB,2,FALSE),0)","v":0}]
["0",6,null,null,null,null,0,null,null,{"$error":"#N/A"},{"$error":"#N/A"},{"$f":"IFERROR(VLOOKUP(K481,'Paramétrage des points'!AA:AB,2,FALSE),0)","v":0}]
["0",7,null,null,null,null,0,null,null,{"$error":"#N/A"},{"$error":"#N/A"},{"$f":"IFERROR(VLOOKUP(K482,'Paramétrage des points'!AA:AB,2,FALSE),0)","v":0}]
["0",8,null,null,null,null,0,null,null,{"$error":"#N/A"},{"$error":"#N/A"},{"$f":"IFERROR(VLOOKUP(K483,'Paramétrage des points'!AA:AB,2,FALSE),0)","v":0}]
["0",9,null,null,null,null,0,null,null,{"$error":"#N/A"},{"$error":"#N/A"},{"$f":"IFERROR(VLOOKUP(K484,'Paramétrage des points'!AA:AB,2,FALSE),0)","v":0}]
["0",10,null,null,null,null,0,null,null,{"$error":"#N/A"},{"$error":"#N/A"},{"$f":"IFERROR(VLOOKUP(K485,'Paramétrage des points'!AA:AB,2,FALSE),0)","v":0}]
["0",11,null,null,null,null,0,null,null,{"$error":"#N/A"},{"$error":"#N/A"},{"$f":"IFERROR(VLOOKUP(K486,'Paramétrage des points'!AA:AB,2,FALSE),0)","v":0}]
["0",12,null,null,null,null,0,null,null,{"$error":"#N/A"},{"$error":"#N/A"},{"$f":"IFERROR(VLOOKUP(K487,'Paramétrage des points'!AA:AB,2,FALSE),0)","v":0}]
["0",13,null,null,null,null,0,null,null,{"$error":"#N/A"},{"$error":"#N/A"},{"$f":"IFERROR(VLOOKUP(K488,'Paramétrage des points'!AA:AB,2,FALSE),0)","v":0}]
["0",14,null,null,null,null,0,null,null,{"$error":"#N/A"},{"$error":"#N/A"},{"$f":"IFERROR(VLOOKUP(K489,'Paramétrage des points'!AA:AB,2,FALSE),0)","v":0}]
["0",15,null,null,null,null,0,null,null,{"$error":"#N/A"},{"$error":"#N/A"},{"$f":"IFERROR(VLOOKUP(K490,'Paramétrage des points'!AA:AB,2,FALSE),0)","v":0}]
["",null,null,null,null,null,null,null,null,null,null,{"$f":"IFERROR(VLOOKUP(K491,'Paramétrage des points'!AA:AB,2,FALSE),0)","v":0}]
["0",{"$f":"Juges!AC1","v":0},null,null,null,null,{"$f":"B492","v":0},null,null,{"$f":"VLOOKUP(B492,'Paramétrage des points'!$A$5:$C$29,3,FALSE)","v":{"$error":"#N/A"}},null,{"$f":"IFERROR(VLOOKUP(K492,'Paramétrage des points'!AA:AB,2,FALSE),0)","v":0}]
["N0M / PRENOM0","PLACE","N0M / PRENOM","DOSSARD","CLUB","COMITE",{"$f":"+G492","v":0},null,null,{"$f":"J492","v":{"$error":"#N/A"}},null,{"$f":"IFERROR(VLOOKUP(K493,'Paramétrage des points'!AA:AB,2,FALSE),0)","v":0}]
["0",1,null,null,null,null,{"$f":"+G493","v":0},null,null,{"$f":"J493","v":{"$error":"#N/A"}},{"$f":"IF($I$3=\"N\",\"N\"&J494&B494,\"\")","v":{"$error":"#N/A"}},{"$f":"IFERROR(VLOOKUP(K494,'Paramétrage des points'!AA:AB,2,FALSE),0)","v":0}]
["0",2,null,null,null,null,{"$f":"+G494","v":0},null,null,{"$error":"#N/A"},{"$error":"#N/A"},{"$f":"IFERROR(VLOOKUP(K495,'Paramétrage des points'!AA:AB,2,FALSE),0)","v":0}]
["0",3,null,null,null,null,{"$f":"+G495","v":0},null,null,{"$error":"#N/A"},{"$error":"#N/A"},{"$f":"IFERROR(VLOOKUP(K496,'Paramétrage des points'!AA:AB,2,FALSE),0)","v":0}]
["0",4,null,null,null,null,{"$f":"+G496","v":0},null,null,{"$error":"#N/A"},{"$error":"#N/A"},{"$f":"IFERROR(VLOOKUP(K497,'Paramétrage des points'!AA:AB,2,FALSE),0)","v":0}]
["0",5,null,null,null,null,0,null,null,{"$error":"#N/A"},{"$error":"#N/A"},{"$f":"IFERROR(VLOOKUP(K498,'Paramétrage des points'!AA:AB,2,FALSE),0)","v":0}]
["0",6,null,null,null,null,0,null,null,{"$error":"#N/A"},{"$error":"#N/A"},{"$f":"IFERROR(VLOOKUP(K499,'Paramétrage des points'!AA:AB,2,FALSE),0)","v":0}]
["0",7,null,null,null,null,0,null,null,{"$error":"#N/A"},{"$error":"#N/A"},{"$f":"IFERROR(VLOOKUP(K500,'Paramétrage des points'!AA:AB,2,FALSE),0)","v":0}]
["0",8,null,null,null,null,0,null,null,{"$error":"#N/A"},{"$error":"#N/A"},{"$f":"IFERROR(VLOOKUP(K501,'Paramétrage des points'!AA:AB,2,FALSE),0)","v":0}]
["0",9,null,null,null,null,0,null,null,{"$error":"#N/A"},{"$error":"#N/A"},{"$f":"IFERROR(VLOOKUP(K502,'Paramétrage des points'!AA:AB,2,FALSE),0)","v":0}]
["0",10,null,null,null,null,0,null,null,{"$error":"#N/A"},{"$error":"#N/A"},{"$f":"IFERROR(VLOOKUP(K503,'Paramétrage des points'!AA:AB,2,FALSE),0)","v":0}]
["0",11,null,null,null,null,0,null,null,{"$error":"#N/A"},{"$error":"#N/A"},{"$f":"IFERROR(VLOOKUP(K504,'Paramétrage des points'!AA:AB,2,FALSE),0)","v":0}]
["0",12,null,null,null,null,0,null,null,{"$error":"#N/A"},{"$error":"#N/A"},{"$f":"IFERROR(VLOOKUP(K505,'Paramétrage des points'!AA:AB,2,FALSE),0)","v":0}]
["0",13,null,null,null,null,0,null,null,{"$error":"#N/A"},{"$error":"#N/A"},{"$f":"IFERROR(VLOOKUP(K506,'Paramétrage des points'!AA:AB,2,FALSE),0)","v":0}]
["0",14,null,null,null,null,0,null,null,{"$error":"#N/A"},{"$error":"#N/A"},{"$f":"IFERROR(VLOOKUP(K507,'Paramétrage des points'!AA:AB,2,FALSE),0)","v":0}]
["0",15,null,null,null,null,0,null,null,{"$error":"#N/A"},{"$error":"#N/A"},{"$f":"IFERROR(VLOOKUP(K508,'Paramétrage des points'!AA:AB,2,FALSE),0)","v":0}]
["",null,null,null,null,null,null,null,null,null,null,{"$f":"IFERROR(VLOOKUP(K509,'Paramétrage des points'!AA:AB,2,FALSE),0)","v":0}]
["0",{"$f":"Juges!AD1","v":0},null,null,null,null,{"$f":"B510","v":0},null,null,{"$f":"VLOOKUP(B510,'Paramétrage des points'!$A$5:$C$29,3,FALSE)","v":{"$error":"#N/A"}},null,{"$f":"IFERROR(VLOOKUP(K510,'Paramétrage des points'!AA:AB,2,FALSE),0)","v":0}]
["N0M / PRENOM0","PLACE","N0M / PRENOM","DOSSARD","CLUB","COMITE",{"$f":"+G510","v":0},null,null,{"$f":"J510","v":{"$error":"#N/A"}},null,{"$f":"IFERROR(VLOOKUP(K511,'Paramétrage des points'!AA:AB,2,FALSE),0)","v":0}]
["0",1,null,null,null,null,{"$f":"+G511","v":0},null,null,{"$f":"J511","v":{"$error":"#N/A"}},{"$f":"IF($I$3=\"N\",\"N\"&J512&B512,\"\")","v":{"$error":"#N/A"}},{"$f":"IFERROR(VLOOKUP(K512,'Paramétrage des points'!AA:AB,2,FALSE),0)","v":0}]
["0",2,null,null,null,null,{"$f":"+G512","v":0},null,null,{"$error":"#N/A"},{"$error":"#N/A"},{"$f":"IFERROR(VLOOKUP(K513,'Paramétrage des points'!AA:AB,2,FALSE),0)","v":0}]
["0",3,null,null,null,null,{"$f":"+G513","v":0},null,null,{"$error":"#N/A"},{"$error":"#N/A"},{"$f":"IFERROR(VLOOKUP(K514,'Paramétrage des points'!AA:AB,2,FALSE),0)","v":0}]
["0",4,null,null,null,null,{"$f":"+G514","v":0},null,null,{"$error":"#N/A"},{"$error":"#N/A"},{"$f":"IFERROR(VLOOKUP(K515,'Paramétrage des points'!AA:AB,2,FALSE),0)","v":0}]
["0",5,null,null,null,null,0,null,null,{"$error":"#N/A"},{"$error":"#N/A"},{"$f":"IFERROR(VLOOKUP(K516,'Paramétrage des points'!AA:AB,2,FALSE),0)","v":0}]
["0",6,null,null,null,null,0,null,null,{"$error":"#N/A"},{"$error":"#N/A"},{"$f":"IFERROR(VLOOKUP(K517,'Paramétrage des points'!AA:AB,2,FALSE),0)","v":0}]
["0",7,null,null,null,null,0,null,null,{"$error":"#N/A"},{"$error":"#N/A"},{"$f":"IFERROR(VLOOKUP(K518,'Paramétrage des points'!AA:AB,2,FALSE),0)","v":0}]
["0",8,null,null,null,null,0,null,null,{"$error":"#N/A"},{"$error":"#N/A"},{"$f":"IFERROR(VLOOKUP(K519,'Paramétrage des points'!AA:AB,2,FALSE),0)","v":0}]
["0",9,null,null,null,null,0,null,null,{"$error":"#N/A"},{"$error":"#N/A"},{"$f":"IFERROR(VLOOKUP(K520,'Paramétrage des points'!AA:AB,2,FALSE),0)","v":0}]
[{"$f":"C521&G521","v":"0"},10,null,null,null,null,0,null,null,{"$error":"#N/A"},{"$error":"#N/A"},{"$f":"IFERROR(VLOOKUP(K521,'Paramétrage des points'!AA:AB,2,FALSE),0)","v":0}]
["0",11,null,null,null,null,0,null,null,{"$error":"#N/A"},{"$error":"#N/A"},{"$f":"IFERROR(VLOOKUP(K522,'Paramétrage des points'!AA:AB,2,FALSE),0)","v":0}]
["0",12,null,null,null,null,0,null,null,{"$error":"#N/A"},{"$error":"#N/A"},{"$f":"IFERROR(VLOOKUP(K523,'Paramétrage des points'!AA:AB,2,FALSE),0)","v":0}]
["0",13,null,null,null,null,0,null,null,{"$error":"#N/A"},{"$error":"#N/A"},{"$f":"IFERROR(VLOOKUP(K524,'Paramétrage des points'!AA:AB,2,FALSE),0)","v":0}]
["0",14,null,null,null,null,0,null,null,{"$error":"#N/A"},{"$error":"#N/A"},{"$f":"IFERROR(VLOOKUP(K525,'Paramétrage des points'!AA:AB,2,FALSE),0)","v":0}]
["0",15,null,null,null,null,0,null,null,{"$error":"#N/A"},{"$error":"#N/A"},{"$f":"IFERROR(VLOOKUP(K526,'Paramétrage des points'!AA:AB,2,FALSE),0)","v":0}]
["",null,null,null,null,null,null,null,null,null,null,{"$f":"IFERROR(VLOOKUP(K527,'Paramétrage des points'!AA:AB,2,FALSE),0)","v":0}]
["0",{"$f":"Juges!AE1","v":0},null,null,null,null,{"$f":"B528","v":0},null,null,{"$f":"VLOOKUP(B528,'Paramétrage des points'!$A$5:$C$29,3,FALSE)","v":{"$error":"#N/A"}},null,{"$f":"IFERROR(VLOOKUP(K528,'Paramétrage des points'!AA:AB,2,FALSE),0)","v":0}]
["N0M / PRENOM0","PLACE","N0M / PRENOM","DOSSARD","CLUB","COMITE",{"$f":"+G528","v":0},null,null,{"$f":"J528","v":{"$error":"#N/A"}},null,{"$f":"IFERROR(VLOOKUP(K529,'Paramétrage des points'!AA:AB,2,FALSE),0)","v":0}]
["0",1,null,null,null,null,{"$f":"+G529","v":0},null,null,{"$f":"J529","v":{"$error":"#N/A"}},{"$f":"IF($I$3=\"N\",\"N\"&J530&B530,\"\")","v":{"$error":"#N/A"}},{"$f":"IFERROR(VLOOKUP(K530,'Paramétrage des points'!AA:AB,2,FALSE),0)","v":0}]
["0",2,null,null,null,null,{"$f":"+G530","v":0},null,null,{"$error":"#N/A"},{"$error":"#N/A"},{"$f":"IFERROR(VLOOKUP(K531,'Paramétrage des points'!AA:AB,2,FALSE),0)","v":0}]
["0",3,null,null,null,null,{"$f":"+G531","v":0},null,null,{"$error":"#N/A"},{"$error":"#N/A"},{"$f":"IFERROR(VLOOKUP(K532,'Paramétrage des points'!AA:AB,2,FALSE),0)","v":0}]
["0",4,null,null,null,null,{"$f":"+G532","v":0},null,null,{"$error":"#N/A"},{"$error":"#N/A"},{"$f":"IFERROR(VLOOKUP(K533,'Paramétrage des points'!AA:AB,2,FALSE),0)","v":0}]
["0",5,null,null,null,null,0,null,null,{"$error":"#N/A"},{"$error":"#N/A"},{"$f":"IFERROR(VLOOKUP(K534,'Paramétrage des points'!AA:AB,2,FALSE),0)","v":0}]
["0",6,null,null,null,null,0,null,null,{"$error":"#N/A"},{"$error":"#N/A"},{"$f":"IFERROR(VLOOKUP(K535,'Paramétrage des points'!AA:AB,2,FALSE),0)","v":0}]
["0",7,null,null,null,null,0,null,null,{"$error":"#N/A"},{"$error":"#N/A"},{"$f":"IFERROR(VLOOKUP(K536,'Paramétrage des points'!AA:AB,2,FALSE),0)","v":0}]
["0",8,null,null,null,null,0,null,null,{"$error":"#N/A"},{"$error":"#N/A"},{"$f":"IFERROR(VLOOKUP(K537,'Paramétrage des points'!AA:AB,2,FALSE),0)","v":0}]
["0",9,null,null,null,null,0,null,null,{"$error":"#N/A"},{"$error":"#N/A"},{"$f":"IFERROR(VLOOKUP(K538,'Paramétrage des points'!AA:AB,2,FALSE),0)","v":0}]
["0",10,null,null,null,null,0,null,null,{"$error":"#N/A"},{"$error":"#N/A"},{"$f":"IFERROR(VLOOKUP(K539,'Paramétrage des points'!AA:AB,2,FALSE),0)","v":0}]
["0",11,null,null,null,null,0,null,null,{"$error":"#N/A"},{"$error":"#N/A"},{"$f":"IFERROR(VLOOKUP(K540,'Paramétrage des points'!AA:AB,2,FALSE),0)","v":0}]
["0",12,null,null,null,null,0,null,null,{"$error":"#N/A"},{"$error":"#N/A"},{"$f":"IFERROR(VLOOKUP(K541,'Paramétrage des points'!AA:AB,2,FALSE),0)","v":0}]
["0",13,null,null,null,null,0,null,null,{"$error":"#N/A"},{"$error":"#N/A"},{"$f":"IFERROR(VLOOKUP(K542,'Paramétrage des points'!AA:AB,2,FALSE),0)","v":0}]
["0",14,null,null,null,null,0,null,null,{"$error":"#N/A"},{"$error":"#N/A"},{"$f":"IFERROR(VLOOKUP(K543,'Paramétrage des points'!AA:AB,2,FALSE),0)","v":0}]
["0",15,null,null,null,null,0,null,null,{"$error":"#N/A"},{"$error":"#N/A"},{"$f":"IFERROR(VLOOKUP(K544,'Paramétrage des points'!AA:AB,2,FALSE),0)","v":0}]

{"sheet":"Résultats clubs","index":15,"n_rows":50,"n_cols":4,"rows_kept":50,"cut":false,"hidden":false,"merged":[[12,1,12,3]]}
[null,{"$f":"pesée!A1","v":"FEDERATION FRANCAISE D'HALTEROPHILIE,"}]
[null,{"$f":"pesée!A2","v":"MUSCULATION, FORCE ATHLETIQUE ET CULTURISME"}]
[]
[null,{"$f":"pesée!A4","v":" DISCIPLINE  CULTURISME"}]
[]
[]
[null,"Compétition : ",{"$f":"pesée!$B$6","v":"Compétition magnifique"}]
[null,"Date : ",{"$f":"pesée!$B$8","v":"2013-03-13"}]
[null,"Lieu : ",{"$f":"+pesée!G6","v":"Gymnase c'est ici"}]
[]
[]
[]
[null,"CLASSEMENT CLUBS - Top 20"]
[]
[null,null,"Somme de POINTS"]
[null,"Place","Clubs","Total"]
[null,{"$f":"IFERROR(RANK(D17,$D$17:$D$100),\"\")","v":13},"ACADEMIE CLUB LUCON",8]
[null,{"$f":"IFERROR(RANK(D18,$D$17:$D$100),\"\")","v":14},"ACH FONTENAY",0]
[null,14,"AFHMA FRANCONVILLE",0]
[null,11,"AGOS INRIA",12]
[null,14,"APOLLO CLUB TREMBLAY",0]
[null,14,"AS FOURCHAMBAULT",0]
[null,2,"ASC MUSCLE GYM SOISSONS",30]
[null,14,"ASCAP - POISSY",0]
[null,14,"ATHLETIQUE DE SAINT PRIX",0]
[null,14,"BBF ALLONES",0]
[null,14,"CA LENSOIS",0]
[null,14,"CERCLE ATHLETIQUE PARIS 10",0]
[null,8,"CH LUNEVILLE",20]
[null,10,"CHFM ROISEL",15]
[null,14,"CHRIS FITNESS THIBOUVILLE",0]
[null,14,"CMF LOCMINE",0]
[null,8,"CP MEDIOLANAISE",20]
[null,14,"CSAG MOURMELON",0]
[null,5,"EC FOURMISIENNE",25]
[null,14,"EVA FITNESS EMERAINVILLE",0]
[null,5,"FIT BODY HOUDINOIS",25]
[null,11,"FORCE ATHLETIQUE LONGJUMEAU",12]
[null,14,"GS SENLIS",0]
[null,2,"HC BEAUVAIS",30]
[null,2,"MC FORM AUDRUICQ",30]
[null,14,"MH CLERMONTOIS",0]
[null,1,"MUSCULATION HAUBOURDINOISE",32]
[null,14,"POWER CLUB DE FAREMOUTIERS",0]
[null,14,"PSA ACC CHARLEVILLE MEZIERES",0]
[null,14,"TOP FORME DOMART EN PONTHIEU",0]
[null,14,"US GRIGNY",0]
[null,5,"US METRO PARIS",25]
[null,14,"VELIZY MUSCULATION",0]
[null,14,"(vide)"]

{"sheet":"comparaison","index":16,"n_rows":32,"n_cols":8,"rows_kept":32,"cut":false,"hidden":false,"merged":[[0,0,2,0],[0,1,0,2],[0,5,2,5],[0,6,0,7],[1,1,1,2],[1,6,1,7],[2,1,2,2],[2,6,2,7],[3,1,3,2],[3,6,3,7],[4,0,4,2],[4,5,4,7],[6,0,6,1],[6,5,6,6],[7,0,7,2],[7,5,7,7],[8,0,8,2],[8,5,8,7],[13,0,13,2],[13,5,13,7],[17,0,19,0],[17,1,17,2],[17,5,19,5],[17,6,17,7],[18,1,18,2],[18,6,18,7],[19,1,19,2],[19,6,19,7],[20,1,20,2],[20,6,20,7],[21,0,21,2],[21,5,21,7],[25,0,25,2],[25,5,25,7],[23,0,23,1],[23,5,23,6],[24,0,24,2],[24,5,24,7]]}
[]
[]
[]
[]
["DEMANDE DE COMPARAISONS",null,null,null,null,"DEMANDE DE COMPARAISONS"]
[]
["NOM",null,"PRENOM",null,null,"NOM",null,"PRENOM"]
[]
["JUGE N°",null,null,null,null,"JUGE N°"]
[]
["A GAUCHE ","AU CENTRE","A DROITE",null,null,"A GAUCHE ","AU CENTRE","A DROITE"]
["N°","N°","N°",null,null,"N°","N°","N°"]
[]
[]
["Signature",null,null,null,null,"Signature"]
[]
[]
[]
[]
[]
[]
["DEMANDE DE COMPARAISONS",null,null,null,null,"DEMANDE DE COMPARAISONS"]
[]
["NOM",null,"PRENOM",null,null,"NOM",null,"PRENOM"]
[]
["JUGE N°",null,null,null,null,"JUGE N°"]
[]
["A GAUCHE ","AU CENTRE","A DROITE",null,null,"A GAUCHE ","AU CENTRE","A DROITE"]
["N°","N°","N°",null,null,"N°","N°","N°"]
[]
[]
["Signature",null,null,null,null,"Signature"]